Workbook

Sheet Cover
A1: 30
C13: Rate Analysis Model V1.01
C14: RAMmodel_REP2018.xls
C15: Home / Contents
C16: Start Here
C17: Scenario Builder
C18: Purpose of this Workbook:
C22: Legend:
C24: Tab Colors | H24: Font Colors | L24: Hyperlink Types
C26: Blue Tab | E26: Cover Sheet | H26: Blue Font | I26: Constant Values | L26: Cover Hyperlink | N26: Cover Page
C27: Green Tab | E27: Table of Contents | H27: Black Font | I27: Calculated Values | L27: TOC Hyperlink | N27: TOC
C28: Dark Blue Tabs | E28: Input Sheets | H28: Plum Font | I28: Hyperlinks | L28: Sheet Top Hyperlink | N28: é
C29: Rose Tabs | E29: Assumption Sheets | H29: Red Font | I29: Errors/Checks
C30: Tan Tabs | E30: Calculation/Output Sheets | H30: Black/Yellow | I30: Work in Progress
C31: Teal Tabs | E31: Lookup Sheets | H31: Black/Gold | I31: Modifiable Assumptions
C32: Reb Tabs | E32: Log/Error Sheet | H32: White/Grey | I32: Locked Data
C33: Black Tabs | E33: Locked Data Sheet
C34: Yellow Tabs | E34: REP Settlement Sheets
C35: Purple Tabs | E35: 7b2 Related Sheets

Sheet TOC
A1: 30 | B1: Table of Contents
B2: =Cover!C13 -> Rate Analysis Model V1.01
B3: =Cover!$C$14 -> RAMmodel_REP2018.xls
B4: Cover Sheet | F4: PRS | G4: 7(b)(2)
E5: Input | F5: Documentation | G5: Documentation
A6: é | B6: Section & Sheet Titles | D6: Worksheet Name | E6: Datasheet? | F6: Table Number | G6: Table Number
B8: Documentation
B9: 1 | C9: Macro Design Schematic | D9: Macro
B10: Assumption Sheets
B11: =+B9+1 -> 2 | C11: Initialize Assumptions | D11: Init | E11: INPUT
B12: Validation/Error Check/Result Summary
B13: =B11+1 -> 3 | C13: Revenue Check | D13: Rev Check
B14: =+B13+1 -> 4 | C14: Rate Design Summary | D14: RateSummary
B15: 5 | C15: Scenario Results | D15: ScenarioResults
B16: 6 | C16: Expanded Scenario Results | D16: ResultsDetail
B17: Loads and Resources Data
B18: =+B16+1 -> 7 | C18: Load Input Data | D18: Loads | E18: INPUT | F18: Table 2.1.1 | G18: Table 1.1.1
B19: =+B18+1 -> 8 | C19: PF Public with Firm Slice Loads | D19: PF Public | E19: INPUT
B20: 9 | C20: PF Exchange Loads | D20: PF Exchange | E20: INPUT
B21: 10 | C21: IP Loads | D21: RAM IP | E21: INPUT
B22: 11 | C22: NR Loads | D22: RAM NR | E22: INPUT
B23: =+B22+1 -> 12 | C23: Resource Input Data | D23: Resources | E23: INPUT | F23: Table 2.1.2 | G23: Table 1.1.2
B24: 13 | C24: Residential Exchange Input Data | D24: ExchangeInputs | E24: INPUT
B25: =+B24+1 -> 14 | C25: Transmission Inputs | D25: TransInputs | E25: INPUT
B26: =+B25+1 -> 15 | C26: REP Settlement Inputs | D26: REPSettlementSchedule
B27: =+B26+1 -> 16 | C27: Calculation of Exchange Transmission Adder | D27: Exchange Trans
B28: 17 | C28: Calculation of Exchange Resource Size and Costs | D28: Exchange Summary | F28: Table 2.1.3 | G28: Table 1.1.3
B29: =+B28+1 -> 18 | C29: Load Resource Study | D29: LR_Balance | F29: Table 2.2.1 | G29: Table 1.2.1
B30: 19 | C30: Load Resource Balance | D30: LR_Adjust | F30: Table 2.2.2 | G30: Table 1.2.2
B31: 20 | C31: Program Case Energy Allocation Factors | D31: ProgAlloc | F31: Table 2.2.3 | G31: Table 1.2.3
B32: Determination of Active Residential Exchange Costs
B33: =+B31+1 -> 21 | C33: Active Exchanging Utilities | D33: Active Exchange
B34: 22 | C34: Exchanging Utilities' ASCs | D34: Exchange ASC
B35: 23 | C35: Exchanging Utilities' Exchange Loads | D35: Exchange Load
B36: 24 | C36: Exchange Resource Costs | D36: Exchange Resource Cost
B37: Ratemaking Revenue Requirement Data
B38: =+B36+1 -> 25 | C38: Disaggregated Costs with TRM and COSA Flags | D38: Cost | E38: INPUT
B39: =+B38+1 -> 26 | C39: Disaggregated Costs with TRM and COSA Flags, Includes Internally Developed Costs | D39: CostPrint | F39: Table 2.3.1 | G39: Table 1.3.1
B40: =+B39+1 -> 27 | C40: Aggregated COSA Costs | D40: ProgCOSA | F40: Table 2.3.2 | G40: Table 1.3.2
B41: =+B40+1 -> 28 | C41: LDD and IRD Costs | D41: LDD_IRD | F41: Table 2.3.3 | G41: Table 1.3.3
B42: Allocation of COSA Costs to Rate Pools
B43: =+B41+1 -> 29 | C43: Allocation of FBS and LDD/IRD Costs | D43: FBS_LDD_IRD_Allocation | F43: Table 2.3.4.1 | G43: Table 1.3.4.1
B44: =+B43+1 -> 30 | C44: Allocation of New Resource and Exchange Costs | D44: NR_EX_Allocation | F44: Table 2.3.4.2 | G44: Table 1.3.4.2
B45: =+B44+1 -> 31 | C45: Allocation of Conservation, BPA Program and Transmission Costs | D45: Cons_Program_Allocation | F45: Table 2.3.4.3 | G45: Table 1.3.4.3
B46: =+B45+1 -> 32 | C46: Initial Cost Allocation | D46: Initial_Cost_Allocation | F46: Table 2.3.5 | G46: Table 1.3.5
B47: =+B46+1 -> 33 | C47: Cost Allocation Summary | D47: Cost_Allocation Summary
B48: Revenue Credits Allocation to Rate Pools
B49: =+B47+1 -> 34 | C49: Revenue Credits | D49: RDS_Credits | F49: Table 2.3.6 | G49: Table 1.3.6
B50: =+B49+1 -> 35 | C50: Revenue Credits Allocated to Loads Recovering FBS Costs | D50: Credits FBS | F50: Tables 2.3.7.1 & 2.3.7.2 | G50: Tables 1.3.7.1 & 1.3.7.2
B51: 36 | C51: Revenue Credits Allocated to Loads Recovering New Resource and Conservation Costs | D51: Credits NR-Cons | F51: Tables 2.3.7.3 & 2.3.7.4 | G51: Tables 1.3.7.3 & 1.3.7.4
B52: 37 | C52: Revenue Credits Allocated to All Loads | D52: Credits Gen-RSS | F52: Tables 2.3.7.5 & 2.3.7.6 | G52: Tables 1.3.7.5 & 1.3.7.6
B53: 38 | C53: Secondary Revenue and Balancing Purchases Input Data | D53: RevSimInputs | E53: INPUT
B54: 39 | C54: Calculation and Allocation of Secondary Revenue Credit | D54: Secondary | F54: Table 2.3.8 | G54: Table 1.3.8
B55: 40 | C55: Calculation and Allocation of FPS Revenue Deficiency | D55: FPS Revenue Deficiency | F55: Table 2.3.9 | G55: Table 1.3.9
B56: Rate Directive Ratemaking
B57: =+B55+1 -> 41 | C57: Calculation of Rates After Initial Allocation of Cost and Credits | D57: Initial Rates | F57: Table 2.3.10 | G57: Table 1.3.10
B58: =+B57+1 -> 42 | C58: Value of Reserves and Industrial Margin Computation | D58: Margin_VOR
B59: 43 | C59: Value of Reserves and Industrial Margin Computation | D59: Margin_VOR_Calc | F59: Table 2.4.1 | G59: Table 1.4.1
B60: 44 | C60: Calculate Annual Scalars Used to Calculate Monthly Rates for First IP-PF Link | D60: Calc Scalar 1 | F60: Table 2.4.2 | G60: Table 1.4.2
B61: 45 | C61: Calculate Monthly Rates Used in First IP - PF Link Calculation | D61: Calc Monthly 1 | F61: Table 2.4.3 | G61: Table 1.4.3
B62: 46 | C62: Calculation of the 7c2 IP-PF Link Amount | D62: IP_PF_Link | F62: Table 2.4.4 | G62: Table 1.4.4
B63: 47 | C63: Allocation of the 7c2 IP-PF Link Amount and Subsequant Rate Calculations | D63: Rates After Link | F63: Table 2.4.5 | G63: Table 1.4.5
B64: 48 | C64: Calculation of the DSI Floor Rate | D64: IP Floor Calc | F64: Table 2.4.6 | G64: Table 1.4.6
B65: 49 | C65: DSI Floor Rate Test 1 | D65: Floor Test 1 | F65: Table 2.4.7 | G65: Table 1.4.7
B66: =B65+1 -> 50 | C66: Calculation of IOU and COU Base Exchange Rates | D66: Base PF Exchange | F66: Table 2.4.8 | G66: Table 1.4.8
B67: REP Settlement Case Rate Directive Ratemaking
B68: =+B66+1 -> 51 | C68: Calculation of REP Adjustment Amount under Settlement | D68: Post-7b2Rates | F68: Table 2.4.9
B69: =B68+1 -> 52 | C69: Rate Analysis Model - Exchange Resource Cost | D69: Base Exchange Cost | F69: Table 2.4.10
B70: =B69+1 -> 53 | C70: Calculation of Settlement Utility Specific PF Exchange Rates | D70: Utility Specific PFx Settle | F70: Table 2.4.11
B71: =+B70+1 -> 54 | C71: 2012 REP Settlement Agreement Section 6 Reallocations | D71: IOU Reallocation Balances | F71: Table 2.4.12
B72: =+B71+1 -> 55 | C72: Allocation of Increase in the PFx Revenue Requirement under Settlement | D72: Rates After Settlement | F72: Table 2.4.13
B73: 56 | C73: Reallocation of REP Net Benefits under Settlement | D73: WP-10 Adjustment | F73: Table 2.4.14
B74: 57 | C74: Rate Computation after Reallocation of REP Benefits under Settlement | D74: Rates After WP-10 Adjustment | F74: Table 2.4.15
B75: 58 | C75: Calculate Annual Scalars Used to Calculate Monthly Rates | D75: Calc Scalar Settlement | F75: Table 2.4.16
B76: 59 | C76: Calculate Monthly Rates Used in First IP - PF Link Calculation | D76: Calc Monthly Settlement | F76: Table 2.4.17
B77: 60 | C77: Initial 7c2 IP-PF Link Calculation | D77: IP_PF_Link Settlement | F77: Table 2.4.18
B78: 61 | C78: Calculation of Rates after IP-PF Link under Settlement | D78: Rates After Link Settlement | F78: Table 2.4.19
B79: 62 | C79: Settlement Revenue Check | D79: Settlement Rev Check
B80: =+B79+1 -> 63 | C80: Net REP Ratemaking Proof Table under Settlement | D80: Net REP Settlement | F80: Table 3.1.7.1
B81: Program Case Rate Directive Ratemaking
B82: =+B80+1 -> 64 | C82: Calculation of the 7b2 Rate Test Trigger | D82: TriggerCalc | G82: Table 1.4.9
B83: =+B82+1 -> 65 | C83: Calculation and Allocation of the 7b2 Rate Protection Amount | D83: 7b2 Allocation | G83: Table 1.4.10
B84: 66 | C84: Calculation of Rates After the Allocation of the 7b2 Rate Protection Amount | D84: Rates After 7b2 | G84: Table 1.4.11
B85: 67 | C85: Calculate Annual Scalars Used to Calculate Monthly Rates for 7b2 Industrial Adjustment 7c2 Delta | D85: Calc Scalar 2 | G85: Table 1.4.12
B86: 68 | C86: Calculate Monthly Rates Used in 7b2 Industrial Adjustment 7c2 Delta | D86: Calc Monthly 2 | G86: Table 1.4.13
B87: 69 | C87: Calculation of the 7b2 Industrial Adjustment 7c2 Delta | D87: IP_PF_Link 2 | G87: Table 1.4.14
B88: 70 | C88: Allocation of the 7b2 Industrial Adjustment 7c2 Delta and Subsequant Rate Calculations | D88: Rates After Link (2) | G88: Table 1.4.15
B89: 71 | C89: DSI Floor Rate Test 2 | D89: Floor Test 2 | G89: Table 1.4.16
B90: 72 | C90: Calculation of Utility Specific PF Exchange Rates | D90: Utility Specifc PFx
B91: 73 | C91: Program Case Revenue Check | D91: Program Rev Check
B92: Rate Pool Unit Cost Tables and Net REP Ratemaking Proof
B93: =+B91+1 -> 74 | C93: PF Rate Pool Unit Cost Table | D93: PF Allocation | F93: Table 2.5.1 | G93: Table 1.5.4
B94: =+B93+1 -> 75 | C94: IP Rate Pool Unit Cost Table | D94: IP Allocation | F94: Table 2.5.2 | G94: Table 1.5.5
B95: =+B94+1 -> 76 | C95: NR Rate Pool Unit Cost Table | D95: NR Allocation | F95: Table 2.5.3 | G95: Table 1.5.6
B96: =+B95+1 -> 77 | C96: Generating Resource Component Contribution Table | D96: Cost Contribution | F96: Table 2.5.4 | G96: Table 1.5.7
B97: =+B96+1 -> 78 | C97: Net REP Ratemaking Proof Table | D97: Net REP
B98: =+B97+1 -> 79 | C98: Reconciliation of REP Benefits for Tiered Rates | D98: REP Benefits | F98: Table 2.4.20
B99: Tiered Rates Methodology (TRM)
B100: =+B98+1 -> 80 | C100: Aggregated TRM Costs | D100: Costs_TRM | F100: Table 3.1.1
B101: =+B100+1 -> 81 | C101: TRM Billing Determinants | D101: TRM_Billing | E101: INPUT
B102: 82 | C102: Unused RHWM Calculation | D102: UnusedRHWM | F102: Table 3.1.2
B103: 83 | C103: NonSlice Cost for Transmission Losses (Composite Credit) | D103: NonSliceLossAdjust | F103: Table 3.1.3
B104: 84 | C104: Balancing Augmentation Adjustment for Change in T1SFCO | D104: T1SFCO | F104: Table 3.1.4
B105: 85 | C105: TRM Market Prices and Demand Rates | D105: MarketInputs | E105: INPUT
B106: 86 | C106: TRM Demand and Load Shaping Charges | D106: LoadShapingandDemand | F106: Table 3.1.5
B107: 87 | C107: Tier 2 Rates Inputs | D107: Tier 2 Rates | E107: INPUT
B108: 88 | C108: TRM Cost Allocation | D108: Cost_Allocation_TRM | F108: Table 3.1.6
B109: 89 | C109: Cost Proof | D109: Cost_Proof | F109: Table 3.1.7.2
B110: 7b2 Case Loads
B111: =+B109+1 -> 90 | C111: 7b2 Conservation Loads | D111: 7b2 Con Load
B112: =+B111+1 -> 91 | C112: 7b2 PF Loads | D112: 7b2 PF Load | G112: Table 2.1
B113: 7b2 Case Loads/Resource Balance and Resource Stack Utilization
B114: =+B112+1 -> 92 | C114: 7b2 Resource Stack | D114: 7b2 Resource Sort | E114: INPUT | G114: Table 2.2.2
B115: =+B114+1 -> 93 | C115: List of Available Resources | D115: 7b2 Resources1 | G115: Table 2.2.3
B116: 94 | C116: Determination of Resources Selected from Resource Stack | D116: 7b2 Resources2 | G116: Table 2.2.9
B117: 95 | C117: Resources Sorted by Least Cost | D117: ConservRes1
B118: 96 | C118: Conservation Resources Selected | D118: ConservRes2 | G118: Table 2.2.4
B119: 97 | C119: Real 2010 Dollar Cost of Resources Selected | D119: ConservRes3 | G119: Table 2.2.5
B120: 98 | C120: Nominal Amortized Cost of Expensed Portion of Conservation Resources Selected | D120: ConservRes4 | G120: Table 2.2.6
B121: 99 | C121: Nominal Annual Cost of Capital Portion of Conservation Resources Selected | D121: ConservRes5 | G121: Table 2.2.7
B122: 100 | C122: Nominal Cost of Non-Conservation Resources Selected | D122: ConservRes6
B123: 101 | C123: Nominal Total Cost of Resources Selected | D123: ConservRes7 | G123: Table 2.2.8
B124: 7b2 Case Rate Directive Ratemaking
B125: =B123+1 -> 102 | C125: 7b2 Case COSA Table | D125: 7b2COSA | G125: Table 2.3.1
B126: =B125+1 -> 103 | C126: 7b2 Case Energy Allocaction Factors | D126: 7b2Alloc | G126: Table 2.2.1
B127: 104 | C127: 7b2 Case FBS and Resource Stack Cost Allocation | D127: 7b2 FBS_Stack_Allo | G127: Table 2.3.2.1
B128: 105 | C128: 7b2 Case LDD/IRD and Reserve Cost Allocation | D128: 7b2 LDD_IRD_Reserve_Allo | G128: Table 2.3.2.2
B129: 106 | C129: 7b2 Case Programs and Transmission Cost Allocation | D129: 7b2 Program_Trans_Allo | G129: Table 2.3.2.3
B130: 107 | C130: 7b2 Case Initial Net Cost Alloction | D130: 7b2 Initial_Cost_Allo | G130: Table 2.3.3
B131: 108 | C131: 7b2 Case Revenue Credit Summary | D131: 7b2 RDS_Credits | G131: Table 2.3.4
B132: 109 | C132: 7b2 Case Revenue Credits Allocated to Loads Served by FBS Resources | D132: 7b2 Credits FBS | G132: Tables 2.3.5.1 & 2.3.5.2
B133: 110 | C133: 7b2 Case Revenue Credits Allocated to All Loads | D133: 7b2 Credits Gen-RSS | G133: Tables 2.3.5.3
B134: 111 | C134: 7b2 Case Calculation and Allocation of Secondary Revenue | D134: 7b2 Secondary | G134: Table 2.3.6
B135: 112 | C135: 7b2 Case FPS Revenue Deficiency Calculation and Allocation | D135: 7b2 FPS Revenue Deficiency
B136: 113 | C136: Calculation of 7b2 Case Rates | D136: 7b2 Rates
B137: =B136+1 -> 114 | C137: 7b2 Case Revenue Check | D137: 7b2 Rev Check
B138: Rate Case Two Year Rate Period Rates Calculations
B139: =+B137+1 -> 115 | C139: Ave. Tier 1 PF Public Rate | D139: PFAveT1_RateOutput
B140: =+B139+1 -> 116 | C140: PF Melded Equivalent Rate | D140: PFMeldedEqv_RateOutput
B141: 117 | C141: IP Rate | D141: IP_RateOutput | F141: Table 3.1.8.1 | G141: Table 1.5.1
B142: 118 | C142: NR Rate | D142: NR_RateOutput | F142: Table 3.1.8.2
B143: 119 | C143: Load Shaping True-up & Tier 1 Equivalent Rates | D143: LSTUR&PFT1Eqv_RateOutput | F143: Table 3.1.8.3 | G143: Table 1.5.2
B144: 120 | C144: Unbifurcated PF Rate | D144: Unbif PF_RateOutput | F144: Table 3.1.8.4 | G144: Table 1.5.3
B145: 121 | C145: PF Exchange Rate | D145: PF Exchange_RateOutput | F145: Table 3.1.8.5
B146: 122 | C146: Flat Melded Equivalent PF Public Rate | D146: FlatPFMeldedEqv_RateOutput
B147: Outputs and Checks
B148: =+B146+1 -> 123 | C148: RiskMod Output | D148: RiskMod_Out
B149: =+B148+1 -> 124 | C149: Revenue Requirement Output | D149: RROutput
B150: =+B149+1 -> 125 | C150: Rates Output New | D150: RatesOutputNew
B151: 126 | C151: Revenue Requirement Mapping | D151: RevReqMapping
B152: 127 | C152: Summary | D152: Summary
B153: 128 | C153: Net Revenue | D153: NetRevenue
B154: 129 | C154: Slice True Up Calculation | D154: SliceTrueUp
B155: 130 | C155: Tables | D155: Tables

Sheet Macro
B1: Rate Analysis Model - PF Scenario Load Delta Designations | R1: Not printed in documentation.
A2: TOC | B2: =Cover!$C$14 -> RAMmodel_REP2018.xls
A3: é
I4: RAM2010 Macro Diagram

Sheet Init
B1: Initiation Sheet
A2: TOC | B2: =+Cover!C14 -> RAMmodel_REP2018.xls
A3: é | B3: Input Parameters | F3: Diurnal Hours | N3: Annual Hours
F4: date | G4: days | H4: hours | I4: #Sun | J4: #Hol | K4: HLH | L4: LLH | N4: year | O4: days | P4: hours
F5: 2014-10-01 | G5: 31 | H5: 744 | I5: 5 | J5: 1 | K5: 432 | L5: 312 | N5: 2011 | O5: 365 | P5: 8760
F6: 2014-11-01 | G6: 28 | H6: 721 | I6: 4 | J6: 0 | K6: 384 | L6: 337 | N6: 2012 | O6: 365 | P6: 8784
F7: 2014-12-01 | G7: 31 | H7: 744 | I7: 4 | J7: 0 | K7: 416 | L7: 328 | N7: 2013 | O7: 365 | P7: 8760
F8: 2015-01-01 | G8: 30 | H8: 744 | I8: 4 | J8: 0 | K8: 416 | L8: 328 | N8: 2014 | O8: 366 | P8: 8760
B9: Base Year | C9: 2018 | F9: 2015-02-01 | G9: 31 | H9: 672 | I9: 5 | J9: 1 | K9: 384 | L9: 288 | N9: 2015 | O9: 365 | P9: 8760
F10: 2015-03-01 | G10: 30 | H10: 743 | I10: 4 | J10: 0 | K10: 416 | L10: 327 | N10: 2016 | O10: 365 | P10: 8784
F11: 2015-04-01 | G11: 31 | H11: 720 | I11: 5 | J11: 1 | K11: 416 | L11: 304 | N11: 2017 | O11: 365 | P11: 8760
C12: Yes or No? | F12: 2015-05-01 | G12: 31 | H12: 744 | I12: 4 | J12: 0 | K12: 400 | L12: 344 | N12: 2016 | O12: 366 | P12: 8784
B13: Run an REP Settlement Scenario ? | C13: Yes | F13: 2015-06-01 | G13: 30 | H13: 720 | I13: 4 | J13: 1 | K13: 416 | L13: 304 | N13: 2017 | O13: 365 | P13: 8760
F14: 2015-07-01 | G14: 31 | H14: 744 | I14: 5 | J14: 0 | K14: 416 | L14: 328 | N14: 2018 | O14: 365 | P14: 8760
F15: 2015-08-01 | G15: 30 | H15: 744 | I15: 4 | J15: 1 | K15: 416 | L15: 328 | N15: 2019 | O15: 365 | P15: 8760
B16: Years to Finance Expensed Portion of 7b2 Cons | C16: 5 | F16: 2015-09-01 | G16: 31 | H16: 720 | I16: 4 | J16: 1 | K16: 400 | L16: 320 | N16: 2020 | O16: 366 | P16: 8784
F17: 2015-10-01 | G17: 31 | H17: 744 | I17: 5 | J17: 1 | K17: 432 | L17: 312 | N17: 2021 | O17: 365 | P17: 8760
F18: 2015-11-01 | G18: 29 | H18: 721 | I18: 4 | J18: 0 | K18: 384 | L18: 337 | N18: 2022 | O18: 365 | P18: 8760
F19: 2015-12-01 | G19: 31 | H19: 744 | I19: 4 | J19: 0 | K19: 416 | L19: 328 | N19: 2023 | O19: 365 | P19: 8760
F20: 2016-01-01 | G20: 30 | H20: 744 | I20: 5 | J20: 0 | K20: 400 | L20: 344 | N20: 2024 | O20: 366 | P20: 8784
F21: 2016-02-01 | G21: 31 | H21: 696 | I21: 4 | J21: 1 | K21: 400 | L21: 296 | N21: 2025 | O21: 365 | P21: 8760
F22: 2016-03-01 | G22: 30 | H22: 743 | I22: 4 | J22: 0 | K22: 432 | L22: 311 | N22: 2026 | O22: 365 | P22: 8760
F23: 2016-04-01 | G23: 31 | H23: 720 | I23: 5 | J23: 1 | K23: 416 | L23: 304 | N23: 2027 | O23: 365 | P23: 8760
F24: 2016-05-01 | G24: 31 | H24: 744 | I24: 4 | J24: 0 | K24: 400 | L24: 344 | N24: 2028 | O24: 366 | P24: 8784
F25: 2016-06-01 | G25: 30 | H25: 720 | I25: 5 | J25: 1 | K25: 416 | L25: 304 | N25: 2029 | O25: 365 | P25: 8760
F26: 2016-07-01 | G26: 31 | H26: 744 | I26: 4 | J26: 0 | K26: 400 | L26: 344 | N26: 2030 | O26: 365 | P26: 8760
F27: 2016-08-01 | G27: 30 | H27: 744 | I27: 4 | J27: 1 | K27: 432 | L27: 312 | N27: 2031 | O27: 365 | P27: 8760
F28: 2016-09-01 | G28: 31 | H28: 720 | I28: 5 | J28: 1 | K28: 400 | L28: 320 | N28: 2032 | O28: 366 | P28: 8784
F29: 2016-10-01 | G29: 31 | H29: 744 | I29: 4 | J29: 1 | K29: 416 | L29: 328 | N29: 2033 | O29: 365 | P29: 8760
F30: 2016-11-01 | G30: 28 | H30: 721 | I30: 4 | J30: 0 | K30: 400 | L30: 321 | N30: 2034 | O30: 365 | P30: 8760
F31: 2016-12-01 | G31: 31 | H31: 744 | I31: 5 | J31: 0 | K31: 416 | L31: 328 | N31: 2035 | O31: 365 | P31: 8760
F32: 2017-01-01 | G32: 30 | H32: 744 | I32: 4 | J32: 0 | K32: 400 | L32: 344 | N32: 2036 | O32: 366 | P32: 8784
F33: 2017-02-01 | G33: 31 | H33: 672 | I33: 4 | J33: 1 | K33: 384 | L33: 288 | N33: 2037 | O33: 365 | P33: 8760
F34: 2017-03-01 | G34: 30 | H34: 743 | I34: 5 | J34: 0 | K34: 432 | L34: 311 | N34: 2038 | O34: 365 | P34: 8760
F35: 2017-04-01 | G35: 31 | H35: 720 | I35: 4 | J35: 1 | K35: 400 | L35: 320 | N35: 2039 | O35: 365 | P35: 8760
F36: 2017-05-01 | G36: 31 | H36: 744 | I36: 4 | J36: 0 | K36: 416 | L36: 328 | N36: 2040 | O36: 366 | P36: 8784
F37: 2017-06-01 | G37: 30 | H37: 720 | I37: 5 | J37: 1 | K37: 416 | L37: 304 | N37: 2041 | O37: 365 | P37: 8760
F38: 2017-07-01 | G38: 31 | H38: 744 | I38: 4 | J38: 0 | K38: 400 | L38: 344 | N38: 2042 | O38: 365 | P38: 8760
F39: 2017-08-01 | G39: 30 | H39: 744 | I39: 4 | J39: 1 | K39: 432 | L39: 312 | N39: 2043 | O39: 365 | P39: 8760
F40: 2017-09-01 | G40: 31 | H40: 720 | I40: 5 | J40: 1 | K40: 400 | L40: 320 | N40: 2044 | O40: 366 | P40: 8784
F41: 2017-10-01 | G41: 31 | H41: 744 | I41: 4 | J41: 1 | K41: 416 | L41: 328
F42: 2017-11-01 | G42: 28 | H42: 721 | I42: 4 | J42: 0 | K42: 400 | L42: 321
F43: 2017-12-01 | G43: 31 | H43: 744 | I43: 5 | J43: 0 | K43: 400 | L43: 344
F44: 2018-01-01 | G44: 30 | H44: 744 | I44: 4 | J44: 0 | K44: 416 | L44: 328
F45: 2018-02-01 | G45: 31 | H45: 672 | I45: 4 | J45: 1 | K45: 384 | L45: 288
F46: 2018-03-01 | G46: 30 | H46: 743 | I46: 5 | J46: 0 | K46: 432 | L46: 311
F47: 2018-04-01 | G47: 31 | H47: 720 | I47: 4 | J47: 1 | K47: 400 | L47: 320
F48: 2018-05-01 | G48: 31 | H48: 744 | I48: 5 | J48: 0 | K48: 416 | L48: 328
F49: 2018-06-01 | G49: 30 | H49: 720 | I49: 4 | J49: 1 | K49: 416 | L49: 304
F50: 2018-07-01 | G50: 31 | H50: 744 | I50: 4 | J50: 0 | K50: 400 | L50: 344
F51: 2018-08-01 | G51: 30 | H51: 744 | I51: 5 | J51: 1 | K51: 432 | L51: 312
F52: 2018-09-01 | G52: 31 | H52: 720 | I52: 4 | J52: 1 | K52: 384 | L52: 336
F53: 2018-10-01 | G53: 31 | H53: 744 | I53: 4 | J53: 1 | K53: 432 | L53: 312
F54: 2018-11-01 | G54: 28 | H54: 721 | I54: 4 | J54: 0 | K54: 400 | L54: 321
F55: 2018-12-01 | G55: 31 | H55: 744 | I55: 5 | J55: 0 | K55: 400 | L55: 344
F56: 2019-01-01 | G56: 30 | H56: 744 | I56: 4 | J56: 0 | K56: 416 | L56: 328
F57: 2019-02-01 | G57: 31 | H57: 672 | I57: 5 | J57: 1 | K57: 384 | L57: 288
F58: 2019-03-01 | G58: 30 | H58: 743 | I58: 4 | J58: 0 | K58: 416 | L58: 327
F59: 2019-04-01 | G59: 31 | H59: 720 | I59: 4 | J59: 1 | K59: 416 | L59: 304
F60: 2019-05-01 | G60: 31 | H60: 744 | I60: 5 | J60: 0 | K60: 416 | L60: 328
F61: 2019-06-01 | G61: 30 | H61: 720 | I61: 4 | J61: 1 | K61: 400 | L61: 320
F62: 2019-07-01 | G62: 31 | H62: 744 | I62: 4 | J62: 0 | K62: 416 | L62: 328
F63: 2019-08-01 | G63: 30 | H63: 744 | I63: 5 | J63: 1 | K63: 432 | L63: 312
F64: 2019-09-01 | G64: 31 | H64: 720 | I64: 4 | J64: 1 | K64: 384 | L64: 336
F65: 2019-10-01 | G65: 31 | H65: 744 | I65: 5 | J65: 1 | K65: 432 | L65: 312
F66: 2019-11-01 | G66: 29 | H66: 721 | I66: 4 | J66: 0 | K66: 400 | L66: 321
F67: 2019-12-01 | G67: 31 | H67: 744 | I67: 4 | J67: 0 | K67: 400 | L67: 344
F68: 2020-01-01 | G68: 30 | H68: 744 | I68: 4 | J68: 0 | K68: 416 | L68: 328
F69: 2020-02-01 | G69: 31 | H69: 696 | I69: 5 | J69: 1 | K69: 400 | L69: 296
F70: 2020-03-01 | G70: 30 | H70: 743 | I70: 4 | J70: 0 | K70: 416 | L70: 327
F71: 2020-04-01 | G71: 31 | H71: 720 | I71: 5 | J71: 1 | K71: 416 | L71: 304
F72: 2020-05-01 | G72: 31 | H72: 744 | I72: 4 | J72: 0 | K72: 400 | L72: 344
F73: 2020-06-01 | G73: 30 | H73: 720 | I73: 4 | J73: 1 | K73: 416 | L73: 304
F74: 2020-07-01 | G74: 31 | H74: 744 | I74: 5 | J74: 0 | K74: 416 | L74: 328
F75: 2020-08-01 | G75: 30 | H75: 744 | I75: 4 | J75: 1 | K75: 416 | L75: 328
F76: 2020-09-01 | G76: 31 | H76: 720 | I76: 4 | J76: 1 | K76: 400 | L76: 320
F77: 2020-10-01 | G77: 31 | H77: 744 | I77: 5 | J77: 1 | K77: 432 | L77: 312
F78: 2020-11-01 | G78: 28 | H78: 721 | I78: 4 | J78: 0 | K78: 384 | L78: 337
F79: 2020-12-01 | G79: 31 | H79: 744 | I79: 4 | J79: 0 | K79: 416 | L79: 328
F80: 2021-01-01 | G80: 30 | H80: 744 | I80: 5 | J80: 0 | K80: 400 | L80: 344
F81: 2021-02-01 | G81: 31 | H81: 672 | I81: 4 | J81: 1 | K81: 384 | L81: 288
F82: 2021-03-01 | G82: 30 | H82: 743 | I82: 4 | J82: 0 | K82: 432 | L82: 311
F83: 2021-04-01 | G83: 31 | H83: 720 | I83: 5 | J83: 1 | K83: 416 | L83: 304
F84: 2021-05-01 | G84: 31 | H84: 744 | I84: 4 | J84: 0 | K84: 400 | L84: 344
F85: 2021-06-01 | G85: 30 | H85: 720 | I85: 4 | J85: 1 | K85: 416 | L85: 304
F86: 2021-07-01 | G86: 31 | H86: 744 | I86: 5 | J86: 0 | K86: 416 | L86: 328
F87: 2021-08-01 | G87: 30 | H87: 744 | I87: 4 | J87: 1 | K87: 416 | L87: 328
F88: 2021-09-01 | G88: 31 | H88: 720 | I88: 5 | J88: 1 | K88: 400 | L88: 320
F89: 2021-10-01 | G89: 31 | H89: 744 | I89: 4 | J89: 1 | K89: 416 | L89: 328
F90: 2021-11-01 | G90: 28 | H90: 721 | I90: 4 | J90: 0 | K90: 400 | L90: 321
F91: 2021-12-01 | G91: 31 | H91: 744 | I91: 4 | J91: 0 | K91: 416 | L91: 328
F92: 2022-01-01 | G92: 30 | H92: 744 | I92: 5 | J92: 0 | K92: 400 | L92: 344
F93: 2022-02-01 | G93: 31 | H93: 672 | I93: 4 | J93: 1 | K93: 384 | L93: 288
F94: 2022-03-01 | G94: 30 | H94: 743 | I94: 4 | J94: 0 | K94: 432 | L94: 311
F95: 2022-04-01 | G95: 31 | H95: 720 | I95: 5 | J95: 1 | K95: 416 | L95: 304
F96: 2022-05-01 | G96: 31 | H96: 744 | I96: 4 | J96: 0 | K96: 400 | L96: 344
F97: 2022-06-01 | G97: 30 | H97: 720 | I97: 5 | J97: 1 | K97: 416 | L97: 304
F98: 2022-07-01 | G98: 31 | H98: 744 | I98: 4 | J98: 0 | K98: 400 | L98: 344
F99: 2022-08-01 | G99: 30 | H99: 744 | I99: 4 | J99: 1 | K99: 432 | L99: 312
F100: 2022-09-01 | G100: 31 | H100: 720 | I100: 5 | J100: 1 | K100: 400 | L100: 320
F101: 2022-10-01 | G101: 31 | H101: 744 | I101: 4 | J101: 1 | K101: 416 | L101: 328
F102: 2022-11-01 | G102: 28 | H102: 721 | I102: 4 | J102: 0 | K102: 400 | L102: 321
F103: 2022-12-01 | G103: 31 | H103: 744 | I103: 5 | J103: 0 | K103: 416 | L103: 328
F104: 2023-01-01 | G104: 30 | H104: 744 | I104: 4 | J104: 0 | K104: 400 | L104: 344
F105: 2023-02-01 | G105: 31 | H105: 672 | I105: 4 | J105: 1 | K105: 384 | L105: 288
F106: 2023-03-01 | G106: 30 | H106: 743 | I106: 5 | J106: 0 | K106: 432 | L106: 311
F107: 2023-04-01 | G107: 31 | H107: 720 | I107: 4 | J107: 1 | K107: 400 | L107: 320
F108: 2023-05-01 | G108: 31 | H108: 744 | I108: 4 | J108: 0 | K108: 416 | L108: 328
F109: 2023-06-01 | G109: 30 | H109: 720 | I109: 5 | J109: 1 | K109: 416 | L109: 304
F110: 2023-07-01 | G110: 31 | H110: 744 | I110: 4 | J110: 0 | K110: 400 | L110: 344
F111: 2023-08-01 | G111: 30 | H111: 744 | I111: 4 | J111: 1 | K111: 432 | L111: 312
F112: 2023-09-01 | G112: 31 | H112: 720 | I112: 5 | J112: 1 | K112: 400 | L112: 320
F113: 2023-10-01 | H113: 744 | K113: 416 | L113: 328
F114: 2023-11-01 | H114: 721 | K114: 400 | L114: 321
F115: 2023-12-01 | H115: 744 | K115: 400 | L115: 344
F116: 2024-01-01 | H116: 744 | K116: 416 | L116: 328
F117: 2024-02-01 | H117: 696 | K117: 400 | L117: 296
F118: 2024-03-01 | H118: 743 | K118: 416 | L118: 327
F119: 2024-04-01 | H119: 720 | K119: 416 | L119: 304
F120: 2024-05-01 | H120: 744 | K120: 416 | L120: 328
F121: 2024-06-01 | H121: 720 | K121: 400 | L121: 320
F122: 2024-07-01 | H122: 744 | K122: 416 | L122: 328
F123: 2024-08-01 | H123: 744 | K123: 432 | L123: 312
F124: 2024-09-01 | H124: 720 | K124: 384 | L124: 336
F125: 2024-10-01 | H125: 744 | K125: 432 | L125: 312
F126: 2024-11-01 | H126: 721 | K126: 400 | L126: 321
F127: 2024-12-01 | H127: 744 | K127: 400 | L127: 344
F128: 2025-01-01 | H128: 744 | K128: 416 | L128: 328
F129: 2025-02-01 | H129: 672 | K129: 384 | L129: 288
F130: 2025-03-01 | H130: 743 | K130: 416 | L130: 327
F131: 2025-04-01 | H131: 720 | K131: 416 | L131: 304
F132: 2025-05-01 | H132: 744 | K132: 416 | L132: 328
F133: 2025-06-01 | H133: 720 | K133: 400 | L133: 320
F134: 2025-07-01 | H134: 744 | K134: 416 | L134: 328
F135: 2025-08-01 | H135: 744 | K135: 416 | L135: 328
F136: 2025-09-01 | H136: 720 | K136: 400 | L136: 320
F137: 2025-10-01 | H137: 744 | K137: 432 | L137: 312
F138: 2025-11-01 | H138: 721 | K138: 384 | L138: 337
F139: 2025-12-01 | H139: 744 | K139: 416 | L139: 328
F140: 2026-01-01 | H140: 744 | K140: 416 | L140: 328
F141: 2026-02-01 | H141: 672 | K141: 384 | L141: 288
F142: 2026-03-01 | H142: 743 | K142: 416 | L142: 327
F143: 2026-04-01 | H143: 720 | K143: 416 | L143: 304
F144: 2026-05-01 | H144: 744 | K144: 400 | L144: 344
F145: 2026-06-01 | H145: 720 | K145: 416 | L145: 304
F146: 2026-07-01 | H146: 744 | K146: 416 | L146: 328
F147: 2026-08-01 | H147: 744 | K147: 416 | L147: 328
F148: 2026-09-01 | H148: 720 | K148: 400 | L148: 320
F149: 2026-10-01 | H149: 744 | K149: 432 | L149: 312
F150: 2026-11-01 | H150: 721 | K150: 384 | L150: 337
F151: 2026-12-01 | H151: 744 | K151: 416 | L151: 328
F152: 2027-01-01 | H152: 744 | K152: 400 | L152: 344
F153: 2027-02-01 | H153: 672 | K153: 384 | L153: 288
F154: 2027-03-01 | H154: 743 | K154: 432 | L154: 311
F155: 2027-04-01 | H155: 720 | K155: 416 | L155: 304
F156: 2027-05-01 | H156: 744 | K156: 400 | L156: 344
F157: 2027-06-01 | H157: 720 | K157: 416 | L157: 304
F158: 2027-07-01 | H158: 744 | K158: 416 | L158: 328
F159: 2027-08-01 | H159: 744 | K159: 416 | L159: 328
F160: 2027-09-01 | H160: 720 | K160: 400 | L160: 320
F161: 2027-10-01 | H161: 744 | K161: 416 | L161: 328
F162: 2027-11-01 | H162: 721 | K162: 400 | L162: 321
F163: 2027-12-01 | H163: 744 | K163: 416 | L163: 328
F164: 2028-01-01 | H164: 744 | K164: 400 | L164: 344
F165: 2028-02-01 | H165: 696 | K165: 400 | L165: 296
F166: 2028-03-01 | H166: 743 | K166: 432 | L166: 311
F167: 2028-04-01 | H167: 720 | K167: 400 | L167: 320
F168: 2028-05-01 | H168: 744 | K168: 416 | L168: 328
F169: 2028-06-01 | H169: 720 | K169: 416 | L169: 304
F170: 2028-07-01 | H170: 744 | K170: 400 | L170: 344
F171: 2028-08-01 | H171: 744 | K171: 432 | L171: 312
F172: 2028-09-01 | H172: 720 | K172: 400 | L172: 320
F173: 2028-10-01 | H173: 744 | K173: 416 | L173: 328
F174: 2028-11-01 | H174: 721 | K174: 400 | L174: 321
F175: 2028-12-01 | H175: 744 | K175: 400 | L175: 344
F176: 2029-01-01 | H176: 744 | K176: 416 | L176: 328
F177: 2029-02-01 | H177: 672 | K177: 384 | L177: 288
F178: 2029-03-01 | H178: 743 | K178: 432 | L178: 311
F179: 2029-04-01 | H179: 720 | K179: 400 | L179: 320
F180: 2029-05-01 | H180: 744 | K180: 416 | L180: 328
F181: 2029-06-01 | H181: 720 | K181: 416 | L181: 304
F182: 2029-07-01 | H182: 744 | K182: 400 | L182: 344
F183: 2029-08-01 | H183: 744 | K183: 432 | L183: 312
F184: 2029-09-01 | H184: 720 | K184: 384 | L184: 336
F185: 2029-10-01 | H185: 744 | K185: 432 | L185: 312
F186: 2029-11-01 | H186: 721 | K186: 400 | L186: 321
F187: 2029-12-01 | H187: 744 | K187: 400 | L187: 344
F188: 2030-01-01 | H188: 744 | K188: 416 | L188: 328
F189: 2030-02-01 | H189: 672 | K189: 384 | L189: 288
F190: 2030-03-01 | H190: 743 | K190: 416 | L190: 327
F191: 2030-04-01 | H191: 720 | K191: 416 | L191: 304
F192: 2030-05-01 | H192: 744 | K192: 416 | L192: 328
F193: 2030-06-01 | H193: 720 | K193: 400 | L193: 320
F194: 2030-07-01 | H194: 744 | K194: 416 | L194: 328
F195: 2030-08-01 | H195: 744 | K195: 432 | L195: 312
F196: 2030-09-01 | H196: 720 | K196: 384 | L196: 336
F197: 2030-10-01 | K197: 400 | L197: 344
F198: 2030-11-01 | K198: 384 | L198: 288
F199: 2030-12-01 | K199: 432 | L199: 311
F200: 2031-01-01 | K200: 416 | L200: 304
... 92 more rows

Sheet Rev Check
B1: Rate Analysis Model - Modeling Steps Revenue Check | K1: Not printed in documentation.
A2: TOC | B2: =Cover!$C$14 -> RAMmodel_REP2018.xls | K2: =IF(Init!$C$13="Yes","Results Under Settlement","Results while Running 7b2 Rate Test") -> Results Under Settlement
A3: é
C4: Costs
C5: Before 7b2 Revenue Requirements | D5: =+Init!C9 -> 2018 | E5: =+D5+1 -> 2019 | F5: =+E5+1 -> 2020 | G5: =+F5+1 -> 2021 | H5: =+G5+1 -> 2022 | I5: =+H5+1 -> 2023
C6: FBS | D6: =FBS_LDD_IRD_Allocation!C5 -> 2103831.395 | E6: =FBS_LDD_IRD_Allocation!D5 -> 1976083.696 | F6: =FBS_LDD_IRD_Allocation!E5 -> 1986473.918 | G6: =FBS_LDD_IRD_Allocation!F5 -> 2127013.944 | H6: =FBS_LDD_IRD_Allocation!G5 -> 2089380.404 | I6: =FBS_LDD_IRD_Allocation!H5 -> 2200247.827
C7: NR | D7: =FBS_LDD_IRD_Allocation!C6 -> 54862.95 | E7: =FBS_LDD_IRD_Allocation!D6 -> 56682.533 | F7: =FBS_LDD_IRD_Allocation!E6 -> 60477.306 | G7: =FBS_LDD_IRD_Allocation!F6 -> 56846.679 | H7: =FBS_LDD_IRD_Allocation!G6 -> 56349.346 | I7: =FBS_LDD_IRD_Allocation!H6 -> 48522.633
C8: Exchange | D8: =FBS_LDD_IRD_Allocation!C7-D13 -> 2897398.831 | E8: =FBS_LDD_IRD_Allocation!D7-E13 -> 2902862.634 | F8: =FBS_LDD_IRD_Allocation!E7-F13 -> 3113416.67 | G8: =FBS_LDD_IRD_Allocation!F7-G13 -> 3104969.331 | H8: =FBS_LDD_IRD_Allocation!G7-H13 -> 3267072.946 | I8: =FBS_LDD_IRD_Allocation!H7-I13 -> 3267091.199
C9: Conservation | D9: =FBS_LDD_IRD_Allocation!C8 -> 167093.4878 | E9: =FBS_LDD_IRD_Allocation!D8 -> 153145.0838 | F9: =FBS_LDD_IRD_Allocation!E8 -> 219801.6829 | G9: =FBS_LDD_IRD_Allocation!F8 -> 224977.4469 | H9: =FBS_LDD_IRD_Allocation!G8 -> 228236.1971 | I9: =FBS_LDD_IRD_Allocation!H8 -> 229639.8124
C10: BPA Programs | D10: =FBS_LDD_IRD_Allocation!C9+FBS_LDD_IRD_Allocation!C10 -> 302436.5029 | E10: =FBS_LDD_IRD_Allocation!D9+FBS_LDD_IRD_Allocation!D10 -> 351927.162 | F10: =FBS_LDD_IRD_Allocation!E9+FBS_LDD_IRD_Allocation!E10 -> 346660.319 | G10: =FBS_LDD_IRD_Allocation!F9+FBS_LDD_IRD_Allocation!F10 -> 412455.1366 | H10: =FBS_LDD_IRD_Allocation!G9+FBS_LDD_IRD_Allocation!G10 -> 410231.7333 | I10: =FBS_LDD_IRD_Allocation!H9+FBS_LDD_IRD_Allocation!H10 -> 428427.6985
C13: Transmission to Deliver Exchange Sale | D13: =ExchangeInputs!$D$5*'PF Exchange'!D61 -> 213203.1156 | E13: =ExchangeInputs!$D$5*'PF Exchange'!E61 -> 213279.4838 | F13: =ExchangeInputs!$D$5*'PF Exchange'!F61 -> 214992.5728 | G13: =ExchangeInputs!$D$5*'PF Exchange'!G61 -> 214405.1614 | H13: =ExchangeInputs!$D$5*'PF Exchange'!H61 -> 215540.3901 | I13: =ExchangeInputs!$D$5*'PF Exchange'!I61 -> 215540.3901
C15: Sub total | D15: =SUM(D6:D13) -> 5738826.282 | E15: 5653980.592 | F15: 5941822.468 | G15: 6140667.699 | H15: 6266811.016 | I15: 6389469.56
C17: Low Density Discount and IRD Expense | D17: =FBS_LDD_IRD_Allocation!C11 -> 63137.31008 | E17: =FBS_LDD_IRD_Allocation!D11 -> 64098.21255 | F17: =FBS_LDD_IRD_Allocation!E11 -> 63617.76131 | G17: =FBS_LDD_IRD_Allocation!F11 -> 63617.76131 | H17: =FBS_LDD_IRD_Allocation!G11 -> 63617.76131 | I17: =FBS_LDD_IRD_Allocation!H11 -> 63617.76131
C19: Annual Revenue Requirement Grand Total | D19: =SUM(D15:D17) -> 5801963.592 | E19: 5718078.804 | F19: 6005440.23 | G19: 6204285.46 | H19: 6330428.777 | I19: 6453087.321
C22: Revenue Credits
C23: Forecast of Secondary Revenues | D23: =Secondary!D29 -> 437427.2909 | E23: =Secondary!E29 -> 438258.3219 | F23: =Secondary!F29 -> 477308.6597 | G23: =Secondary!G29 -> 504113.7109 | H23: =Secondary!H29 -> 504487.9624 | I23: =Secondary!I29 -> 552315.6095
C24: Expected Revenue from FPS Contract Sales | D24: =-('FPS Revenue Deficiency'!C12) -> 52306.68749 | E24: =-('FPS Revenue Deficiency'!D12) -> 15958.57878 | F24: =-('FPS Revenue Deficiency'!E12) -> 8835.576278 | G24: =-('FPS Revenue Deficiency'!F12) -> 0 | H24: =-('FPS Revenue Deficiency'!G12) -> 206.7956857 | I24: =-('FPS Revenue Deficiency'!H12) -> 0
C25: Expected Revenue from System Obligations | D25: =-RDS_Credits!C15 -> 960 | E25: =-RDS_Credits!D15 -> 524.235 | F25: =-RDS_Credits!E15 -> 463.9807043 | G25: =-RDS_Credits!F15 -> 475.9419954 | H25: =-RDS_Credits!G15 -> 500.7558188 | I25: =-RDS_Credits!H15 -> 525.2009919
C26: Other Revenue Credits | D26: =-(RDS_Credits!C7+RDS_Credits!C19+RDS_Credits!C21+RDS_Credits!C25+SUM(RDS_Credits!C31:'RDS_Credits'!C34)+'Credits Gen-RSS'!C17) -> 242689.3745 | E26: =-(RDS_Credits!D7+RDS_Credits!D19+RDS_Credits!D21+RDS_Credits!D25+SUM(RDS_Credits!D31:'RDS_Credits'!D34)+'Credits Gen-RSS'!D17) -> 234350.1313 | F26: =-(RDS_Credits!E7+RDS_Credits!E19+RDS_Credits!E21+RDS_Credits!E25+SUM(RDS_Credits!E31:'RDS_Credits'!E34)+'Credits Gen-RSS'!E17) -> 228997.4737 | G26: =-(RDS_Credits!F7+RDS_Credits!F19+RDS_Credits!F21+RDS_Credits!F25+SUM(RDS_Credits!F31:'RDS_Credits'!F34)+'Credits Gen-RSS'!F17) -> 233380.2685 | H26: =-(RDS_Credits!G7+RDS_Credits!G19+RDS_Credits!G21+RDS_Credits!G25+SUM(RDS_Credits!G31:'RDS_Credits'!G34)+'Credits Gen-RSS'!G17) -> 238130.1792 | I26: =-(RDS_Credits!H7+RDS_Credits!H19+RDS_Credits!H21+RDS_Credits!H25+SUM(RDS_Credits!H31:'RDS_Credits'!H34)+'Credits Gen-RSS'!H17) -> 242810.2727
C28: Total Revenue Credits | D28: =SUM(D23:D27) -> 733383.3529 | E28: 689091.267 | F28: 715605.6904 | G28: 737969.9214 | H28: 743325.6931 | I28: 795651.0832
C31: Revenues needed from Power Rates | D31: =D19-D28 -> 5068580.239 | E31: 5028987.537 | F31: 5289834.539 | G31: 5466315.538 | H31: 5587103.084 | I31: 5657436.238
C34: Power Revenues After Rate Design Step
D35: =+D5 -> 2018 | E35: =+E5 -> 2019
C36: PF Public | D36: =RateSummary!C32 -> 37.317753 | E36: =RateSummary!D32 -> 36.595277
D37: ='PF Public'!D77 -> 59966.42384 | E37: ='PF Public'!E77 -> 60497.8942
D38: =D36*D37 -> 2237812.193 | E38: =E36*E37 -> 2213937.196
C40: PF Exchange | D40: =RateSummary!C34 -> 62.161701 | E40: =RateSummary!D34 -> 61.552505
D41: ='PF Exchange'!D61 -> 45170.1516 | E41: ='PF Exchange'!E61 -> 45186.33132
D42: =D40*D41 -> 2807853.458 | E42: =E40*E41 -> 2781331.885
C44: IP | D44: =RateSummary!C35 -> 43.08562 | E44: =RateSummary!D35 -> 43.934941
D45: ='RAM IP'!M87 -> 531.822269 | E45: ='RAM IP'!N87 -> 767.447307
D46: =D44*D45 -> 22913.89219 | E46: =E44*E45 -> 33717.75215
C48: NR | D48: =RateSummary!C36 -> 77.896176 | E48: =RateSummary!D36 -> 79.998798
D49: ='RAM NR'!D68 -> 0.00876 | E49: ='RAM NR'!E68 -> 0.00876
D50: =D48*D49 -> 0.6823705018 | E50: =E48*E49 -> 0.7007894705
C52: Revenues from Power Rates Grand Total | D52: =D38+D42+D46+D50 -> 5068580.226 | E52: =E38+E42+E46+E50 -> 5028987.533
C55: Revenue Check after Standard Ratemaking | D55: =D52-D$31 -> -0.01344289631 | E55: =E52-E$31 -> -0.003972563893

Sheet RateSummary
B1: Rate Analysis Model - Rate Design Step Summary | J1: =IF(Init!$C$13="Yes","Results Under Settlement","Results while Running 7b2 Rate Test") -> Results Under Settlement
A2: TOC | B2: =Cover!$C$14 -> RAMmodel_REP2018.xls | J2: Not printed in documentation.
A3: é
B6: Revenue Under Recovery After Rate Design Step | C6: ='Rev Check'!D55 -> -0.01344289631 | D6: ='Rev Check'!E55 -> -0.003972563893
B10: Rate Design Step | C10: =+Init!C9 -> 2018 | D10: =+C10+1 -> 2019 | E10: =+D10+1 -> 2020 | F10: =+E10+1 -> 2021 | G10: =+F10+1 -> 2022 | H10: =+G10+1 -> 2023
B11: Rates After Initial Allocation
B12: UNBIFURCATED PF | C12: ='Initial Rates'!C22 -> 45.83 | D12: ='Initial Rates'!D22 -> 45.05 | E12: ='Initial Rates'!E22 -> 46.1 | F12: ='Initial Rates'!F22 -> 47.76 | G12: ='Initial Rates'!G22 -> 48.68 | H12: ='Initial Rates'!H22 -> 49.34
B13: IP | C13: ='Initial Rates'!C23 -> 68.94 | D13: ='Initial Rates'!D23 -> 70.98 | E13: ='Initial Rates'!E23 -> 77.27 | F13: ='Initial Rates'!F23 -> 76.48 | G13: ='Initial Rates'!G23 -> 76.38 | H13: ='Initial Rates'!H23 -> 66.7
B14: NR | C14: ='Initial Rates'!C24 -> 68.94 | D14: ='Initial Rates'!D24 -> 70.98 | E14: ='Initial Rates'!E24 -> 77.27 | F14: ='Initial Rates'!F24 -> 76.48 | G14: ='Initial Rates'!G24 -> 76.38 | H14: ='Initial Rates'!H24 -> 66.7
B16: Rate Design Step | C16: =+C10 -> 2018 | D16: 2019 | E16: 2020 | F16: 2021 | G16: 2022 | H16: 2023
B17: Rates After IP-PF Link Allocation
B18: UNBIFURCATED PF (average) | C18: ='Rates After Link'!C42 -> 45.965 | D18: ='Rates After Link'!D42 -> 45.249 | E18: ='Rates After Link'!E42 -> 46.326 | F18: ='Rates After Link'!F42 -> 47.972 | G18: ='Rates After Link'!G42 -> 48.886 | H18: ='Rates After Link'!H42 -> 49.476 | J18: IP Rate Check
B19: UNBIFURCATED PF (flat) | C19: =ROUND(IP_PF_Link!G107,3) -> 43.05 | D19: =ROUND(IP_PF_Link!H107,3) -> 43.905 | E19: =ROUND(IP_PF_Link!I107,2) -> 45.05 | F19: =ROUND(IP_PF_Link!J107,2) -> 46.64 | G19: =ROUND(IP_PF_Link!K107,2) -> 47.59 | H19: =ROUND(IP_PF_Link!L107,2) -> 48.12 | J19: =C20-C19 -> -0.143 | K19: =D20-D19 -> -0.143
B20: IP | C20: ='Rates After Link'!C43 -> 42.907 | D20: ='Rates After Link'!D43 -> 43.762 | E20: ='Rates After Link'!E43 -> 44.909 | F20: ='Rates After Link'!F43 -> 46.498 | G20: ='Rates After Link'!G43 -> 47.45 | H20: ='Rates After Link'!H43 -> 47.975
B21: NR | C21: ='Rates After Link'!C44 -> 69.073 | D21: ='Rates After Link'!D44 -> 71.176 | E21: ='Rates After Link'!E44 -> 77.502 | F21: ='Rates After Link'!F44 -> 76.689 | G21: ='Rates After Link'!G44 -> 76.586 | H21: ='Rates After Link'!H44 -> 66.828
B23: Rate Design Step | C23: =+C10 -> 2018 | D23: =+D10 -> 2019
B24: Rates After REP/7(b)(3) Allocation
B25: PF Public | C25: =IF(Init!$C$13="Yes",'Rates After WP-10 Adjustment'!C40,'Rates After 7b2'!C51) -> 37.242 | D25: =IF(Init!$C$13="Yes",'Rates After WP-10 Adjustment'!D40,'Rates After 7b2'!D51) -> 36.487
B26: PF Exchange | C26: =IF(Init!$C$13="Yes",'Rates After WP-10 Adjustment'!C41,'Rates After 7b2'!C52) -> 62.162 | D26: =IF(Init!$C$13="Yes",'Rates After WP-10 Adjustment'!D41,'Rates After 7b2'!D52) -> 61.553
B27: IP | C27: =IF(Init!$C$13="Yes",'Rates After WP-10 Adjustment'!C42,'Rates After 7b2'!C53) -> 51.655 | D27: =IF(Init!$C$13="Yes",'Rates After WP-10 Adjustment'!D42,'Rates After 7b2'!D53) -> 52.477
B28: NR | C28: =IF(Init!$C$13="Yes",'Rates After WP-10 Adjustment'!C43,'Rates After 7b2'!C54) -> 77.82 | D28: =IF(Init!$C$13="Yes",'Rates After WP-10 Adjustment'!D43,'Rates After 7b2'!D54) -> 79.89
B30: Rate Design Step | C30: =+C10 -> 2018 | D30: =+D10 -> 2019
B31: Rates After IP-PF Link #2 Allocation
B32: PF Public (average) | C32: =IF(Init!$C$13="Yes",'Rates After Link Settlement'!C47,'Rates After Link (2)'!C49) -> 37.317753 | D32: =IF(Init!$C$13="Yes",'Rates After Link Settlement'!D47,'Rates After Link (2)'!D49) -> 36.595277 | J32: IP Rate Check
B33: PF Public (flat) | C33: =IF(Init!$C$13="Yes",'IP_PF_Link Settlement'!Q31,'Calc Monthly 2'!U21) -> 34.40287104 | D33: =IF(Init!C13="Yes",'IP_PF_Link Settlement'!Q44,'Calc Monthly 2'!U41) -> 35.25112012 | J33: =C35-C33 -> 8.682748963 | K33: =D35-D33 -> 8.683820878
B34: PF Exchange | C34: =IF(Init!$C$13="Yes",'Rates After Link Settlement'!C48,'Rates After Link (2)'!C50) -> 62.161701 | D34: =IF(Init!$C$13="Yes",'Rates After Link Settlement'!D48,'Rates After Link (2)'!D50) -> 61.552505 | J34: =IF(Init!$C$13="Yes",'IP_PF_Link Settlement'!$Q$36,'7b2 Allocation'!F36) -> 8.825069865 | K34: =IF(Init!$C$13="Yes",'IP_PF_Link Settlement'!$Q$49,'7b2 Allocation'!G36) -> 8.825471356
B35: IP | C35: =IF(Init!$C$13="Yes",'Rates After Link Settlement'!C49,'Rates After Link (2)'!C51) -> 43.08562 | D35: =IF(Init!$C$13="Yes",'Rates After Link Settlement'!D49,'Rates After Link (2)'!D51) -> 43.934941 | J35: =J33-J34 -> -0.1423209016 | K35: =K33-K34 -> -0.141650478 | L35: =AVERAGE(J35:K35) -> -0.1419856898
B36: NR | C36: =IF(Init!$C$13="Yes",'Rates After Link Settlement'!C50,'Rates After Link (2)'!C52) -> 77.896176 | D36: =IF(Init!$C$13="Yes",'Rates After Link Settlement'!D50,'Rates After Link (2)'!D52) -> 79.998798

Sheet ScenarioResults
B1: Rate Analysis Model - Scenario Summary Box | G1: =IF(Init!$C$13="Yes","Results Under Settlement","Results while Running 7b2 Rate Test") -> Results Under Settlement
A2: TOC | B2: =Cover!$C$14 -> RAMmodel_REP2018.xls | G2: Not printed in documentation.
A3: é | L3: List for Expense Conservation in 7b2
L4: 1
B5: Attachment 1a | G5: From Rate Tables | L5: 2
D6: % above BP-16 | G6: =B7 -> Unbifurcated PF | H6: ='Unbif PF_RateOutput'!E52 -> 45.61 | J6: =C7-H6 -> -0.004066415357 | L6: 3
B7: Unbifurcated PF | C7: ='Rates After Link'!C47 -> 45.60593358 | D7: =C7/H23-1 -> 0.05278297229 | G7: T1 Equivalent PF | H7: =PFAveT1_RateOutput!E52 -> 36.86 | L7: 4
B8: PF Public | C8: =IF(Init!$C$13="Yes",'Rates After Link Settlement'!E47,ROUND((RateSummary!C32+RateSummary!D32)/2,2)) -> 36.96 | D8: =C8/H24-1 -> 0.05419281232 | G8: T1 & T2 Equivalent PF | H8: =PFMeldedEqv_RateOutput!E52 -> 36.96 | J8: =H8-C8 -> 0 | L8: 5
B9: PF Exchange | C9: =IF(Init!$C$13="Yes",'Rates After Link Settlement'!E48,'Rates After Link (2)'!C64) -> 61.86 | D9: =C9/H25-1 -> 0.05329473863 | G9: =B9 -> PF Exchange | H9: ='PF Exchange_RateOutput'!E53 -> 61.86 | J9: =H9-C9 -> 0 | L9: 6
B10: IP | C10: =IF(Init!$C$13="Yes",'Rates After Link Settlement'!E49,'Rates After Link (2)'!C66) -> 43.51 | D10: =C10/H26-1 -> 0.03792938931 | G10: =B10 -> IP | H10: =IP_RateOutput!E52 -> 43.66 | J10: =H10-C10 -> 0.15 | L10: 7
B11: NR | C11: =IF(Init!$C$13="Yes",'Rates After Link Settlement'!E50,'Rates After Link (2)'!C67) -> 78.95 | D11: =C11/H27-1 -> 0.06992817455 | G11: =B11 -> NR | H11: =NR_RateOutput!E52 -> 78.94 | J11: =H11-C11 -> -0.01 | L11: 8
L12: 9
B13: Residential Exchange Benefits | C13: =+Init!C9 -> 2018 | D13: =C13+1 -> 2019 | L13: 10
B14: ='Active Exchange'!D10 -> Avista Corporation | C14: =IF(Init!$C$13="Yes",MAX('Utility Specific PFx Settle'!O27,0),MAX('Utility Specifc PFx'!K24,0)) -> 2856.707487 | D14: =IF(Init!$C$13="Yes",MAX('Utility Specific PFx Settle'!P27,0),MAX('Utility Specifc PFx'!K43,0)) -> 2856.707487 | L14: 11
B15: ='Active Exchange'!D11 -> Idaho Power Company | C15: =IF(Init!$C$13="Yes",MAX('Utility Specific PFx Settle'!O28,0),MAX('Utility Specifc PFx'!K25,0)) -> 13375.53564 | D15: =IF(Init!$C$13="Yes",MAX('Utility Specific PFx Settle'!P28,0),MAX('Utility Specifc PFx'!K44,0)) -> 13375.53564 | E15: =IF(Init!$C$13="No","Deemer Amount","") ->  | L15: 12
B16: ='Active Exchange'!D12 -> NorthWestern Energy, LLC | C16: =IF(Init!$C$13="Yes",MAX('Utility Specific PFx Settle'!O29,0),MAX('Utility Specifc PFx'!K26,0)) -> 6015.42042 | D16: =IF(Init!$C$13="Yes",MAX('Utility Specific PFx Settle'!P29,0),MAX('Utility Specifc PFx'!K45,0)) -> 6015.42042 | L16: Settlement Menu
B17: ='Active Exchange'!D13 -> PacifiCorp | C17: =IF(Init!$C$13="Yes",MAX('Utility Specific PFx Settle'!O30,0),MAX('Utility Specifc PFx'!K27,0)) -> 67749.7953 | D17: =IF(Init!$C$13="Yes",MAX('Utility Specific PFx Settle'!P30,0),MAX('Utility Specifc PFx'!K46,0)) -> 67749.7953 | G17: ="Section 7(b)(3) Load for " & RateSummary!$C$10 -> Section 7(b)(3) Load for 2018 | H17: ='Exchange Load'!D29+'RAM IP'!M83+'RAM NR'!D66 -> 5217.121305 | J17: Trigger | L17: Yes
B18: ='Active Exchange'!D14 -> Portland General Electric Company | C18: =IF(Init!$C$13="Yes",MAX('Utility Specific PFx Settle'!O31,0),MAX('Utility Specifc PFx'!K28,0)) -> 66934.01022 | D18: =IF(Init!$C$13="Yes",MAX('Utility Specific PFx Settle'!P31,0),MAX('Utility Specifc PFx'!K47,0)) -> 66934.01022 | G18: Section 7(b)(2) Rate Test Trigger | H18: 0 | J18: =ROUND(TriggerCalc!J35,2) -> 0 | L18: No
B19: ='Active Exchange'!D15 -> Puget Sound Energy, Inc. | C19: =IF(Init!$C$13="Yes",MAX('Utility Specific PFx Settle'!O32,0),MAX('Utility Specifc PFx'!K29,0)) -> 75268.65135 | D19: =IF(Init!$C$13="Yes",MAX('Utility Specific PFx Settle'!P32,0),MAX('Utility Specifc PFx'!K48,0)) -> 75268.65135 | E19: =IF(Init!$C$13="No", "w/o Deemer $s","") -> 
B20: Net IOU Exchange | C20: =IF(Init!$C$13="No",SUM(C14,C16:C19),SUM(C14:C19)) -> 232200.1204 | D20: =IF(Init!$C$13="No",SUM(D14,D16:D19),SUM(D14:D19)) -> 232200.1204 | E20: =(C20+D20)/2 -> 232200.1204
B21: Refund Amt | C21: =IF(Init!$C$13="Yes",'Utility Specific PFx Settle'!$O$41,0) -> 76537.617 | D21: =IF(Init!$C$13="Yes",'Utility Specific PFx Settle'!$P$41,0) -> 76537.617 | E21: =(C21+D21)/2 -> 76537.617
G22: Previous Rates
B23: =ExchangeInputs!C15 -> Clark Public Utilities | C23: =IF(Init!$C$13="Yes",MAX('Utility Specific PFx Settle'!O35,0),MAX('Utility Specifc PFx'!K30,0)) -> 5904.922915 | D23: =IF(Init!$C$13="Yes",MAX('Utility Specific PFx Settle'!P35,0),MAX('Utility Specifc PFx'!K49,0)) -> 5905.351435 | G23: Unbifurcated PF | H23: 43.31940655
B24: =ExchangeInputs!C16 -> Franklin | C24: =IF(Init!$C$13="Yes",MAX('Utility Specific PFx Settle'!O36,0),MAX('Utility Specifc PFx'!K31,0)) -> 0 | D24: =IF(Init!$C$13="Yes",MAX('Utility Specific PFx Settle'!P36,0),MAX('Utility Specifc PFx'!K50,0)) -> 0 | G24: PF Public | H24: 35.06
B25: =ExchangeInputs!C17 -> Snohomish County PUD No 1 | C25: =IF(Init!$C$13="Yes",MAX('Utility Specific PFx Settle'!O37,0),MAX('Utility Specifc PFx'!K32,0)) -> 3259.061457 | D25: =IF(Init!$C$13="Yes",MAX('Utility Specific PFx Settle'!P37,0),MAX('Utility Specifc PFx'!K51,0)) -> 3273.095686 | G25: PF Exchange | H25: 58.73
B26: Net COU Exchange | C26: =SUM(C23:C25) -> 9163.984373 | D26: =SUM(D23:D25) -> 9178.447121 | E26: =(C26+D26)/2 -> 9171.215747 | G26: IP | H26: 41.92
D27: Total | E27: =E20+E21+E26 -> 317908.9532 | G27: NR | H27: 73.79
B29: Annual Average $ (1000s) | C29: BP-16 | D29: BP-18 | E29: Change
B30: Composite Revenues | C30: 2434131.44 | D30: =Cost_Allocation_TRM!$E$58/2 -> 2470061.271 | E30: =(D30-C30)/C30 -> 0.01476084262
B31: Non-Slice Revenues | C31: -263919.7908 | D31: =Cost_Allocation_TRM!$E$59/2 -> -265959.4612 | E31: =-(D31-C31)/C31 -> -0.007728372145
B32: Slice Revenues | C32: 0 | D32: =Cost_Allocation_TRM!$E$60/2 -> 0
B33: Load Shaping Revenues | C33: 7802.131367 | D33: =-Cost_Allocation_TRM!$E$45/2 -> 27391.16273 | E33: =(D33-C33)/C33 -> 2.510728215
B34: Demand Revenues | C34: 48354.47377 | D34: =-Cost_Allocation_TRM!$E$47/2 -> 48157.21696 | E34: =(D34-C34)/C34 -> -0.004079391202
B35: Tier 1 Revenue Requirement | C35: 2226368.254 | D35: =SUM($D$30:$D$34) -> 2279650.189 | E35: =((D35+D38+D39)-(C35+C38+C39))/C35 -> 0.03531892381
B36: Tier 2 Revenue Requirement | C36: 25186.74401 | D36: =(Cost_Allocation_TRM!$H$13+Cost_Allocation_TRM!$I$13)/2 -> 40905.41608
B38: Lookback Return (credit) | C38: -76537.617 | D38: =IF(Init!$C$13="Yes",-'Post-7b2Rates'!$C$15,0) -> -76537.617
B39: Value of Slice Secondary | C39: -119981.6735 | D39: =(Cost_Allocation_TRM!$H$18+Cost_Allocation_TRM!$I$18)/2 -> -94630.67811 | E39: =-(D39-C39)/C39 -> 0.2112905637
B40: Net Power Cost to All PF | C40: 2055035.707 | D40: =SUM(D35:D39) -> 2149387.31 | E40: =+D40/C40-1 -> 0.04591239094
B41: Total PF Load w/Slice (GWh)/yr | C41: 60789.43355 | D41: =('PF Public'!$D$77+'PF Public'!$E$77)/2 -> 60232.15902 | E41: =-(((C40-C36)*(D41-C41))/(C41*C41))/C46 -> 0.009069909471
B42: Average Net Cost $/MWh | C42: 33.80580452 | D42: =D40/D41 -> 35.68504509 | E42: =(D42-C$42)/C$42 -> 0.05558928699
B44: Tier 1 Load | C44: 60143 | D44: =+(PFAveT1_RateOutput!$E$54/2) -> 59275.89552 | E44: =((C44-D44)*C46)/D44/(C46)+((C44-D44)*C46)/D44/(C46)*E40 -> 0.01529990082
B46: Tier 1 Average Net Cost ($/MWh) | C46: 33.75 | D46: =ROUND((D35+D37+D38+D39)/(PFAveT1_RateOutput!$E$54/2),2) -> 35.57 | E46: =(D46-C$46)/C$46 -> 0.05392592593
B47: Tier 2 Short-term ($/MWh) | C47: 30.865 | D47: =Cost_Allocation_TRM!E80 -> 26.085 | E47: =(D47-C$47)/C$47 -> -0.1548679734
B48: Tier 2 Load Growth ($/MWh) | C48: 47.39 | D48: =Cost_Allocation_TRM!E81 -> 46.55 | E48: =(D48-C$48)/C$48 -> -0.01772525849
B49: Tier 2 Vintage ($/MWh) | C49: 45.805 | D49: =+AVERAGE('T2 Rates'!C18:D18) -> 50.47 | E49: =(D49-C$49)/C$49 -> 0.1018447768
B52: Last model run
D54: % above BP-16
B55: Unbifurcated PF | C55: 45.60593358 | D55: 0.05278297229
B56: PF Public | C56: 36.96 | D56: 0.05419281232
B57: PF Exchange | C57: 61.86 | D57: 0.05329473863
B58: IP | C58: 43.51 | D58: 0.03792938931
B59: NR | C59: 78.95 | D59: 0.06992817455
B61: Residential Exchange Benefits | C61: 2018 | D61: 2019
B62: Avista Corporation | C62: 2856.707487 | D62: 2856.707487
B63: Idaho Power Company | C63: 13375.53564 | D63: 13375.53564
B64: NorthWestern Energy, LLC | C64: 6015.42042 | D64: 6015.42042
B65: PacifiCorp | C65: 67749.7953 | D65: 67749.7953
B66: Portland General Electric Company | C66: 66934.01022 | D66: 66934.01022
B67: Puget Sound Energy, Inc. | C67: 75268.65135 | D67: 75268.65135
B68: Net IOU Exchange | C68: 232200.1204 | D68: 232200.1204 | E68: 232200.1204
B69: Refund Amt | C69: 76537.617 | D69: 76537.617 | E69: 76537.617
B71: Clark Public Utilities | C71: 5904.922915 | D71: 5905.351435
B72: Franklin | C72: 0 | D72: 0
B73: Snohomish County PUD No 1 | C73: 3259.061457 | D73: 3273.095686
B74: Net COU Exchange | C74: 9163.984373 | D74: 9178.447121 | E74: 9171.215747
D75: Total | E75: 317908.9532
B77: Annual Average $ (1000s) | C77: BP-16 | D77: BP-18 | E77: Change
B78: Composite Revenues | C78: 2434131.44 | D78: 2470061.271 | E78: 0.01476084262
B79: Non-Slice Revenues | C79: -263919.7908 | D79: -265959.4612 | E79: -0.007728372145
B80: Slice Revenues | C80: 0 | D80: 0
B81: Load Shaping Revenues | C81: 7802.131367 | D81: 27391.16273 | E81: 2.510728215
B82: Demand Revenues | C82: 48354.47377 | D82: 48157.21696 | E82: -0.004079391202
B83: Tier 1 Revenue Requirement | C83: 2226368.254 | D83: 2279650.189 | E83: 0.03531892381
B84: Tier 2 Revenue Requirement | C84: 25186.74401 | D84: 40905.41608
B86: Lookback Return (credit) | C86: -76537.617 | D86: -76537.617
B87: Value of Slice Secondary | C87: -119981.6735 | D87: -94630.67811 | E87: 0.2112905637
B88: Net Power Cost to All PF | C88: 2055035.707 | D88: 2149387.31 | E88: 0.04591239094
B89: Total PF Load w/Slice (GWh)/yr | C89: 60789.43355 | D89: 60232.15902 | E89: 0.009069909471
B90: Average Net Cost $/MWh | C90: 33.80580452 | D90: 35.68504509 | E90: 0.05558928699
B92: Tier 1 Load | C92: 60143 | D92: 59275.89552 | E92: 0.01529990082

Sheet ResultsDetail
B1: Rate Analysis Model - Scenario Summary | G1: =IF(Init!$C$13="Yes","Results Under Settlement","Results while Running 7b2 Rate Test") -> Results Under Settlement
A2: TOC | B2: =Cover!$C$14 -> RAMmodel_REP2018.xls | G2: Not printed in documentation.
A3: é
D6: % above BP-16
B7: Unbifurcated PF | C7: =ScenarioResults!C7 -> 45.60593358 | D7: =C7/ScenarioResults!H23-1 -> 0.05278297229
B8: PF Public (Tier 1 + Tier 2) | C8: =ScenarioResults!C8 -> 36.96 | D8: =C8/ScenarioResults!H24-1 -> 0.05419281232
B9: PF Exchange (IOU) | C9: =ScenarioResults!C9 -> 61.86 | D9: =C9/ScenarioResults!H25-1 -> 0.05329473863
B10: IP with 7(b)(3) | C10: =ScenarioResults!C10 -> 43.51 | D10: =C10/ScenarioResults!H26-1 -> 0.03792938931
B11: NR | C11: =ScenarioResults!C11 -> 78.95 | D11: =C11/ScenarioResults!H27-1 -> 0.06992817455
B14: Annual Average $ (1000s) | C14: BP-16 | D14: BP-18 | E14: Change
A15: 1 | B15: Composite Rate Revenues | C15: 2434131.44 | D15: =Cost_Allocation_TRM!$E$58/2 -> 2470061.271 | E15: =D15/C15-1 -> 0.01476084262
A16: =+A15+1 -> 2 | B16: Non-Slice Rate Revenues | C16: -263919.7908 | D16: =Cost_Allocation_TRM!$E$59/2 -> -265959.4612 | E16: =-(D16/C16-1) -> -0.007728372145
A17: =+A16+1 -> 3 | B17: Slice Rate Revenues | C17: 0 | D17: =Cost_Allocation_TRM!$E$60/2 -> 0
A18: 4 | B18: Load Shaping Rate Revenues | C18: 7802.131367 | D18: =-Cost_Allocation_TRM!$E$45/2 -> 27391.16273 | E18: =D18/C18-1 -> 2.510728215
A19: 5 | B19: Demand Rate Revenues | C19: 48354.47377 | D19: =-Cost_Allocation_TRM!$E$47/2 -> 48157.21696 | E19: =D19/C19-1 -> -0.004079391202
A20: 6 | B20: Tier 1 Revenue Requirement | C20: 2226368.254 | D20: =SUM(D15:D19) -> 2279650.189 | E20: =D20/C20-1 -> 0.0239322202
A21: 7 | B21: Tier 2 Revenue Requirement | C21: 25186.74401 | D21: =(Cost_Allocation_TRM!$H$13+Cost_Allocation_TRM!$I$13)/2 -> 40905.41608
A22: 8 | B22: Value of Slice Surplus | C22: -119981.6735 | D22: =-(Secondary!D27+Secondary!E27)/2 -> -94630.67811 | E22: =-(D22/C22-1) -> 0.2112905637
A23: 9 | B23: Value of CHWM RECs (credit)
A24: 10 | B24: Lookback Return (credit) | C24: -76537.617 | D24: =IF(Init!$C$13="Yes",-'Post-7b2Rates'!$C$15,0) -> -76537.617
A25: 11 | B25: Net Power Cost to All PF | C25: 2055035.707 | D25: =SUM(D20:D24) -> 2149387.31 | E25: =D25/C25-1 -> 0.04591239094
A26: 12 | B26: Annual PF Load (w/firm Slice) (GWh) | C26: 60789.43355 | D26: =('PF Public'!$D$77+'PF Public'!$E$77)/2 -> 60232.15902 | E26: =D26/C26-1 -> -0.009167292779
A27: 13 | B27: PF Average Net Cost ($/MWh) | C27: 33.80580452 | D27: =D25/D26 -> 35.68504509 | E27: =D27/C27-1 -> 0.05558928699
A29: 14 | B29: Tier 1 Average Net Cost ($/MWh) | C29: 33.75 | D29: =ROUND((D20+D22+D23+D24)/(PFAveT1_RateOutput!$E$54/2),2) -> 35.57 | E29: =D29/C29-1 -> 0.05392592593
A30: 15 | B30: Tier 2 ($/MWh) | C30: 43.08542392 | D30: =+'Cost Contribution'!F31 -> 41.41368514 | E30: =D30/C30-1 -> -0.03880056482
B33: Slice Sales | C33: BP-16 | D33: BP-18 | E33: Change
A34: 16 | B34: Composite+Slice | C34: 658873.9588 | D34: =(Cost_Allocation_TRM!C67*Cost_Allocation_TRM!E70+Cost_Allocation_TRM!D67*Cost_Allocation_TRM!E70+Cost_Allocation_TRM!C67*Cost_Allocation_TRM!E72+Cost_Allocation_TRM!D67*Cost_Allocation_TRM!E72)/2 -> 579247.7454
A35: 17 | B35: Tier 1 Average Cost ($/MWh) | C35: 40.67429445 | D35: =D34/((Loads!E8+Loads!F8)/1000/2) -> 41.79370379 | E35: =D35/C35-1 -> 0.02752129703
A36: 18 | B36: Value of Slice Surplus+Credits | C36: -140698.9782 | D36: =D22+((D23+D24)*(Cost_Allocation_TRM!E67/Cost_Allocation_TRM!E65)) -> -112579.3187
A37: 19 | B37: Net Cost of Slice Power | C37: 518174.9806 | D37: =D34+D36 -> 466668.4266
A38: 20 | B38: Tier 1 Average Net Cost ($/MWh) | C38: 31.98851837 | D38: =D37/((Cost_Allocation_TRM!H36+Cost_Allocation_TRM!I36)/2/1000) -> 33.73894194 | E38: =D38/C38-1 -> 0.05472037026
B41: Non-Slice Sales | C41: BP-16 | D41: BP-18 | E41: Change
A42: 21 | B42: Composite+NonSlice+Shape+Demand | C42: 1567575.7 | D42: ='LSTUR&PFT1Eqv_RateOutput'!D52/2 -> 1700250.915
A43: 22 | B43: Tier 1 Average Cost ($/MWh) | C43: 35.63447098 | D43: =D42/(('LSTUR&PFT1Eqv_RateOutput'!E54)/2) -> 37.42849391 | E43: =D43/C43-1 -> 0.05034515405
A44: 23 | B44: Credits | C44: -55820.3123 | D44: =(D23+D24)*(Cost_Allocation_TRM!E66/Cost_Allocation_TRM!E65) -> -58588.97637
A45: 24 | B45: Net Cost of Non-Slice Power | C45: 1511755.388 | D45: =D42+D44 -> 1641661.939
A46: 25 | B46: Tier 1 Average Net Cost ($/MWh) | C46: 34.36555153 | D46: =D45/(('LSTUR&PFT1Eqv_RateOutput'!E54)/2) -> 36.13874478 | E46: =D46/C46-1 -> 0.05159798608
B49: Tiered PF Rate Components | C49: BP-16 | D49: BP-18 | E49: Change
A50: 26 | B50: Composite Rate ($/ pct/month) | C50: 2062695.262 | D50: =+Cost_Allocation_TRM!E75 -> 2123111.808 | E50: =D50/C50-1 -> 0.02929009792
A51: 27 | B51: Non-Slice Rate ($/ pct/month) | C51: -306651.9127 | D51: =+Cost_Allocation_TRM!E76 -> -298634.2465 | E51: =D51/C51-1 -> -0.02614582148
B56: REP Summary Information
B57: Residential Exchange Program Benefits
C58: BP-12 | D58: BP-14 REP Benefits | G58: Delta | H58: Change
C59: Errata | D59: Preliminary | E59: Reallocations | F59: Planned | G59: BP-12 vs BP-14
B60: Avista | C60: 11818 | D60: ='Utility Specific PFx Settle'!P8 -> 4633.074815 | E60: ='Utility Specific PFx Settle'!J41-'Utility Specific PFx Settle'!D47 -> -1776.499593 | F60: =AVERAGE('Utility Specific PFx Settle'!O27,'Utility Specific PFx Settle'!P27) -> 2856.707487 | G60: =+F60-C60 -> -8961.292513 | H60: =F60/C60-1 -> -0.7582748784
B61: Idaho Power | C61: 2024 | D61: ='Utility Specific PFx Settle'!P9 -> 23630.20522 | E61: ='Utility Specific PFx Settle'!J42-'Utility Specific PFx Settle'!E47 -> -10254.95066 | F61: =AVERAGE('Utility Specific PFx Settle'!O28,'Utility Specific PFx Settle'!P28) -> 13375.53564 | G61: =+F61-C61 -> 11351.53564 | H61: =F61/C61-1 -> 5.608466225
B62: Northwestern | C62: 2903 | D62: ='Utility Specific PFx Settle'!P10 -> 5348.036166 | E62: ='Utility Specific PFx Settle'!J43-'Utility Specific PFx Settle'!F47 -> 667.382784 | F62: =AVERAGE('Utility Specific PFx Settle'!O29,'Utility Specific PFx Settle'!P29) -> 6015.42042 | G62: 3112.42042 | H62: 1.072139311
B63: PacifiCorp | C63: 32167 | D63: ='Utility Specific PFx Settle'!P11 -> 72614.76875 | E63: ='Utility Specific PFx Settle'!J44-'Utility Specific PFx Settle'!G47 -> -4864.79959 | F63: =AVERAGE('Utility Specific PFx Settle'!O30,'Utility Specific PFx Settle'!P30) -> 67749.7953 | G63: 35582.7953 | H63: 1.106189427
B64: PGE | C64: 58178 | D64: ='Utility Specific PFx Settle'!P12 -> 59295.49427 | E64: ='Utility Specific PFx Settle'!J45-'Utility Specific PFx Settle'!H47 -> 7638.872646 | F64: =AVERAGE('Utility Specific PFx Settle'!O31,'Utility Specific PFx Settle'!P31) -> 66934.01022 | G64: 8756.010221 | H64: 0.1505038025
B65: Puget Sound | C65: 75012 | D65: ='Utility Specific PFx Settle'!P13 -> 66678.42078 | E65: ='Utility Specific PFx Settle'!J46-'Utility Specific PFx Settle'!I47 -> 8589.994415 | F65: =AVERAGE('Utility Specific PFx Settle'!O32,'Utility Specific PFx Settle'!P32) -> 75268.65135 | G65: 256.651354 | H65: 0.003421470618
B66: Clark | C66: =AVERAGE(14893,15048) -> 14970.5 | D66: ='Utility Specific PFx Settle'!P14 -> 5905.137175 | E66: 0 | F66: =IF(SUM(('Utility Specific PFx Settle'!O35,'Utility Specific PFx Settle'!P35))=0,0,AVERAGE('Utility Specific PFx Settle'!O35,'Utility Specific PFx Settle'!P35)) -> 5905.137175 | G66: -9065.362825 | H66: -0.6055484336
B67: Snohomish | C67: =AVERAGE(4593,4637) -> 4615 | D67: ='Utility Specific PFx Settle'!P16 -> 3266.078572 | E67: 0 | F67: =IF(SUM(('Utility Specific PFx Settle'!O37,'Utility Specific PFx Settle'!P37))=0,0,AVERAGE('Utility Specific PFx Settle'!O37,'Utility Specific PFx Settle'!P37)) -> 3266.078572 | G67: -1348.921428 | H67: -0.292290667
B68: Total | C68: 201660.3145 | D68: 198924.2241 | E68: =+SUM(E60:E67) -> 1.818989404e-12 | F68: =+SUM(F60:F67) -> 241371.3362 | G68: =+SUM(G60:G67) -> 39683.83617 | H68: =F68/C68-1 -> 0.1969203599
B69: IOU Total | C69: =SUM(C60:C65) -> 182102 | D69: =SUM(D60:D65) -> 232200 | E69: =SUM(E60:E66) -> 1.818989404e-12 | F69: =SUM(F60:F65) -> 232200.1204 | G69: =SUM(G60:G65) -> 50098.12042 | H69: =F69/C69-1 -> 0.2751102153
B70: COU Total | C70: =SUM(C66:C67) -> 19585.5 | D70: =SUM(D66:D67) -> 9171.215747 | E70: =SUM(E66:E67) -> 0 | F70: =SUM(F66:F67) -> 9171.215747 | G70: =SUM(G66:G67) -> -10414.28425 | H70: -0.5317344083
B75: Residential Exchange Program Cost Allocations
E77: FY 2014 | F77: FY 2015
B78: Unconstrained REP Benefits | E78: ='Rates After Settlement'!C14 -> 836325.4942 | F78: ='Rates After Settlement'!D14 -> 841325.1986
B79: 7(b)(2) Rate Protection | E79: =E78*(Loads!E5/(Loads!E5+Loads!E11+Loads!E14))-E87 -> 589731.1736 | F79: =F78*(Loads!F5/(Loads!F5+Loads!F11+Loads!F14))-F87 -> 592431.2463
B80: 7(b)(3) PFx Allocation | E80: ='Rates After Settlement'!C28 -> 518423.7724 | F80: ='Rates After Settlement'!D28 -> 523409.0141
B81: 7(b)(3) IP Allocation | E81: ='WP-10 Adjustment'!C55 -> 4652.109984 | F81: ='WP-10 Adjustment'!D55 -> 6688.239455
B82: 7(b)(3) NR Allocation | E82: ='WP-10 Adjustment'!C56 -> 0.07662801247 | F82: ='WP-10 Adjustment'!D56 -> 0.07634267146
B83: REP Benefits | E83: ='Utility Specific PFx Settle'!O39 -> 241364.1048 | F83: ='Utility Specific PFx Settle'!P39 -> 241378.5675
B84: Refund Amounts | E84: ='Utility Specific PFx Settle'!O41 -> 76537.617 | F84: ='Utility Specific PFx Settle'!P41 -> 76537.617
B85: Total REP Costs (Benefits + Refunds) | E85: ='Utility Specific PFx Settle'!O42 -> 317901.7218 | F85: ='Utility Specific PFx Settle'!P42 -> 317916.1845
B87: REP Benefits paid by PFp | E87: =E83*(Loads!E5/(Loads!E5+Loads!E11+Loads!E14)) -> 239242.3094 | F87: =F83*(Loads!F5/(Loads!F5+Loads!F11+Loads!F14)) -> 238354.8772
B88: REP Benefits paid by IP | E88: =E83*(Loads!E11/(Loads!E5+Loads!E11+Loads!E14)) -> 2121.760473 | F88: =F83*(Loads!F11/(Loads!F5+Loads!F11+Loads!F14)) -> 3023.6558
B89: REP Benefits paid by NR | E89: =E83*(Loads!E14/(Loads!E5+Loads!E11+Loads!E14)) -> 0.03494893469 | F89: =F83*(Loads!F14/(Loads!F5+Loads!F11+Loads!F14)) -> 0.03451341162

Sheet Loads
B1: Loads (MWh)
A2: TOC | B2: =Cover!$C$14 -> RAMmodel_REP2018.xls
A3: é | E3: Annual | L3: HLH | CG3: LLH
E4: =Init!$C$9 -> 2018 | F4: =E4+1 -> 2019 | G4: =F4+1 -> 2020 | H4: 2021 | I4: 2022 | J4: 2023 | L4: =DATE($E$4-1,10,1) -> 2017-10-01 | M4: =EOMONTH(L4,0)+1 -> 2017-11-01 | N4: =EOMONTH(M4,0)+1 -> 2017-12-01 | O4: 2018-01-01 | P4: 2018-02-01 | Q4: 2018-03-01 | R4: 2018-04-01 | S4: 2018-05-01 | T4: 2018-06-01 | U4: 2018-07-01 | V4: 2018-08-01 | W4: 2018-09-01 | X4: 2018-10-01 | Y4: 2018-11-01 | Z4: 2018-12-01 | AA4: 2019-01-01 | AB4: 2019-02-01 | AC4: 2019-03-01 | AD4: 2019-04-01 | AE4: 2019-05-01 | AF4: 2019-06-01 | AG4: 2019-07-01 | AH4: 2019-08-01 | AI4: 2019-09-01 | AJ4: 2019-10-01 | AK4: 2019-11-01 | AL4: 2019-12-01 | AM4: 2020-01-01 | AN4: 2020-02-01 | AO4: 2020-03-01 | AP4: 2020-04-01 | AQ4: 2020-05-01 | AR4: 2020-06-01 | AS4: 2020-07-01 | AT4: 2020-08-01 | AU4: 2020-09-01 | AV4: 2020-10-01 | AW4: 2020-11-01 | AX4: 2020-12-01 | AY4: 2021-01-01 | AZ4: 2021-02-01 | BA4: 2021-03-01 | BB4: 2021-04-01 | BC4: 2021-05-01 | BD4: 2021-06-01 | BE4: 2021-07-01 | BF4: 2021-08-01 | BG4: 2021-09-01 | BH4: 2021-10-01 | BI4: 2021-11-01 | BJ4: 2021-12-01 | BK4: 2022-01-01 | BL4: 2022-02-01 | BM4: 2022-03-01 | BN4: 2022-04-01 | BO4: 2022-05-01 | BP4: 2022-06-01 | BQ4: 2022-07-01 | BR4: 2022-08-01 | BS4: 2022-09-01 | BT4: 2022-10-01 | BU4: 2022-11-01 | BV4: 2022-12-01 | BW4: 2023-01-01 | BX4: 2023-02-01 | BY4: 2023-03-01 | BZ4: =EOMONTH(BY4,0)+1 -> 2023-04-01 | CA4: 2023-05-01 | CB4: 2023-06-01 | CC4: 2023-07-01 | CD4: 2023-08-01 | CE4: 2023-09-01 | CG4: =DATE($E$4-1,10,1) -> 2017-10-01 | CH4: =EOMONTH(CG4,0)+1 -> 2017-11-01 | CI4: =EOMONTH(CH4,0)+1 -> 2017-12-01 | CJ4: 2018-01-01 | CK4: 2018-02-01 | CL4: 2018-03-01 | CM4: 2018-04-01 | CN4: 2018-05-01 | CO4: 2018-06-01 | CP4: 2018-07-01 | CQ4: 2018-08-01 | CR4: 2018-09-01 | CS4: 2018-10-01 | CT4: 2018-11-01 | CU4: 2018-12-01 | CV4: 2019-01-01 | CW4: 2019-02-01 | CX4: 2019-03-01 | CY4: 2019-04-01 | CZ4: 2019-05-01 | DA4: 2019-06-01 | DB4: 2019-07-01 | DC4: 2019-08-01 | DD4: 2019-09-01 | DE4: 2019-10-01 | DF4: 2019-11-01 | DG4: 2019-12-01 | DH4: 2020-01-01 | DI4: 2020-02-01 | DJ4: 2020-03-01 | DK4: 2020-04-01 | DL4: 2020-05-01 | DM4: 2020-06-01 | DN4: 2020-07-01 | DO4: 2020-08-01 | DP4: 2020-09-01 | DQ4: 2020-10-01 | DR4: 2020-11-01 | DS4: 2020-12-01 | DT4: 2021-01-01 | DU4: 2021-02-01 | DV4: 2021-03-01 | DW4: 2021-04-01 | DX4: 2021-05-01 | DY4: 2021-06-01 | DZ4: 2021-07-01 | EA4: 2021-08-01 | EB4: 2021-09-01 | EC4: 2021-10-01 | ED4: 2021-11-01 | EE4: 2021-12-01 | EF4: 2022-01-01 | EG4: 2022-02-01 | EH4: 2022-03-01 | EI4: 2022-04-01 | EJ4: 2022-05-01 | EK4: 2022-06-01 | EL4: 2022-07-01 | EM4: 2022-08-01 | EN4: 2022-09-01 | EO4: 2022-10-01 | EP4: 2022-11-01 | EQ4: 2022-12-01 | ER4: 2023-01-01 | ES4: 2023-02-01 | ET4: 2023-03-01 | EU4: =EOMONTH(ET4,0)+1 -> 2023-04-01 | EV4: 2023-05-01 | EW4: 2023-06-01 | EX4: 2023-07-01 | EY4: 2023-08-01 | EZ4: 2023-09-01
A5: Preference | D5: PRE | E5: =+SUM(E6:E10) -> 59966423.84 | F5: 60497894.2 | G5: 63250403.32 | H5: 63309112.32 | I5: 63468846.4 | J5: 63580427.59 | L5: =+SUM(L6:L10) -> 2759929.718 | M5: =+SUM(M6:M10) -> 3250230.382 | N5: =+SUM(N6:N10) -> 3535226.918 | O5: =+SUM(O6:O10) -> 3414788.125 | P5: =+SUM(P6:P10) -> 3041297.883 | Q5: =+SUM(Q6:Q10) -> 3136300.035 | R5: =+SUM(R6:R10) -> 2704895.2 | S5: =+SUM(S6:S10) -> 2954582.087 | T5: =+SUM(T6:T10) -> 2768082.699 | U5: =+SUM(U6:U10) -> 2841639.901 | V5: =+SUM(V6:V10) -> 3026918.892 | W5: =+SUM(W6:W10) -> 2677260.28 | X5: =+SUM(X6:X10) -> 2858974.825 | Y5: =+SUM(Y6:Y10) -> 3309154.892 | Z5: =+SUM(Z6:Z10) -> 3598776.249 | AA5: =+SUM(AA6:AA10) -> 3479994.718 | AB5: =+SUM(AB6:AB10) -> 3097467.721 | AC5: =+SUM(AC6:AC10) -> 3152644.664 | AD5: =+SUM(AD6:AD10) -> 2812352.443 | AE5: =+SUM(AE6:AE10) -> 2923659.737 | AF5: =+SUM(AF6:AF10) -> 2696537.943 | AG5: =+SUM(AG6:AG10) -> 2937978.895 | AH5: =+SUM(AH6:AH10) -> 3091578.995 | AI5: =+SUM(AI6:AI10) -> 2736640.717 | AJ5: =+SUM(AJ6:AJ10) -> 2911197.319 | AK5: =+SUM(AK6:AK10) -> 3435229.157 | AL5: =+SUM(AL6:AL10) -> 3733302.422 | AM5: =+SUM(AM6:AM10) -> 3667926.908 | AN5: =+SUM(AN6:AN10) -> 3301856.458 | AO5: =+SUM(AO6:AO10) -> 3265932.669 | AP5: =+SUM(AP6:AP10) -> 2842095.952 | AQ5: =+SUM(AQ6:AQ10) -> 3086284.967 | AR5: =+SUM(AR6:AR10) -> 2905502.471 | AS5: =+SUM(AS6:AS10) -> 3131091.114 | AT5: =+SUM(AT6:AT10) -> 3119795.515 | AU5: =+SUM(AU6:AU10) -> 2835178.279 | AV5: =+SUM(AV6:AV10) -> 2942458.872 | AW5: =+SUM(AW6:AW10) -> 3419155.18 | AX5: =+SUM(AX6:AX10) -> 3825843.299 | AY5: =+SUM(AY6:AY10) -> 3634592.651 | AZ5: =+SUM(AZ6:AZ10) -> 3251888.895 | BA5: =+SUM(BA6:BA10) -> 3332447.587 | BB5: =+SUM(BB6:BB10) -> 2861873.394 | BC5: =+SUM(BC6:BC10) -> 3061785.389 | BD5: =+SUM(BD6:BD10) -> 2774699.415 | BE5: =+SUM(BE6:BE10) -> 3118988.18 | BF5: =+SUM(BF6:BF10) -> 3141711.803 | BG5: =+SUM(BG6:BG10) -> 2851116.554 | BH5: =+SUM(BH6:BH10) -> 2893919.463 | BI5: =+SUM(BI6:BI10) -> 3459934.997 | BJ5: =+SUM(BJ6:BJ10) -> 3785920.243 | BK5: =+SUM(BK6:BK10) -> 3623402.149 | BL5: =+SUM(BL6:BL10) -> 3240954.5 | BM5: =+SUM(BM6:BM10) -> 3320349.238 | BN5: =+SUM(BN6:BN10) -> 2854283.349 | BO5: =+SUM(BO6:BO10) -> 3131967.037 | BP5: =+SUM(BP6:BP10) -> 2917280.058 | BQ5: =+SUM(BQ6:BQ10) -> 3081589.808 | BR5: =+SUM(BR6:BR10) -> 3173873.169 | BS5: =+SUM(BS6:BS10) -> 2843470.721 | BT5: =+SUM(BT6:BT10) -> 2915393.85 | BU5: =+SUM(BU6:BU10) -> 3482870.987 | BV5: =+SUM(BV6:BV10) -> 3844763.767 | BW5: =+SUM(BW6:BW10) -> 3625623.989 | BX5: =+SUM(BX6:BX10) -> 3264058.231 | BY5: =+SUM(BY6:BY10) -> 3346360.977 | BZ5: =+SUM(BZ6:BZ10) -> 2832398.212 | CA5: =+SUM(CA6:CA10) -> 3102375.949 | CB5: =+SUM(CB6:CB10) -> 2815985.272 | CC5: =+SUM(CC6:CC10) -> 3091729.754 | CD5: =+SUM(CD6:CD10) -> 3196633.462 | CE5: =+SUM(CE6:CE10) -> 2863270.197 | CG5: =+SUM(CG6:CG10) -> 1776505.625 | CH5: =+SUM(CH6:CH10) -> 2222886.911 | CI5: =+SUM(CI6:CI10) -> 2518729.685 | CJ5: =+SUM(CJ6:CJ10) -> 2382036.505 | CK5: =+SUM(CK6:CK10) -> 1996409.784 | CL5: =+SUM(CL6:CL10) -> 2011553.881 | CM5: =+SUM(CM6:CM10) -> 1776869.584 | CN5: =+SUM(CN6:CN10) -> 1917932.733 | CO5: =+SUM(CO6:CO10) -> 1697496.9 | CP5: =+SUM(CP6:CP10) -> 1924194.761 | CQ5: =+SUM(CQ6:CQ10) -> 1794530.439 | CR5: =+SUM(CR6:CR10) -> 1836124.911 | CS5: =+SUM(CS6:CS10) -> 1741758.348 | CT5: =+SUM(CT6:CT10) -> 2236063.442 | CU5: =+SUM(CU6:CU10) -> 2535845.392 | CV5: =+SUM(CV6:CV10) -> 2403883.311 | CW5: =+SUM(CW6:CW10) -> 2010515.969 | CX5: =+SUM(CX6:CX10) -> 2069289.839 | CY5: =+SUM(CY6:CY10) -> 1738421.251 | CZ5: =+SUM(CZ6:CZ10) -> 1892259.522 | DA5: =+SUM(DA6:DA10) -> 1658334.726 | DB5: =+SUM(DB6:DB10) -> 1877977.603 | DC5: =+SUM(DC6:DC10) -> 1797793.935 | DD5: =+SUM(DD6:DD10) -> 1839989.058 | DE5: =+SUM(DE6:DE10) -> 1794805.441 | DF5: =+SUM(DF6:DF10) -> 2328386.014 | DG5: =+SUM(DG6:DG10) -> 2632457.794 | DH5: =+SUM(DH6:DH10) -> 2496183.631 | DI5: =+SUM(DI6:DI10) -> 2129554.017 | DJ5: =+SUM(DJ6:DJ10) -> 2162672.229 | DK5: =+SUM(DK6:DK10) -> 1816012.801 | DL5: =+SUM(DL6:DL10) -> 2108729.706 | DM5: =+SUM(DM6:DM10) -> 1784318.062 | DN5: =+SUM(DN6:DN10) -> 1956517.154 | DO5: =+SUM(DO6:DO10) -> 1920716.809 | DP5: =+SUM(DP6:DP10) -> 1884656.433 | DQ5: =+SUM(DQ6:DQ10) -> 1820103.625 | DR5: =+SUM(DR6:DR10) -> 2403028.072 | DS5: =+SUM(DS6:DS10) -> 2607882.995 | DT5: =+SUM(DT6:DT10) -> 2576152.461 | DU5: =+SUM(DU6:DU10) -> 2120122.75 | DV5: =+SUM(DV6:DV10) -> 2137326.901 | DW5: =+SUM(DW6:DW10) -> 1832553.155 | DX5: =+SUM(DX6:DX10) -> 2025316.658 | DY5: =+SUM(DY6:DY10) -> 1744686.279 | DZ5: =+SUM(DZ6:DZ10) -> 1985818.598 | EA5: =+SUM(EA6:EA10) -> 1936250.862 | EB5: =+SUM(EB6:EB10) -> 1903308.746 | EC5: =+SUM(EC6:EC10) -> 1852611.566 | ED5: =+SUM(ED6:ED10) -> 2346625.376 | EE5: =+SUM(EE6:EE10) -> 2628107.148 | EF5: =+SUM(EF6:EF10) -> 2565208.97 | EG5: =+SUM(EG6:EG10) -> 2113251.447 | EH5: =+SUM(EH6:EH10) -> 2129900.001 | EI5: =+SUM(EI6:EI10) -> 1822868.025 | EJ5: =+SUM(EJ6:EJ10) -> 2081576.304 | EK5: =+SUM(EK6:EK10) -> 1791418.996 | EL5: =+SUM(EL6:EL10) -> 2026353.106 | EM5: =+SUM(EM6:EM10) -> 1888942.04 | EN5: =+SUM(EN6:EN10) -> 1895038.683 | EO5: =+SUM(EO6:EO10) -> 1867905.473 | EP5: =+SUM(EP6:EP10) -> 2365087.174 | EQ5: =+SUM(EQ6:EQ10) -> 2617558.204 | ER5: =+SUM(ER6:ER10) -> 2611743.579 | ES5: =+SUM(ES6:ES10) -> 2131585.938 | ET5: =+SUM(ET6:ET10) -> 2145271.574 | EU5: =+SUM(EU6:EU10) -> 1881406.946 | EV5: =+SUM(EV6:EV10) -> 2005605.215 | EW5: =+SUM(EW6:EW10) -> 1723455.912 | EX5: =+SUM(EX6:EX10) -> 2034555.232 | EY5: =+SUM(EY6:EY10) -> 1904324.415 | EZ5: =+SUM(EZ6:EZ10) -> 1910463.285
B6: Block | D6: PRE_BLK | E6: =+SUM(L6:W6,CG6:CR6) -> 4475037.15 | F6: =+SUM(X6:AI6,CS6:DD6) -> 4512731.444 | G6: =+SUM(AJ6:AU6,DE6:DP6) -> 4754456.782 | H6: =+SUM(AV6:BG6,DQ6:EB6) -> 4756097.536 | I6: =+SUM(BH6:BS6,EC6:EN6) -> 4749691.15 | J6: =+SUM(BT6:CE6,EO6:EZ6) -> 4754791.513 | L6: 214801.781 | M6: 340997.844 | N6: 346367.844 | O6: 375903.125 | P6: 319517.656 | Q6: 338312.813 | R6: 163786.344 | S6: 53700.445 | T6: 0 | U6: 128881.078 | V6: 153046.266 | W6: 249707.078 | X6: 216611.125 | Y6: 343870.125 | Z6: 349285.406 | AA6: 379069.469 | AB6: 322209 | AC6: 341162.531 | AD6: 165165.984 | AE6: 54152.781 | AF6: 0 | AG6: 129966.68 | AH6: 154335.406 | AI6: 251810.422 | AJ6: 227634.712 | AK6: 357274.234 | AL6: 365631.987 | AM6: 397481.348 | AN6: 337825.42 | AO6: 356674.381 | AP6: 174791.679 | AQ6: 60146.644 | AR6: 3865.325 | AS6: 139733.063 | AT6: 162586.142 | AU6: 262028.101 | AV6: 227698.103 | AW6: 356920.9 | AX6: 366158.766 | AY6: 397059.594 | AZ6: 337834.871 | BA6: 357141.51 | BB6: 174872.431 | BC6: 60248.573 | BD6: 3968.083 | BE6: 139854.89 | BF6: 162641.807 | BG6: 262032.704 | BH6: 227116.869 | BI6: 356925.338 | BJ6: 365719.195 | BK6: 396591.738 | BL6: 337427.595 | BM6: 356726.528 | BN6: 174615.044 | BO6: 60080.684 | BP6: 3854.359 | BQ6: 139285.765 | BR6: 162653.536 | BS6: 261771.444 | BT6: 227336.454 | BU6: 357168.684 | BV6: 366058.566 | BW6: 396950.956 | BX6: 337742.362 | BY6: 357043.839 | BZ6: 174539.275 | CA6: 60445.22 | CB6: 3966.338 | CC6: 139505.134 | CD6: 162834.188 | CE6: 261961.29 | CG6: 143201.188 | CH6: 227331.906 | CI6: 230911.906 | CJ6: 250602.063 | CK6: 213011.781 | CL6: 225541.875 | CM6: 109190.906 | CN6: 35800.297 | CO6: 0 | CP6: 85920.719 | CQ6: 102030.844 | CR6: 166471.391 | CS6: 144407.406 | CT6: 229246.75 | CU6: 232856.906 | CV6: 252712.969 | CW6: 214806 | CX6: 227441.656 | CY6: 110110.641 | CZ6: 36101.852 | DA6: 0 | DB6: 86644.445 | DC6: 102890.281 | DD6: 167873.609 | DE6: 152193.665 | DF6: 239323.645 | DG6: 245932.405 | DH6: 266558.171 | DI6: 226018.348 | DJ6: 239042.211 | DK6: 116990.7 | DL6: 41104.297 | DM6: 2824.635 | DN6: 94114.52 | DO6: 109122.102 | DP6: 175559.047 | DQ6: 152247.518 | DR6: 239693.498 | DS6: 245570.468 | DT6: 267167.494 | DU6: 226152.689 | DV6: 238692.883 | DW6: 117056.82 | DX6: 41199 | DY6: 2899.727 | DZ6: 94221.216 | EA6: 109178.655 | EB6: 175585.336 | EC6: 152331.767 | ED6: 239087.83 | EE6: 245235.432 | EF6: 266785.084 | EG6: 225854.524 | EH6: 238399.104 | EI6: 116871.614 | EJ6: 41057.458 | EK6: 2816.621 | EL6: 94317.082 | EM6: 108781.056 | EN6: 175385.483 | EO6: 152504.902 | EP6: 239283.113 | EQ6: 245503.012 | ER6: 267094.016 | ES6: 226090.599 | ET6: 238627.534 | EU6: 117309.514 | EV6: 40973.441 | EW6: 2898.452 | EX6: 94505.743 | EY6: 108911.524 | EZ6: 175537.357
B7: Slice Block | D7: PRE_BLK | E7: =+SUM(L7:W7,CG7:CR7) -> 12772728.76 | F7: =+SUM(X7:AI7,CS7:DD7) -> 13271001.77 | G7: =+SUM(AJ7:AU7,DE7:DP7) -> 12874582.65 | H7: =+SUM(AV7:BG7,DQ7:EB7) -> 13221514.12 | I7: =+SUM(BH7:BS7,EC7:EN7) -> 12918758.42 | J7: =+SUM(BT7:CE7,EO7:EZ7) -> 13271832.2 | L7: 552386.2 | M7: 615972.692 | N7: 703392.689 | O7: 728925.096 | P7: 619092.885 | Q7: 643480.578 | R7: 553647.665 | S7: 555021.517 | T7: 543278.471 | U7: 548227.667 | V7: 578034.739 | W7: 494789.204 | X7: 595647.17 | Y7: 640379.55 | Z7: 731599.367 | AA7: 757747.307 | AB7: 643700.186 | AC7: 644774.871 | AD7: 598622.498 | AE7: 576458.708 | AF7: 542119.515 | AG7: 591443.538 | AH7: 599590.861 | AI7: 513907.011 | AJ7: 578202.874 | AK7: 620853.581 | AL7: 707093.317 | AM7: 731210.027 | AN7: 625125.849 | AO7: 623206.939 | AP7: 581690.942 | AQ7: 539606.951 | AR7: 551642.285 | AS7: 574616.509 | AT7: 562596.59 | AU7: 520500.007 | AV7: 593847.71 | AW7: 612257.01 | AX7: 755501.426 | AY7: 722238.406 | AZ7: 638509.221 | BA7: 664795.231 | BB7: 597388.432 | BC7: 554067.065 | BD7: 566259.26 | BE7: 589693.433 | BF7: 577440.729 | BG7: 534409.242 | BH7: 558801.5 | BI7: 623182.459 | BJ7: 738209.022 | BK7: 705776.335 | BL7: 623868.987 | BM7: 649431.586 | BN7: 583582.175 | BO7: 541436.339 | BP7: 553312.211 | BQ7: 554064.987 | BR7: 585981.347 | BS7: 522129.834 | BT7: 574174.08 | BU7: 640356.239 | BV7: 758583.123 | BW7: 725228.071 | BX7: 641084.619 | BY7: 667236.745 | BZ7: 576475.713 | CA7: 578418.565 | CB7: 568255.65 | CC7: 568929.151 | CD7: 601788.907 | CE7: 536305.498 | CG7: 435534.872 | CH7: 494308.088 | CI7: 604928.39 | CJ7: 574728.86 | CK7: 464316.924 | CL7: 463240.035 | CM7: 442910.174 | CN7: 437612.684 | CO7: 397007.561 | CP7: 471484.161 | CQ7: 417461.247 | CR7: 432946.356 | CS7: 430181.107 | CT7: 513894.229 | CU7: 629186.604 | CV7: 597454.069 | CW7: 482772.287 | CX7: 506835.077 | CY7: 437450.912 | CZ7: 454515.103 | DA7: 433687.821 | DB7: 466330.056 | DC7: 433029.269 | DD7: 449674.655 | DE7: 417582.714 | DF7: 498224.941 | DG7: 608111.076 | DH7: 576530.454 | DI7: 462598.134 | DJ7: 489881.292 | DK7: 425077.96 | DL7: 464070.184 | DM7: 403119.553 | DN7: 453062.577 | DO7: 443585.353 | DP7: 416392.544 | DQ7: 428881.503 | DR7: 537327.145 | DS7: 595683.265 | DT7: 621136.02 | DU7: 478879.114 | DV7: 478584.387 | DW7: 436549.131 | DX7: 476506.109 | DY7: 413801.056 | DZ7: 464950.152 | EA7: 455289.366 | EB7: 427519.71 | EC7: 440593.069 | ED7: 500093.844 | EE7: 582048.896 | EF7: 606978.368 | EG7: 467898.969 | EH7: 467524.121 | EI7: 426459.995 | EJ7: 465643.471 | EK7: 404339.873 | EL7: 476504.309 | EM7: 423200.355 | EN7: 417696.365 | EO7: 452713.792 | EP7: 513875.516 | EQ7: 598113.065 | ER7: 623707.173 | ES7: 480810.62 | ET7: 480341.998 | EU7: 461172.288 | EV7: 456060.388 | EW7: 415259.947 | EX7: 489287.717 | EY7: 434616.69 | EZ7: 429036.646
B8: Slice | D8: PRE_SNB | E8: =+SUM(L8:W8,CG8:CR8) -> 14017963.68 | F8: =+SUM(X8:AI8,CS8:DD8) -> 13701414.73 | G8: 16642307.21 | H8: 16217157.61 | I8: 16590473.35 | J8: 16215277.96 | L8: 683952.8166 | M8: 830357.6464 | N8: 805521.1855 | O8: 622088.1835 | P8: 629481.1618 | Q8: 714874.8045 | R8: 669130.2911 | S8: 1026214.005 | T8: 845353.5077 | U8: 694509.1557 | V8: 789812.547 | W8: 674449.6179 | X8: 690691.4701 | Y8: 837987.4167 | Z8: 811721.2758 | AA8: 624958.4619 | AB8: 631127.2151 | AC8: 720805.7822 | AD8: 673258.2815 | AE8: 939211.3681 | AF8: 758866.428 | AG8: 684205.6966 | AH8: 792908.8676 | AI8: 678278.8637 | AJ8: 778575.0393 | AK8: 988462.8778 | AL8: 973568.344 | AM8: 840057.3624 | AN8: 797858.2191 | AO8: 845835.1265 | AP8: 733923.4891 | AQ8: 1175404.709 | AR8: 974458.6105 | AS8: 921638.3204 | AT8: 909980.0774 | AU8: 768387.5134 | AV8: 775731.1057 | AW8: 988074.1946 | AX8: 971492.9574 | AY8: 835509.5583 | AZ8: 765553.3588 | BA8: 841471.7343 | BB8: 731526.343 | BC8: 1130271.541 | BD8: 822278.9437 | BE8: 887154.5929 | BF8: 909301.5632 | BG8: 763828.8259 | BH8: 776418.5855 | BI8: 987710.724 | BJ8: 941987.4324 | BK8: 835580.1571 | BL8: 764502.814 | BM8: 840508.9149 | BN8: 733773.8043 | BO8: 1209062.932 | BP8: 973578.9372 | BQ8: 900953.4065 | BR8: 907999.8735 | BS8: 764539.7712 | BT8: 775950.073 | BU8: 986937.1035 | BV8: 972764.6366 | BW8: 810492.2719 | BX8: 763198.6638 | BY8: 841750.6769 | BZ8: 733265.7904 | CA8: 1117545.97 | CB8: 850813.35 | CC8: 889098.822 | CD8: 907625.5719 | CE8: 763829.193 | CG8: 370805.4055 | CH8: 489030.7718 | CI8: 482690.3086 | CJ8: 399159.122 | CK8: 358326.5185 | CL8: 413598.0763 | CM8: 360130.4036 | CN8: 563638.7925 | CO8: 458565.2594 | CP8: 370674.0013 | CQ8: 384725.5584 | CR8: 380874.5442 | CS8: 365145.0754 | CT8: 481792.0831 | CU8: 476889.7621 | CV8: 397280.533 | CW8: 356490.6415 | CX8: 407252.0464 | CY8: 357328.778 | CZ8: 527077.1269 | DA8: 367121.3053 | DB8: 361886.5621 | DC8: 382050.6755 | DD8: 377079.0137 | DE8: 422327.5571 | DF8: 579819.0236 | DG8: 582803.3427 | DH8: 476582.3163 | DI8: 438487.6121 | DJ8: 484609.677 | DK8: 419199.1992 | DL8: 684903.2776 | DM8: 531659.3664 | DN8: 425256.8713 | DO8: 445204.1172 | DP8: 443305.1576 | DQ8: 424222.2472 | DR8: 578082.7979 | DS8: 584835.6767 | DT8: 479463.6668 | DU8: 427183.8717 | DV8: 488950.5221 | DW8: 420209.5987 | DX8: 585074.5018 | DY8: 477411.0965 | DZ8: 437858.9082 | EA8: 444862.18 | EB8: 446807.8216 | EC8: 422909.5125 | ED8: 579760.3762 | EE8: 614706.3394 | EF8: 479758.2057 | EG8: 428564.2184 | EH8: 490277.9883 | EI8: 418315.4965 | EJ8: 650103.4653 | EK8: 531481.134 | EL8: 444009.7619 | EM8: 447519.2613 | EN8: 446450.2353 | EO8: 422887.0562 | EP8: 580058.2058 | EQ8: 583438.1664 | ER8: 504355.1222 | ES8: 429424.913 | ET8: 488545.9176 | EU8: 417358.1212 | EV8: 598296.5518 | EW8: 448754.9183 | EX8: 434798.585 | EY8: 447402.5942 | EZ8: 446685.6826
B9: Load Following | D9: PRE_LDF | E9: 27813788.05 | F9: 27987125.45 | G9: 28541824.3 | H9: 28583706.05 | I9: 28635048.48 | J9: 28654107.12 | L9: 1266671 | M9: 1422404.2 | N9: 1639447.2 | O9: 1645753.8 | P9: 1434328.1 | Q9: 1395894 | R9: 1277832.9 | S9: 1277528.2 | T9: 1337332.8 | U9: 1429524 | V9: 1462287.5 | W9: 1219436.3 | X9: 1305446.5 | Y9: 1440085.8 | Z9: 1659338.2 | AA9: 1669514.2 | AB9: 1455472.6 | AC9: 1397196.2 | AD9: 1326600.4 | AE9: 1305131.6 | AF9: 1348720 | AG9: 1483657.7 | AH9: 1494165.3 | AI9: 1247685.7 | AJ9: 1305281.462 | AK9: 1448728.064 | AL9: 1667098.374 | AM9: 1678471.355 | AN9: 1521136.57 | AO9: 1419509.406 | AP9: 1330983.026 | AQ9: 1291216.263 | AR9: 1354829.435 | AS9: 1474396.406 | AT9: 1463925.89 | AU9: 1264352.258 | AV9: 1319013.553 | AW9: 1438642.275 | AX9: 1707490.95 | AY9: 1655555.093 | AZ9: 1486730.644 | BA9: 1442870.712 | BB9: 1332886.988 | BC9: 1292968.21 | BD9: 1356993.928 | BE9: 1477086.064 | BF9: 1467128.504 | BG9: 1266615.782 | BH9: 1304282.509 | BI9: 1465866.476 | BJ9: 1712704.594 | BK9: 1659203.919 | BL9: 1489955.104 | BM9: 1445332.209 | BN9: 1335012.326 | BO9: 1295137.082 | BP9: 1359234.551 | BQ9: 1461035.649 | BR9: 1488888.412 | BS9: 1268779.672 | BT9: 1305431.163 | BU9: 1467156.961 | BV9: 1714855.361 | BW9: 1661700.69 | BX9: 1492030.666 | BY9: 1446577.556 | BZ9: 1316865.434 | CA9: 1313464.114 | CB9: 1360447.854 | CC9: 1462944.647 | CD9: 1490632.635 | CE9: 1269922.216 | CG9: 793755.8 | CH9: 979716.5 | CI9: 1165370.8 | CJ9: 1124338.1 | CK9: 931596 | CL9: 877686.7 | CM9: 832239.7 | CN9: 847672.6 | CO9: 811145.6 | CP9: 961287.6 | CQ9: 858724.35 | CR9: 821814.3 | CS9: 765495.8 | CT9: 973547.7 | CU9: 1156636.6 | CV9: 1118033.5 | CW9: 922728 | CX9: 889475.9 | CY9: 797938.6 | CZ9: 836163.2 | DA9: 820060 | DB9: 924714.3 | DC9: 843294.75 | DD9: 806022.9 | DE9: 787171.393 | DF9: 995040.308 | DG9: 1178488.026 | DH9: 1160186.162 | DI9: 987716.227 | DJ9: 932862.297 | DK9: 839613.038 | DL9: 901529.003 | DM9: 831582.604 | DN9: 967756.658 | DO9: 906478.709 | DP9: 833471.364 | DQ9: 795852.957 | DR9: 1027510.856 | DS9: 1161924.985 | DT9: 1187547.48 | DU9: 970461.475 | DV9: 912260.284 | DW9: 840322.805 | DX9: 901699.247 | DY9: 832159.6 | DZ9: 968919.722 | EA9: 907052.061 | EB9: 834011.878 | EC9: 815252.218 | ED9: 1006617.701 | EE9: 1164591.481 | EF9: 1189112.312 | EG9: 972033.736 | EH9: 913289.413 | EI9: 841270.92 | EJ9: 902196.91 | EK9: 832831.368 | EL9: 988946.953 | EM9: 888966.368 | EN9: 834506.6 | EO9: 814173.083 | EP9: 1006790.609 | EQ9: 1164877.321 | ER9: 1189710.548 | ES9: 972758.366 | ET9: 913457.694 | EU9: 860565.423 | EV9: 884648.194 | EW9: 832791.075 | EX9: 989086.467 | EY9: 889017.047 | EZ9: 834201.999
B10: Tier 2 (Block net remarketing) | D10: PRE_T2 | E10: 886906.2 | F10: 1025620.8 | G10: =+SUM(AJ10:AU10,DE10:DP10) -> 437232.384 | H10: 530637 | I10: 574875 | J10: 684418.8 | L10: 42117.92 | M10: 40498 | N10: 40498 | O10: 42117.92 | P10: 38878.08 | Q10: 43737.84 | R10: 40498 | S10: 42117.92 | T10: 42117.92 | U10: 40498 | V10: 43737.84 | W10: 38878.08 | X10: 50578.56 | Y10: 46832 | Z10: 46832 | AA10: 48705.28 | AB10: 44958.72 | AC10: 48705.28 | AD10: 48705.28 | AE10: 48705.28 | AF10: 46832 | AG10: 48705.28 | AH10: 50578.56 | AI10: 44958.72 | AJ10: 21503.232 | AK10: 19910.4 | AL10: 19910.4 | AM10: 20706.816 | AN10: 19910.4 | AO10: 20706.816 | AP10: 20706.816 | AQ10: 19910.4 | AR10: 20706.816 | AS10: 20706.816 | AT10: 20706.816 | AU10: 19910.4 | AV10: 26168.4 | AW10: 23260.8 | AX10: 25199.2 | AY10: 24230 | AZ10: 23260.8 | BA10: 26168.4 | BB10: 25199.2 | BC10: 24230 | BD10: 25199.2 | BE10: 25199.2 | BF10: 25199.2 | BG10: 24230 | BH10: 27300 | BI10: 26250 | BJ10: 27300 | BK10: 26250 | BL10: 25200 | BM10: 28350 | BN10: 27300 | BO10: 26250 | BP10: 27300 | BQ10: 26250 | BR10: 28350 | BS10: 26250 | BT10: 32502.08 | BU10: 31252 | BV10: 32502.08 | BW10: 31252 | BX10: 30001.92 | BY10: 33752.16 | BZ10: 31252 | CA10: 32502.08 | CB10: 32502.08 | CC10: 31252 | CD10: 33752.16 | CE10: 31252 | CG10: 33208.36 | CH10: 32499.645 | CI10: 34828.28 | CJ10: 33208.36 | CK10: 29158.56 | CL10: 31487.195 | CM10: 32398.4 | CN10: 33208.36 | CO10: 30778.48 | CP10: 34828.28 | CQ10: 31588.44 | CR10: 34018.32 | CS10: 36528.96 | CT10: 37582.68 | CU10: 40275.52 | CV10: 38402.24 | CW10: 33719.04 | CX10: 38285.16 | CY10: 35592.32 | CZ10: 38402.24 | DA10: 37465.6 | DB10: 38402.24 | DC10: 36528.96 | DD10: 39338.88 | DE10: 15530.112 | DF10: 15978.096 | DG10: 17122.944 | DH10: 16326.528 | DI10: 14733.696 | DJ10: 16276.752 | DK10: 15131.904 | DL10: 17122.944 | DM10: 15131.904 | DN10: 16326.528 | DO10: 16326.528 | DP10: 15928.32 | DQ10: 18899.4 | DR10: 20413.775 | DS10: 19868.6 | DT10: 20837.8 | DU10: 17445.6 | DV10: 18838.825 | DW10: 18414.8 | DX10: 20837.8 | DY10: 18414.8 | DZ10: 19868.6 | EA10: 19868.6 | EB10: 19384 | EC10: 21525 | ED10: 21065.625 | EE10: 21525 | EF10: 22575 | EG10: 18900 | EH10: 20409.375 | EI10: 19950 | EJ10: 22575 | EK10: 19950 | EL10: 22575 | EM10: 20475 | EN10: 21000 | EO10: 25626.64 | EP10: 25079.73 | EQ10: 25626.64 | ER10: 26876.72 | ES10: 22501.44 | ET10: 24298.43 | EU10: 25001.6 | EV10: 25626.64 | EW10: 23751.52 | EX10: 26876.72 | EY10: 24376.56 | EZ10: 25001.6
A11: Industrial | D11: IND | E11: =+SUM(E12:E13) -> 531822.269 | F11: =+SUM(F12:F13) -> 767447.307 | G11: 769548.073 | H11: 767447.307 | I11: 767447.307 | J11: 767447.307 | L11: =+SUM(L12:L13) -> 9789.323 | M11: =+SUM(M12:M13) -> 9089.775 | N11: =+SUM(N12:N13) -> 9024.992 | O11: =+SUM(O12:O13) -> 9306.324 | P11: =+SUM(P12:P13) -> 8580.737 | Q11: =+SUM(Q12:Q13) -> 36534.074 | R11: =+SUM(R12:R13) -> 36404.594 | S11: =+SUM(S12:S13) -> 36175.18 | T11: =+SUM(T12:T13) -> 35073.254 | U11: =+SUM(U12:U13) -> 35719.31 | V11: =+SUM(V12:V13) -> 37846.546 | W11: =+SUM(W12:W13) -> 33410.809 | X11: =+SUM(X12:X13) -> 37720.785 | Y11: =+SUM(Y12:Y13) -> 35016.936 | Z11: =+SUM(Z12:Z13) -> 34739.603 | AA11: =+SUM(AA12:AA13) -> 36356.458 | AB11: =+SUM(AB12:AB13) -> 33592.863 | AC11: =+SUM(AC12:AC13) -> 36534.074 | AD11: =+SUM(AD12:AD13) -> 36404.594 | AE11: =+SUM(AE12:AE13) -> 36175.18 | AF11: =+SUM(AF12:AF13) -> 35073.254 | AG11: =+SUM(AG12:AG13) -> 35719.31 | AH11: =+SUM(AH12:AH13) -> 37846.546 | AI11: =+SUM(AI12:AI13) -> 33410.809 | AJ11: =+SUM(AJ12:AJ13) -> 37720.785 | AK11: =+SUM(AK12:AK13) -> 35016.936 | AL11: =+SUM(AL12:AL13) -> 34739.603 | AM11: =+SUM(AM12:AM13) -> 36356.458 | AN11: =+SUM(AN12:AN13) -> 34792.607 | AO11: =+SUM(AO12:AO13) -> 36534.074 | AP11: =+SUM(AP12:AP13) -> 36404.594 | AQ11: =+SUM(AQ12:AQ13) -> 36175.18 | AR11: =+SUM(AR12:AR13) -> 35073.254 | AS11: =+SUM(AS12:AS13) -> 35719.31 | AT11: =+SUM(AT12:AT13) -> 37846.546 | AU11: =+SUM(AU12:AU13) -> 33410.809 | AV11: =+SUM(AV12:AV13) -> 37720.785 | AW11: =+SUM(AW12:AW13) -> 35016.936 | AX11: =+SUM(AX12:AX13) -> 34739.603 | AY11: =+SUM(AY12:AY13) -> 36356.458 | AZ11: =+SUM(AZ12:AZ13) -> 33592.863 | BA11: =+SUM(BA12:BA13) -> 36534.074 | BB11: =+SUM(BB12:BB13) -> 36404.594 | BC11: =+SUM(BC12:BC13) -> 36175.18 | BD11: =+SUM(BD12:BD13) -> 35073.254 | BE11: =+SUM(BE12:BE13) -> 35719.31 | BF11: =+SUM(BF12:BF13) -> 37846.546 | BG11: =+SUM(BG12:BG13) -> 33410.809 | BH11: =+SUM(BH12:BH13) -> 37720.785 | BI11: =+SUM(BI12:BI13) -> 35016.936 | BJ11: =+SUM(BJ12:BJ13) -> 34739.603 | BK11: =+SUM(BK12:BK13) -> 36356.458 | BL11: =+SUM(BL12:BL13) -> 33592.863 | BM11: =+SUM(BM12:BM13) -> 36534.074 | BN11: =+SUM(BN12:BN13) -> 36404.594 | BO11: =+SUM(BO12:BO13) -> 36175.18 | BP11: =+SUM(BP12:BP13) -> 35073.254 | BQ11: =+SUM(BQ12:BQ13) -> 35719.31 | BR11: =+SUM(BR12:BR13) -> 37846.546 | BS11: =+SUM(BS12:BS13) -> 33410.809 | BT11: =+SUM(BT12:BT13) -> 37720.785 | BU11: =+SUM(BU12:BU13) -> 35016.936 | BV11: =+SUM(BV12:BV13) -> 34739.603 | BW11: =+SUM(BW12:BW13) -> 36356.458 | BX11: =+SUM(BX12:BX13) -> 33592.863 | BY11: =+SUM(BY12:BY13) -> 36534.074 | BZ11: =+SUM(BZ12:BZ13) -> 36404.594 | CA11: =+SUM(CA12:CA13) -> 36175.18 | CB11: =+SUM(CB12:CB13) -> 35073.254 | CC11: =+SUM(CC12:CC13) -> 35719.31 | CD11: =+SUM(CD12:CD13) -> 37846.546 | CE11: =+SUM(CE12:CE13) -> 33410.809 | CG11: =+SUM(CG12:CG13) -> 7307.195 | CH11: =+SUM(CH12:CH13) -> 7336.303 | CI11: =+SUM(CI12:CI13) -> 7893.526 | CJ11: =+SUM(CJ12:CJ13) -> 7729.177 | CK11: =+SUM(CK12:CK13) -> 6560.698 | CL11: =+SUM(CL12:CL13) -> 28523.762 | CM11: =+SUM(CM12:CM13) -> 26917.246 | CN11: =+SUM(CN12:CN13) -> 28851.407 | CO11: =+SUM(CO12:CO13) -> 27767.887 | CP11: =+SUM(CP12:CP13) -> 29167.327 | CQ11: =+SUM(CQ12:CQ13) -> 27272.463 | CR11: =+SUM(CR12:CR13) -> 29540.36 | CS11: =+SUM(CS12:CS13) -> 27735.741 | CT11: =+SUM(CT12:CT13) -> 28274.149 | CU11: =+SUM(CU12:CU13) -> 30538.922 | CV11: =+SUM(CV12:CV13) -> 29039.052 | CW11: =+SUM(CW12:CW13) -> 25228.579 | CX11: =+SUM(CX12:CX13) -> 28523.762 | CY11: =+SUM(CY12:CY13) -> 26917.246 | CZ11: =+SUM(CZ12:CZ13) -> 28851.407 | DA11: =+SUM(DA12:DA13) -> 27767.887 | DB11: =+SUM(DB12:DB13) -> 29167.327 | DC11: =+SUM(DC12:DC13) -> 27272.463 | DD11: =+SUM(DD12:DD13) -> 29540.36 | DE11: =+SUM(DE12:DE13) -> 27735.741 | DF11: =+SUM(DF12:DF13) -> 28274.149 | DG11: =+SUM(DG12:DG13) -> 30538.922 | DH11: =+SUM(DH12:DH13) -> 29039.052 | DI11: =+SUM(DI12:DI13) -> 26129.601 | DJ11: =+SUM(DJ12:DJ13) -> 28523.762 | DK11: =+SUM(DK12:DK13) -> 26917.246 | DL11: =+SUM(DL12:DL13) -> 28851.407 | DM11: =+SUM(DM12:DM13) -> 27767.887 | DN11: =+SUM(DN12:DN13) -> 29167.327 | DO11: =+SUM(DO12:DO13) -> 27272.463 | DP11: =+SUM(DP12:DP13) -> 29540.36 | DQ11: =+SUM(DQ12:DQ13) -> 27735.741 | DR11: =+SUM(DR12:DR13) -> 28274.149 | DS11: =+SUM(DS12:DS13) -> 30538.922 | DT11: =+SUM(DT12:DT13) -> 29039.052 | DU11: =+SUM(DU12:DU13) -> 25228.579 | DV11: =+SUM(DV12:DV13) -> 28523.762 | DW11: =+SUM(DW12:DW13) -> 26917.246 | DX11: =+SUM(DX12:DX13) -> 28851.407 | DY11: =+SUM(DY12:DY13) -> 27767.887 | DZ11: =+SUM(DZ12:DZ13) -> 29167.327 | EA11: =+SUM(EA12:EA13) -> 27272.463 | EB11: =+SUM(EB12:EB13) -> 29540.36 | EC11: =+SUM(EC12:EC13) -> 27735.741 | ED11: =+SUM(ED12:ED13) -> 28274.149 | EE11: =+SUM(EE12:EE13) -> 30538.922 | EF11: =+SUM(EF12:EF13) -> 29039.052 | EG11: =+SUM(EG12:EG13) -> 25228.579 | EH11: =+SUM(EH12:EH13) -> 28523.762 | EI11: =+SUM(EI12:EI13) -> 26917.246 | EJ11: =+SUM(EJ12:EJ13) -> 28851.407 | EK11: =+SUM(EK12:EK13) -> 27767.887 | EL11: =+SUM(EL12:EL13) -> 29167.327 | EM11: =+SUM(EM12:EM13) -> 27272.463 | EN11: =+SUM(EN12:EN13) -> 29540.36 | EO11: =+SUM(EO12:EO13) -> 27735.741 | EP11: =+SUM(EP12:EP13) -> 28274.149 | EQ11: =+SUM(EQ12:EQ13) -> 30538.922 | ER11: =+SUM(ER12:ER13) -> 29039.052 | ES11: =+SUM(ES12:ES13) -> 25228.579 | ET11: =+SUM(ET12:ET13) -> 28523.762 | EU11: =+SUM(EU12:EU13) -> 26917.246 | EV11: =+SUM(EV12:EV13) -> 28851.407 | EW11: =+SUM(EW12:EW13) -> 27767.887 | EX11: =+SUM(EX12:EX13) -> 29167.327 | EY11: =+SUM(EY12:EY13) -> 27272.463 | EZ11: =+SUM(EZ12:EZ13) -> 29540.36
B12: Smelter | D12: IND_SMT | E12: 421374.963 | F12: 657000.001 | G12: =+SUM(AJ12:AU12,DE12:DP12) -> 658800.001 | H12: 657000.001 | I12: 657000.001 | J12: 657000.001 | L12: 4297.143 | M12: 3988.79 | N12: 3956.09 | O12: 4161.554 | P12: 3848.015 | Q12: 31199.67 | R12: 31142.391 | S12: 31159.213 | T12: 29989.34 | U12: 30845.73 | V12: 32432.566 | W12: 28729.764 | X12: 32228.605 | Y12: 29915.951 | Z12: 29670.701 | AA12: 31211.688 | AB12: 28860.141 | AC12: 31199.67 | AD12: 31142.391 | AE12: 31159.213 | AF12: 29989.34 | AG12: 30845.73 | AH12: 32432.566 | AI12: 28729.764 | AJ12: 32228.605 | AK12: 29915.951 | AL12: 29670.701 | AM12: 31211.688 | AN12: 29890.859 | AO12: 31199.67 | AP12: 31142.391 | AQ12: 31159.213 | AR12: 29989.34 | AS12: 30845.73 | AT12: 32432.566 | AU12: 28729.764 | AV12: 32228.605 | AW12: 29915.951 | AX12: 29670.701 | AY12: 31211.688 | AZ12: 28860.141 | BA12: 31199.67 | BB12: 31142.391 | BC12: 31159.213 | BD12: 29989.34 | BE12: 30845.73 | BF12: 32432.566 | BG12: 28729.764 | BH12: 32228.605 | BI12: 29915.951 | BJ12: 29670.701 | BK12: 31211.688 | BL12: 28860.141 | BM12: 31199.67 | BN12: 31142.391 | BO12: 31159.213 | BP12: 29989.34 | BQ12: 30845.73 | BR12: 32432.566 | BS12: 28729.764 | BT12: 32228.605 | BU12: 29915.951 | BV12: 29670.701 | BW12: 31211.688 | BX12: 28860.141 | BY12: 31199.67 | BZ12: 31142.391 | CA12: 31159.213 | CB12: 29989.34 | CC12: 30845.73 | CD12: 32432.566 | CE12: 28729.764 | CG12: 3142.849 | CH12: 3221.203 | CI12: 3483.903 | CJ12: 3278.438 | CK12: 2871.978 | CL12: 24525.33 | CM12: 22857.609 | CN12: 24640.787 | CO12: 24010.66 | CP12: 24954.27 | CQ12: 23367.434 | CR12: 25270.236 | CS12: 23571.395 | CT12: 24159.049 | CU12: 26129.299 | CV12: 24588.313 | CW12: 21539.859 | CX12: 24525.33 | CY12: 22857.609 | CZ12: 24640.787 | DA12: 24010.66 | DB12: 24954.27 | DC12: 23367.434 | DD12: 25270.236 | DE12: 23571.395 | DF12: 24159.049 | DG12: 26129.299 | DH12: 24588.313 | DI12: 22309.141 | DJ12: 24525.33 | DK12: 22857.609 | DL12: 24640.787 | DM12: 24010.66 | DN12: 24954.27 | DO12: 23367.434 | DP12: 25270.236 | DQ12: 23571.395 | DR12: 24159.049 | DS12: 26129.299 | DT12: 24588.313 | DU12: 21539.859 | DV12: 24525.33 | DW12: 22857.609 | DX12: 24640.787 | DY12: 24010.66 | DZ12: 24954.27 | EA12: 23367.434 | EB12: 25270.236 | EC12: 23571.395 | ED12: 24159.049 | EE12: 26129.299 | EF12: 24588.313 | EG12: 21539.859 | EH12: 24525.33 | EI12: 22857.609 | EJ12: 24640.787 | EK12: 24010.66 | EL12: 24954.27 | EM12: 23367.434 | EN12: 25270.236 | EO12: 23571.395 | EP12: 24159.049 | EQ12: 26129.299 | ER12: 24588.313 | ES12: 21539.859 | ET12: 24525.33 | EU12: 22857.609 | EV12: 24640.787 | EW12: 24010.66 | EX12: 24954.27 | EY12: 23367.434 | EZ12: 25270.236
B13: Other Industrial | D13: IND_OTH | E13: 110447.306 | F13: 110447.306 | G13: 110748.072 | H13: 110447.306 | I13: 110447.306 | J13: 110447.306 | L13: 5492.18 | M13: 5100.985 | N13: 5068.902 | O13: 5144.77 | P13: 4732.722 | Q13: 5334.404 | R13: 5262.203 | S13: 5015.967 | T13: 5083.914 | U13: 4873.58 | V13: 5413.98 | W13: 4681.045 | X13: 5492.18 | Y13: 5100.985 | Z13: 5068.902 | AA13: 5144.77 | AB13: 4732.722 | AC13: 5334.404 | AD13: 5262.203 | AE13: 5015.967 | AF13: 5083.914 | AG13: 4873.58 | AH13: 5413.98 | AI13: 4681.045 | AJ13: 5492.18 | AK13: 5100.985 | AL13: 5068.902 | AM13: 5144.77 | AN13: 4901.748 | AO13: 5334.404 | AP13: 5262.203 | AQ13: 5015.967 | AR13: 5083.914 | AS13: 4873.58 | AT13: 5413.98 | AU13: 4681.045 | AV13: 5492.18 | AW13: 5100.985 | AX13: 5068.902 | AY13: 5144.77 | AZ13: 4732.722 | BA13: 5334.404 | BB13: 5262.203 | BC13: 5015.967 | BD13: 5083.914 | BE13: 4873.58 | BF13: 5413.98 | BG13: 4681.045 | BH13: 5492.18 | BI13: 5100.985 | BJ13: 5068.902 | BK13: 5144.77 | BL13: 4732.722 | BM13: 5334.404 | BN13: 5262.203 | BO13: 5015.967 | BP13: 5083.914 | BQ13: 4873.58 | BR13: 5413.98 | BS13: 4681.045 | BT13: 5492.18 | BU13: 5100.985 | BV13: 5068.902 | BW13: 5144.77 | BX13: 4732.722 | BY13: 5334.404 | BZ13: 5262.203 | CA13: 5015.967 | CB13: 5083.914 | CC13: 4873.58 | CD13: 5413.98 | CE13: 4681.045 | CG13: 4164.346 | CH13: 4115.1 | CI13: 4409.623 | CJ13: 4450.739 | CK13: 3688.72 | CL13: 3998.432 | CM13: 4059.637 | CN13: 4210.62 | CO13: 3757.227 | CP13: 4213.057 | CQ13: 3905.029 | CR13: 4270.124 | CS13: 4164.346 | CT13: 4115.1 | CU13: 4409.623 | CV13: 4450.739 | CW13: 3688.72 | CX13: 3998.432 | CY13: 4059.637 | CZ13: 4210.62 | DA13: 3757.227 | DB13: 4213.057 | DC13: 3905.029 | DD13: 4270.124 | DE13: 4164.346 | DF13: 4115.1 | DG13: 4409.623 | DH13: 4450.739 | DI13: 3820.46 | DJ13: 3998.432 | DK13: 4059.637 | DL13: 4210.62 | DM13: 3757.227 | DN13: 4213.057 | DO13: 3905.029 | DP13: 4270.124 | DQ13: 4164.346 | DR13: 4115.1 | DS13: 4409.623 | DT13: 4450.739 | DU13: 3688.72 | DV13: 3998.432 | DW13: 4059.637 | DX13: 4210.62 | DY13: 3757.227 | DZ13: 4213.057 | EA13: 3905.029 | EB13: 4270.124 | EC13: 4164.346 | ED13: 4115.1 | EE13: 4409.623 | EF13: 4450.739 | EG13: 3688.72 | EH13: 3998.432 | EI13: 4059.637 | EJ13: 4210.62 | EK13: 3757.227 | EL13: 4213.057 | EM13: 3905.029 | EN13: 4270.124 | EO13: 4164.346 | EP13: 4115.1 | EQ13: 4409.623 | ER13: 4450.739 | ES13: 3688.72 | ET13: 3998.432 | EU13: 4059.637 | EV13: 4210.62 | EW13: 3757.227 | EX13: 4213.057 | EY13: 3905.029 | EZ13: 4270.124
A14: New Resource | D14: NR | E14: 8.76 | F14: 8.76 | G14: 8.784 | H14: 8.76 | I14: 8.76 | J14: 8.76 | L14: 0.416 | M14: 0.4 | N14: 0.4 | O14: 0.416 | P14: 0.384 | Q14: 0.432 | R14: 0.4 | S14: 0.416 | T14: 0.416 | U14: 0.4 | V14: 0.432 | W14: 0.384 | X14: 0.432 | Y14: 0.4 | Z14: 0.4 | AA14: 0.416 | AB14: 0.384 | AC14: 0.416 | AD14: 0.416 | AE14: 0.416 | AF14: 0.4 | AG14: 0.416 | AH14: 0.432 | AI14: 0.384 | AJ14: 0.432 | AK14: 0.4 | AL14: 0.4 | AM14: 0.416 | AN14: 0.4 | AO14: 0.416 | AP14: 0.416 | AQ14: 0.4 | AR14: 0.416 | AS14: 0.416 | AT14: 0.416 | AU14: 0.4 | AV14: 0.432 | AW14: 0.384 | AX14: 0.416 | AY14: 0.4 | AZ14: 0.384 | BA14: 0.432 | BB14: 0.416 | BC14: 0.4 | BD14: 0.416 | BE14: 0.416 | BF14: 0.416 | BG14: 0.4 | BH14: 0.416 | BI14: 0.4 | BJ14: 0.416 | BK14: 0.4 | BL14: 0.384 | BM14: 0.432 | BN14: 0.416 | BO14: 0.4 | BP14: 0.416 | BQ14: 0.4 | BR14: 0.432 | BS14: 0.4 | BT14: 0.416 | BU14: 0.4 | BV14: 0.416 | BW14: 0.4 | BX14: 0.384 | BY14: 0.432 | BZ14: 0.4 | CA14: 0.416 | CB14: 0.416 | CC14: 0.4 | CD14: 0.432 | CE14: 0.4 | CG14: 0.328 | CH14: 0.321 | CI14: 0.344 | CJ14: 0.328 | CK14: 0.288 | CL14: 0.311 | CM14: 0.32 | CN14: 0.328 | CO14: 0.304 | CP14: 0.344 | CQ14: 0.312 | CR14: 0.336 | CS14: 0.312 | CT14: 0.321 | CU14: 0.344 | CV14: 0.328 | CW14: 0.288 | CX14: 0.327 | CY14: 0.304 | CZ14: 0.328 | DA14: 0.32 | DB14: 0.328 | DC14: 0.312 | DD14: 0.336 | DE14: 0.312 | DF14: 0.321 | DG14: 0.344 | DH14: 0.328 | DI14: 0.296 | DJ14: 0.327 | DK14: 0.304 | DL14: 0.344 | DM14: 0.304 | DN14: 0.328 | DO14: 0.328 | DP14: 0.32 | DQ14: 0.312 | DR14: 0.337 | DS14: 0.328 | DT14: 0.344 | DU14: 0.288 | DV14: 0.311 | DW14: 0.304 | DX14: 0.344 | DY14: 0.304 | DZ14: 0.328 | EA14: 0.328 | EB14: 0.32 | EC14: 0.328 | ED14: 0.321 | EE14: 0.328 | EF14: 0.344 | EG14: 0.288 | EH14: 0.311 | EI14: 0.304 | EJ14: 0.344 | EK14: 0.304 | EL14: 0.344 | EM14: 0.312 | EN14: 0.32 | EO14: 0.328 | EP14: 0.321 | EQ14: 0.328 | ER14: 0.344 | ES14: 0.288 | ET14: 0.311 | EU14: 0.32 | EV14: 0.328 | EW14: 0.304 | EX14: 0.344 | EY14: 0.312 | EZ14: 0.32
A15: Firm Power and Services | D15: FPS | E15: =+SUM(E16,E27,E38) -> 6550571.737 | F15: =+SUM(F16,F27,F38) -> 6321395.547 | G15: 5844643.38 | H15: 5797867.719 | I15: 5794700.154 | J15: 5794700.313 | L15: =+SUM(L16,L27,L38) -> 381733.8919 | M15: =+SUM(M16,M27,M38) -> 395589.5631 | N15: =+SUM(N16,N27,N38) -> 406268.567 | O15: =+SUM(O16,O27,O38) -> 407759.5746 | P15: =+SUM(P16,P27,P38) -> 369273.3973 | Q15: =+SUM(Q16,Q27,Q38) -> 398412.2738 | R15: =+SUM(R16,R27,R38) -> 454554.4562 | S15: =+SUM(S16,S27,S38) -> 495546.1567 | T15: =+SUM(T16,T27,T38) -> 482320.5536 | U15: =+SUM(U16,U27,U38) -> 500494.2777 | V15: =+SUM(V16,V27,V38) -> 497456.5086 | W15: =+SUM(W16,W27,W38) -> 411330.3389 | X15: =+SUM(X16,X27,X38) -> 382760.448 | Y15: =+SUM(Y16,Y27,Y38) -> 391754.3631 | Z15: =+SUM(Z16,Z27,Z38) -> 402315.367 | AA15: =+SUM(AA16,AA27,AA38) -> 403806.7426 | AB15: =+SUM(AB16,AB27,AB38) -> 365702.9653 | AC15: =+SUM(AC16,AC27,AC38) -> 390581.6852 | AD15: =+SUM(AD16,AD27,AD38) -> 464072.2926 | AE15: =+SUM(AE16,AE27,AE38) -> 491601.2287 | AF15: =+SUM(AF16,AF27,AF38) -> 464370.7828 | AG15: =+SUM(AG16,AG27,AG38) -> 512569.6893 | AH15: =+SUM(AH16,AH27,AH38) -> 490177.3086 | AI15: =+SUM(AI16,AI27,AI38) -> 404298.9149 | AJ15: =+SUM(AJ16,AJ27,AJ38) -> 374558.4448 | AK15: =+SUM(AK16,AK27,AK38) -> 344908.5839 | AL15: =+SUM(AL16,AL27,AL38) -> 349675.2552 | AM15: =+SUM(AM16,AM27,AM38) -> 352765.1349 | AN15: =+SUM(AN16,AN27,AN38) -> 330384.9963 | AO15: =+SUM(AO16,AO27,AO38) -> 361038.6819 | AP15: =+SUM(AP16,AP27,AP38) -> 435755.7881 | AQ15: =+SUM(AQ16,AQ27,AQ38) -> 467080.6528 | AR15: =+SUM(AR16,AR27,AR38) -> 471002.4667 | AS15: =+SUM(AS16,AS27,AS38) -> 508501.5739 | AT15: =+SUM(AT16,AT27,AT38) -> 494717.1267 | AU15: =+SUM(AU16,AU27,AU38) -> 418165.2456 | AV15: =+SUM(AV16,AV27,AV38) -> 374555.4208 | AW15: =+SUM(AW16,AW27,AW38) -> 341311.7529 | AX15: =+SUM(AX16,AX27,AX38) -> 349817.2772 | AY15: =+SUM(AY16,AY27,AY38) -> 350675.0669 | AZ15: =+SUM(AZ16,AZ27,AZ38) -> 317669.6763 | BA15: =+SUM(BA16,BA27,BA38) -> 364486.7749 | BB15: =+SUM(BB16,BB27,BB38) -> 433758.9881 | BC15: =+SUM(BC16,BC27,BC38) -> 464875.8528 | BD15: =+SUM(BD16,BD27,BD38) -> 469282.3067 | BE15: =+SUM(BE16,BE27,BE38) -> 505755.5579 | BF15: =+SUM(BF16,BF27,BF38) -> 493165.0307 | BG15: =+SUM(BG16,BG27,BG38) -> 416605.2456 | BH15: =+SUM(BH16,BH27,BH38) -> 367507.4278 | BI15: =+SUM(BI16,BI27,BI38) -> 342791.3839 | BJ15: =+SUM(BJ16,BJ27,BJ38) -> 349817.2772 | BK15: =+SUM(BK16,BK27,BK38) -> 350675.0669 | BL15: =+SUM(BL16,BL27,BL38) -> 317669.6763 | BM15: =+SUM(BM16,BM27,BM38) -> 364486.7749 | BN15: =+SUM(BN16,BN27,BN38) -> 433758.9881 | BO15: =+SUM(BO16,BO27,BO38) -> 464875.8528 | BP15: =+SUM(BP16,BP27,BP38) -> 469282.3067 | BQ15: =+SUM(BQ16,BQ27,BQ38) -> 488330.9979 | BR15: =+SUM(BR16,BR27,BR38) -> 506634.0047 | BS15: =+SUM(BS16,BS27,BS38) -> 416605.2456 | BT15: =+SUM(BT16,BT27,BT38) -> 367507.4278 | BU15: =+SUM(BU16,BU27,BU38) -> 342791.3839 | BV15: =+SUM(BV16,BV27,BV38) -> 349817.2772 | BW15: =+SUM(BW16,BW27,BW38) -> 350675.0669 | BX15: =+SUM(BX16,BX27,BX38) -> 317669.6763 | BY15: =+SUM(BY16,BY27,BY38) -> 364486.7749 | BZ15: =+SUM(BZ16,BZ27,BZ38) -> 419520.6331 | CA15: =+SUM(CA16,CA27,CA38) -> 480967.4288 | CB15: =+SUM(CB16,CB27,CB38) -> 469282.3067 | CC15: =+SUM(CC16,CC27,CC38) -> 488330.9979 | CD15: =+SUM(CD16,CD27,CD38) -> 506634.0047 | CE15: =+SUM(CE16,CE27,CE38) -> 416605.2456 | CG15: =+SUM(CG16,CG27,CG38) -> 77440.08103 | CH15: =+SUM(CH16,CH27,CH38) -> 66249.66502 | CI15: =+SUM(CI16,CI27,CI38) -> 66913.20384 | CJ15: =+SUM(CJ16,CJ27,CJ38) -> 58044.77409 | CK15: =+SUM(CK16,CK27,CK38) -> 52119.82027 | CL15: =+SUM(CL16,CL27,CL38) -> 65332.69876 | CM15: =+SUM(CM16,CM27,CM38) -> 141790.1904 | CN15: =+SUM(CN16,CN27,CN38) -> 139450.6596 | CO15: =+SUM(CO16,CO27,CO38) -> 147513.692 | CP15: =+SUM(CP16,CP27,CP38) -> 201348.3057 | CQ15: =+SUM(CQ16,CQ27,CQ38) -> 188859.2361 | CR15: =+SUM(CR16,CR27,CR38) -> 144769.8506 | CS15: =+SUM(CS16,CS27,CS38) -> 71454.63309 | CT15: =+SUM(CT16,CT27,CT38) -> 66310.80589 | CU15: =+SUM(CU16,CU27,CU38) -> 67045.01088 | CV15: =+SUM(CV16,CV27,CV38) -> 56849.83401 | CW15: =+SUM(CW16,CW27,CW38) -> 51666.55435 | CX15: =+SUM(CX16,CX27,CX38) -> 54820.84627 | CY15: =+SUM(CY16,CY27,CY38) -> 104549.7801 | CZ15: =+SUM(CZ16,CZ27,CZ38) -> 113828.7461 | DA15: =+SUM(DA16,DA27,DA38) -> 133531.6392 | DB15: =+SUM(DB16,DB27,DB38) -> 155216.9038 | DC15: =+SUM(DC16,DC27,DC38) -> 159125.583 | DD15: =+SUM(DD16,DD27,DD38) -> 122983.4224 | DE15: =+SUM(DE16,DE27,DE38) -> 55271.5081 | DF15: =+SUM(DF16,DF27,DF38) -> 12524.61845 | DG15: =+SUM(DG16,DG27,DG38) -> 17671.18777 | DH15: =+SUM(DH16,DH27,DH38) -> 6761.91885 | DI15: =+SUM(DI16,DI27,DI38) -> 9071.8406 | DJ15: =+SUM(DJ16,DJ27,DJ38) -> 37591.99014 | DK15: =+SUM(DK16,DK27,DK38) -> 87734.45282 | DL15: =+SUM(DL16,DL27,DL38) -> 135544.2477 | DM15: =+SUM(DM16,DM27,DM38) -> 122329.9453 | DN15: =+SUM(DN16,DN27,DN38) -> 163512.9789 | DO15: =+SUM(DO16,DO27,DO38) -> 176419.3246 | DP15: =+SUM(DP16,DP27,DP38) -> 111655.4163 | DQ15: =+SUM(DQ16,DQ27,DQ38) -> 55266.5161 | DR15: =+SUM(DR16,DR27,DR38) -> 12207.40045 | DS15: =+SUM(DS16,DS27,DS38) -> 14901.01377 | DT15: =+SUM(DT16,DT27,DT38) -> 6329.93985 | DU15: =+SUM(DU16,DU27,DU38) -> 8282.482648 | DV15: =+SUM(DV16,DV27,DV38) -> 32475.07414 | DW15: =+SUM(DW16,DW27,DW38) -> 86328.45282 | DX15: =+SUM(DX16,DX27,DX38) -> 133994.1837 | DY15: =+SUM(DY16,DY27,DY38) -> 120471.8973 | DZ15: =+SUM(DZ16,DZ27,DZ38) -> 161537.1069 | EA15: =+SUM(EA16,EA27,EA38) -> 173977.3646 | EB15: =+SUM(EB16,EB27,EB38) -> 110137.3363 | EC15: =+SUM(EC16,EC27,EC38) -> 59034.5181 | ED15: =+SUM(ED16,ED27,ED38) -> 10839.68945 | EE15: =+SUM(EE16,EE27,EE38) -> 14901.01377 | EF15: =+SUM(EF16,EF27,EF38) -> 6329.93985 | EG15: =+SUM(EG16,EG27,EG38) -> 8282.482648 | EH15: =+SUM(EH16,EH27,EH38) -> 32475.07414 | EI15: =+SUM(EI16,EI27,EI38) -> 86328.45282 | EJ15: =+SUM(EJ16,EJ27,EJ38) -> 133994.1837 | EK15: =+SUM(EK16,EK27,EK38) -> 120471.8973 | EL15: =+SUM(EL16,EL27,EL38) -> 178961.7009 | EM15: =+SUM(EM16,EM27,EM38) -> 160508.8626 | EN15: =+SUM(EN16,EN27,EN38) -> 110137.3363 | EO15: =+SUM(EO16,EO27,EO38) -> 59034.5181 | EP15: =+SUM(EP16,EP27,EP38) -> 10839.68945 | EQ15: =+SUM(EQ16,EQ27,EQ38) -> 14901.01377 | ER15: =+SUM(ER16,ER27,ER38) -> 6329.93985 | ES15: =+SUM(ES16,ES27,ES38) -> 8282.482648 | ET15: =+SUM(ET16,ET27,ET38) -> 32475.07414 | EU15: =+SUM(EU16,EU27,EU38) -> 100566.9988 | EV15: =+SUM(EV16,EV27,EV38) -> 117902.5757 | EW15: =+SUM(EW16,EW27,EW38) -> 120471.8973 | EX15: =+SUM(EX16,EX27,EX38) -> 178961.7009 | EY15: =+SUM(EY16,EY27,EY38) -> 160508.8626 | EZ15: =+SUM(EZ16,EZ27,EZ38) -> 110137.3363
B16: Intraregional Transfer | D16: FPS_IRT | E16: =+SUM(E17:E26) -> 505326.4359 | F16: =+SUM(F17:F26) -> 505326.3299 | G16: 98652.31125 | H16: 98403.09228 | I16: 98403.09228 | J16: 98403.09228 | L16: =+SUM(L17:L26) -> 4740.994862 | M16: =+SUM(M17:M26) -> 45871.87207 | N16: =+SUM(N17:N26) -> 49432.04497 | O16: =+SUM(O17:O26) -> 49573.20061 | P16: =+SUM(P17:P26) -> 45659.72231 | Q16: =+SUM(Q17:Q26) -> 27154.98885 | R16: =+SUM(R17:R26) -> 26833.96821 | S16: =+SUM(S17:S26) -> 5301.976663 | T16: =+SUM(T17:T26) -> 5308.096579 | U16: =+SUM(U17:U26) -> 4835.715723 | V16: =+SUM(V17:V26) -> 5081.524587 | W16: =+SUM(W17:W26) -> 4190.470866 | X16: =+SUM(X17:X26) -> 4918.364041 | Y16: =+SUM(Y17:Y26) -> 45871.87207 | Z16: =+SUM(Z17:Z26) -> 49432.04497 | AA16: =+SUM(AA17:AA26) -> 49573.20061 | AB16: =+SUM(AB17:AB26) -> 45659.72231 | AC16: =+SUM(AC17:AC26) -> 26994.37218 | AD16: =+SUM(AD17:AD26) -> 26994.97656 | AE16: =+SUM(AE17:AE26) -> 5301.976663 | AF16: =+SUM(AF17:AF26) -> 5116.947779 | AG16: =+SUM(AG17:AG26) -> 5019.72829 | AH16: =+SUM(AH17:AH26) -> 5081.524587 | AI16: =+SUM(AI17:AI26) -> 4190.470866 | AJ16: =+SUM(AJ17:AJ26) -> 4893.388804 | AK16: =+SUM(AK17:AK26) -> 4309.147899 | AL16: =+SUM(AL17:AL26) -> 4368.251229 | AM16: =+SUM(AM17:AM26) -> 4489.9859 | AN16: =+SUM(AN17:AN26) -> 4217.746261 | AO16: =+SUM(AO17:AO26) -> 4490.120891 | AP16: =+SUM(AP17:AP26) -> 4513.110129 | AQ16: =+SUM(AQ17:AQ26) -> 5127.84482 | AR16: =+SUM(AR17:AR26) -> 5288.216721 | AS16: =+SUM(AS17:AS26) -> 4993.460868 | AT16: =+SUM(AT17:AT26) -> 4917.958693 | AU16: =+SUM(AU17:AU26) -> 4351.109588 | AV16: =+SUM(AV17:AV26) -> 4893.388804 | AW16: =+SUM(AW17:AW26) -> 4158.155899 | AX16: =+SUM(AX17:AX26) -> 4519.243229 | AY16: =+SUM(AY17:AY26) -> 4338.9939 | AZ16: =+SUM(AZ17:AZ26) -> 4051.480252 | BA16: =+SUM(BA17:BA26) -> 4641.112891 | BB16: =+SUM(BB17:BB26) -> 4513.110129 | BC16: =+SUM(BC17:BC26) -> 5127.84482 | BD16: =+SUM(BD17:BD26) -> 5288.216721 | BE16: =+SUM(BE17:BE26) -> 4993.460868 | BF16: =+SUM(BF17:BF26) -> 4917.958693 | BG16: =+SUM(BG17:BG26) -> 4351.109588 | BH16: =+SUM(BH17:BH26) -> 4742.396804 | BI16: =+SUM(BI17:BI26) -> 4309.147899 | BJ16: =+SUM(BJ17:BJ26) -> 4519.243229 | BK16: =+SUM(BK17:BK26) -> 4338.9939 | BL16: =+SUM(BL17:BL26) -> 4051.480252 | BM16: =+SUM(BM17:BM26) -> 4641.112891 | BN16: =+SUM(BN17:BN26) -> 4513.110129 | BO16: =+SUM(BO17:BO26) -> 5127.84482 | BP16: =+SUM(BP17:BP26) -> 5288.216721 | BQ16: =+SUM(BQ17:BQ26) -> 4842.468868 | BR16: =+SUM(BR17:BR26) -> 5068.950693 | BS16: =+SUM(BS17:BS26) -> 4351.109588 | BT16: =+SUM(BT17:BT26) -> 4742.396804 | BU16: =+SUM(BU17:BU26) -> 4309.147899 | BV16: =+SUM(BV17:BV26) -> 4519.243229 | BW16: =+SUM(BW17:BW26) -> 4338.9939 | BX16: =+SUM(BX17:BX26) -> 4051.480252 | BY16: =+SUM(BY17:BY26) -> 4641.112891 | BZ16: =+SUM(BZ17:BZ26) -> 4362.118129 | CA16: =+SUM(CA17:CA26) -> 5278.83682 | CB16: =+SUM(CB17:CB26) -> 5288.216721 | CC16: =+SUM(CC17:CC26) -> 4842.468868 | CD16: =+SUM(CD17:CD26) -> 5068.950693 | CE16: =+SUM(CE17:CE26) -> 4351.109588 | CG16: =+SUM(CG17:CG26) -> 3695.907871 | CH16: =+SUM(CH17:CH26) -> 43056.09591 | CI16: =+SUM(CI17:CI26) -> 42519.20988 | CJ16: =+SUM(CJ17:CJ26) -> 42340.35533 | CK16: =+SUM(CK17:CK26) -> 37232.19939 | CL16: =+SUM(CL17:CL26) -> 22169.98045 | CM16: =+SUM(CM17:CM26) -> 21055.44845 | CN16: =+SUM(CN17:CN26) -> 4113.615087 | CO16: =+SUM(CO17:CO26) -> 3820.016421 | CP16: =+SUM(CP17:CP26) -> 4093.485364 | CQ16: =+SUM(CQ17:CQ26) -> 3624.478043 | CR16: =+SUM(CR17:CR26) -> 3621.06744 | CS16: =+SUM(CS17:CS26) -> 3518.538692 | CT16: =+SUM(CT17:CT26) -> 43056.09591 | CU16: =+SUM(CU17:CU26) -> 42519.20988 | CV16: =+SUM(CV17:CV26) -> 42340.35533 | CW16: =+SUM(CW17:CW26) -> 37232.19939 | CX16: =+SUM(CX17:CX26) -> 22330.85911 | CY16: =+SUM(CY17:CY26) -> 20894.0721 | CZ16: =+SUM(CZ17:CZ26) -> 4113.615087 | DA16: =+SUM(DA17:DA26) -> 4011.165221 | DB16: =+SUM(DB17:DB26) -> 3909.472798 | DC16: =+SUM(DC17:DC26) -> 3624.478043 | DD16: =+SUM(DD17:DD26) -> 3621.06744 | DE16: =+SUM(DE17:DE26) -> 3541.971096 | DF16: =+SUM(DF17:DF26) -> 3306.452453 | DG16: =+SUM(DG17:DG26) -> 3577.722771 | DH16: =+SUM(DH17:DH26) -> 3394.06185 | DI16: =+SUM(DI17:DI26) -> 3009.6036 | DJ16: =+SUM(DJ17:DJ26) -> 3371.761141 | DK16: =+SUM(DK17:DK26) -> 3216.315821 | DL16: =+SUM(DL17:DL26) -> 4274.50373 | DM16: =+SUM(DM17:DM26) -> 3827.080279 | DN16: =+SUM(DN17:DN26) -> 3923.251882 | DO16: =+SUM(DO17:DO26) -> 3781.331557 | DP16: =+SUM(DP17:DP26) -> 3467.913262 | DQ16: =+SUM(DQ17:DQ26) -> 3541.971096 | DR16: =+SUM(DR17:DR26) -> 3457.444453 | DS16: =+SUM(DS17:DS26) -> 3426.730771 | DT16: =+SUM(DT17:DT26) -> 3545.05385 | DU16: =+SUM(DU17:DU26) -> 2926.650648 | DV16: =+SUM(DV17:DV26) -> 3220.769141 | DW16: =+SUM(DW17:DW26) -> 3216.315821 | DX16: =+SUM(DX17:DX26) -> 4274.50373 | DY16: =+SUM(DY17:DY26) -> 3827.080279 | DZ16: =+SUM(DZ17:DZ26) -> 3923.251882 | EA16: =+SUM(EA17:EA26) -> 3781.331557 | EB16: =+SUM(EB17:EB26) -> 3467.913262 | EC16: =+SUM(EC17:EC26) -> 3692.963096 | ED16: =+SUM(ED17:ED26) -> 3306.452453 | EE16: =+SUM(EE17:EE26) -> 3426.730771 | EF16: =+SUM(EF17:EF26) -> 3545.05385 | EG16: =+SUM(EG17:EG26) -> 2926.650648 | EH16: =+SUM(EH17:EH26) -> 3220.769141 | EI16: =+SUM(EI17:EI26) -> 3216.315821 | EJ16: =+SUM(EJ17:EJ26) -> 4274.50373 | EK16: =+SUM(EK17:EK26) -> 3827.080279 | EL16: =+SUM(EL17:EL26) -> 4074.243882 | EM16: =+SUM(EM17:EM26) -> 3630.339557 | EN16: =+SUM(EN17:EN26) -> 3467.913262 | EO16: =+SUM(EO17:EO26) -> 3692.963096 | EP16: =+SUM(EP17:EP26) -> 3306.452453 | EQ16: =+SUM(EQ17:EQ26) -> 3426.730771 | ER16: =+SUM(ER17:ER26) -> 3545.05385 | ES16: =+SUM(ES17:ES26) -> 2926.650648 | ET16: =+SUM(ET17:ET26) -> 3220.769141 | EU16: =+SUM(EU17:EU26) -> 3367.307821 | EV16: =+SUM(EV17:EV26) -> 4123.51173 | EW16: =+SUM(EW17:EW26) -> 3827.080279 | EX16: =+SUM(EX17:EX26) -> 4074.243882 | EY16: =+SUM(EY17:EY26) -> 3630.339557 | EZ16: =+SUM(EZ17:EZ26) -> 3467.913262
C17: WNP3 | D17: FPS_IRT_WNP | E17: 406900.392 | F17: 406900.286 | G17: 0 | H17: 0 | I17: 0 | J17: 0 | L17: 0 | M17: 41573.2 | N17: 45072 | O17: 45071.936 | P17: 41604.864 | Q17: 22518.864 | R17: 22485.2 | S17: 0 | T17: 0 | U17: 0 | V17: 0 | W17: 0 | X17: 0 | Y17: 41573.2 | Z17: 45072 | AA17: 45071.936 | AB17: 41604.864 | AC17: 22518.912 | AD17: 22484.8 | AE17: 0 | AF17: 0 | AG17: 0 | AH17: 0 | AI17: 0 | AJ17: 0 | AK17: 0 | AL17: 0 | AM17: 0 | AN17: 0 | AO17: 0 | AP17: 0 | AQ17: 0 | AR17: 0 | AS17: 0 | AT17: 0 | AU17: 0 | AV17: 0 | AW17: 0 | AX17: 0 | AY17: 0 | AZ17: 0 | BA17: 0 | BB17: 0 | BC17: 0 | BD17: 0 | BE17: 0 | BF17: 0 | BG17: 0 | BH17: 0 | BI17: 0 | BJ17: 0 | BK17: 0 | BL17: 0 | BM17: 0 | BN17: 0 | BO17: 0 | BP17: 0 | BQ17: 0 | BR17: 0 | BS17: 0 | BT17: 0 | BU17: 0 | BV17: 0 | BW17: 0 | BX17: 0 | BY17: 0 | BZ17: 0 | CA17: 0 | CB17: 0 | CC17: 0 | CD17: 0 | CE17: 0 | CG17: 0 | CH17: 39739.158 | CI17: 38941.144 | CJ17: 38941.144 | CK17: 34308.864 | CL17: 18957.938 | CM17: 17686.08 | CN17: 0 | CO17: 0 | CP17: 0 | CQ17: 0 | CR17: 0 | CS17: 0 | CT17: 39739.158 | CU17: 38941.144 | CV17: 38941.144 | CW17: 34308.864 | CX17: 18958.152 | CY17: 17686.112 | CZ17: 0 | DA17: 0 | DB17: 0 | DC17: 0 | DD17: 0 | DE17: 0 | DF17: 0 | DG17: 0 | DH17: 0 | DI17: 0 | DJ17: 0 | DK17: 0 | DL17: 0 | DM17: 0 | DN17: 0 | DO17: 0 | DP17: 0 | DQ17: 0 | DR17: 0 | DS17: 0 | DT17: 0 | DU17: 0 | DV17: 0 | DW17: 0 | DX17: 0 | DY17: 0 | DZ17: 0 | EA17: 0 | EB17: 0 | EC17: 0 | ED17: 0 | EE17: 0 | EF17: 0 | EG17: 0 | EH17: 0 | EI17: 0 | EJ17: 0 | EK17: 0 | EL17: 0 | EM17: 0 | EN17: 0 | EO17: 0 | EP17: 0 | EQ17: 0 | ER17: 0 | ES17: 0 | ET17: 0 | EU17: 0 | EV17: 0 | EW17: 0 | EX17: 0 | EY17: 0 | EZ17: 0
C18: Dittmer Station Service | D18: FPS_IRT_DIT | E18: 82668.12 | F18: 82668.12 | G18: 82894.608 | H18: 82668.12 | I18: 82668.12 | J18: 82668.12 | L18: 3925.792 | M18: 3774.8 | N18: 3774.8 | O18: 3925.792 | P18: 3623.808 | Q18: 4076.784 | R18: 3774.8 | S18: 3925.792 | T18: 3925.792 | U18: 3774.8 | V18: 4076.784 | W18: 3623.808 | X18: 4076.784 | Y18: 3774.8 | Z18: 3774.8 | AA18: 3925.792 | AB18: 3623.808 | AC18: 3925.792 | AD18: 3925.792 | AE18: 3925.792 | AF18: 3774.8 | AG18: 3925.792 | AH18: 4076.784 | AI18: 3623.808 | AJ18: 4076.784 | AK18: 3774.8 | AL18: 3774.8 | AM18: 3925.792 | AN18: 3774.8 | AO18: 3925.792 | AP18: 3925.792 | AQ18: 3774.8 | AR18: 3925.792 | AS18: 3925.792 | AT18: 3925.792 | AU18: 3774.8 | AV18: 4076.784 | AW18: 3623.808 | AX18: 3925.792 | AY18: 3774.8 | AZ18: 3623.808 | BA18: 4076.784 | BB18: 3925.792 | BC18: 3774.8 | BD18: 3925.792 | BE18: 3925.792 | BF18: 3925.792 | BG18: 3774.8 | BH18: 3925.792 | BI18: 3774.8 | BJ18: 3925.792 | BK18: 3774.8 | BL18: 3623.808 | BM18: 4076.784 | BN18: 3925.792 | BO18: 3774.8 | BP18: 3925.792 | BQ18: 3774.8 | BR18: 4076.784 | BS18: 3774.8 | BT18: 3925.792 | BU18: 3774.8 | BV18: 3925.792 | BW18: 3774.8 | BX18: 3623.808 | BY18: 4076.784 | BZ18: 3774.8 | CA18: 3925.792 | CB18: 3925.792 | CC18: 3774.8 | CD18: 4076.784 | CE18: 3774.8 | CG18: 3095.336 | CH18: 3029.277 | CI18: 3246.328 | CJ18: 3095.336 | CK18: 2717.856 | CL18: 2934.907 | CM18: 3019.84 | CN18: 3095.336 | CO18: 2868.848 | CP18: 3246.328 | CQ18: 2944.344 | CR18: 3170.832 | CS18: 2944.344 | CT18: 3029.277 | CU18: 3246.328 | CV18: 3095.336 | CW18: 2717.856 | CX18: 3085.899 | CY18: 2868.848 | CZ18: 3095.336 | DA18: 3019.84 | DB18: 3095.336 | DC18: 2944.344 | DD18: 3170.832 | DE18: 2944.344 | DF18: 3029.277 | DG18: 3246.328 | DH18: 3095.336 | DI18: 2793.352 | DJ18: 3085.899 | DK18: 2868.848 | DL18: 3246.328 | DM18: 2868.848 | DN18: 3095.336 | DO18: 3095.336 | DP18: 3019.84 | DQ18: 2944.344 | DR18: 3180.269 | DS18: 3095.336 | DT18: 3246.328 | DU18: 2717.856 | DV18: 2934.907 | DW18: 2868.848 | DX18: 3246.328 | DY18: 2868.848 | DZ18: 3095.336 | EA18: 3095.336 | EB18: 3019.84 | EC18: 3095.336 | ED18: 3029.277 | EE18: 3095.336 | EF18: 3246.328 | EG18: 2717.856 | EH18: 2934.907 | EI18: 2868.848 | EJ18: 3246.328 | EK18: 2868.848 | EL18: 3246.328 | EM18: 2944.344 | EN18: 3019.84 | EO18: 3095.336 | EP18: 3029.277 | EQ18: 3095.336 | ER18: 3246.328 | ES18: 2717.856 | ET18: 2934.907 | EU18: 3019.84 | EV18: 3095.336 | EW18: 2868.848 | EX18: 3246.328 | EY18: 2944.344 | EZ18: 3019.84
C19: Transfer Gen Losses | D19: FPS_IRT_TGL | E19: 15757.92392 | F19: 15757.92392 | G19: 15757.70325 | H19: 15734.97228 | I19: 15734.97228 | J19: 15734.97228 | L19: 815.202862 | M19: 523.8720699 | N19: 585.2449698 | O19: 575.4726069 | P19: 431.0503121 | Q19: 559.3408458 | R19: 573.9682086 | S19: 1376.184663 | T19: 1382.304579 | U19: 1060.915723 | V19: 1004.740587 | W19: 566.6628661 | X19: 841.5800412 | Y19: 523.8720699 | Z19: 585.2449698 | AA19: 575.4726069 | AB19: 431.0503121 | AC19: 549.6681834 | AD19: 584.384555 | AE19: 1376.184663 | AF19: 1342.147779 | AG19: 1093.93629 | AH19: 1004.740587 | AI19: 566.6628661 | AJ19: 816.6048041 | AK19: 534.3478991 | AL19: 593.4512286 | AM19: 564.1939003 | AN19: 442.946261 | AO19: 564.328891 | AP19: 587.3181292 | AQ19: 1353.04482 | AR19: 1362.424721 | AS19: 1067.668868 | AT19: 992.1666934 | AU19: 576.3095875 | AV19: 816.6048041 | AW19: 534.3478991 | AX19: 593.4512286 | AY19: 564.1939003 | AZ19: 427.6722521 | BA19: 564.328891 | BB19: 587.3181292 | BC19: 1353.04482 | BD19: 1362.424721 | BE19: 1067.668868 | BF19: 992.1666934 | BG19: 576.3095875 | BH19: 816.6048041 | BI19: 534.3478991 | BJ19: 593.4512286 | BK19: 564.1939003 | BL19: 427.6722521 | BM19: 564.328891 | BN19: 587.3181292 | BO19: 1353.04482 | BP19: 1362.424721 | BQ19: 1067.668868 | BR19: 992.1666934 | BS19: 576.3095875 | BT19: 816.6048041 | BU19: 534.3478991 | BV19: 593.4512286 | BW19: 564.1939003 | BX19: 427.6722521 | BY19: 564.328891 | BZ19: 587.3181292 | CA19: 1353.04482 | CB19: 1362.424721 | CC19: 1067.668868 | CD19: 992.1666934 | CE19: 576.3095875 | CG19: 600.5718708 | CH19: 287.660908 | CI19: 331.7378802 | CJ19: 303.8753327 | CK19: 205.4793863 | CL19: 277.1354466 | CM19: 349.5284474 | CN19: 1018.279087 | CO19: 951.1684208 | CP19: 847.1573643 | CQ19: 680.1340433 | CR19: 450.2354399 | CS19: 574.1946916 | CT19: 287.660908 | CU19: 331.7378802 | CV19: 303.8753327 | CW19: 205.4793863 | CX19: 286.808109 | CY19: 339.112101 | CZ19: 1018.279087 | DA19: 991.3252208 | DB19: 814.1367979 | DC19: 680.1340433 | DD19: 450.2354399 | DE19: 597.6270959 | DF19: 277.1754534 | DG19: 331.3947714 | DH19: 298.7258497 | DI19: 216.2515997 | DJ19: 285.8621411 | DK19: 347.4678208 | DL19: 1028.17573 | DM19: 958.2322788 | DN19: 827.9158819 | DO19: 685.9955566 | DP19: 448.0732625 | DQ19: 597.6270959 | DR19: 277.1754534 | DS19: 331.3947714 | DT19: 298.7258497 | DU19: 208.7946479 | DV19: 285.8621411 | DW19: 347.4678208 | DX19: 1028.17573 | DY19: 958.2322788 | DZ19: 827.9158819 | EA19: 685.9955566 | EB19: 448.0732625 | EC19: 597.6270959 | ED19: 277.1754534 | EE19: 331.3947714 | EF19: 298.7258497 | EG19: 208.7946479 | EH19: 285.8621411 | EI19: 347.4678208 | EJ19: 1028.17573 | EK19: 958.2322788 | EL19: 827.9158819 | EM19: 685.9955566 | EN19: 448.0732625 | EO19: 597.6270959 | EP19: 277.1754534 | EQ19: 331.3947714 | ER19: 298.7258497 | ES19: 208.7946479 | ET19: 285.8621411 | EU19: 347.4678208 | EV19: 1028.17573 | EW19: 958.2322788 | EX19: 827.9158819 | EY19: 685.9955566 | EZ19: 448.0732625
E20: 0 | F20: 0 | G20: 0 | H20: 0 | I20: 0 | J20: 0 | L20: 0 | M20: 0 | N20: 0 | O20: 0 | P20: 0 | Q20: 0 | R20: 0 | S20: 0 | T20: 0 | U20: 0 | V20: 0 | W20: 0 | X20: 0 | Y20: 0 | Z20: 0 | AA20: 0 | AB20: 0 | AC20: 0 | AD20: 0 | AE20: 0 | AF20: 0 | AG20: 0 | AH20: 0 | AI20: 0 | AJ20: 0 | AK20: 0 | AL20: 0 | AM20: 0 | AN20: 0 | AO20: 0 | AP20: 0 | AQ20: 0 | AR20: 0 | AS20: 0 | AT20: 0 | AU20: 0 | AV20: 0 | AW20: 0 | AX20: 0 | AY20: 0 | AZ20: 0 | BA20: 0 | BB20: 0 | BC20: 0 | BD20: 0 | BE20: 0 | BF20: 0 | BG20: 0 | BH20: 0 | BI20: 0 | BJ20: 0 | BK20: 0 | BL20: 0 | BM20: 0 | BN20: 0 | BO20: 0 | BP20: 0 | BQ20: 0 | BR20: 0 | BS20: 0 | BT20: 0 | BU20: 0 | BV20: 0 | BW20: 0 | BX20: 0 | BY20: 0 | BZ20: 0 | CA20: 0 | CB20: 0 | CC20: 0 | CD20: 0 | CE20: 0 | CG20: 0 | CH20: 0 | CI20: 0 | CJ20: 0 | CK20: 0 | CL20: 0 | CM20: 0 | CN20: 0 | CO20: 0 | CP20: 0 | CQ20: 0 | CR20: 0 | CS20: 0 | CT20: 0 | CU20: 0 | CV20: 0 | CW20: 0 | CX20: 0 | CY20: 0 | CZ20: 0 | DA20: 0 | DB20: 0 | DC20: 0 | DD20: 0 | DE20: 0 | DF20: 0 | DG20: 0 | DH20: 0 | DI20: 0 | DJ20: 0 | DK20: 0 | DL20: 0 | DM20: 0 | DN20: 0 | DO20: 0 | DP20: 0 | DQ20: 0 | DR20: 0 | DS20: 0 | DT20: 0 | DU20: 0 | DV20: 0 | DW20: 0 | DX20: 0 | DY20: 0 | DZ20: 0 | EA20: 0 | EB20: 0 | EC20: 0 | ED20: 0 | EE20: 0 | EF20: 0 | EG20: 0 | EH20: 0 | EI20: 0 | EJ20: 0 | EK20: 0 | EL20: 0 | EM20: 0 | EN20: 0 | EO20: 0 | EP20: 0 | EQ20: 0 | ER20: 0 | ES20: 0 | ET20: 0 | EU20: 0 | EV20: 0 | EW20: 0 | EX20: 0 | EY20: 0 | EZ20: 0
E21: 0 | F21: 0 | G21: 0 | H21: 0 | I21: 0 | J21: 0 | L21: 0 | M21: 0 | N21: 0 | O21: 0 | P21: 0 | Q21: 0 | R21: 0 | S21: 0 | T21: 0 | U21: 0 | V21: 0 | W21: 0 | X21: 0 | Y21: 0 | Z21: 0 | AA21: 0 | AB21: 0 | AC21: 0 | AD21: 0 | AE21: 0 | AF21: 0 | AG21: 0 | AH21: 0 | AI21: 0 | AJ21: 0 | AK21: 0 | AL21: 0 | AM21: 0 | AN21: 0 | AO21: 0 | AP21: 0 | AQ21: 0 | AR21: 0 | AS21: 0 | AT21: 0 | AU21: 0 | AV21: 0 | AW21: 0 | AX21: 0 | AY21: 0 | AZ21: 0 | BA21: 0 | BB21: 0 | BC21: 0 | BD21: 0 | BE21: 0 | BF21: 0 | BG21: 0 | BH21: 0 | BI21: 0 | BJ21: 0 | BK21: 0 | BL21: 0 | BM21: 0 | BN21: 0 | BO21: 0 | BP21: 0 | BQ21: 0 | BR21: 0 | BS21: 0 | BT21: 0 | BU21: 0 | BV21: 0 | BW21: 0 | BX21: 0 | BY21: 0 | BZ21: 0 | CA21: 0 | CB21: 0 | CC21: 0 | CD21: 0 | CE21: 0 | CG21: 0 | CH21: 0 | CI21: 0 | CJ21: 0 | CK21: 0 | CL21: 0 | CM21: 0 | CN21: 0 | CO21: 0 | CP21: 0 | CQ21: 0 | CR21: 0 | CS21: 0 | CT21: 0 | CU21: 0 | CV21: 0 | CW21: 0 | CX21: 0 | CY21: 0 | CZ21: 0 | DA21: 0 | DB21: 0 | DC21: 0 | DD21: 0 | DE21: 0 | DF21: 0 | DG21: 0 | DH21: 0 | DI21: 0 | DJ21: 0 | DK21: 0 | DL21: 0 | DM21: 0 | DN21: 0 | DO21: 0 | DP21: 0 | DQ21: 0 | DR21: 0 | DS21: 0 | DT21: 0 | DU21: 0 | DV21: 0 | DW21: 0 | DX21: 0 | DY21: 0 | DZ21: 0 | EA21: 0 | EB21: 0 | EC21: 0 | ED21: 0 | EE21: 0 | EF21: 0 | EG21: 0 | EH21: 0 | EI21: 0 | EJ21: 0 | EK21: 0 | EL21: 0 | EM21: 0 | EN21: 0 | EO21: 0 | EP21: 0 | EQ21: 0 | ER21: 0 | ES21: 0 | ET21: 0 | EU21: 0 | EV21: 0 | EW21: 0 | EX21: 0 | EY21: 0 | EZ21: 0
E22: 0 | F22: 0 | G22: 0 | H22: 0 | I22: 0 | J22: 0 | L22: 0 | M22: 0 | N22: 0 | O22: 0 | P22: 0 | Q22: 0 | R22: 0 | S22: 0 | T22: 0 | U22: 0 | V22: 0 | W22: 0 | X22: 0 | Y22: 0 | Z22: 0 | AA22: 0 | AB22: 0 | AC22: 0 | AD22: 0 | AE22: 0 | AF22: 0 | AG22: 0 | AH22: 0 | AI22: 0 | AJ22: 0 | AK22: 0 | AL22: 0 | AM22: 0 | AN22: 0 | AO22: 0 | AP22: 0 | AQ22: 0 | AR22: 0 | AS22: 0 | AT22: 0 | AU22: 0 | AV22: 0 | AW22: 0 | AX22: 0 | AY22: 0 | AZ22: 0 | BA22: 0 | BB22: 0 | BC22: 0 | BD22: 0 | BE22: 0 | BF22: 0 | BG22: 0 | BH22: 0 | BI22: 0 | BJ22: 0 | BK22: 0 | BL22: 0 | BM22: 0 | BN22: 0 | BO22: 0 | BP22: 0 | BQ22: 0 | BR22: 0 | BS22: 0 | BT22: 0 | BU22: 0 | BV22: 0 | BW22: 0 | BX22: 0 | BY22: 0 | BZ22: 0 | CA22: 0 | CB22: 0 | CC22: 0 | CD22: 0 | CE22: 0 | CG22: 0 | CH22: 0 | CI22: 0 | CJ22: 0 | CK22: 0 | CL22: 0 | CM22: 0 | CN22: 0 | CO22: 0 | CP22: 0 | CQ22: 0 | CR22: 0 | CS22: 0 | CT22: 0 | CU22: 0 | CV22: 0 | CW22: 0 | CX22: 0 | CY22: 0 | CZ22: 0 | DA22: 0 | DB22: 0 | DC22: 0 | DD22: 0 | DE22: 0 | DF22: 0 | DG22: 0 | DH22: 0 | DI22: 0 | DJ22: 0 | DK22: 0 | DL22: 0 | DM22: 0 | DN22: 0 | DO22: 0 | DP22: 0 | DQ22: 0 | DR22: 0 | DS22: 0 | DT22: 0 | DU22: 0 | DV22: 0 | DW22: 0 | DX22: 0 | DY22: 0 | DZ22: 0 | EA22: 0 | EB22: 0 | EC22: 0 | ED22: 0 | EE22: 0 | EF22: 0 | EG22: 0 | EH22: 0 | EI22: 0 | EJ22: 0 | EK22: 0 | EL22: 0 | EM22: 0 | EN22: 0 | EO22: 0 | EP22: 0 | EQ22: 0 | ER22: 0 | ES22: 0 | ET22: 0 | EU22: 0 | EV22: 0 | EW22: 0 | EX22: 0 | EY22: 0 | EZ22: 0
E23: 0 | F23: 0 | G23: 0 | H23: 0 | I23: 0 | J23: 0 | L23: 0 | M23: 0 | N23: 0 | O23: 0 | P23: 0 | Q23: 0 | R23: 0 | S23: 0 | T23: 0 | U23: 0 | V23: 0 | W23: 0 | X23: 0 | Y23: 0 | Z23: 0 | AA23: 0 | AB23: 0 | AC23: 0 | AD23: 0 | AE23: 0 | AF23: 0 | AG23: 0 | AH23: 0 | AI23: 0 | AJ23: 0 | AK23: 0 | AL23: 0 | AM23: 0 | AN23: 0 | AO23: 0 | AP23: 0 | AQ23: 0 | AR23: 0 | AS23: 0 | AT23: 0 | AU23: 0 | AV23: 0 | AW23: 0 | AX23: 0 | AY23: 0 | AZ23: 0 | BA23: 0 | BB23: 0 | BC23: 0 | BD23: 0 | BE23: 0 | BF23: 0 | BG23: 0 | BH23: 0 | BI23: 0 | BJ23: 0 | BK23: 0 | BL23: 0 | BM23: 0 | BN23: 0 | BO23: 0 | BP23: 0 | BQ23: 0 | BR23: 0 | BS23: 0 | BT23: 0 | BU23: 0 | BV23: 0 | BW23: 0 | BX23: 0 | BY23: 0 | BZ23: 0 | CA23: 0 | CB23: 0 | CC23: 0 | CD23: 0 | CE23: 0 | CG23: 0 | CH23: 0 | CI23: 0 | CJ23: 0 | CK23: 0 | CL23: 0 | CM23: 0 | CN23: 0 | CO23: 0 | CP23: 0 | CQ23: 0 | CR23: 0 | CS23: 0 | CT23: 0 | CU23: 0 | CV23: 0 | CW23: 0 | CX23: 0 | CY23: 0 | CZ23: 0 | DA23: 0 | DB23: 0 | DC23: 0 | DD23: 0 | DE23: 0 | DF23: 0 | DG23: 0 | DH23: 0 | DI23: 0 | DJ23: 0 | DK23: 0 | DL23: 0 | DM23: 0 | DN23: 0 | DO23: 0 | DP23: 0 | DQ23: 0 | DR23: 0 | DS23: 0 | DT23: 0 | DU23: 0 | DV23: 0 | DW23: 0 | DX23: 0 | DY23: 0 | DZ23: 0 | EA23: 0 | EB23: 0 | EC23: 0 | ED23: 0 | EE23: 0 | EF23: 0 | EG23: 0 | EH23: 0 | EI23: 0 | EJ23: 0 | EK23: 0 | EL23: 0 | EM23: 0 | EN23: 0 | EO23: 0 | EP23: 0 | EQ23: 0 | ER23: 0 | ES23: 0 | ET23: 0 | EU23: 0 | EV23: 0 | EW23: 0 | EX23: 0 | EY23: 0 | EZ23: 0
E24: 0 | F24: 0 | G24: 0 | H24: 0 | I24: 0 | J24: 0 | L24: 0 | M24: 0 | N24: 0 | O24: 0 | P24: 0 | Q24: 0 | R24: 0 | S24: 0 | T24: 0 | U24: 0 | V24: 0 | W24: 0 | X24: 0 | Y24: 0 | Z24: 0 | AA24: 0 | AB24: 0 | AC24: 0 | AD24: 0 | AE24: 0 | AF24: 0 | AG24: 0 | AH24: 0 | AI24: 0 | AJ24: 0 | AK24: 0 | AL24: 0 | AM24: 0 | AN24: 0 | AO24: 0 | AP24: 0 | AQ24: 0 | AR24: 0 | AS24: 0 | AT24: 0 | AU24: 0 | AV24: 0 | AW24: 0 | AX24: 0 | AY24: 0 | AZ24: 0 | BA24: 0 | BB24: 0 | BC24: 0 | BD24: 0 | BE24: 0 | BF24: 0 | BG24: 0 | BH24: 0 | BI24: 0 | BJ24: 0 | BK24: 0 | BL24: 0 | BM24: 0 | BN24: 0 | BO24: 0 | BP24: 0 | BQ24: 0 | BR24: 0 | BS24: 0 | BT24: 0 | BU24: 0 | BV24: 0 | BW24: 0 | BX24: 0 | BY24: 0 | BZ24: 0 | CA24: 0 | CB24: 0 | CC24: 0 | CD24: 0 | CE24: 0 | CG24: 0 | CH24: 0 | CI24: 0 | CJ24: 0 | CK24: 0 | CL24: 0 | CM24: 0 | CN24: 0 | CO24: 0 | CP24: 0 | CQ24: 0 | CR24: 0 | CS24: 0 | CT24: 0 | CU24: 0 | CV24: 0 | CW24: 0 | CX24: 0 | CY24: 0 | CZ24: 0 | DA24: 0 | DB24: 0 | DC24: 0 | DD24: 0 | DE24: 0 | DF24: 0 | DG24: 0 | DH24: 0 | DI24: 0 | DJ24: 0 | DK24: 0 | DL24: 0 | DM24: 0 | DN24: 0 | DO24: 0 | DP24: 0 | DQ24: 0 | DR24: 0 | DS24: 0 | DT24: 0 | DU24: 0 | DV24: 0 | DW24: 0 | DX24: 0 | DY24: 0 | DZ24: 0 | EA24: 0 | EB24: 0 | EC24: 0 | ED24: 0 | EE24: 0 | EF24: 0 | EG24: 0 | EH24: 0 | EI24: 0 | EJ24: 0 | EK24: 0 | EL24: 0 | EM24: 0 | EN24: 0 | EO24: 0 | EP24: 0 | EQ24: 0 | ER24: 0 | ES24: 0 | ET24: 0 | EU24: 0 | EV24: 0 | EW24: 0 | EX24: 0 | EY24: 0 | EZ24: 0
E25: 0 | F25: 0 | G25: 0 | H25: 0 | I25: 0 | J25: 0 | L25: 0 | M25: 0 | N25: 0 | O25: 0 | P25: 0 | Q25: 0 | R25: 0 | S25: 0 | T25: 0 | U25: 0 | V25: 0 | W25: 0 | X25: 0 | Y25: 0 | Z25: 0 | AA25: 0 | AB25: 0 | AC25: 0 | AD25: 0 | AE25: 0 | AF25: 0 | AG25: 0 | AH25: 0 | AI25: 0 | AJ25: 0 | AK25: 0 | AL25: 0 | AM25: 0 | AN25: 0 | AO25: 0 | AP25: 0 | AQ25: 0 | AR25: 0 | AS25: 0 | AT25: 0 | AU25: 0 | AV25: 0 | AW25: 0 | AX25: 0 | AY25: 0 | AZ25: 0 | BA25: 0 | BB25: 0 | BC25: 0 | BD25: 0 | BE25: 0 | BF25: 0 | BG25: 0 | BH25: 0 | BI25: 0 | BJ25: 0 | BK25: 0 | BL25: 0 | BM25: 0 | BN25: 0 | BO25: 0 | BP25: 0 | BQ25: 0 | BR25: 0 | BS25: 0 | BT25: 0 | BU25: 0 | BV25: 0 | BW25: 0 | BX25: 0 | BY25: 0 | BZ25: 0 | CA25: 0 | CB25: 0 | CC25: 0 | CD25: 0 | CE25: 0 | CG25: 0 | CH25: 0 | CI25: 0 | CJ25: 0 | CK25: 0 | CL25: 0 | CM25: 0 | CN25: 0 | CO25: 0 | CP25: 0 | CQ25: 0 | CR25: 0 | CS25: 0 | CT25: 0 | CU25: 0 | CV25: 0 | CW25: 0 | CX25: 0 | CY25: 0 | CZ25: 0 | DA25: 0 | DB25: 0 | DC25: 0 | DD25: 0 | DE25: 0 | DF25: 0 | DG25: 0 | DH25: 0 | DI25: 0 | DJ25: 0 | DK25: 0 | DL25: 0 | DM25: 0 | DN25: 0 | DO25: 0 | DP25: 0 | DQ25: 0 | DR25: 0 | DS25: 0 | DT25: 0 | DU25: 0 | DV25: 0 | DW25: 0 | DX25: 0 | DY25: 0 | DZ25: 0 | EA25: 0 | EB25: 0 | EC25: 0 | ED25: 0 | EE25: 0 | EF25: 0 | EG25: 0 | EH25: 0 | EI25: 0 | EJ25: 0 | EK25: 0 | EL25: 0 | EM25: 0 | EN25: 0 | EO25: 0 | EP25: 0 | EQ25: 0 | ER25: 0 | ES25: 0 | ET25: 0 | EU25: 0 | EV25: 0 | EW25: 0 | EX25: 0 | EY25: 0 | EZ25: 0
E26: 0 | F26: 0 | G26: 0 | H26: 0 | I26: 0 | J26: 0 | L26: 0 | M26: 0 | N26: 0 | O26: 0 | P26: 0 | Q26: 0 | R26: 0 | S26: 0 | T26: 0 | U26: 0 | V26: 0 | W26: 0 | X26: 0 | Y26: 0 | Z26: 0 | AA26: 0 | AB26: 0 | AC26: 0 | AD26: 0 | AE26: 0 | AF26: 0 | AG26: 0 | AH26: 0 | AI26: 0 | AJ26: 0 | AK26: 0 | AL26: 0 | AM26: 0 | AN26: 0 | AO26: 0 | AP26: 0 | AQ26: 0 | AR26: 0 | AS26: 0 | AT26: 0 | AU26: 0 | AV26: 0 | AW26: 0 | AX26: 0 | AY26: 0 | AZ26: 0 | BA26: 0 | BB26: 0 | BC26: 0 | BD26: 0 | BE26: 0 | BF26: 0 | BG26: 0 | BH26: 0 | BI26: 0 | BJ26: 0 | BK26: 0 | BL26: 0 | BM26: 0 | BN26: 0 | BO26: 0 | BP26: 0 | BQ26: 0 | BR26: 0 | BS26: 0 | BT26: 0 | BU26: 0 | BV26: 0 | BW26: 0 | BX26: 0 | BY26: 0 | BZ26: 0 | CA26: 0 | CB26: 0 | CC26: 0 | CD26: 0 | CE26: 0 | CG26: 0 | CH26: 0 | CI26: 0 | CJ26: 0 | CK26: 0 | CL26: 0 | CM26: 0 | CN26: 0 | CO26: 0 | CP26: 0 | CQ26: 0 | CR26: 0 | CS26: 0 | CT26: 0 | CU26: 0 | CV26: 0 | CW26: 0 | CX26: 0 | CY26: 0 | CZ26: 0 | DA26: 0 | DB26: 0 | DC26: 0 | DD26: 0 | DE26: 0 | DF26: 0 | DG26: 0 | DH26: 0 | DI26: 0 | DJ26: 0 | DK26: 0 | DL26: 0 | DM26: 0 | DN26: 0 | DO26: 0 | DP26: 0 | DQ26: 0 | DR26: 0 | DS26: 0 | DT26: 0 | DU26: 0 | DV26: 0 | DW26: 0 | DX26: 0 | DY26: 0 | DZ26: 0 | EA26: 0 | EB26: 0 | EC26: 0 | ED26: 0 | EE26: 0 | EF26: 0 | EG26: 0 | EH26: 0 | EI26: 0 | EJ26: 0 | EK26: 0 | EL26: 0 | EM26: 0 | EN26: 0 | EO26: 0 | EP26: 0 | EQ26: 0 | ER26: 0 | ES26: 0 | ET26: 0 | EU26: 0 | EV26: 0 | EW26: 0 | EX26: 0 | EY26: 0 | EZ26: 0
B27: FBS Obligation | D27: FPS_FBS | E27: =+SUM(E28:E37) -> 5770917.675 | F27: =+SUM(F28:F37) -> 5717819.902 | G27: 5707690.403 | H27: 5696184.859 | I27: 5696297.062 | J27: 5696297.221 | L27: =+SUM(L28:L37) -> 375152.929 | M27: =+SUM(M28:M37) -> 347595.691 | N27: =+SUM(N28:N37) -> 355476.522 | O27: =+SUM(O28:O37) -> 356946.278 | P27: =+SUM(P28:P37) -> 322407.531 | Q27: =+SUM(Q28:Q37) -> 370451.173 | R27: =+SUM(R28:R37) -> 425733.288 | S27: =+SUM(S28:S37) -> 488047.284 | T27: =+SUM(T28:T37) -> 475306.441 | U27: =+SUM(U28:U37) -> 492912.562 | V27: =+SUM(V28:V37) -> 490094.888 | W27: =+SUM(W28:W37) -> 405590.044 | X27: =+SUM(X28:X37) -> 375999.172 | Y27: =+SUM(Y28:Y37) -> 343765.291 | Z27: =+SUM(Z28:Z37) -> 351523.322 | AA27: =+SUM(AA28:AA37) -> 352993.446 | AB27: =+SUM(AB28:AB37) -> 318837.099 | AC27: =+SUM(AC28:AC37) -> 362781.105 | AD27: =+SUM(AD28:AD37) -> 435080.516 | AE27: =+SUM(AE28:AE37) -> 484094.452 | AF27: =+SUM(AF28:AF37) -> 457547.835 | AG27: =+SUM(AG28:AG37) -> 504789.801 | AH27: =+SUM(AH28:AH37) -> 482807.912 | AI27: =+SUM(AI28:AI37) -> 398558.62 | AJ27: =+SUM(AJ28:AJ37) -> 367822.144 | AK27: =+SUM(AK28:AK37) -> 338482.236 | AL27: =+SUM(AL28:AL37) -> 343947.004 | AM27: =+SUM(AM28:AM37) -> 347035.053 | AN27: =+SUM(AN28:AN37) -> 324961.25 | AO27: =+SUM(AO28:AO37) -> 355708.657 | AP27: =+SUM(AP28:AP37) -> 429245.878 | AQ27: =+SUM(AQ28:AQ37) -> 459748.008 | AR27: =+SUM(AR28:AR37) -> 463994.09 | AS27: =+SUM(AS28:AS37) -> 500762.097 | AT27: =+SUM(AT28:AT37) -> 487511.168 | AU27: =+SUM(AU28:AU37) -> 412254.136 | AV27: =+SUM(AV28:AV37) -> 367822.144 | AW27: =+SUM(AW28:AW37) -> 337153.597 | AX27: =+SUM(AX28:AX37) -> 345298.034 | AY27: =+SUM(AY28:AY37) -> 346336.073 | AZ27: =+SUM(AZ28:AZ37) -> 313618.196 | BA27: =+SUM(BA28:BA37) -> 359845.662 | BB27: =+SUM(BB28:BB37) -> 429245.878 | BC27: =+SUM(BC28:BC37) -> 459748.008 | BD27: =+SUM(BD28:BD37) -> 463994.09 | BE27: =+SUM(BE28:BE37) -> 500762.097 | BF27: =+SUM(BF28:BF37) -> 488247.072 | BG27: =+SUM(BG28:BG37) -> 412254.136 | BH27: =+SUM(BH28:BH37) -> 362765.031 | BI27: =+SUM(BI28:BI37) -> 338482.236 | BJ27: =+SUM(BJ28:BJ37) -> 345298.034 | BK27: =+SUM(BK28:BK37) -> 346336.073 | BL27: =+SUM(BL28:BL37) -> 313618.196 | BM27: =+SUM(BM28:BM37) -> 359845.662 | BN27: =+SUM(BN28:BN37) -> 429245.878 | BO27: =+SUM(BO28:BO37) -> 459748.008 | BP27: =+SUM(BP28:BP37) -> 463994.09 | BQ27: =+SUM(BQ28:BQ37) -> 483488.529 | BR27: =+SUM(BR28:BR37) -> 501565.054 | BS27: =+SUM(BS28:BS37) -> 412254.136 | BT27: =+SUM(BT28:BT37) -> 362765.031 | BU27: =+SUM(BU28:BU37) -> 338482.236 | BV27: =+SUM(BV28:BV37) -> 345298.034 | BW27: =+SUM(BW28:BW37) -> 346336.073 | BX27: =+SUM(BX28:BX37) -> 313618.196 | BY27: =+SUM(BY28:BY37) -> 359845.662 | BZ27: =+SUM(BZ28:BZ37) -> 415158.515 | CA27: =+SUM(CA28:CA37) -> 475688.592 | CB27: =+SUM(CB28:CB37) -> 463994.09 | CC27: =+SUM(CC28:CC37) -> 483488.529 | CD27: =+SUM(CD28:CD37) -> 501565.054 | CE27: =+SUM(CE28:CE37) -> 412254.136 | CG27: =+SUM(CG28:CG37) -> 54382.179 | CH27: =+SUM(CH28:CH37) -> 7932.616 | CI27: =+SUM(CI28:CI37) -> 12400.919 | CJ27: =+SUM(CJ28:CJ37) -> 2899.571 | CK27: =+SUM(CK28:CK37) -> 5727.778 | CL27: =+SUM(CL28:CL37) -> 27747.316 | CM27: =+SUM(CM28:CM37) -> 95422.262 | CN27: =+SUM(CN28:CN37) -> 108165.003 | CO27: =+SUM(CO28:CO37) -> 113717.181 | CP27: =+SUM(CP28:CP37) -> 165153.535 | CQ27: =+SUM(CQ28:CQ37) -> 153810.377 | CR27: =+SUM(CR28:CR37) -> 117844.307 | CS27: =+SUM(CS28:CS37) -> 49582.866 | CT27: =+SUM(CT28:CT37) -> 7932.616 | CU27: =+SUM(CU28:CU37) -> 12400.919 | CV27: =+SUM(CV28:CV37) -> 2899.571 | CW27: =+SUM(CW28:CW37) -> 5727.778 | CX27: =+SUM(CX28:CX37) -> 31469.721 | CY27: =+SUM(CY28:CY37) -> 82249.708 | CZ27: =+SUM(CZ28:CZ37) -> 108165.003 | DA27: =+SUM(DA28:DA37) -> 127650.394 | DB27: =+SUM(DB28:DB37) -> 149323.359 | DC27: =+SUM(DC28:DC37) -> 153795.089 | DD27: =+SUM(DD28:DD37) -> 117844.307 | DE27: =+SUM(DE28:DE37) -> 50284.665 | DF27: =+SUM(DF28:DF37) -> 7533.237 | DG27: =+SUM(DG28:DG37) -> 12713.337 | DH27: =+SUM(DH28:DH37) -> 2197.881 | DI27: =+SUM(DI28:DI37) -> 5406.301 | DJ27: =+SUM(DJ28:DJ37) -> 33391.284 | DK27: =+SUM(DK28:DK37) -> 83112.137 | DL27: =+SUM(DL28:DL37) -> 129719.68 | DM27: =+SUM(DM28:DM37) -> 116644.817 | DN27: =+SUM(DN28:DN37) -> 157613.855 | DO27: =+SUM(DO28:DO37) -> 170932.065 | DP27: =+SUM(DP28:DP37) -> 106669.423 | DQ27: =+SUM(DQ28:DQ37) -> 50284.665 | DR27: =+SUM(DR28:DR37) -> 8749.956 | DS27: =+SUM(DS28:DS37) -> 11474.283 | DT27: =+SUM(DT28:DT37) -> 2784.886 | DU27: =+SUM(DU28:DU37) -> 5355.832 | DV27: =+SUM(DV28:DV37) -> 29254.305 | DW27: =+SUM(DW28:DW37) -> 83112.137 | DX27: =+SUM(DX28:DX37) -> 129719.68 | DY27: =+SUM(DY28:DY37) -> 116644.817 | DZ27: =+SUM(DZ28:DZ37) -> 157613.855 | EA27: =+SUM(EA28:EA37) -> 170196.033 | EB27: =+SUM(EB28:EB37) -> 106669.423 | EC27: =+SUM(EC28:EC37) -> 55341.555 | ED27: =+SUM(ED28:ED37) -> 7533.237 | EE27: =+SUM(EE28:EE37) -> 11474.283 | EF27: =+SUM(EF28:EF37) -> 2784.886 | EG27: =+SUM(EG28:EG37) -> 5355.832 | EH27: =+SUM(EH28:EH37) -> 29254.305 | EI27: =+SUM(EI28:EI37) -> 83112.137 | EJ27: =+SUM(EJ28:EJ37) -> 129719.68 | EK27: =+SUM(EK28:EK37) -> 116644.817 | EL27: =+SUM(EL28:EL37) -> 174887.457 | EM27: =+SUM(EM28:EM37) -> 156878.523 | EN27: =+SUM(EN28:EN37) -> 106669.423 | EO27: =+SUM(EO28:EO37) -> 55341.555 | EP27: =+SUM(EP28:EP37) -> 7533.237 | EQ27: =+SUM(EQ28:EQ37) -> 11474.283 | ER27: =+SUM(ER28:ER37) -> 2784.886 | ES27: =+SUM(ES28:ES37) -> 5355.832 | ET27: =+SUM(ET28:ET37) -> 29254.305 | EU27: =+SUM(EU28:EU37) -> 97199.691 | EV27: =+SUM(EV28:EV37) -> 113779.064 | EW27: =+SUM(EW28:EW37) -> 116644.817 | EX27: =+SUM(EX28:EX37) -> 174887.457 | EY27: =+SUM(EY28:EY37) -> 156878.523 | EZ27: =+SUM(EZ28:EZ37) -> 106669.423
C28: Canadian Entitlement | D28: FPS_FBS_CDN | E28: 4103985.28 | F28: 4050923.504 | G28: 3990571.008 | H28: 3979667.904 | I28: 3979667.872 | J28: 3979668.032 | L28: 349218.272 | M28: 338422.4 | N28: 349218.4 | O28: 349218.272 | P28: 315422.976 | Q28: 348748.848 | R28: 337953.2 | S28: 349218.272 | T28: 337952.992 | U28: 349218.4 | V28: 345265.632 | W28: 334127.616 | X28: 345265.2 | Y28: 334592 | Z28: 345265.2 | AA28: 345265.44 | AB28: 311852.544 | AC28: 344801.184 | AD28: 334127.872 | AE28: 345265.44 | AF28: 334127.6 | AG28: 345265.44 | AH28: 337999.392 | AI28: 327096.192 | AJ28: 337999.392 | AK28: 327550.4 | AL28: 337999.2 | AM28: 337999.168 | AN28: 316192.8 | AO28: 337544.896 | AP28: 327095.808 | AQ28: 337999.2 | AR28: 327095.808 | AS28: 337999.168 | AT28: 337999.168 | AU28: 327096 | AV28: 337999.392 | AW28: 327550.464 | AX28: 337999.168 | AY28: 337999.2 | AZ28: 305289.6 | BA28: 337544.928 | BB28: 327095.808 | BC28: 337999.2 | BD28: 327095.808 | BE28: 337999.168 | BF28: 337999.168 | BG28: 327096 | BH28: 337999.168 | BI28: 327550.4 | BJ28: 337999.168 | BK28: 337999.2 | BL28: 305289.6 | BM28: 337544.928 | BN28: 327095.808 | BO28: 337999.2 | BP28: 327095.808 | BQ28: 337999.2 | BR28: 337999.392 | BS28: 327096 | BT28: 337999.168 | BU28: 327550.4 | BV28: 337999.168 | BW28: 337999.2 | BX28: 305289.6 | BY28: 337544.928 | BZ28: 327096 | CA28: 337999.168 | CB28: 327095.808 | CC28: 337999.2 | CD28: 337999.392 | CE28: 327096 | CG28: 0 | CH28: 0 | CI28: 0 | CJ28: 0 | CK28: 0 | CL28: 0 | CM28: 0 | CN28: 0 | CO28: 0 | CP28: 0 | CQ28: 0 | CR28: 0 | CS28: 0 | CT28: 0 | CU28: 0 | CV28: 0 | CW28: 0 | CX28: 0 | CY28: 0 | CZ28: 0 | DA28: 0 | DB28: 0 | DC28: 0 | DD28: 0 | DE28: 0 | DF28: 0 | DG28: 0 | DH28: 0 | DI28: 0 | DJ28: 0 | DK28: 0 | DL28: 0 | DM28: 0 | DN28: 0 | DO28: 0 | DP28: 0 | DQ28: 0 | DR28: 0 | DS28: 0 | DT28: 0 | DU28: 0 | DV28: 0 | DW28: 0 | DX28: 0 | DY28: 0 | DZ28: 0 | EA28: 0 | EB28: 0 | EC28: 0 | ED28: 0 | EE28: 0 | EF28: 0 | EG28: 0 | EH28: 0 | EI28: 0 | EJ28: 0 | EK28: 0 | EL28: 0 | EM28: 0 | EN28: 0 | EO28: 0 | EP28: 0 | EQ28: 0 | ER28: 0 | ES28: 0 | ET28: 0 | EU28: 0 | EV28: 0 | EW28: 0 | EX28: 0 | EY28: 0 | EZ28: 0
C29: USBR Pump Load | D29: FPS_FBS_UBR | E29: 1575930.957 | F29: 1575930.96 | G29: 1602555.437 | H29: 1602177.302 | I29: 1602177.304 | J29: 1602177.303 | L29: 25934.657 | M29: 6373.291 | N29: 3458.122 | O29: 4816.006 | P29: 4296.555 | Q29: 21702.325 | R29: 87780.088 | S29: 138829.012 | T29: 137353.449 | U29: 137246.162 | V29: 105142.712 | W29: 71462.428 | X29: 30733.972 | Y29: 6373.291 | Z29: 3458.122 | AA29: 4816.006 | AB29: 4296.555 | AC29: 17979.921 | AD29: 100952.644 | AE29: 138829.012 | AF29: 123420.235 | AG29: 153076.361 | AH29: 105142.712 | AI29: 71462.428 | AJ29: 29822.752 | AK29: 8131.836 | AL29: 3147.804 | AM29: 6123.885 | AN29: 5968.45 | AO29: 18163.761 | AP29: 102150.07 | AQ29: 121748.808 | AR29: 136898.282 | AS29: 152778.929 | AT29: 102088 | AU29: 85158.136 | AV29: 29822.752 | AW29: 6915.133 | AX29: 4386.866 | AY29: 5536.873 | AZ29: 5640.596 | BA29: 22300.734 | BB29: 102150.07 | BC29: 121748.808 | BD29: 136898.282 | BE29: 152778.929 | BF29: 102088 | BG29: 85158.136 | BH29: 24765.863 | BI29: 8131.836 | BJ29: 4386.866 | BK29: 5536.873 | BL29: 5640.596 | BM29: 22300.734 | BN29: 102150.07 | BO29: 121748.808 | BP29: 136898.282 | BQ29: 135889.329 | BR29: 113949.598 | BS29: 85158.136 | BT29: 24765.863 | BU29: 8131.836 | BV29: 4386.866 | BW29: 5536.873 | BX29: 5640.596 | BY29: 22300.734 | BZ29: 88062.515 | CA29: 137689.424 | CB29: 136898.282 | CC29: 135889.329 | CD29: 113949.598 | CE29: 85158.136 | CG29: 54382.179 | CH29: 7925.554 | CI29: 12394.039 | CJ29: 2892.683 | CK29: 5720.866 | CL29: 27747.316 | CM29: 95422.262 | CN29: 108165.003 | CO29: 113717.181 | CP29: 160069.559 | CQ29: 125255.201 | CR29: 117844.307 | CS29: 49582.866 | CT29: 7925.554 | CU29: 12394.039 | CV29: 2892.683 | CW29: 5720.866 | CX29: 31469.721 | CY29: 82249.708 | CZ29: 108165.003 | DA29: 127650.394 | DB29: 144239.359 | DC29: 125255.201 | DD29: 117844.307 | DE29: 50284.665 | DF29: 7526.175 | DG29: 12706.457 | DH29: 2190.993 | DI29: 5399.197 | DJ29: 33391.284 | DK29: 83112.137 | DL29: 129719.68 | DM29: 116644.817 | DN29: 149741.855 | DO29: 132988.041 | DP29: 106669.423 | DQ29: 50284.665 | DR29: 8742.879 | DS29: 11467.395 | DT29: 2778.006 | DU29: 5348.92 | DV29: 29254.305 | DW29: 83112.137 | DX29: 129719.68 | DY29: 116644.817 | DZ29: 149741.855 | EA29: 132988.041 | EB29: 106669.423 | EC29: 55341.555 | ED29: 7526.175 | EE29: 11467.395 | EF29: 2778.006 | EG29: 5348.92 | EH29: 29254.305 | EI29: 83112.137 | EJ29: 129719.68 | EK29: 116644.817 | EL29: 166631.457 | EM29: 121126.443 | EN29: 106669.423 | EO29: 55341.555 | EP29: 7526.175 | EQ29: 11467.395 | ER29: 2778.006 | ES29: 5348.92 | ET29: 29254.305 | EU29: 97199.691 | EV29: 113779.064 | EW29: 116644.817 | EX29: 166631.457 | EY29: 121126.443 | EZ29: 106669.423
C30: Hungry Horse | D30: FPS_FBS_HH | E30: 0 | F30: 0 | G30: 0 | H30: 0 | I30: 0 | J30: 0 | L30: 0 | M30: 0 | N30: 0 | O30: 0 | P30: 0 | Q30: 0 | R30: 0 | S30: 0 | T30: 0 | U30: 0 | V30: 0 | W30: 0 | X30: 0 | Y30: 0 | Z30: 0 | AA30: 0 | AB30: 0 | AC30: 0 | AD30: 0 | AE30: 0 | AF30: 0 | AG30: 0 | AH30: 0 | AI30: 0 | AJ30: 0 | AK30: 0 | AL30: 0 | AM30: 0 | AN30: 0 | AO30: 0 | AP30: 0 | AQ30: 0 | AR30: 0 | AS30: 0 | AT30: 0 | AU30: 0 | AV30: 0 | AW30: 0 | AX30: 0 | AY30: 0 | AZ30: 0 | BA30: 0 | BB30: 0 | BC30: 0 | BD30: 0 | BE30: 0 | BF30: 0 | BG30: 0 | BH30: 0 | BI30: 0 | BJ30: 0 | BK30: 0 | BL30: 0 | BM30: 0 | BN30: 0 | BO30: 0 | BP30: 0 | BQ30: 0 | BR30: 0 | BS30: 0 | BT30: 0 | BU30: 0 | BV30: 0 | BW30: 0 | BX30: 0 | BY30: 0 | BZ30: 0 | CA30: 0 | CB30: 0 | CC30: 0 | CD30: 0 | CE30: 0 | CG30: 0 | CH30: 0 | CI30: 0 | CJ30: 0 | CK30: 0 | CL30: 0 | CM30: 0 | CN30: 0 | CO30: 0 | CP30: 0 | CQ30: 0 | CR30: 0 | CS30: 0 | CT30: 0 | CU30: 0 | CV30: 0 | CW30: 0 | CX30: 0 | CY30: 0 | CZ30: 0 | DA30: 0 | DB30: 0 | DC30: 0 | DD30: 0 | DE30: 0 | DF30: 0 | DG30: 0 | DH30: 0 | DI30: 0 | DJ30: 0 | DK30: 0 | DL30: 0 | DM30: 0 | DN30: 0 | DO30: 0 | DP30: 0 | DQ30: 0 | DR30: 0 | DS30: 0 | DT30: 0 | DU30: 0 | DV30: 0 | DW30: 0 | DX30: 0 | DY30: 0 | DZ30: 0 | EA30: 0 | EB30: 0 | EC30: 0 | ED30: 0 | EE30: 0 | EF30: 0 | EG30: 0 | EH30: 0 | EI30: 0 | EJ30: 0 | EK30: 0 | EL30: 0 | EM30: 0 | EN30: 0 | EO30: 0 | EP30: 0 | EQ30: 0 | ER30: 0 | ES30: 0 | ET30: 0 | EU30: 0 | EV30: 0 | EW30: 0 | EX30: 0 | EY30: 0 | EZ30: 0
C31: Upper Baker | D31: FPS_FBS_UPB | E31: 11227.742 | F31: 11227.742 | G31: 11339.934 | H31: 11115.757 | I31: 11227.742 | J31: 11227.742 | L31: 0 | M31: 2800 | N31: 2800 | O31: 2912 | P31: 2688 | Q31: 0 | R31: 0 | S31: 0 | T31: 0 | U31: 0 | V31: 0 | W31: 0 | X31: 0 | Y31: 2800 | Z31: 2800 | AA31: 2912 | AB31: 2688 | AC31: 0 | AD31: 0 | AE31: 0 | AF31: 0 | AG31: 0 | AH31: 0 | AI31: 0 | AJ31: 0 | AK31: 2800 | AL31: 2800 | AM31: 2912 | AN31: 2800 | AO31: 0 | AP31: 0 | AQ31: 0 | AR31: 0 | AS31: 0 | AT31: 0 | AU31: 0 | AV31: 0 | AW31: 2688 | AX31: 2912 | AY31: 2800 | AZ31: 2688 | BA31: 0 | BB31: 0 | BC31: 0 | BD31: 0 | BE31: 0 | BF31: 0 | BG31: 0 | BH31: 0 | BI31: 2800 | BJ31: 2912 | BK31: 2800 | BL31: 2688 | BM31: 0 | BN31: 0 | BO31: 0 | BP31: 0 | BQ31: 0 | BR31: 0 | BS31: 0 | BT31: 0 | BU31: 2800 | BV31: 2912 | BW31: 2800 | BX31: 2688 | BY31: 0 | BZ31: 0 | CA31: 0 | CB31: 0 | CC31: 0 | CD31: 0 | CE31: 0 | CG31: 0 | CH31: 7.062 | CI31: 6.88 | CJ31: 6.888 | CK31: 6.912 | CL31: 0 | CM31: 0 | CN31: 0 | CO31: 0 | CP31: 0 | CQ31: 0 | CR31: 0 | CS31: 0 | CT31: 7.062 | CU31: 6.88 | CV31: 6.888 | CW31: 6.912 | CX31: 0 | CY31: 0 | CZ31: 0 | DA31: 0 | DB31: 0 | DC31: 0 | DD31: 0 | DE31: 0 | DF31: 7.062 | DG31: 6.88 | DH31: 6.888 | DI31: 7.104 | DJ31: 0 | DK31: 0 | DL31: 0 | DM31: 0 | DN31: 0 | DO31: 0 | DP31: 0 | DQ31: 0 | DR31: 7.077 | DS31: 6.888 | DT31: 6.88 | DU31: 6.912 | DV31: 0 | DW31: 0 | DX31: 0 | DY31: 0 | DZ31: 0 | EA31: 0 | EB31: 0 | EC31: 0 | ED31: 7.062 | EE31: 6.888 | EF31: 6.88 | EG31: 6.912 | EH31: 0 | EI31: 0 | EJ31: 0 | EK31: 0 | EL31: 0 | EM31: 0 | EN31: 0 | EO31: 0 | EP31: 7.062 | EQ31: 6.888 | ER31: 6.88 | ES31: 6.912 | ET31: 0 | EU31: 0 | EV31: 0 | EW31: 0 | EX31: 0 | EY31: 0 | EZ31: 0
C32: Non-Treaty Storage | D32: FPS_FBS_NTS | E32: 79773.696 | F32: 79737.696 | G32: 103224.024 | H32: 103223.896 | I32: 103224.144 | J32: 103224.144 | L32: 0 | M32: 0 | N32: 0 | O32: 0 | P32: 0 | Q32: 0 | R32: 0 | S32: 0 | T32: 0 | U32: 6448 | V32: 39686.544 | W32: 0 | X32: 0 | Y32: 0 | Z32: 0 | AA32: 0 | AB32: 0 | AC32: 0 | AD32: 0 | AE32: 0 | AF32: 0 | AG32: 6448 | AH32: 39665.808 | AI32: 0 | AJ32: 0 | AK32: 0 | AL32: 0 | AM32: 0 | AN32: 0 | AO32: 0 | AP32: 0 | AQ32: 0 | AR32: 0 | AS32: 9984 | AT32: 47424 | AU32: 0 | AV32: 0 | AW32: 0 | AX32: 0 | AY32: 0 | AZ32: 0 | BA32: 0 | BB32: 0 | BC32: 0 | BD32: 0 | BE32: 9984 | BF32: 48159.904 | BG32: 0 | BH32: 0 | BI32: 0 | BJ32: 0 | BK32: 0 | BL32: 0 | BM32: 0 | BN32: 0 | BO32: 0 | BP32: 0 | BQ32: 9600 | BR32: 49616.064 | BS32: 0 | BT32: 0 | BU32: 0 | BV32: 0 | BW32: 0 | BX32: 0 | BY32: 0 | BZ32: 0 | CA32: 0 | CB32: 0 | CC32: 9600 | CD32: 49616.064 | CE32: 0 | CG32: 0 | CH32: 0 | CI32: 0 | CJ32: 0 | CK32: 0 | CL32: 0 | CM32: 0 | CN32: 0 | CO32: 0 | CP32: 5083.976 | CQ32: 28555.176 | CR32: 0 | CS32: 0 | CT32: 0 | CU32: 0 | CV32: 0 | CW32: 0 | CX32: 0 | CY32: 0 | CZ32: 0 | DA32: 0 | DB32: 5084 | DC32: 28539.888 | DD32: 0 | DE32: 0 | DF32: 0 | DG32: 0 | DH32: 0 | DI32: 0 | DJ32: 0 | DK32: 0 | DL32: 0 | DM32: 0 | DN32: 7872 | DO32: 37944.024 | DP32: 0 | DQ32: 0 | DR32: 0 | DS32: 0 | DT32: 0 | DU32: 0 | DV32: 0 | DW32: 0 | DX32: 0 | DY32: 0 | DZ32: 7872 | EA32: 37207.992 | EB32: 0 | EC32: 0 | ED32: 0 | EE32: 0 | EF32: 0 | EG32: 0 | EH32: 0 | EI32: 0 | EJ32: 0 | EK32: 0 | EL32: 8256 | EM32: 35752.08 | EN32: 0 | EO32: 0 | EP32: 0 | EQ32: 0 | ER32: 0 | ES32: 0 | ET32: 0 | EU32: 0 | EV32: 0 | EW32: 0 | EX32: 8256 | EY32: 35752.08 | EZ32: 0
C33: Libby Coordination | D33: FPS_FBS_LCA | E33: 0 | F33: 0 | G33: 0 | H33: 0 | I33: 0 | J33: 0 | L33: 0 | M33: 0 | N33: 0 | O33: 0 | P33: 0 | Q33: 0 | R33: 0 | S33: 0 | T33: 0 | U33: 0 | V33: 0 | W33: 0 | X33: 0 | Y33: 0 | Z33: 0 | AA33: 0 | AB33: 0 | AC33: 0 | AD33: 0 | AE33: 0 | AF33: 0 | AG33: 0 | AH33: 0 | AI33: 0 | AJ33: 0 | AK33: 0 | AL33: 0 | AM33: 0 | AN33: 0 | AO33: 0 | AP33: 0 | AQ33: 0 | AR33: 0 | AS33: 0 | AT33: 0 | AU33: 0 | AV33: 0 | AW33: 0 | AX33: 0 | AY33: 0 | AZ33: 0 | BA33: 0 | BB33: 0 | BC33: 0 | BD33: 0 | BE33: 0 | BF33: 0 | BG33: 0 | BH33: 0 | BI33: 0 | BJ33: 0 | BK33: 0 | BL33: 0 | BM33: 0 | BN33: 0 | BO33: 0 | BP33: 0 | BQ33: 0 | BR33: 0 | BS33: 0 | BT33: 0 | BU33: 0 | BV33: 0 | BW33: 0 | BX33: 0 | BY33: 0 | BZ33: 0 | CA33: 0 | CB33: 0 | CC33: 0 | CD33: 0 | CE33: 0 | CG33: 0 | CH33: 0 | CI33: 0 | CJ33: 0 | CK33: 0 | CL33: 0 | CM33: 0 | CN33: 0 | CO33: 0 | CP33: 0 | CQ33: 0 | CR33: 0 | CS33: 0 | CT33: 0 | CU33: 0 | CV33: 0 | CW33: 0 | CX33: 0 | CY33: 0 | CZ33: 0 | DA33: 0 | DB33: 0 | DC33: 0 | DD33: 0 | DE33: 0 | DF33: 0 | DG33: 0 | DH33: 0 | DI33: 0 | DJ33: 0 | DK33: 0 | DL33: 0 | DM33: 0 | DN33: 0 | DO33: 0 | DP33: 0 | DQ33: 0 | DR33: 0 | DS33: 0 | DT33: 0 | DU33: 0 | DV33: 0 | DW33: 0 | DX33: 0 | DY33: 0 | DZ33: 0 | EA33: 0 | EB33: 0 | EC33: 0 | ED33: 0 | EE33: 0 | EF33: 0 | EG33: 0 | EH33: 0 | EI33: 0 | EJ33: 0 | EK33: 0 | EL33: 0 | EM33: 0 | EN33: 0 | EO33: 0 | EP33: 0 | EQ33: 0 | ER33: 0 | ES33: 0 | ET33: 0 | EU33: 0 | EV33: 0 | EW33: 0 | EX33: 0 | EY33: 0 | EZ33: 0
E34: 0 | F34: 0 | G34: 0 | H34: 0 | I34: 0 | J34: 0 | L34: 0 | M34: 0 | N34: 0 | O34: 0 | P34: 0 | Q34: 0 | R34: 0 | S34: 0 | T34: 0 | U34: 0 | V34: 0 | W34: 0 | X34: 0 | Y34: 0 | Z34: 0 | AA34: 0 | AB34: 0 | AC34: 0 | AD34: 0 | AE34: 0 | AF34: 0 | AG34: 0 | AH34: 0 | AI34: 0 | AJ34: 0 | AK34: 0 | AL34: 0 | AM34: 0 | AN34: 0 | AO34: 0 | AP34: 0 | AQ34: 0 | AR34: 0 | AS34: 0 | AT34: 0 | AU34: 0 | AV34: 0 | AW34: 0 | AX34: 0 | AY34: 0 | AZ34: 0 | BA34: 0 | BB34: 0 | BC34: 0 | BD34: 0 | BE34: 0 | BF34: 0 | BG34: 0 | BH34: 0 | BI34: 0 | BJ34: 0 | BK34: 0 | BL34: 0 | BM34: 0 | BN34: 0 | BO34: 0 | BP34: 0 | BQ34: 0 | BR34: 0 | BS34: 0 | BT34: 0 | BU34: 0 | BV34: 0 | BW34: 0 | BX34: 0 | BY34: 0 | BZ34: 0 | CA34: 0 | CB34: 0 | CC34: 0 | CD34: 0 | CE34: 0 | CG34: 0 | CH34: 0 | CI34: 0 | CJ34: 0 | CK34: 0 | CL34: 0 | CM34: 0 | CN34: 0 | CO34: 0 | CP34: 0 | CQ34: 0 | CR34: 0 | CS34: 0 | CT34: 0 | CU34: 0 | CV34: 0 | CW34: 0 | CX34: 0 | CY34: 0 | CZ34: 0 | DA34: 0 | DB34: 0 | DC34: 0 | DD34: 0 | DE34: 0 | DF34: 0 | DG34: 0 | DH34: 0 | DI34: 0 | DJ34: 0 | DK34: 0 | DL34: 0 | DM34: 0 | DN34: 0 | DO34: 0 | DP34: 0 | DQ34: 0 | DR34: 0 | DS34: 0 | DT34: 0 | DU34: 0 | DV34: 0 | DW34: 0 | DX34: 0 | DY34: 0 | DZ34: 0 | EA34: 0 | EB34: 0 | EC34: 0 | ED34: 0 | EE34: 0 | EF34: 0 | EG34: 0 | EH34: 0 | EI34: 0 | EJ34: 0 | EK34: 0 | EL34: 0 | EM34: 0 | EN34: 0 | EO34: 0 | EP34: 0 | EQ34: 0 | ER34: 0 | ES34: 0 | ET34: 0 | EU34: 0 | EV34: 0 | EW34: 0 | EX34: 0 | EY34: 0 | EZ34: 0
E35: 0 | F35: 0 | G35: 0 | H35: 0 | I35: 0 | J35: 0 | L35: 0 | M35: 0 | N35: 0 | O35: 0 | P35: 0 | Q35: 0 | R35: 0 | S35: 0 | T35: 0 | U35: 0 | V35: 0 | W35: 0 | X35: 0 | Y35: 0 | Z35: 0 | AA35: 0 | AB35: 0 | AC35: 0 | AD35: 0 | AE35: 0 | AF35: 0 | AG35: 0 | AH35: 0 | AI35: 0 | AJ35: 0 | AK35: 0 | AL35: 0 | AM35: 0 | AN35: 0 | AO35: 0 | AP35: 0 | AQ35: 0 | AR35: 0 | AS35: 0 | AT35: 0 | AU35: 0 | AV35: 0 | AW35: 0 | AX35: 0 | AY35: 0 | AZ35: 0 | BA35: 0 | BB35: 0 | BC35: 0 | BD35: 0 | BE35: 0 | BF35: 0 | BG35: 0 | BH35: 0 | BI35: 0 | BJ35: 0 | BK35: 0 | BL35: 0 | BM35: 0 | BN35: 0 | BO35: 0 | BP35: 0 | BQ35: 0 | BR35: 0 | BS35: 0 | BT35: 0 | BU35: 0 | BV35: 0 | BW35: 0 | BX35: 0 | BY35: 0 | BZ35: 0 | CA35: 0 | CB35: 0 | CC35: 0 | CD35: 0 | CE35: 0 | CG35: 0 | CH35: 0 | CI35: 0 | CJ35: 0 | CK35: 0 | CL35: 0 | CM35: 0 | CN35: 0 | CO35: 0 | CP35: 0 | CQ35: 0 | CR35: 0 | CS35: 0 | CT35: 0 | CU35: 0 | CV35: 0 | CW35: 0 | CX35: 0 | CY35: 0 | CZ35: 0 | DA35: 0 | DB35: 0 | DC35: 0 | DD35: 0 | DE35: 0 | DF35: 0 | DG35: 0 | DH35: 0 | DI35: 0 | DJ35: 0 | DK35: 0 | DL35: 0 | DM35: 0 | DN35: 0 | DO35: 0 | DP35: 0 | DQ35: 0 | DR35: 0 | DS35: 0 | DT35: 0 | DU35: 0 | DV35: 0 | DW35: 0 | DX35: 0 | DY35: 0 | DZ35: 0 | EA35: 0 | EB35: 0 | EC35: 0 | ED35: 0 | EE35: 0 | EF35: 0 | EG35: 0 | EH35: 0 | EI35: 0 | EJ35: 0 | EK35: 0 | EL35: 0 | EM35: 0 | EN35: 0 | EO35: 0 | EP35: 0 | EQ35: 0 | ER35: 0 | ES35: 0 | ET35: 0 | EU35: 0 | EV35: 0 | EW35: 0 | EX35: 0 | EY35: 0 | EZ35: 0
E36: 0 | F36: 0 | G36: 0 | H36: 0 | I36: 0 | J36: 0 | L36: 0 | M36: 0 | N36: 0 | O36: 0 | P36: 0 | Q36: 0 | R36: 0 | S36: 0 | T36: 0 | U36: 0 | V36: 0 | W36: 0 | X36: 0 | Y36: 0 | Z36: 0 | AA36: 0 | AB36: 0 | AC36: 0 | AD36: 0 | AE36: 0 | AF36: 0 | AG36: 0 | AH36: 0 | AI36: 0 | AJ36: 0 | AK36: 0 | AL36: 0 | AM36: 0 | AN36: 0 | AO36: 0 | AP36: 0 | AQ36: 0 | AR36: 0 | AS36: 0 | AT36: 0 | AU36: 0 | AV36: 0 | AW36: 0 | AX36: 0 | AY36: 0 | AZ36: 0 | BA36: 0 | BB36: 0 | BC36: 0 | BD36: 0 | BE36: 0 | BF36: 0 | BG36: 0 | BH36: 0 | BI36: 0 | BJ36: 0 | BK36: 0 | BL36: 0 | BM36: 0 | BN36: 0 | BO36: 0 | BP36: 0 | BQ36: 0 | BR36: 0 | BS36: 0 | BT36: 0 | BU36: 0 | BV36: 0 | BW36: 0 | BX36: 0 | BY36: 0 | BZ36: 0 | CA36: 0 | CB36: 0 | CC36: 0 | CD36: 0 | CE36: 0 | CG36: 0 | CH36: 0 | CI36: 0 | CJ36: 0 | CK36: 0 | CL36: 0 | CM36: 0 | CN36: 0 | CO36: 0 | CP36: 0 | CQ36: 0 | CR36: 0 | CS36: 0 | CT36: 0 | CU36: 0 | CV36: 0 | CW36: 0 | CX36: 0 | CY36: 0 | CZ36: 0 | DA36: 0 | DB36: 0 | DC36: 0 | DD36: 0 | DE36: 0 | DF36: 0 | DG36: 0 | DH36: 0 | DI36: 0 | DJ36: 0 | DK36: 0 | DL36: 0 | DM36: 0 | DN36: 0 | DO36: 0 | DP36: 0 | DQ36: 0 | DR36: 0 | DS36: 0 | DT36: 0 | DU36: 0 | DV36: 0 | DW36: 0 | DX36: 0 | DY36: 0 | DZ36: 0 | EA36: 0 | EB36: 0 | EC36: 0 | ED36: 0 | EE36: 0 | EF36: 0 | EG36: 0 | EH36: 0 | EI36: 0 | EJ36: 0 | EK36: 0 | EL36: 0 | EM36: 0 | EN36: 0 | EO36: 0 | EP36: 0 | EQ36: 0 | ER36: 0 | ES36: 0 | ET36: 0 | EU36: 0 | EV36: 0 | EW36: 0 | EX36: 0 | EY36: 0 | EZ36: 0
E37: 0 | F37: 0 | G37: 0 | H37: 0 | I37: 0 | J37: 0 | L37: 0 | M37: 0 | N37: 0 | O37: 0 | P37: 0 | Q37: 0 | R37: 0 | S37: 0 | T37: 0 | U37: 0 | V37: 0 | W37: 0 | X37: 0 | Y37: 0 | Z37: 0 | AA37: 0 | AB37: 0 | AC37: 0 | AD37: 0 | AE37: 0 | AF37: 0 | AG37: 0 | AH37: 0 | AI37: 0 | AJ37: 0 | AK37: 0 | AL37: 0 | AM37: 0 | AN37: 0 | AO37: 0 | AP37: 0 | AQ37: 0 | AR37: 0 | AS37: 0 | AT37: 0 | AU37: 0 | AV37: 0 | AW37: 0 | AX37: 0 | AY37: 0 | AZ37: 0 | BA37: 0 | BB37: 0 | BC37: 0 | BD37: 0 | BE37: 0 | BF37: 0 | BG37: 0 | BH37: 0 | BI37: 0 | BJ37: 0 | BK37: 0 | BL37: 0 | BM37: 0 | BN37: 0 | BO37: 0 | BP37: 0 | BQ37: 0 | BR37: 0 | BS37: 0 | BT37: 0 | BU37: 0 | BV37: 0 | BW37: 0 | BX37: 0 | BY37: 0 | BZ37: 0 | CA37: 0 | CB37: 0 | CC37: 0 | CD37: 0 | CE37: 0 | CG37: 0 | CH37: 0 | CI37: 0 | CJ37: 0 | CK37: 0 | CL37: 0 | CM37: 0 | CN37: 0 | CO37: 0 | CP37: 0 | CQ37: 0 | CR37: 0 | CS37: 0 | CT37: 0 | CU37: 0 | CV37: 0 | CW37: 0 | CX37: 0 | CY37: 0 | CZ37: 0 | DA37: 0 | DB37: 0 | DC37: 0 | DD37: 0 | DE37: 0 | DF37: 0 | DG37: 0 | DH37: 0 | DI37: 0 | DJ37: 0 | DK37: 0 | DL37: 0 | DM37: 0 | DN37: 0 | DO37: 0 | DP37: 0 | DQ37: 0 | DR37: 0 | DS37: 0 | DT37: 0 | DU37: 0 | DV37: 0 | DW37: 0 | DX37: 0 | DY37: 0 | DZ37: 0 | EA37: 0 | EB37: 0 | EC37: 0 | ED37: 0 | EE37: 0 | EF37: 0 | EG37: 0 | EH37: 0 | EI37: 0 | EJ37: 0 | EK37: 0 | EL37: 0 | EM37: 0 | EN37: 0 | EO37: 0 | EP37: 0 | EQ37: 0 | ER37: 0 | ES37: 0 | ET37: 0 | EU37: 0 | EV37: 0 | EW37: 0 | EX37: 0 | EY37: 0 | EZ37: 0
B38: Seasonal or Capacity Exchange | D38: FPS_EXS | E38: =+SUM(E39:E48) -> 274327.6258 | F38: =+SUM(F39:F48) -> 98249.31518 | G38: 38300.666 | H38: 3279.768 | I38: 0 | J38: 0 | L38: =+SUM(L39:L48) -> 1839.968 | M38: =+SUM(M39:M48) -> 2122 | N38: =+SUM(N39:N48) -> 1360 | O38: =+SUM(O39:O48) -> 1240.096 | P38: =+SUM(P39:P48) -> 1206.144 | Q38: =+SUM(Q39:Q48) -> 806.112 | R38: =+SUM(R39:R48) -> 1987.2 | S38: =+SUM(S39:S48) -> 2196.896 | T38: =+SUM(T39:T48) -> 1706.016 | U38: =+SUM(U39:U48) -> 2746 | V38: =+SUM(V39:V48) -> 2280.096 | W38: =+SUM(W39:W48) -> 1549.824 | X38: =+SUM(X39:X48) -> 1842.912 | Y38: =+SUM(Y39:Y48) -> 2117.2 | Z38: =+SUM(Z39:Z48) -> 1360 | AA38: =+SUM(AA39:AA48) -> 1240.096 | AB38: =+SUM(AB39:AB48) -> 1206.144 | AC38: =+SUM(AC39:AC48) -> 806.208 | AD38: =+SUM(AD39:AD48) -> 1996.8 | AE38: =+SUM(AE39:AE48) -> 2204.8 | AF38: =+SUM(AF39:AF48) -> 1706 | AG38: =+SUM(AG39:AG48) -> 2760.16 | AH38: =+SUM(AH39:AH48) -> 2287.872 | AI38: =+SUM(AI39:AI48) -> 1549.824 | AJ38: =+SUM(AJ39:AJ48) -> 1842.912 | AK38: =+SUM(AK39:AK48) -> 2117.2 | AL38: =+SUM(AL39:AL48) -> 1360 | AM38: =+SUM(AM39:AM48) -> 1240.096 | AN38: =+SUM(AN39:AN48) -> 1206 | AO38: =+SUM(AO39:AO48) -> 839.904 | AP38: =+SUM(AP39:AP48) -> 1996.8 | AQ38: =+SUM(AQ39:AQ48) -> 2204.8 | AR38: =+SUM(AR39:AR48) -> 1720.16 | AS38: =+SUM(AS39:AS48) -> 2746.016 | AT38: =+SUM(AT39:AT48) -> 2288 | AU38: =+SUM(AU39:AU48) -> 1560 | AV38: =+SUM(AV39:AV48) -> 1839.888 | AW38: =+SUM(AW39:AW48) -> 0 | AX38: =+SUM(AX39:AX48) -> 0 | AY38: =+SUM(AY39:AY48) -> 0 | AZ38: =+SUM(AZ39:AZ48) -> 0 | BA38: =+SUM(BA39:BA48) -> 0 | BB38: =+SUM(BB39:BB48) -> 0 | BC38: =+SUM(BC39:BC48) -> 0 | BD38: =+SUM(BD39:BD48) -> 0 | BE38: =+SUM(BE39:BE48) -> 0 | BF38: =+SUM(BF39:BF48) -> 0 | BG38: =+SUM(BG39:BG48) -> 0 | BH38: =+SUM(BH39:BH48) -> 0 | BI38: =+SUM(BI39:BI48) -> 0 | BJ38: =+SUM(BJ39:BJ48) -> 0 | BK38: =+SUM(BK39:BK48) -> 0 | BL38: =+SUM(BL39:BL48) -> 0 | BM38: =+SUM(BM39:BM48) -> 0 | BN38: =+SUM(BN39:BN48) -> 0 | BO38: =+SUM(BO39:BO48) -> 0 | BP38: =+SUM(BP39:BP48) -> 0 | BQ38: =+SUM(BQ39:BQ48) -> 0 | BR38: =+SUM(BR39:BR48) -> 0 | BS38: =+SUM(BS39:BS48) -> 0 | BT38: =+SUM(BT39:BT48) -> 0 | BU38: =+SUM(BU39:BU48) -> 0 | BV38: =+SUM(BV39:BV48) -> 0 | BW38: =+SUM(BW39:BW48) -> 0 | BX38: =+SUM(BX39:BX48) -> 0 | BY38: =+SUM(BY39:BY48) -> 0 | BZ38: =+SUM(BZ39:BZ48) -> 0 | CA38: =+SUM(CA39:CA48) -> 0 | CB38: =+SUM(CB39:CB48) -> 0 | CC38: =+SUM(CC39:CC48) -> 0 | CD38: =+SUM(CD39:CD48) -> 0 | CE38: =+SUM(CE39:CE48) -> 0 | CG38: =+SUM(CG39:CG48) -> 19361.99416 | CH38: =+SUM(CH39:CH48) -> 15260.95311 | CI38: =+SUM(CI39:CI48) -> 11993.07496 | CJ38: =+SUM(CJ39:CJ48) -> 12804.84776 | CK38: =+SUM(CK39:CK48) -> 9159.84288 | CL38: =+SUM(CL39:CL48) -> 15415.40231 | CM38: =+SUM(CM39:CM48) -> 25312.48 | CN38: =+SUM(CN39:CN48) -> 27172.04152 | CO38: =+SUM(CO39:CO48) -> 29976.49456 | CP38: =+SUM(CP39:CP48) -> 32101.28536 | CQ38: =+SUM(CQ39:CQ48) -> 31424.38104 | CR38: =+SUM(CR39:CR48) -> 23304.47616 | CS38: =+SUM(CS39:CS48) -> 18353.2284 | CT38: =+SUM(CT39:CT48) -> 15322.09398 | CU38: =+SUM(CU39:CU48) -> 12124.882 | CV38: =+SUM(CV39:CV48) -> 11609.90768 | CW38: =+SUM(CW39:CW48) -> 8706.57696 | CX38: =+SUM(CX39:CX48) -> 1020.26616 | CY38: =+SUM(CY39:CY48) -> 1406 | CZ38: =+SUM(CZ39:CZ48) -> 1550.128 | DA38: =+SUM(DA39:DA48) -> 1870.08 | DB38: =+SUM(DB39:DB48) -> 1984.072 | DC38: =+SUM(DC39:DC48) -> 1706.016 | DD38: =+SUM(DD39:DD48) -> 1518.048 | DE38: =+SUM(DE39:DE48) -> 1444.872 | DF38: =+SUM(DF39:DF48) -> 1684.929 | DG38: =+SUM(DG39:DG48) -> 1380.128 | DH38: =+SUM(DH39:DH48) -> 1169.976 | DI38: =+SUM(DI39:DI48) -> 655.936 | DJ38: =+SUM(DJ39:DJ48) -> 828.945 | DK38: =+SUM(DK39:DK48) -> 1406 | DL38: =+SUM(DL39:DL48) -> 1550.064 | DM38: =+SUM(DM39:DM48) -> 1858.048 | DN38: =+SUM(DN39:DN48) -> 1975.872 | DO38: =+SUM(DO39:DO48) -> 1705.928 | DP38: =+SUM(DP39:DP48) -> 1518.08 | DQ38: =+SUM(DQ39:DQ48) -> 1439.88 | DR38: =+SUM(DR39:DR48) -> 0 | DS38: =+SUM(DS39:DS48) -> 0 | DT38: =+SUM(DT39:DT48) -> 0 | DU38: =+SUM(DU39:DU48) -> 0 | DV38: =+SUM(DV39:DV48) -> 0 | DW38: =+SUM(DW39:DW48) -> 0 | DX38: =+SUM(DX39:DX48) -> 0 | DY38: =+SUM(DY39:DY48) -> 0 | DZ38: =+SUM(DZ39:DZ48) -> 0 | EA38: =+SUM(EA39:EA48) -> 0 | EB38: =+SUM(EB39:EB48) -> 0 | EC38: =+SUM(EC39:EC48) -> 0 | ED38: =+SUM(ED39:ED48) -> 0 | EE38: =+SUM(EE39:EE48) -> 0 | EF38: =+SUM(EF39:EF48) -> 0 | EG38: =+SUM(EG39:EG48) -> 0 | EH38: =+SUM(EH39:EH48) -> 0 | EI38: =+SUM(EI39:EI48) -> 0 | EJ38: =+SUM(EJ39:EJ48) -> 0 | EK38: =+SUM(EK39:EK48) -> 0 | EL38: =+SUM(EL39:EL48) -> 0 | EM38: =+SUM(EM39:EM48) -> 0 | EN38: =+SUM(EN39:EN48) -> 0 | EO38: =+SUM(EO39:EO48) -> 0 | EP38: =+SUM(EP39:EP48) -> 0 | EQ38: =+SUM(EQ39:EQ48) -> 0 | ER38: =+SUM(ER39:ER48) -> 0 | ES38: =+SUM(ES39:ES48) -> 0 | ET38: =+SUM(ET39:ET48) -> 0 | EU38: =+SUM(EU39:EU48) -> 0 | EV38: =+SUM(EV39:EV48) -> 0 | EW38: =+SUM(EW39:EW48) -> 0 | EX38: =+SUM(EX39:EX48) -> 0 | EY38: =+SUM(EY39:EY48) -> 0 | EZ38: =+SUM(EZ39:EZ48) -> 0
C39: Riverside Capacity | D39: FPS_EXS_RVC | E39: 0 | F39: 0 | G39: 0 | H39: 0 | I39: 0 | J39: 0 | L39: 0 | M39: 0 | N39: 0 | O39: 0 | P39: 0 | Q39: 0 | R39: 0 | S39: 0 | T39: 0 | U39: 0 | V39: 0 | W39: 0 | X39: 0 | Y39: 0 | Z39: 0 | AA39: 0 | AB39: 0 | AC39: 0 | AD39: 0 | AE39: 0 | AF39: 0 | AG39: 0 | AH39: 0 | AI39: 0 | AJ39: 0 | AK39: 0 | AL39: 0 | AM39: 0 | AN39: 0 | AO39: 0 | AP39: 0 | AQ39: 0 | AR39: 0 | AS39: 0 | AT39: 0 | AU39: 0 | AV39: 0 | AW39: 0 | AX39: 0 | AY39: 0 | AZ39: 0 | BA39: 0 | BB39: 0 | BC39: 0 | BD39: 0 | BE39: 0 | BF39: 0 | BG39: 0 | BH39: 0 | BI39: 0 | BJ39: 0 | BK39: 0 | BL39: 0 | BM39: 0 | BN39: 0 | BO39: 0 | BP39: 0 | BQ39: 0 | BR39: 0 | BS39: 0 | BT39: 0 | BU39: 0 | BV39: 0 | BW39: 0 | BX39: 0 | BY39: 0 | BZ39: 0 | CA39: 0 | CB39: 0 | CC39: 0 | CD39: 0 | CE39: 0 | CG39: 0 | CH39: 0 | CI39: 0 | CJ39: 0 | CK39: 0 | CL39: 0 | CM39: 0 | CN39: 0 | CO39: 0 | CP39: 0 | CQ39: 0 | CR39: 0 | CS39: 0 | CT39: 0 | CU39: 0 | CV39: 0 | CW39: 0 | CX39: 0 | CY39: 0 | CZ39: 0 | DA39: 0 | DB39: 0 | DC39: 0 | DD39: 0 | DE39: 0 | DF39: 0 | DG39: 0 | DH39: 0 | DI39: 0 | DJ39: 0 | DK39: 0 | DL39: 0 | DM39: 0 | DN39: 0 | DO39: 0 | DP39: 0 | DQ39: 0 | DR39: 0 | DS39: 0 | DT39: 0 | DU39: 0 | DV39: 0 | DW39: 0 | DX39: 0 | DY39: 0 | DZ39: 0 | EA39: 0 | EB39: 0 | EC39: 0 | ED39: 0 | EE39: 0 | EF39: 0 | EG39: 0 | EH39: 0 | EI39: 0 | EJ39: 0 | EK39: 0 | EL39: 0 | EM39: 0 | EN39: 0 | EO39: 0 | EP39: 0 | EQ39: 0 | ER39: 0 | ES39: 0 | ET39: 0 | EU39: 0 | EV39: 0 | EW39: 0 | EX39: 0 | EY39: 0 | EZ39: 0
C40: Riverside Seasonal | D40: FPS_EXS_RVS | E40: 0 | F40: 0 | G40: 0 | H40: 0 | I40: 0 | J40: 0 | L40: 0 | M40: 0 | N40: 0 | O40: 0 | P40: 0 | Q40: 0 | R40: 0 | S40: 0 | T40: 0 | U40: 0 | V40: 0 | W40: 0 | X40: 0 | Y40: 0 | Z40: 0 | AA40: 0 | AB40: 0 | AC40: 0 | AD40: 0 | AE40: 0 | AF40: 0 | AG40: 0 | AH40: 0 | AI40: 0 | AJ40: 0 | AK40: 0 | AL40: 0 | AM40: 0 | AN40: 0 | AO40: 0 | AP40: 0 | AQ40: 0 | AR40: 0 | AS40: 0 | AT40: 0 | AU40: 0 | AV40: 0 | AW40: 0 | AX40: 0 | AY40: 0 | AZ40: 0 | BA40: 0 | BB40: 0 | BC40: 0 | BD40: 0 | BE40: 0 | BF40: 0 | BG40: 0 | BH40: 0 | BI40: 0 | BJ40: 0 | BK40: 0 | BL40: 0 | BM40: 0 | BN40: 0 | BO40: 0 | BP40: 0 | BQ40: 0 | BR40: 0 | BS40: 0 | BT40: 0 | BU40: 0 | BV40: 0 | BW40: 0 | BX40: 0 | BY40: 0 | BZ40: 0 | CA40: 0 | CB40: 0 | CC40: 0 | CD40: 0 | CE40: 0 | CG40: 0 | CH40: 0 | CI40: 0 | CJ40: 0 | CK40: 0 | CL40: 0 | CM40: 0 | CN40: 0 | CO40: 0 | CP40: 0 | CQ40: 0 | CR40: 0 | CS40: 0 | CT40: 0 | CU40: 0 | CV40: 0 | CW40: 0 | CX40: 0 | CY40: 0 | CZ40: 0 | DA40: 0 | DB40: 0 | DC40: 0 | DD40: 0 | DE40: 0 | DF40: 0 | DG40: 0 | DH40: 0 | DI40: 0 | DJ40: 0 | DK40: 0 | DL40: 0 | DM40: 0 | DN40: 0 | DO40: 0 | DP40: 0 | DQ40: 0 | DR40: 0 | DS40: 0 | DT40: 0 | DU40: 0 | DV40: 0 | DW40: 0 | DX40: 0 | DY40: 0 | DZ40: 0 | EA40: 0 | EB40: 0 | EC40: 0 | ED40: 0 | EE40: 0 | EF40: 0 | EG40: 0 | EH40: 0 | EI40: 0 | EJ40: 0 | EK40: 0 | EL40: 0 | EM40: 0 | EN40: 0 | EO40: 0 | EP40: 0 | EQ40: 0 | ER40: 0 | ES40: 0 | ET40: 0 | EU40: 0 | EV40: 0 | EW40: 0 | EX40: 0 | EY40: 0 | EZ40: 0
C41: Pasadena Capacity | D41: FPS_EXS_PAC | E41: 0 | F41: 0 | G41: 0 | H41: 0 | I41: 0 | J41: 0 | L41: 0 | M41: 0 | N41: 0 | O41: 0 | P41: 0 | Q41: 0 | R41: 0 | S41: 0 | T41: 0 | U41: 0 | V41: 0 | W41: 0 | X41: 0 | Y41: 0 | Z41: 0 | AA41: 0 | AB41: 0 | AC41: 0 | AD41: 0 | AE41: 0 | AF41: 0 | AG41: 0 | AH41: 0 | AI41: 0 | AJ41: 0 | AK41: 0 | AL41: 0 | AM41: 0 | AN41: 0 | AO41: 0 | AP41: 0 | AQ41: 0 | AR41: 0 | AS41: 0 | AT41: 0 | AU41: 0 | AV41: 0 | AW41: 0 | AX41: 0 | AY41: 0 | AZ41: 0 | BA41: 0 | BB41: 0 | BC41: 0 | BD41: 0 | BE41: 0 | BF41: 0 | BG41: 0 | BH41: 0 | BI41: 0 | BJ41: 0 | BK41: 0 | BL41: 0 | BM41: 0 | BN41: 0 | BO41: 0 | BP41: 0 | BQ41: 0 | BR41: 0 | BS41: 0 | BT41: 0 | BU41: 0 | BV41: 0 | BW41: 0 | BX41: 0 | BY41: 0 | BZ41: 0 | CA41: 0 | CB41: 0 | CC41: 0 | CD41: 0 | CE41: 0 | CG41: 0 | CH41: 0 | CI41: 0 | CJ41: 0 | CK41: 0 | CL41: 0 | CM41: 0 | CN41: 0 | CO41: 0 | CP41: 0 | CQ41: 0 | CR41: 0 | CS41: 0 | CT41: 0 | CU41: 0 | CV41: 0 | CW41: 0 | CX41: 0 | CY41: 0 | CZ41: 0 | DA41: 0 | DB41: 0 | DC41: 0 | DD41: 0 | DE41: 0 | DF41: 0 | DG41: 0 | DH41: 0 | DI41: 0 | DJ41: 0 | DK41: 0 | DL41: 0 | DM41: 0 | DN41: 0 | DO41: 0 | DP41: 0 | DQ41: 0 | DR41: 0 | DS41: 0 | DT41: 0 | DU41: 0 | DV41: 0 | DW41: 0 | DX41: 0 | DY41: 0 | DZ41: 0 | EA41: 0 | EB41: 0 | EC41: 0 | ED41: 0 | EE41: 0 | EF41: 0 | EG41: 0 | EH41: 0 | EI41: 0 | EJ41: 0 | EK41: 0 | EL41: 0 | EM41: 0 | EN41: 0 | EO41: 0 | EP41: 0 | EQ41: 0 | ER41: 0 | ES41: 0 | ET41: 0 | EU41: 0 | EV41: 0 | EW41: 0 | EX41: 0 | EY41: 0 | EZ41: 0
C42: Pasadena Seasonal | D42: FPS_EXS_PAS | E42: 0 | F42: 0 | G42: 0 | H42: 0 | I42: 0 | J42: 0 | L42: 0 | M42: 0 | N42: 0 | O42: 0 | P42: 0 | Q42: 0 | R42: 0 | S42: 0 | T42: 0 | U42: 0 | V42: 0 | W42: 0 | X42: 0 | Y42: 0 | Z42: 0 | AA42: 0 | AB42: 0 | AC42: 0 | AD42: 0 | AE42: 0 | AF42: 0 | AG42: 0 | AH42: 0 | AI42: 0 | AJ42: 0 | AK42: 0 | AL42: 0 | AM42: 0 | AN42: 0 | AO42: 0 | AP42: 0 | AQ42: 0 | AR42: 0 | AS42: 0 | AT42: 0 | AU42: 0 | AV42: 0 | AW42: 0 | AX42: 0 | AY42: 0 | AZ42: 0 | BA42: 0 | BB42: 0 | BC42: 0 | BD42: 0 | BE42: 0 | BF42: 0 | BG42: 0 | BH42: 0 | BI42: 0 | BJ42: 0 | BK42: 0 | BL42: 0 | BM42: 0 | BN42: 0 | BO42: 0 | BP42: 0 | BQ42: 0 | BR42: 0 | BS42: 0 | BT42: 0 | BU42: 0 | BV42: 0 | BW42: 0 | BX42: 0 | BY42: 0 | BZ42: 0 | CA42: 0 | CB42: 0 | CC42: 0 | CD42: 0 | CE42: 0 | CG42: 0 | CH42: 0 | CI42: 0 | CJ42: 0 | CK42: 0 | CL42: 0 | CM42: 0 | CN42: 0 | CO42: 0 | CP42: 0 | CQ42: 0 | CR42: 0 | CS42: 0 | CT42: 0 | CU42: 0 | CV42: 0 | CW42: 0 | CX42: 0 | CY42: 0 | CZ42: 0 | DA42: 0 | DB42: 0 | DC42: 0 | DD42: 0 | DE42: 0 | DF42: 0 | DG42: 0 | DH42: 0 | DI42: 0 | DJ42: 0 | DK42: 0 | DL42: 0 | DM42: 0 | DN42: 0 | DO42: 0 | DP42: 0 | DQ42: 0 | DR42: 0 | DS42: 0 | DT42: 0 | DU42: 0 | DV42: 0 | DW42: 0 | DX42: 0 | DY42: 0 | DZ42: 0 | EA42: 0 | EB42: 0 | EC42: 0 | ED42: 0 | EE42: 0 | EF42: 0 | EG42: 0 | EH42: 0 | EI42: 0 | EJ42: 0 | EK42: 0 | EL42: 0 | EM42: 0 | EN42: 0 | EO42: 0 | EP42: 0 | EQ42: 0 | ER42: 0 | ES42: 0 | ET42: 0 | EU42: 0 | EV42: 0 | EW42: 0 | EX42: 0 | EY42: 0 | EZ42: 0
C43: PG&E | D43: FPS_EXS_PGE | E43: 229255.494 | F43: 58247.506 | G43: 0 | H43: 0 | I43: 0 | J43: 0 | L43: 0 | M43: 0 | N43: 0 | O43: 0 | P43: 0 | Q43: 0 | R43: 0 | S43: 0 | T43: 0 | U43: 0 | V43: 0 | W43: 0 | X43: 0 | Y43: 0 | Z43: 0 | AA43: 0 | AB43: 0 | AC43: 0 | AD43: 0 | AE43: 0 | AF43: 0 | AG43: 0 | AH43: 0 | AI43: 0 | AJ43: 0 | AK43: 0 | AL43: 0 | AM43: 0 | AN43: 0 | AO43: 0 | AP43: 0 | AQ43: 0 | AR43: 0 | AS43: 0 | AT43: 0 | AU43: 0 | AV43: 0 | AW43: 0 | AX43: 0 | AY43: 0 | AZ43: 0 | BA43: 0 | BB43: 0 | BC43: 0 | BD43: 0 | BE43: 0 | BF43: 0 | BG43: 0 | BH43: 0 | BI43: 0 | BJ43: 0 | BK43: 0 | BL43: 0 | BM43: 0 | BN43: 0 | BO43: 0 | BP43: 0 | BQ43: 0 | BR43: 0 | BS43: 0 | BT43: 0 | BU43: 0 | BV43: 0 | BW43: 0 | BX43: 0 | BY43: 0 | BZ43: 0 | CA43: 0 | CB43: 0 | CC43: 0 | CD43: 0 | CE43: 0 | CG43: 17400.072 | CH43: 13160.037 | CI43: 10303.832 | CJ43: 11295.992 | CK43: 8256.096 | CL43: 14183.777 | CM43: 23216 | CN43: 24879.784 | CO43: 27287.952 | CP43: 29247.912 | CQ43: 28872.168 | CR43: 21151.872 | CS43: 16415.88 | CT43: 13239.966 | CU43: 10431.8 | CV43: 10135.856 | CW43: 7816.032 | CX43: 207.972 | CY43: 0 | CZ43: 0 | DA43: 0 | DB43: 0 | DC43: 0 | DD43: 0 | DE43: 0 | DF43: 0 | DG43: 0 | DH43: 0 | DI43: 0 | DJ43: 0 | DK43: 0 | DL43: 0 | DM43: 0 | DN43: 0 | DO43: 0 | DP43: 0 | DQ43: 0 | DR43: 0 | DS43: 0 | DT43: 0 | DU43: 0 | DV43: 0 | DW43: 0 | DX43: 0 | DY43: 0 | DZ43: 0 | EA43: 0 | EB43: 0 | EC43: 0 | ED43: 0 | EE43: 0 | EF43: 0 | EG43: 0 | EH43: 0 | EI43: 0 | EJ43: 0 | EK43: 0 | EL43: 0 | EM43: 0 | EN43: 0 | EO43: 0 | EP43: 0 | EQ43: 0 | ER43: 0 | ES43: 0 | ET43: 0 | EU43: 0 | EV43: 0 | EW43: 0 | EX43: 0 | EY43: 0 | EZ43: 0
C44: Intertie Losses | D44: FPS_EXS_LSS | E44: 6877.66482 | F44: 1747.42518 | G44: 0 | H44: 0 | I44: 0 | J44: 0 | L44: 0 | M44: 0 | N44: 0 | O44: 0 | P44: 0 | Q44: 0 | R44: 0 | S44: 0 | T44: 0 | U44: 0 | V44: 0 | W44: 0 | X44: 0 | Y44: 0 | Z44: 0 | AA44: 0 | AB44: 0 | AC44: 0 | AD44: 0 | AE44: 0 | AF44: 0 | AG44: 0 | AH44: 0 | AI44: 0 | AJ44: 0 | AK44: 0 | AL44: 0 | AM44: 0 | AN44: 0 | AO44: 0 | AP44: 0 | AQ44: 0 | AR44: 0 | AS44: 0 | AT44: 0 | AU44: 0 | AV44: 0 | AW44: 0 | AX44: 0 | AY44: 0 | AZ44: 0 | BA44: 0 | BB44: 0 | BC44: 0 | BD44: 0 | BE44: 0 | BF44: 0 | BG44: 0 | BH44: 0 | BI44: 0 | BJ44: 0 | BK44: 0 | BL44: 0 | BM44: 0 | BN44: 0 | BO44: 0 | BP44: 0 | BQ44: 0 | BR44: 0 | BS44: 0 | BT44: 0 | BU44: 0 | BV44: 0 | BW44: 0 | BX44: 0 | BY44: 0 | BZ44: 0 | CA44: 0 | CB44: 0 | CC44: 0 | CD44: 0 | CE44: 0 | CG44: 522.00216 | CH44: 394.80111 | CI44: 309.11496 | CJ44: 338.87976 | CK44: 247.68288 | CL44: 425.51331 | CM44: 696.48 | CN44: 746.39352 | CO44: 818.63856 | CP44: 877.43736 | CQ44: 866.16504 | CR44: 634.55616 | CS44: 492.4764 | CT44: 397.19898 | CU44: 312.954 | CV44: 304.07568 | CW44: 234.48096 | CX44: 6.23916 | CY44: 0 | CZ44: 0 | DA44: 0 | DB44: 0 | DC44: 0 | DD44: 0 | DE44: 0 | DF44: 0 | DG44: 0 | DH44: 0 | DI44: 0 | DJ44: 0 | DK44: 0 | DL44: 0 | DM44: 0 | DN44: 0 | DO44: 0 | DP44: 0 | DQ44: 0 | DR44: 0 | DS44: 0 | DT44: 0 | DU44: 0 | DV44: 0 | DW44: 0 | DX44: 0 | DY44: 0 | DZ44: 0 | EA44: 0 | EB44: 0 | EC44: 0 | ED44: 0 | EE44: 0 | EF44: 0 | EG44: 0 | EH44: 0 | EI44: 0 | EJ44: 0 | EK44: 0 | EL44: 0 | EM44: 0 | EN44: 0 | EO44: 0 | EP44: 0 | EQ44: 0 | ER44: 0 | ES44: 0 | ET44: 0 | EU44: 0 | EV44: 0 | EW44: 0 | EX44: 0 | EY44: 0 | EZ44: 0
C45: PacifiCorp | D45: FPS_EXS_PPL | E45: 38194.467 | F45: 38254.384 | G45: 38300.666 | H45: 3279.768 | I45: 0 | J45: 0 | L45: 1839.968 | M45: 2122 | N45: 1360 | O45: 1240.096 | P45: 1206.144 | Q45: 806.112 | R45: 1987.2 | S45: 2196.896 | T45: 1706.016 | U45: 2746 | V45: 2280.096 | W45: 1549.824 | X45: 1842.912 | Y45: 2117.2 | Z45: 1360 | AA45: 1240.096 | AB45: 1206.144 | AC45: 806.208 | AD45: 1996.8 | AE45: 2204.8 | AF45: 1706 | AG45: 2760.16 | AH45: 2287.872 | AI45: 1549.824 | AJ45: 1842.912 | AK45: 2117.2 | AL45: 1360 | AM45: 1240.096 | AN45: 1206 | AO45: 839.904 | AP45: 1996.8 | AQ45: 2204.8 | AR45: 1720.16 | AS45: 2746.016 | AT45: 2288 | AU45: 1560 | AV45: 1839.888 | AW45: 0 | AX45: 0 | AY45: 0 | AZ45: 0 | BA45: 0 | BB45: 0 | BC45: 0 | BD45: 0 | BE45: 0 | BF45: 0 | BG45: 0 | BH45: 0 | BI45: 0 | BJ45: 0 | BK45: 0 | BL45: 0 | BM45: 0 | BN45: 0 | BO45: 0 | BP45: 0 | BQ45: 0 | BR45: 0 | BS45: 0 | BT45: 0 | BU45: 0 | BV45: 0 | BW45: 0 | BX45: 0 | BY45: 0 | BZ45: 0 | CA45: 0 | CB45: 0 | CC45: 0 | CD45: 0 | CE45: 0 | CG45: 1439.92 | CH45: 1706.115 | CI45: 1380.128 | CJ45: 1169.976 | CK45: 656.064 | CL45: 806.112 | CM45: 1400 | CN45: 1545.864 | CO45: 1869.904 | CP45: 1975.936 | CQ45: 1686.048 | CR45: 1518.048 | CS45: 1444.872 | CT45: 1684.929 | CU45: 1380.128 | CV45: 1169.976 | CW45: 656.064 | CX45: 806.055 | CY45: 1406 | CZ45: 1550.128 | DA45: 1870.08 | DB45: 1984.072 | DC45: 1706.016 | DD45: 1518.048 | DE45: 1444.872 | DF45: 1684.929 | DG45: 1380.128 | DH45: 1169.976 | DI45: 655.936 | DJ45: 828.945 | DK45: 1406 | DL45: 1550.064 | DM45: 1858.048 | DN45: 1975.872 | DO45: 1705.928 | DP45: 1518.08 | DQ45: 1439.88 | DR45: 0 | DS45: 0 | DT45: 0 | DU45: 0 | DV45: 0 | DW45: 0 | DX45: 0 | DY45: 0 | DZ45: 0 | EA45: 0 | EB45: 0 | EC45: 0 | ED45: 0 | EE45: 0 | EF45: 0 | EG45: 0 | EH45: 0 | EI45: 0 | EJ45: 0 | EK45: 0 | EL45: 0 | EM45: 0 | EN45: 0 | EO45: 0 | EP45: 0 | EQ45: 0 | ER45: 0 | ES45: 0 | ET45: 0 | EU45: 0 | EV45: 0 | EW45: 0 | EX45: 0 | EY45: 0 | EZ45: 0
E46: 0 | F46: 0 | G46: 0 | H46: 0 | I46: 0 | J46: 0 | L46: 0 | M46: 0 | N46: 0 | O46: 0 | P46: 0 | Q46: 0 | R46: 0 | S46: 0 | T46: 0 | U46: 0 | V46: 0 | W46: 0 | X46: 0 | Y46: 0 | Z46: 0 | AA46: 0 | AB46: 0 | AC46: 0 | AD46: 0 | AE46: 0 | AF46: 0 | AG46: 0 | AH46: 0 | AI46: 0 | AJ46: 0 | AK46: 0 | AL46: 0 | AM46: 0 | AN46: 0 | AO46: 0 | AP46: 0 | AQ46: 0 | AR46: 0 | AS46: 0 | AT46: 0 | AU46: 0 | AV46: 0 | AW46: 0 | AX46: 0 | AY46: 0 | AZ46: 0 | BA46: 0 | BB46: 0 | BC46: 0 | BD46: 0 | BE46: 0 | BF46: 0 | BG46: 0 | BH46: 0 | BI46: 0 | BJ46: 0 | BK46: 0 | BL46: 0 | BM46: 0 | BN46: 0 | BO46: 0 | BP46: 0 | BQ46: 0 | BR46: 0 | BS46: 0 | BT46: 0 | BU46: 0 | BV46: 0 | BW46: 0 | BX46: 0 | BY46: 0 | BZ46: 0 | CA46: 0 | CB46: 0 | CC46: 0 | CD46: 0 | CE46: 0 | CG46: 0 | CH46: 0 | CI46: 0 | CJ46: 0 | CK46: 0 | CL46: 0 | CM46: 0 | CN46: 0 | CO46: 0 | CP46: 0 | CQ46: 0 | CR46: 0 | CS46: 0 | CT46: 0 | CU46: 0 | CV46: 0 | CW46: 0 | CX46: 0 | CY46: 0 | CZ46: 0 | DA46: 0 | DB46: 0 | DC46: 0 | DD46: 0 | DE46: 0 | DF46: 0 | DG46: 0 | DH46: 0 | DI46: 0 | DJ46: 0 | DK46: 0 | DL46: 0 | DM46: 0 | DN46: 0 | DO46: 0 | DP46: 0 | DQ46: 0 | DR46: 0 | DS46: 0 | DT46: 0 | DU46: 0 | DV46: 0 | DW46: 0 | DX46: 0 | DY46: 0 | DZ46: 0 | EA46: 0 | EB46: 0 | EC46: 0 | ED46: 0 | EE46: 0 | EF46: 0 | EG46: 0 | EH46: 0 | EI46: 0 | EJ46: 0 | EK46: 0 | EL46: 0 | EM46: 0 | EN46: 0 | EO46: 0 | EP46: 0 | EQ46: 0 | ER46: 0 | ES46: 0 | ET46: 0 | EU46: 0 | EV46: 0 | EW46: 0 | EX46: 0 | EY46: 0 | EZ46: 0
E47: 0 | F47: 0 | G47: 0 | H47: 0 | I47: 0 | J47: 0 | L47: 0 | M47: 0 | N47: 0 | O47: 0 | P47: 0 | Q47: 0 | R47: 0 | S47: 0 | T47: 0 | U47: 0 | V47: 0 | W47: 0 | X47: 0 | Y47: 0 | Z47: 0 | AA47: 0 | AB47: 0 | AC47: 0 | AD47: 0 | AE47: 0 | AF47: 0 | AG47: 0 | AH47: 0 | AI47: 0 | AJ47: 0 | AK47: 0 | AL47: 0 | AM47: 0 | AN47: 0 | AO47: 0 | AP47: 0 | AQ47: 0 | AR47: 0 | AS47: 0 | AT47: 0 | AU47: 0 | AV47: 0 | AW47: 0 | AX47: 0 | AY47: 0 | AZ47: 0 | BA47: 0 | BB47: 0 | BC47: 0 | BD47: 0 | BE47: 0 | BF47: 0 | BG47: 0 | BH47: 0 | BI47: 0 | BJ47: 0 | BK47: 0 | BL47: 0 | BM47: 0 | BN47: 0 | BO47: 0 | BP47: 0 | BQ47: 0 | BR47: 0 | BS47: 0 | BT47: 0 | BU47: 0 | BV47: 0 | BW47: 0 | BX47: 0 | BY47: 0 | BZ47: 0 | CA47: 0 | CB47: 0 | CC47: 0 | CD47: 0 | CE47: 0 | CG47: 0 | CH47: 0 | CI47: 0 | CJ47: 0 | CK47: 0 | CL47: 0 | CM47: 0 | CN47: 0 | CO47: 0 | CP47: 0 | CQ47: 0 | CR47: 0 | CS47: 0 | CT47: 0 | CU47: 0 | CV47: 0 | CW47: 0 | CX47: 0 | CY47: 0 | CZ47: 0 | DA47: 0 | DB47: 0 | DC47: 0 | DD47: 0 | DE47: 0 | DF47: 0 | DG47: 0 | DH47: 0 | DI47: 0 | DJ47: 0 | DK47: 0 | DL47: 0 | DM47: 0 | DN47: 0 | DO47: 0 | DP47: 0 | DQ47: 0 | DR47: 0 | DS47: 0 | DT47: 0 | DU47: 0 | DV47: 0 | DW47: 0 | DX47: 0 | DY47: 0 | DZ47: 0 | EA47: 0 | EB47: 0 | EC47: 0 | ED47: 0 | EE47: 0 | EF47: 0 | EG47: 0 | EH47: 0 | EI47: 0 | EJ47: 0 | EK47: 0 | EL47: 0 | EM47: 0 | EN47: 0 | EO47: 0 | EP47: 0 | EQ47: 0 | ER47: 0 | ES47: 0 | ET47: 0 | EU47: 0 | EV47: 0 | EW47: 0 | EX47: 0 | EY47: 0 | EZ47: 0
E48: 0 | F48: 0 | G48: 0 | H48: 0 | I48: 0 | J48: 0 | L48: 0 | M48: 0 | N48: 0 | O48: 0 | P48: 0 | Q48: 0 | R48: 0 | S48: 0 | T48: 0 | U48: 0 | V48: 0 | W48: 0 | X48: 0 | Y48: 0 | Z48: 0 | AA48: 0 | AB48: 0 | AC48: 0 | AD48: 0 | AE48: 0 | AF48: 0 | AG48: 0 | AH48: 0 | AI48: 0 | AJ48: 0 | AK48: 0 | AL48: 0 | AM48: 0 | AN48: 0 | AO48: 0 | AP48: 0 | AQ48: 0 | AR48: 0 | AS48: 0 | AT48: 0 | AU48: 0 | AV48: 0 | AW48: 0 | AX48: 0 | AY48: 0 | AZ48: 0 | BA48: 0 | BB48: 0 | BC48: 0 | BD48: 0 | BE48: 0 | BF48: 0 | BG48: 0 | BH48: 0 | BI48: 0 | BJ48: 0 | BK48: 0 | BL48: 0 | BM48: 0 | BN48: 0 | BO48: 0 | BP48: 0 | BQ48: 0 | BR48: 0 | BS48: 0 | BT48: 0 | BU48: 0 | BV48: 0 | BW48: 0 | BX48: 0 | BY48: 0 | BZ48: 0 | CA48: 0 | CB48: 0 | CC48: 0 | CD48: 0 | CE48: 0 | CG48: 0 | CH48: 0 | CI48: 0 | CJ48: 0 | CK48: 0 | CL48: 0 | CM48: 0 | CN48: 0 | CO48: 0 | CP48: 0 | CQ48: 0 | CR48: 0 | CS48: 0 | CT48: 0 | CU48: 0 | CV48: 0 | CW48: 0 | CX48: 0 | CY48: 0 | CZ48: 0 | DA48: 0 | DB48: 0 | DC48: 0 | DD48: 0 | DE48: 0 | DF48: 0 | DG48: 0 | DH48: 0 | DI48: 0 | DJ48: 0 | DK48: 0 | DL48: 0 | DM48: 0 | DN48: 0 | DO48: 0 | DP48: 0 | DQ48: 0 | DR48: 0 | DS48: 0 | DT48: 0 | DU48: 0 | DV48: 0 | DW48: 0 | DX48: 0 | DY48: 0 | DZ48: 0 | EA48: 0 | EB48: 0 | EC48: 0 | ED48: 0 | EE48: 0 | EF48: 0 | EG48: 0 | EH48: 0 | EI48: 0 | EJ48: 0 | EK48: 0 | EL48: 0 | EM48: 0 | EN48: 0 | EO48: 0 | EP48: 0 | EQ48: 0 | ER48: 0 | ES48: 0 | ET48: 0 | EU48: 0 | EV48: 0 | EW48: 0 | EX48: 0 | EY48: 0 | EZ48: 0
A49: Presale of Secondary | D49: PRS | E49: 0 | F49: 0 | G49: 0 | H49: 0 | I49: 0 | J49: 0 | L49: 0 | M49: 0 | N49: 0 | O49: 0 | P49: 0 | Q49: 0 | R49: 0 | S49: 0 | T49: 0 | U49: 0 | V49: 0 | W49: 0 | X49: 0 | Y49: 0 | Z49: 0 | AA49: 0 | AB49: 0 | AC49: 0 | AD49: 0 | AE49: 0 | AF49: 0 | AG49: 0 | AH49: 0 | AI49: 0 | AJ49: 0 | AK49: 0 | AL49: 0 | AM49: 0 | AN49: 0 | AO49: 0 | AP49: 0 | AQ49: 0 | AR49: 0 | AS49: 0 | AT49: 0 | AU49: 0 | AV49: 0 | AW49: 0 | AX49: 0 | AY49: 0 | AZ49: 0 | BA49: 0 | BB49: 0 | BC49: 0 | BD49: 0 | BE49: 0 | BF49: 0 | BG49: 0 | BH49: 0 | BI49: 0 | BJ49: 0 | BK49: 0 | BL49: 0 | BM49: 0 | BN49: 0 | BO49: 0 | BP49: 0 | BQ49: 0 | BR49: 0 | BS49: 0 | BT49: 0 | BU49: 0 | BV49: 0 | BW49: 0 | BX49: 0 | BY49: 0 | BZ49: 0 | CA49: 0 | CB49: 0 | CC49: 0 | CD49: 0 | CE49: 0 | CG49: 0 | CH49: 0 | CI49: 0 | CJ49: 0 | CK49: 0 | CL49: 0 | CM49: 0 | CN49: 0 | CO49: 0 | CP49: 0 | CQ49: 0 | CR49: 0 | CS49: 0 | CT49: 0 | CU49: 0 | CV49: 0 | CW49: 0 | CX49: 0 | CY49: 0 | CZ49: 0 | DA49: 0 | DB49: 0 | DC49: 0 | DD49: 0 | DE49: 0 | DF49: 0 | DG49: 0 | DH49: 0 | DI49: 0 | DJ49: 0 | DK49: 0 | DL49: 0 | DM49: 0 | DN49: 0 | DO49: 0 | DP49: 0 | DQ49: 0 | DR49: 0 | DS49: 0 | DT49: 0 | DU49: 0 | DV49: 0 | DW49: 0 | DX49: 0 | DY49: 0 | DZ49: 0 | EA49: 0 | EB49: 0 | EC49: 0 | ED49: 0 | EE49: 0 | EF49: 0 | EG49: 0 | EH49: 0 | EI49: 0 | EJ49: 0 | EK49: 0 | EL49: 0 | EM49: 0 | EN49: 0 | EO49: 0 | EP49: 0 | EQ49: 0 | ER49: 0 | ES49: 0 | ET49: 0 | EU49: 0 | EV49: 0 | EW49: 0 | EX49: 0 | EY49: 0 | EZ49: 0
A50: Irrigation Mitigation | E50: 0 | F50: 0 | G50: 0 | H50: 0 | I50: 0 | J50: 0 | L50: 0 | M50: 0 | N50: 0 | O50: 0 | P50: 0 | Q50: 0 | R50: 0 | S50: 0 | T50: 0 | U50: 0 | V50: 0 | W50: 0 | X50: 0 | Y50: 0 | Z50: 0 | AA50: 0 | AB50: 0 | AC50: 0 | AD50: 0 | AE50: 0 | AF50: 0 | AG50: 0 | AH50: 0 | AI50: 0 | AJ50: 0 | AK50: 0 | AL50: 0 | AM50: 0 | AN50: 0 | AO50: 0 | AP50: 0 | AQ50: 0 | AR50: 0 | AS50: 0 | AT50: 0 | AU50: 0 | AV50: 0 | AW50: 0 | AX50: 0 | AY50: 0 | AZ50: 0 | BA50: 0 | BB50: 0 | BC50: 0 | BD50: 0 | BE50: 0 | BF50: 0 | BG50: 0 | BH50: 0 | BI50: 0 | BJ50: 0 | BK50: 0 | BL50: 0 | BM50: 0 | BN50: 0 | BO50: 0 | BP50: 0 | BQ50: 0 | BR50: 0 | BS50: 0 | BT50: 0 | BU50: 0 | BV50: 0 | BW50: 0 | BX50: 0 | BY50: 0 | BZ50: 0 | CA50: 0 | CB50: 0 | CC50: 0 | CD50: 0 | CE50: 0 | CG50: 0 | CH50: 0 | CI50: 0 | CJ50: 0 | CK50: 0 | CL50: 0 | CM50: 0 | CN50: 0 | CO50: 0 | CP50: 0 | CQ50: 0 | CR50: 0 | CS50: 0 | CT50: 0 | CU50: 0 | CV50: 0 | CW50: 0 | CX50: 0 | CY50: 0 | CZ50: 0 | DA50: 0 | DB50: 0 | DC50: 0 | DD50: 0 | DE50: 0 | DF50: 0 | DG50: 0 | DH50: 0 | DI50: 0 | DJ50: 0 | DK50: 0 | DL50: 0 | DM50: 0 | DN50: 0 | DO50: 0 | DP50: 0 | DQ50: 0 | DR50: 0 | DS50: 0 | DT50: 0 | DU50: 0 | DV50: 0 | DW50: 0 | DX50: 0 | DY50: 0 | DZ50: 0 | EA50: 0 | EB50: 0 | EC50: 0 | ED50: 0 | EE50: 0 | EF50: 0 | EG50: 0 | EH50: 0 | EI50: 0 | EJ50: 0 | EK50: 0 | EL50: 0 | EM50: 0 | EN50: 0 | EO50: 0 | EP50: 0 | EQ50: 0 | ER50: 0 | ES50: 0 | ET50: 0 | EU50: 0 | EV50: 0 | EW50: 0 | EX50: 0 | EY50: 0 | EZ50: 0
A51: Conservation | D51: CON | E51: 0 | F51: 0 | G51: 0 | H51: 0 | I51: 0 | J51: 0 | L51: 0 | M51: 0 | N51: 0 | O51: 0 | P51: 0 | Q51: 0 | R51: 0 | S51: 0 | T51: 0 | U51: 0 | V51: 0 | W51: 0 | X51: 0 | Y51: 0 | Z51: 0 | AA51: 0 | AB51: 0 | AC51: 0 | AD51: 0 | AE51: 0 | AF51: 0 | AG51: 0 | AH51: 0 | AI51: 0 | AJ51: 0 | AK51: 0 | AL51: 0 | AM51: 0 | AN51: 0 | AO51: 0 | AP51: 0 | AQ51: 0 | AR51: 0 | AS51: 0 | AT51: 0 | AU51: 0 | AV51: 0 | AW51: 0 | AX51: 0 | AY51: 0 | AZ51: 0 | BA51: 0 | BB51: 0 | BC51: 0 | BD51: 0 | BE51: 0 | BF51: 0 | BG51: 0 | BH51: 0 | BI51: 0 | BJ51: 0 | BK51: 0 | BL51: 0 | BM51: 0 | BN51: 0 | BO51: 0 | BP51: 0 | BQ51: 0 | BR51: 0 | BS51: 0 | BT51: 0 | BU51: 0 | BV51: 0 | BW51: 0 | BX51: 0 | BY51: 0 | BZ51: 0 | CA51: 0 | CB51: 0 | CC51: 0 | CD51: 0 | CE51: 0 | CG51: 0 | CH51: 0 | CI51: 0 | CJ51: 0 | CK51: 0 | CL51: 0 | CM51: 0 | CN51: 0 | CO51: 0 | CP51: 0 | CQ51: 0 | CR51: 0 | CS51: 0 | CT51: 0 | CU51: 0 | CV51: 0 | CW51: 0 | CX51: 0 | CY51: 0 | CZ51: 0 | DA51: 0 | DB51: 0 | DC51: 0 | DD51: 0 | DE51: 0 | DF51: 0 | DG51: 0 | DH51: 0 | DI51: 0 | DJ51: 0 | DK51: 0 | DL51: 0 | DM51: 0 | DN51: 0 | DO51: 0 | DP51: 0 | DQ51: 0 | DR51: 0 | DS51: 0 | DT51: 0 | DU51: 0 | DV51: 0 | DW51: 0 | DX51: 0 | DY51: 0 | DZ51: 0 | EA51: 0 | EB51: 0 | EC51: 0 | ED51: 0 | EE51: 0 | EF51: 0 | EG51: 0 | EH51: 0 | EI51: 0 | EJ51: 0 | EK51: 0 | EL51: 0 | EM51: 0 | EN51: 0 | EO51: 0 | EP51: 0 | EQ51: 0 | ER51: 0 | ES51: 0 | ET51: 0 | EU51: 0 | EV51: 0 | EW51: 0 | EX51: 0 | EY51: 0 | EZ51: 0
A54: Loss Percentage | E54: 0.03060908997 | F54: 0.03060908997 | G54: 0.03060908997 | H54: 0.03060908997 | I54: 0.03060908997 | J54: 0.03060908997 | L54: 0.03060908997 | M54: 0.03060908997 | N54: 0.03060908997 | O54: 0.03060908997 | P54: 0.03060908997 | Q54: 0.03060908997 | R54: 0.03060908997 | S54: 0.03060908997 | T54: 0.03060908997 | U54: 0.03060908997 | V54: 0.03060908997 | W54: 0.03060908997 | X54: 0.03060908997 | Y54: 0.03060908997 | Z54: 0.03060908997 | AA54: 0.03060908997 | AB54: 0.03060908997 | AC54: 0.03060908997 | AD54: 0.03060908997 | AE54: 0.03060908997 | AF54: 0.03060908997 | AG54: 0.03060908997 | AH54: 0.03060908997 | AI54: 0.03060908997 | AJ54: 0.03060908997 | AK54: 0.03060908997 | AL54: 0.03060908997 | AM54: 0.03060908997 | AN54: 0.03060908997 | AO54: 0.03060908997 | AP54: 0.03060908997 | AQ54: 0.03060908997 | AR54: 0.03060908997 | AS54: 0.03060908997 | AT54: 0.03060908997 | AU54: 0.03060908997 | AV54: 0.03060908997 | AW54: 0.03060908997 | AX54: 0.03060908997 | AY54: 0.03060908997 | AZ54: 0.03060908997 | BA54: 0.03060908997 | BB54: 0.03060908997 | BC54: 0.03060908997 | BD54: 0.03060908997 | BE54: 0.03060908997 | BF54: 0.03060908997 | BG54: 0.03060908997 | BH54: 0.03060908997 | BI54: 0.03060908997 | BJ54: 0.03060908997 | BK54: 0.03060908997 | BL54: 0.03060908997 | BM54: 0.03060908997 | BN54: 0.03060908997 | BO54: 0.03060908997 | BP54: 0.03060908997 | BQ54: 0.03060908997 | BR54: 0.03060908997 | BS54: 0.03060908997 | BT54: 0.03060908997 | BU54: 0.03060908997 | BV54: 0.03060908997 | BW54: 0.03060908997 | BX54: 0.03060908997 | BY54: 0.03060908997 | BZ54: 0.03060908997 | CA54: 0.03060908997 | CB54: 0.03060908997 | CC54: 0.03060908997 | CD54: 0.03060908997 | CE54: 0.03060908997 | CG54: 0.03060908997 | CH54: 0.03060908997 | CI54: 0.03060908997 | CJ54: 0.03060908997 | CK54: 0.03060908997 | CL54: 0.03060908997 | CM54: 0.03060908997 | CN54: 0.03060908997 | CO54: 0.03060908997 | CP54: 0.03060908997 | CQ54: 0.03060908997 | CR54: 0.03060908997 | CS54: 0.03060908997 | CT54: 0.03060908997 | CU54: 0.03060908997 | CV54: 0.03060908997 | CW54: 0.03060908997 | CX54: 0.03060908997 | CY54: 0.03060908997 | CZ54: 0.03060908997 | DA54: 0.03060908997 | DB54: 0.03060908997 | DC54: 0.03060908997 | DD54: 0.03060908997 | DE54: 0.03060908997 | DF54: 0.03060908997 | DG54: 0.03060908997 | DH54: 0.03060908997 | DI54: 0.03060908997 | DJ54: 0.03060908997 | DK54: 0.03060908997 | DL54: 0.03060908997 | DM54: 0.03060908997 | DN54: 0.03060908997 | DO54: 0.03060908997 | DP54: 0.03060908997 | DQ54: 0.03060908997 | DR54: 0.03060908997 | DS54: 0.03060908997 | DT54: 0.03060908997 | DU54: 0.03060908997 | DV54: 0.03060908997 | DW54: 0.03060908997 | DX54: 0.03060908997 | DY54: 0.03060908997 | DZ54: 0.03060908997 | EA54: 0.03060908997 | EB54: 0.03060908997 | EC54: 0.03060908997 | ED54: 0.03060908997 | EE54: 0.03060908997 | EF54: 0.03060908997 | EG54: 0.03060908997 | EH54: 0.03060908997 | EI54: 0.03060908997 | EJ54: 0.03060908997 | EK54: 0.03060908997 | EL54: 0.03060908997 | EM54: 0.03060908997 | EN54: 0.03060908997 | EO54: 0.03060908997 | EP54: 0.03060908997 | EQ54: 0.03060908997 | ER54: 0.03060908997 | ES54: 0.03060908997 | ET54: 0.03060908997 | EU54: 0.03060908997 | EV54: 0.03060908997 | EW54: 0.03060908997 | EX54: 0.03060908997 | EY54: 0.03060908997 | EZ54: 0.03060908997

Sheet PF Public
B1: Billing Determinants Needed for Rates Analysis Model | O1: Not printed in documentation.
A2: TOC | B2: =Cover!$C$14 -> RAMmodel_REP2018.xls | U2: Not printed in documentation.
A3: é
D4: =+DATE(Init!$C$9-1,10,1) -> 2017-10-01 | E4: =+EOMONTH(D4,0)+1 -> 2017-11-01 | F4: 2017-12-01 | G4: 2018-01-01 | H4: 2018-02-01 | I4: 2018-03-01 | J4: 2018-04-01 | K4: 2018-05-01 | L4: 2018-06-01 | M4: 2018-07-01 | N4: 2018-08-01 | O4: 2018-09-01 | P4: 2018-10-01 | Q4: 2018-11-01 | R4: 2018-12-01 | S4: 2019-01-01 | T4: 2019-02-01 | U4: 2019-03-01 | V4: 2019-04-01 | W4: 2019-05-01 | X4: 2019-06-01 | Y4: 2019-07-01 | Z4: 2019-08-01 | AA4: 2019-09-01 | AB4: 2019-10-01 | AC4: 2019-11-01 | AD4: 2019-12-01 | AE4: 2020-01-01 | AF4: 2020-02-01 | AG4: 2020-03-01 | AH4: 2020-04-01 | AI4: 2020-05-01 | AJ4: 2020-06-01 | AK4: =+EOMONTH(AJ4,0)+1 -> 2020-07-01 | AL4: 2020-08-01 | AM4: 2020-09-01 | AN4: 2020-10-01 | AO4: 2020-11-01 | AP4: 2020-12-01 | AQ4: 2021-01-01 | AR4: 2021-02-01 | AS4: 2021-03-01 | AT4: 2021-04-01 | AU4: 2021-05-01 | AV4: 2021-06-01 | AW4: 2021-07-01 | AX4: 2021-08-01 | AY4: 2021-09-01 | AZ4: 2021-10-01 | BA4: 2021-11-01 | BB4: 2021-12-01 | BC4: 2022-01-01 | BD4: 2022-02-01 | BE4: 2022-03-01 | BF4: 2022-04-01 | BG4: 2022-05-01 | BH4: 2022-06-01 | BI4: 2022-07-01 | BJ4: 2022-08-01 | BK4: 2022-09-01 | BL4: 2022-10-01 | BM4: 2022-11-01 | BN4: 2022-12-01 | BO4: 2023-01-01 | BP4: 2023-02-01 | BQ4: =+EOMONTH(BP4,0)+1 -> 2023-03-01 | BR4: 2023-04-01 | BS4: 2023-05-01 | BT4: 2023-06-01 | BU4: 2023-07-01 | BV4: 2023-08-01 | BW4: 2023-09-01
B5: Public without Undistributed Conservation
B6: HLH | C6: PRE | D6: =+INDEX(Loads!$L:$CE,MATCH($C6,Loads!$D:$D,0),MATCH(D$4,Loads!$L$4:$CE$4,0)) -> 2759929.718 | E6: =+INDEX(Loads!$L:$CE,MATCH($C6,Loads!$D:$D,0),MATCH(E$4,Loads!$L$4:$CE$4,0)) -> 3250230.382 | F6: =+INDEX(Loads!$L:$CE,MATCH($C6,Loads!$D:$D,0),MATCH(F$4,Loads!$L$4:$CE$4,0)) -> 3535226.918 | G6: =+INDEX(Loads!$L:$CE,MATCH($C6,Loads!$D:$D,0),MATCH(G$4,Loads!$L$4:$CE$4,0)) -> 3414788.125 | H6: =+INDEX(Loads!$L:$CE,MATCH($C6,Loads!$D:$D,0),MATCH(H$4,Loads!$L$4:$CE$4,0)) -> 3041297.883 | I6: =+INDEX(Loads!$L:$CE,MATCH($C6,Loads!$D:$D,0),MATCH(I$4,Loads!$L$4:$CE$4,0)) -> 3136300.035 | J6: =+INDEX(Loads!$L:$CE,MATCH($C6,Loads!$D:$D,0),MATCH(J$4,Loads!$L$4:$CE$4,0)) -> 2704895.2 | K6: =+INDEX(Loads!$L:$CE,MATCH($C6,Loads!$D:$D,0),MATCH(K$4,Loads!$L$4:$CE$4,0)) -> 2954582.087 | L6: =+INDEX(Loads!$L:$CE,MATCH($C6,Loads!$D:$D,0),MATCH(L$4,Loads!$L$4:$CE$4,0)) -> 2768082.699 | M6: =+INDEX(Loads!$L:$CE,MATCH($C6,Loads!$D:$D,0),MATCH(M$4,Loads!$L$4:$CE$4,0)) -> 2841639.901 | N6: =+INDEX(Loads!$L:$CE,MATCH($C6,Loads!$D:$D,0),MATCH(N$4,Loads!$L$4:$CE$4,0)) -> 3026918.892 | O6: =+INDEX(Loads!$L:$CE,MATCH($C6,Loads!$D:$D,0),MATCH(O$4,Loads!$L$4:$CE$4,0)) -> 2677260.28 | P6: =+INDEX(Loads!$L:$CE,MATCH($C6,Loads!$D:$D,0),MATCH(P$4,Loads!$L$4:$CE$4,0)) -> 2858974.825 | Q6: =+INDEX(Loads!$L:$CE,MATCH($C6,Loads!$D:$D,0),MATCH(Q$4,Loads!$L$4:$CE$4,0)) -> 3309154.892 | R6: =+INDEX(Loads!$L:$CE,MATCH($C6,Loads!$D:$D,0),MATCH(R$4,Loads!$L$4:$CE$4,0)) -> 3598776.249 | S6: =+INDEX(Loads!$L:$CE,MATCH($C6,Loads!$D:$D,0),MATCH(S$4,Loads!$L$4:$CE$4,0)) -> 3479994.718 | T6: =+INDEX(Loads!$L:$CE,MATCH($C6,Loads!$D:$D,0),MATCH(T$4,Loads!$L$4:$CE$4,0)) -> 3097467.721 | U6: =+INDEX(Loads!$L:$CE,MATCH($C6,Loads!$D:$D,0),MATCH(U$4,Loads!$L$4:$CE$4,0)) -> 3152644.664 | V6: =+INDEX(Loads!$L:$CE,MATCH($C6,Loads!$D:$D,0),MATCH(V$4,Loads!$L$4:$CE$4,0)) -> 2812352.443 | W6: =+INDEX(Loads!$L:$CE,MATCH($C6,Loads!$D:$D,0),MATCH(W$4,Loads!$L$4:$CE$4,0)) -> 2923659.737 | X6: =+INDEX(Loads!$L:$CE,MATCH($C6,Loads!$D:$D,0),MATCH(X$4,Loads!$L$4:$CE$4,0)) -> 2696537.943 | Y6: =+INDEX(Loads!$L:$CE,MATCH($C6,Loads!$D:$D,0),MATCH(Y$4,Loads!$L$4:$CE$4,0)) -> 2937978.895 | Z6: =+INDEX(Loads!$L:$CE,MATCH($C6,Loads!$D:$D,0),MATCH(Z$4,Loads!$L$4:$CE$4,0)) -> 3091578.995 | AA6: =+INDEX(Loads!$L:$CE,MATCH($C6,Loads!$D:$D,0),MATCH(AA$4,Loads!$L$4:$CE$4,0)) -> 2736640.717 | AB6: =+INDEX(Loads!$L:$CE,MATCH($C6,Loads!$D:$D,0),MATCH(AB$4,Loads!$L$4:$CE$4,0)) -> 2911197.319 | AC6: =+INDEX(Loads!$L:$CE,MATCH($C6,Loads!$D:$D,0),MATCH(AC$4,Loads!$L$4:$CE$4,0)) -> 3435229.157 | AD6: =+INDEX(Loads!$L:$CE,MATCH($C6,Loads!$D:$D,0),MATCH(AD$4,Loads!$L$4:$CE$4,0)) -> 3733302.422 | AE6: =+INDEX(Loads!$L:$CE,MATCH($C6,Loads!$D:$D,0),MATCH(AE$4,Loads!$L$4:$CE$4,0)) -> 3667926.908 | AF6: =+INDEX(Loads!$L:$CE,MATCH($C6,Loads!$D:$D,0),MATCH(AF$4,Loads!$L$4:$CE$4,0)) -> 3301856.458 | AG6: =+INDEX(Loads!$L:$CE,MATCH($C6,Loads!$D:$D,0),MATCH(AG$4,Loads!$L$4:$CE$4,0)) -> 3265932.669 | AH6: =+INDEX(Loads!$L:$CE,MATCH($C6,Loads!$D:$D,0),MATCH(AH$4,Loads!$L$4:$CE$4,0)) -> 2842095.952 | AI6: =+INDEX(Loads!$L:$CE,MATCH($C6,Loads!$D:$D,0),MATCH(AI$4,Loads!$L$4:$CE$4,0)) -> 3086284.967 | AJ6: =+INDEX(Loads!$L:$CE,MATCH($C6,Loads!$D:$D,0),MATCH(AJ$4,Loads!$L$4:$CE$4,0)) -> 2905502.471 | AK6: =+INDEX(Loads!$L:$CE,MATCH($C6,Loads!$D:$D,0),MATCH(AK$4,Loads!$L$4:$CE$4,0)) -> 3131091.114 | AL6: =+INDEX(Loads!$L:$CE,MATCH($C6,Loads!$D:$D,0),MATCH(AL$4,Loads!$L$4:$CE$4,0)) -> 3119795.515 | AM6: =+INDEX(Loads!$L:$CE,MATCH($C6,Loads!$D:$D,0),MATCH(AM$4,Loads!$L$4:$CE$4,0)) -> 2835178.279 | AN6: =+INDEX(Loads!$L:$CE,MATCH($C6,Loads!$D:$D,0),MATCH(AN$4,Loads!$L$4:$CE$4,0)) -> 2942458.872 | AO6: =+INDEX(Loads!$L:$CE,MATCH($C6,Loads!$D:$D,0),MATCH(AO$4,Loads!$L$4:$CE$4,0)) -> 3419155.18 | AP6: =+INDEX(Loads!$L:$CE,MATCH($C6,Loads!$D:$D,0),MATCH(AP$4,Loads!$L$4:$CE$4,0)) -> 3825843.299 | AQ6: =+INDEX(Loads!$L:$CE,MATCH($C6,Loads!$D:$D,0),MATCH(AQ$4,Loads!$L$4:$CE$4,0)) -> 3634592.651 | AR6: =+INDEX(Loads!$L:$CE,MATCH($C6,Loads!$D:$D,0),MATCH(AR$4,Loads!$L$4:$CE$4,0)) -> 3251888.895 | AS6: =+INDEX(Loads!$L:$CE,MATCH($C6,Loads!$D:$D,0),MATCH(AS$4,Loads!$L$4:$CE$4,0)) -> 3332447.587 | AT6: =+INDEX(Loads!$L:$CE,MATCH($C6,Loads!$D:$D,0),MATCH(AT$4,Loads!$L$4:$CE$4,0)) -> 2861873.394 | AU6: =+INDEX(Loads!$L:$CE,MATCH($C6,Loads!$D:$D,0),MATCH(AU$4,Loads!$L$4:$CE$4,0)) -> 3061785.389 | AV6: =+INDEX(Loads!$L:$CE,MATCH($C6,Loads!$D:$D,0),MATCH(AV$4,Loads!$L$4:$CE$4,0)) -> 2774699.415 | AW6: =+INDEX(Loads!$L:$CE,MATCH($C6,Loads!$D:$D,0),MATCH(AW$4,Loads!$L$4:$CE$4,0)) -> 3118988.18 | AX6: =+INDEX(Loads!$L:$CE,MATCH($C6,Loads!$D:$D,0),MATCH(AX$4,Loads!$L$4:$CE$4,0)) -> 3141711.803 | AY6: =+INDEX(Loads!$L:$CE,MATCH($C6,Loads!$D:$D,0),MATCH(AY$4,Loads!$L$4:$CE$4,0)) -> 2851116.554 | AZ6: =+INDEX(Loads!$L:$CE,MATCH($C6,Loads!$D:$D,0),MATCH(AZ$4,Loads!$L$4:$CE$4,0)) -> 2893919.463 | BA6: =+INDEX(Loads!$L:$CE,MATCH($C6,Loads!$D:$D,0),MATCH(BA$4,Loads!$L$4:$CE$4,0)) -> 3459934.997 | BB6: =+INDEX(Loads!$L:$CE,MATCH($C6,Loads!$D:$D,0),MATCH(BB$4,Loads!$L$4:$CE$4,0)) -> 3785920.243 | BC6: =+INDEX(Loads!$L:$CE,MATCH($C6,Loads!$D:$D,0),MATCH(BC$4,Loads!$L$4:$CE$4,0)) -> 3623402.149 | BD6: =+INDEX(Loads!$L:$CE,MATCH($C6,Loads!$D:$D,0),MATCH(BD$4,Loads!$L$4:$CE$4,0)) -> 3240954.5 | BE6: =+INDEX(Loads!$L:$CE,MATCH($C6,Loads!$D:$D,0),MATCH(BE$4,Loads!$L$4:$CE$4,0)) -> 3320349.238 | BF6: =+INDEX(Loads!$L:$CE,MATCH($C6,Loads!$D:$D,0),MATCH(BF$4,Loads!$L$4:$CE$4,0)) -> 2854283.349 | BG6: =+INDEX(Loads!$L:$CE,MATCH($C6,Loads!$D:$D,0),MATCH(BG$4,Loads!$L$4:$CE$4,0)) -> 3131967.037 | BH6: =+INDEX(Loads!$L:$CE,MATCH($C6,Loads!$D:$D,0),MATCH(BH$4,Loads!$L$4:$CE$4,0)) -> 2917280.058 | BI6: =+INDEX(Loads!$L:$CE,MATCH($C6,Loads!$D:$D,0),MATCH(BI$4,Loads!$L$4:$CE$4,0)) -> 3081589.808 | BJ6: =+INDEX(Loads!$L:$CE,MATCH($C6,Loads!$D:$D,0),MATCH(BJ$4,Loads!$L$4:$CE$4,0)) -> 3173873.169 | BK6: =+INDEX(Loads!$L:$CE,MATCH($C6,Loads!$D:$D,0),MATCH(BK$4,Loads!$L$4:$CE$4,0)) -> 2843470.721 | BL6: =+INDEX(Loads!$L:$CE,MATCH($C6,Loads!$D:$D,0),MATCH(BL$4,Loads!$L$4:$CE$4,0)) -> 2915393.85 | BM6: =+INDEX(Loads!$L:$CE,MATCH($C6,Loads!$D:$D,0),MATCH(BM$4,Loads!$L$4:$CE$4,0)) -> 3482870.987 | BN6: =+INDEX(Loads!$L:$CE,MATCH($C6,Loads!$D:$D,0),MATCH(BN$4,Loads!$L$4:$CE$4,0)) -> 3844763.767 | BO6: =+INDEX(Loads!$L:$CE,MATCH($C6,Loads!$D:$D,0),MATCH(BO$4,Loads!$L$4:$CE$4,0)) -> 3625623.989 | BP6: =+INDEX(Loads!$L:$CE,MATCH($C6,Loads!$D:$D,0),MATCH(BP$4,Loads!$L$4:$CE$4,0)) -> 3264058.231 | BQ6: =+INDEX(Loads!$L:$CE,MATCH($C6,Loads!$D:$D,0),MATCH(BQ$4,Loads!$L$4:$CE$4,0)) -> 3346360.977 | BR6: =+INDEX(Loads!$L:$CE,MATCH($C6,Loads!$D:$D,0),MATCH(BR$4,Loads!$L$4:$CE$4,0)) -> 2832398.212 | BS6: =+INDEX(Loads!$L:$CE,MATCH($C6,Loads!$D:$D,0),MATCH(BS$4,Loads!$L$4:$CE$4,0)) -> 3102375.949 | BT6: =+INDEX(Loads!$L:$CE,MATCH($C6,Loads!$D:$D,0),MATCH(BT$4,Loads!$L$4:$CE$4,0)) -> 2815985.272 | BU6: =+INDEX(Loads!$L:$CE,MATCH($C6,Loads!$D:$D,0),MATCH(BU$4,Loads!$L$4:$CE$4,0)) -> 3091729.754 | BV6: =+INDEX(Loads!$L:$CE,MATCH($C6,Loads!$D:$D,0),MATCH(BV$4,Loads!$L$4:$CE$4,0)) -> 3196633.462 | BW6: =+INDEX(Loads!$L:$CE,MATCH($C6,Loads!$D:$D,0),MATCH(BW$4,Loads!$L$4:$CE$4,0)) -> 2863270.197
B7: LLH | C7: PRE | D7: =+INDEX(Loads!$CG:$EZ,MATCH($C7,Loads!$D:$D,0),MATCH(D$4,Loads!$CG$4:$EZ$4,0)) -> 1776505.625 | E7: =+INDEX(Loads!$CG:$EZ,MATCH($C7,Loads!$D:$D,0),MATCH(E$4,Loads!$CG$4:$EZ$4,0)) -> 2222886.911 | F7: =+INDEX(Loads!$CG:$EZ,MATCH($C7,Loads!$D:$D,0),MATCH(F$4,Loads!$CG$4:$EZ$4,0)) -> 2518729.685 | G7: =+INDEX(Loads!$CG:$EZ,MATCH($C7,Loads!$D:$D,0),MATCH(G$4,Loads!$CG$4:$EZ$4,0)) -> 2382036.505 | H7: =+INDEX(Loads!$CG:$EZ,MATCH($C7,Loads!$D:$D,0),MATCH(H$4,Loads!$CG$4:$EZ$4,0)) -> 1996409.784 | I7: =+INDEX(Loads!$CG:$EZ,MATCH($C7,Loads!$D:$D,0),MATCH(I$4,Loads!$CG$4:$EZ$4,0)) -> 2011553.881 | J7: =+INDEX(Loads!$CG:$EZ,MATCH($C7,Loads!$D:$D,0),MATCH(J$4,Loads!$CG$4:$EZ$4,0)) -> 1776869.584 | K7: =+INDEX(Loads!$CG:$EZ,MATCH($C7,Loads!$D:$D,0),MATCH(K$4,Loads!$CG$4:$EZ$4,0)) -> 1917932.733 | L7: =+INDEX(Loads!$CG:$EZ,MATCH($C7,Loads!$D:$D,0),MATCH(L$4,Loads!$CG$4:$EZ$4,0)) -> 1697496.9 | M7: =+INDEX(Loads!$CG:$EZ,MATCH($C7,Loads!$D:$D,0),MATCH(M$4,Loads!$CG$4:$EZ$4,0)) -> 1924194.761 | N7: =+INDEX(Loads!$CG:$EZ,MATCH($C7,Loads!$D:$D,0),MATCH(N$4,Loads!$CG$4:$EZ$4,0)) -> 1794530.439 | O7: =+INDEX(Loads!$CG:$EZ,MATCH($C7,Loads!$D:$D,0),MATCH(O$4,Loads!$CG$4:$EZ$4,0)) -> 1836124.911 | P7: =+INDEX(Loads!$CG:$EZ,MATCH($C7,Loads!$D:$D,0),MATCH(P$4,Loads!$CG$4:$EZ$4,0)) -> 1741758.348 | Q7: =+INDEX(Loads!$CG:$EZ,MATCH($C7,Loads!$D:$D,0),MATCH(Q$4,Loads!$CG$4:$EZ$4,0)) -> 2236063.442 | R7: =+INDEX(Loads!$CG:$EZ,MATCH($C7,Loads!$D:$D,0),MATCH(R$4,Loads!$CG$4:$EZ$4,0)) -> 2535845.392 | S7: =+INDEX(Loads!$CG:$EZ,MATCH($C7,Loads!$D:$D,0),MATCH(S$4,Loads!$CG$4:$EZ$4,0)) -> 2403883.311 | T7: =+INDEX(Loads!$CG:$EZ,MATCH($C7,Loads!$D:$D,0),MATCH(T$4,Loads!$CG$4:$EZ$4,0)) -> 2010515.969 | U7: =+INDEX(Loads!$CG:$EZ,MATCH($C7,Loads!$D:$D,0),MATCH(U$4,Loads!$CG$4:$EZ$4,0)) -> 2069289.839 | V7: =+INDEX(Loads!$CG:$EZ,MATCH($C7,Loads!$D:$D,0),MATCH(V$4,Loads!$CG$4:$EZ$4,0)) -> 1738421.251 | W7: =+INDEX(Loads!$CG:$EZ,MATCH($C7,Loads!$D:$D,0),MATCH(W$4,Loads!$CG$4:$EZ$4,0)) -> 1892259.522 | X7: =+INDEX(Loads!$CG:$EZ,MATCH($C7,Loads!$D:$D,0),MATCH(X$4,Loads!$CG$4:$EZ$4,0)) -> 1658334.726 | Y7: =+INDEX(Loads!$CG:$EZ,MATCH($C7,Loads!$D:$D,0),MATCH(Y$4,Loads!$CG$4:$EZ$4,0)) -> 1877977.603 | Z7: =+INDEX(Loads!$CG:$EZ,MATCH($C7,Loads!$D:$D,0),MATCH(Z$4,Loads!$CG$4:$EZ$4,0)) -> 1797793.935 | AA7: =+INDEX(Loads!$CG:$EZ,MATCH($C7,Loads!$D:$D,0),MATCH(AA$4,Loads!$CG$4:$EZ$4,0)) -> 1839989.058 | AB7: =+INDEX(Loads!$CG:$EZ,MATCH($C7,Loads!$D:$D,0),MATCH(AB$4,Loads!$CG$4:$EZ$4,0)) -> 1794805.441 | AC7: =+INDEX(Loads!$CG:$EZ,MATCH($C7,Loads!$D:$D,0),MATCH(AC$4,Loads!$CG$4:$EZ$4,0)) -> 2328386.014 | AD7: =+INDEX(Loads!$CG:$EZ,MATCH($C7,Loads!$D:$D,0),MATCH(AD$4,Loads!$CG$4:$EZ$4,0)) -> 2632457.794 | AE7: =+INDEX(Loads!$CG:$EZ,MATCH($C7,Loads!$D:$D,0),MATCH(AE$4,Loads!$CG$4:$EZ$4,0)) -> 2496183.631 | AF7: =+INDEX(Loads!$CG:$EZ,MATCH($C7,Loads!$D:$D,0),MATCH(AF$4,Loads!$CG$4:$EZ$4,0)) -> 2129554.017 | AG7: =+INDEX(Loads!$CG:$EZ,MATCH($C7,Loads!$D:$D,0),MATCH(AG$4,Loads!$CG$4:$EZ$4,0)) -> 2162672.229 | AH7: =+INDEX(Loads!$CG:$EZ,MATCH($C7,Loads!$D:$D,0),MATCH(AH$4,Loads!$CG$4:$EZ$4,0)) -> 1816012.801 | AI7: =+INDEX(Loads!$CG:$EZ,MATCH($C7,Loads!$D:$D,0),MATCH(AI$4,Loads!$CG$4:$EZ$4,0)) -> 2108729.706 | AJ7: =+INDEX(Loads!$CG:$EZ,MATCH($C7,Loads!$D:$D,0),MATCH(AJ$4,Loads!$CG$4:$EZ$4,0)) -> 1784318.062 | AK7: =+INDEX(Loads!$CG:$EZ,MATCH($C7,Loads!$D:$D,0),MATCH(AK$4,Loads!$CG$4:$EZ$4,0)) -> 1956517.154 | AL7: =+INDEX(Loads!$CG:$EZ,MATCH($C7,Loads!$D:$D,0),MATCH(AL$4,Loads!$CG$4:$EZ$4,0)) -> 1920716.809 | AM7: =+INDEX(Loads!$CG:$EZ,MATCH($C7,Loads!$D:$D,0),MATCH(AM$4,Loads!$CG$4:$EZ$4,0)) -> 1884656.433 | AN7: =+INDEX(Loads!$CG:$EZ,MATCH($C7,Loads!$D:$D,0),MATCH(AN$4,Loads!$CG$4:$EZ$4,0)) -> 1820103.625 | AO7: =+INDEX(Loads!$CG:$EZ,MATCH($C7,Loads!$D:$D,0),MATCH(AO$4,Loads!$CG$4:$EZ$4,0)) -> 2403028.072 | AP7: =+INDEX(Loads!$CG:$EZ,MATCH($C7,Loads!$D:$D,0),MATCH(AP$4,Loads!$CG$4:$EZ$4,0)) -> 2607882.995 | AQ7: =+INDEX(Loads!$CG:$EZ,MATCH($C7,Loads!$D:$D,0),MATCH(AQ$4,Loads!$CG$4:$EZ$4,0)) -> 2576152.461 | AR7: =+INDEX(Loads!$CG:$EZ,MATCH($C7,Loads!$D:$D,0),MATCH(AR$4,Loads!$CG$4:$EZ$4,0)) -> 2120122.75 | AS7: =+INDEX(Loads!$CG:$EZ,MATCH($C7,Loads!$D:$D,0),MATCH(AS$4,Loads!$CG$4:$EZ$4,0)) -> 2137326.901 | AT7: =+INDEX(Loads!$CG:$EZ,MATCH($C7,Loads!$D:$D,0),MATCH(AT$4,Loads!$CG$4:$EZ$4,0)) -> 1832553.155 | AU7: =+INDEX(Loads!$CG:$EZ,MATCH($C7,Loads!$D:$D,0),MATCH(AU$4,Loads!$CG$4:$EZ$4,0)) -> 2025316.658 | AV7: =+INDEX(Loads!$CG:$EZ,MATCH($C7,Loads!$D:$D,0),MATCH(AV$4,Loads!$CG$4:$EZ$4,0)) -> 1744686.279 | AW7: =+INDEX(Loads!$CG:$EZ,MATCH($C7,Loads!$D:$D,0),MATCH(AW$4,Loads!$CG$4:$EZ$4,0)) -> 1985818.598 | AX7: =+INDEX(Loads!$CG:$EZ,MATCH($C7,Loads!$D:$D,0),MATCH(AX$4,Loads!$CG$4:$EZ$4,0)) -> 1936250.862 | AY7: =+INDEX(Loads!$CG:$EZ,MATCH($C7,Loads!$D:$D,0),MATCH(AY$4,Loads!$CG$4:$EZ$4,0)) -> 1903308.746 | AZ7: =+INDEX(Loads!$CG:$EZ,MATCH($C7,Loads!$D:$D,0),MATCH(AZ$4,Loads!$CG$4:$EZ$4,0)) -> 1852611.566 | BA7: =+INDEX(Loads!$CG:$EZ,MATCH($C7,Loads!$D:$D,0),MATCH(BA$4,Loads!$CG$4:$EZ$4,0)) -> 2346625.376 | BB7: =+INDEX(Loads!$CG:$EZ,MATCH($C7,Loads!$D:$D,0),MATCH(BB$4,Loads!$CG$4:$EZ$4,0)) -> 2628107.148 | BC7: =+INDEX(Loads!$CG:$EZ,MATCH($C7,Loads!$D:$D,0),MATCH(BC$4,Loads!$CG$4:$EZ$4,0)) -> 2565208.97 | BD7: =+INDEX(Loads!$CG:$EZ,MATCH($C7,Loads!$D:$D,0),MATCH(BD$4,Loads!$CG$4:$EZ$4,0)) -> 2113251.447 | BE7: =+INDEX(Loads!$CG:$EZ,MATCH($C7,Loads!$D:$D,0),MATCH(BE$4,Loads!$CG$4:$EZ$4,0)) -> 2129900.001 | BF7: =+INDEX(Loads!$CG:$EZ,MATCH($C7,Loads!$D:$D,0),MATCH(BF$4,Loads!$CG$4:$EZ$4,0)) -> 1822868.025 | BG7: =+INDEX(Loads!$CG:$EZ,MATCH($C7,Loads!$D:$D,0),MATCH(BG$4,Loads!$CG$4:$EZ$4,0)) -> 2081576.304 | BH7: =+INDEX(Loads!$CG:$EZ,MATCH($C7,Loads!$D:$D,0),MATCH(BH$4,Loads!$CG$4:$EZ$4,0)) -> 1791418.996 | BI7: =+INDEX(Loads!$CG:$EZ,MATCH($C7,Loads!$D:$D,0),MATCH(BI$4,Loads!$CG$4:$EZ$4,0)) -> 2026353.106 | BJ7: =+INDEX(Loads!$CG:$EZ,MATCH($C7,Loads!$D:$D,0),MATCH(BJ$4,Loads!$CG$4:$EZ$4,0)) -> 1888942.04 | BK7: =+INDEX(Loads!$CG:$EZ,MATCH($C7,Loads!$D:$D,0),MATCH(BK$4,Loads!$CG$4:$EZ$4,0)) -> 1895038.683 | BL7: =+INDEX(Loads!$CG:$EZ,MATCH($C7,Loads!$D:$D,0),MATCH(BL$4,Loads!$CG$4:$EZ$4,0)) -> 1867905.473 | BM7: =+INDEX(Loads!$CG:$EZ,MATCH($C7,Loads!$D:$D,0),MATCH(BM$4,Loads!$CG$4:$EZ$4,0)) -> 2365087.174 | BN7: =+INDEX(Loads!$CG:$EZ,MATCH($C7,Loads!$D:$D,0),MATCH(BN$4,Loads!$CG$4:$EZ$4,0)) -> 2617558.204 | BO7: =+INDEX(Loads!$CG:$EZ,MATCH($C7,Loads!$D:$D,0),MATCH(BO$4,Loads!$CG$4:$EZ$4,0)) -> 2611743.579 | BP7: =+INDEX(Loads!$CG:$EZ,MATCH($C7,Loads!$D:$D,0),MATCH(BP$4,Loads!$CG$4:$EZ$4,0)) -> 2131585.938 | BQ7: =+INDEX(Loads!$CG:$EZ,MATCH($C7,Loads!$D:$D,0),MATCH(BQ$4,Loads!$CG$4:$EZ$4,0)) -> 2145271.574 | BR7: =+INDEX(Loads!$CG:$EZ,MATCH($C7,Loads!$D:$D,0),MATCH(BR$4,Loads!$CG$4:$EZ$4,0)) -> 1881406.946 | BS7: =+INDEX(Loads!$CG:$EZ,MATCH($C7,Loads!$D:$D,0),MATCH(BS$4,Loads!$CG$4:$EZ$4,0)) -> 2005605.215 | BT7: =+INDEX(Loads!$CG:$EZ,MATCH($C7,Loads!$D:$D,0),MATCH(BT$4,Loads!$CG$4:$EZ$4,0)) -> 1723455.912 | BU7: =+INDEX(Loads!$CG:$EZ,MATCH($C7,Loads!$D:$D,0),MATCH(BU$4,Loads!$CG$4:$EZ$4,0)) -> 2034555.232 | BV7: =+INDEX(Loads!$CG:$EZ,MATCH($C7,Loads!$D:$D,0),MATCH(BV$4,Loads!$CG$4:$EZ$4,0)) -> 1904324.415 | BW7: =+INDEX(Loads!$CG:$EZ,MATCH($C7,Loads!$D:$D,0),MATCH(BW$4,Loads!$CG$4:$EZ$4,0)) -> 1910463.285
B8: Undistrubuted Conservation
B9: HLH | C9: CON | D9: =+INDEX(Loads!$L:$CE,MATCH($C9,Loads!$D:$D,0),MATCH(D$4,Loads!$L$4:$CE$4,0)) -> 0 | E9: =+INDEX(Loads!$L:$CE,MATCH($C9,Loads!$D:$D,0),MATCH(E$4,Loads!$L$4:$CE$4,0)) -> 0 | F9: =+INDEX(Loads!$L:$CE,MATCH($C9,Loads!$D:$D,0),MATCH(F$4,Loads!$L$4:$CE$4,0)) -> 0 | G9: =+INDEX(Loads!$L:$CE,MATCH($C9,Loads!$D:$D,0),MATCH(G$4,Loads!$L$4:$CE$4,0)) -> 0 | H9: =+INDEX(Loads!$L:$CE,MATCH($C9,Loads!$D:$D,0),MATCH(H$4,Loads!$L$4:$CE$4,0)) -> 0 | I9: =+INDEX(Loads!$L:$CE,MATCH($C9,Loads!$D:$D,0),MATCH(I$4,Loads!$L$4:$CE$4,0)) -> 0 | J9: =+INDEX(Loads!$L:$CE,MATCH($C9,Loads!$D:$D,0),MATCH(J$4,Loads!$L$4:$CE$4,0)) -> 0 | K9: =+INDEX(Loads!$L:$CE,MATCH($C9,Loads!$D:$D,0),MATCH(K$4,Loads!$L$4:$CE$4,0)) -> 0 | L9: =+INDEX(Loads!$L:$CE,MATCH($C9,Loads!$D:$D,0),MATCH(L$4,Loads!$L$4:$CE$4,0)) -> 0 | M9: =+INDEX(Loads!$L:$CE,MATCH($C9,Loads!$D:$D,0),MATCH(M$4,Loads!$L$4:$CE$4,0)) -> 0 | N9: =+INDEX(Loads!$L:$CE,MATCH($C9,Loads!$D:$D,0),MATCH(N$4,Loads!$L$4:$CE$4,0)) -> 0 | O9: =+INDEX(Loads!$L:$CE,MATCH($C9,Loads!$D:$D,0),MATCH(O$4,Loads!$L$4:$CE$4,0)) -> 0 | P9: =+INDEX(Loads!$L:$CE,MATCH($C9,Loads!$D:$D,0),MATCH(P$4,Loads!$L$4:$CE$4,0)) -> 0 | Q9: =+INDEX(Loads!$L:$CE,MATCH($C9,Loads!$D:$D,0),MATCH(Q$4,Loads!$L$4:$CE$4,0)) -> 0 | R9: =+INDEX(Loads!$L:$CE,MATCH($C9,Loads!$D:$D,0),MATCH(R$4,Loads!$L$4:$CE$4,0)) -> 0 | S9: =+INDEX(Loads!$L:$CE,MATCH($C9,Loads!$D:$D,0),MATCH(S$4,Loads!$L$4:$CE$4,0)) -> 0 | T9: =+INDEX(Loads!$L:$CE,MATCH($C9,Loads!$D:$D,0),MATCH(T$4,Loads!$L$4:$CE$4,0)) -> 0 | U9: =+INDEX(Loads!$L:$CE,MATCH($C9,Loads!$D:$D,0),MATCH(U$4,Loads!$L$4:$CE$4,0)) -> 0 | V9: =+INDEX(Loads!$L:$CE,MATCH($C9,Loads!$D:$D,0),MATCH(V$4,Loads!$L$4:$CE$4,0)) -> 0 | W9: =+INDEX(Loads!$L:$CE,MATCH($C9,Loads!$D:$D,0),MATCH(W$4,Loads!$L$4:$CE$4,0)) -> 0 | X9: =+INDEX(Loads!$L:$CE,MATCH($C9,Loads!$D:$D,0),MATCH(X$4,Loads!$L$4:$CE$4,0)) -> 0 | Y9: =+INDEX(Loads!$L:$CE,MATCH($C9,Loads!$D:$D,0),MATCH(Y$4,Loads!$L$4:$CE$4,0)) -> 0 | Z9: =+INDEX(Loads!$L:$CE,MATCH($C9,Loads!$D:$D,0),MATCH(Z$4,Loads!$L$4:$CE$4,0)) -> 0 | AA9: =+INDEX(Loads!$L:$CE,MATCH($C9,Loads!$D:$D,0),MATCH(AA$4,Loads!$L$4:$CE$4,0)) -> 0 | AB9: =+INDEX(Loads!$L:$CE,MATCH($C9,Loads!$D:$D,0),MATCH(AB$4,Loads!$L$4:$CE$4,0)) -> 0 | AC9: =+INDEX(Loads!$L:$CE,MATCH($C9,Loads!$D:$D,0),MATCH(AC$4,Loads!$L$4:$CE$4,0)) -> 0 | AD9: =+INDEX(Loads!$L:$CE,MATCH($C9,Loads!$D:$D,0),MATCH(AD$4,Loads!$L$4:$CE$4,0)) -> 0 | AE9: =+INDEX(Loads!$L:$CE,MATCH($C9,Loads!$D:$D,0),MATCH(AE$4,Loads!$L$4:$CE$4,0)) -> 0 | AF9: =+INDEX(Loads!$L:$CE,MATCH($C9,Loads!$D:$D,0),MATCH(AF$4,Loads!$L$4:$CE$4,0)) -> 0 | AG9: =+INDEX(Loads!$L:$CE,MATCH($C9,Loads!$D:$D,0),MATCH(AG$4,Loads!$L$4:$CE$4,0)) -> 0 | AH9: =+INDEX(Loads!$L:$CE,MATCH($C9,Loads!$D:$D,0),MATCH(AH$4,Loads!$L$4:$CE$4,0)) -> 0 | AI9: =+INDEX(Loads!$L:$CE,MATCH($C9,Loads!$D:$D,0),MATCH(AI$4,Loads!$L$4:$CE$4,0)) -> 0 | AJ9: =+INDEX(Loads!$L:$CE,MATCH($C9,Loads!$D:$D,0),MATCH(AJ$4,Loads!$L$4:$CE$4,0)) -> 0 | AK9: =+INDEX(Loads!$L:$CE,MATCH($C9,Loads!$D:$D,0),MATCH(AK$4,Loads!$L$4:$CE$4,0)) -> 0 | AL9: =+INDEX(Loads!$L:$CE,MATCH($C9,Loads!$D:$D,0),MATCH(AL$4,Loads!$L$4:$CE$4,0)) -> 0 | AM9: =+INDEX(Loads!$L:$CE,MATCH($C9,Loads!$D:$D,0),MATCH(AM$4,Loads!$L$4:$CE$4,0)) -> 0 | AN9: =+INDEX(Loads!$L:$CE,MATCH($C9,Loads!$D:$D,0),MATCH(AN$4,Loads!$L$4:$CE$4,0)) -> 0 | AO9: =+INDEX(Loads!$L:$CE,MATCH($C9,Loads!$D:$D,0),MATCH(AO$4,Loads!$L$4:$CE$4,0)) -> 0 | AP9: =+INDEX(Loads!$L:$CE,MATCH($C9,Loads!$D:$D,0),MATCH(AP$4,Loads!$L$4:$CE$4,0)) -> 0 | AQ9: =+INDEX(Loads!$L:$CE,MATCH($C9,Loads!$D:$D,0),MATCH(AQ$4,Loads!$L$4:$CE$4,0)) -> 0 | AR9: =+INDEX(Loads!$L:$CE,MATCH($C9,Loads!$D:$D,0),MATCH(AR$4,Loads!$L$4:$CE$4,0)) -> 0 | AS9: =+INDEX(Loads!$L:$CE,MATCH($C9,Loads!$D:$D,0),MATCH(AS$4,Loads!$L$4:$CE$4,0)) -> 0 | AT9: =+INDEX(Loads!$L:$CE,MATCH($C9,Loads!$D:$D,0),MATCH(AT$4,Loads!$L$4:$CE$4,0)) -> 0 | AU9: =+INDEX(Loads!$L:$CE,MATCH($C9,Loads!$D:$D,0),MATCH(AU$4,Loads!$L$4:$CE$4,0)) -> 0 | AV9: =+INDEX(Loads!$L:$CE,MATCH($C9,Loads!$D:$D,0),MATCH(AV$4,Loads!$L$4:$CE$4,0)) -> 0 | AW9: =+INDEX(Loads!$L:$CE,MATCH($C9,Loads!$D:$D,0),MATCH(AW$4,Loads!$L$4:$CE$4,0)) -> 0 | AX9: =+INDEX(Loads!$L:$CE,MATCH($C9,Loads!$D:$D,0),MATCH(AX$4,Loads!$L$4:$CE$4,0)) -> 0 | AY9: =+INDEX(Loads!$L:$CE,MATCH($C9,Loads!$D:$D,0),MATCH(AY$4,Loads!$L$4:$CE$4,0)) -> 0 | AZ9: =+INDEX(Loads!$L:$CE,MATCH($C9,Loads!$D:$D,0),MATCH(AZ$4,Loads!$L$4:$CE$4,0)) -> 0 | BA9: =+INDEX(Loads!$L:$CE,MATCH($C9,Loads!$D:$D,0),MATCH(BA$4,Loads!$L$4:$CE$4,0)) -> 0 | BB9: =+INDEX(Loads!$L:$CE,MATCH($C9,Loads!$D:$D,0),MATCH(BB$4,Loads!$L$4:$CE$4,0)) -> 0 | BC9: =+INDEX(Loads!$L:$CE,MATCH($C9,Loads!$D:$D,0),MATCH(BC$4,Loads!$L$4:$CE$4,0)) -> 0 | BD9: =+INDEX(Loads!$L:$CE,MATCH($C9,Loads!$D:$D,0),MATCH(BD$4,Loads!$L$4:$CE$4,0)) -> 0 | BE9: =+INDEX(Loads!$L:$CE,MATCH($C9,Loads!$D:$D,0),MATCH(BE$4,Loads!$L$4:$CE$4,0)) -> 0 | BF9: =+INDEX(Loads!$L:$CE,MATCH($C9,Loads!$D:$D,0),MATCH(BF$4,Loads!$L$4:$CE$4,0)) -> 0 | BG9: =+INDEX(Loads!$L:$CE,MATCH($C9,Loads!$D:$D,0),MATCH(BG$4,Loads!$L$4:$CE$4,0)) -> 0 | BH9: =+INDEX(Loads!$L:$CE,MATCH($C9,Loads!$D:$D,0),MATCH(BH$4,Loads!$L$4:$CE$4,0)) -> 0 | BI9: =+INDEX(Loads!$L:$CE,MATCH($C9,Loads!$D:$D,0),MATCH(BI$4,Loads!$L$4:$CE$4,0)) -> 0 | BJ9: =+INDEX(Loads!$L:$CE,MATCH($C9,Loads!$D:$D,0),MATCH(BJ$4,Loads!$L$4:$CE$4,0)) -> 0 | BK9: =+INDEX(Loads!$L:$CE,MATCH($C9,Loads!$D:$D,0),MATCH(BK$4,Loads!$L$4:$CE$4,0)) -> 0 | BL9: =+INDEX(Loads!$L:$CE,MATCH($C9,Loads!$D:$D,0),MATCH(BL$4,Loads!$L$4:$CE$4,0)) -> 0 | BM9: =+INDEX(Loads!$L:$CE,MATCH($C9,Loads!$D:$D,0),MATCH(BM$4,Loads!$L$4:$CE$4,0)) -> 0 | BN9: =+INDEX(Loads!$L:$CE,MATCH($C9,Loads!$D:$D,0),MATCH(BN$4,Loads!$L$4:$CE$4,0)) -> 0 | BO9: =+INDEX(Loads!$L:$CE,MATCH($C9,Loads!$D:$D,0),MATCH(BO$4,Loads!$L$4:$CE$4,0)) -> 0 | BP9: =+INDEX(Loads!$L:$CE,MATCH($C9,Loads!$D:$D,0),MATCH(BP$4,Loads!$L$4:$CE$4,0)) -> 0 | BQ9: =+INDEX(Loads!$L:$CE,MATCH($C9,Loads!$D:$D,0),MATCH(BQ$4,Loads!$L$4:$CE$4,0)) -> 0 | BR9: =+INDEX(Loads!$L:$CE,MATCH($C9,Loads!$D:$D,0),MATCH(BR$4,Loads!$L$4:$CE$4,0)) -> 0 | BS9: =+INDEX(Loads!$L:$CE,MATCH($C9,Loads!$D:$D,0),MATCH(BS$4,Loads!$L$4:$CE$4,0)) -> 0 | BT9: =+INDEX(Loads!$L:$CE,MATCH($C9,Loads!$D:$D,0),MATCH(BT$4,Loads!$L$4:$CE$4,0)) -> 0 | BU9: =+INDEX(Loads!$L:$CE,MATCH($C9,Loads!$D:$D,0),MATCH(BU$4,Loads!$L$4:$CE$4,0)) -> 0 | BV9: =+INDEX(Loads!$L:$CE,MATCH($C9,Loads!$D:$D,0),MATCH(BV$4,Loads!$L$4:$CE$4,0)) -> 0 | BW9: =+INDEX(Loads!$L:$CE,MATCH($C9,Loads!$D:$D,0),MATCH(BW$4,Loads!$L$4:$CE$4,0)) -> 0
B10: LLH | C10: CON | D10: =+INDEX(Loads!$CG:$EZ,MATCH($C10,Loads!$D:$D,0),MATCH(D$4,Loads!$CG$4:$EZ$4,0)) -> 0 | E10: =+INDEX(Loads!$CG:$EZ,MATCH($C10,Loads!$D:$D,0),MATCH(E$4,Loads!$CG$4:$EZ$4,0)) -> 0 | F10: =+INDEX(Loads!$CG:$EZ,MATCH($C10,Loads!$D:$D,0),MATCH(F$4,Loads!$CG$4:$EZ$4,0)) -> 0 | G10: =+INDEX(Loads!$CG:$EZ,MATCH($C10,Loads!$D:$D,0),MATCH(G$4,Loads!$CG$4:$EZ$4,0)) -> 0 | H10: =+INDEX(Loads!$CG:$EZ,MATCH($C10,Loads!$D:$D,0),MATCH(H$4,Loads!$CG$4:$EZ$4,0)) -> 0 | I10: =+INDEX(Loads!$CG:$EZ,MATCH($C10,Loads!$D:$D,0),MATCH(I$4,Loads!$CG$4:$EZ$4,0)) -> 0 | J10: =+INDEX(Loads!$CG:$EZ,MATCH($C10,Loads!$D:$D,0),MATCH(J$4,Loads!$CG$4:$EZ$4,0)) -> 0 | K10: =+INDEX(Loads!$CG:$EZ,MATCH($C10,Loads!$D:$D,0),MATCH(K$4,Loads!$CG$4:$EZ$4,0)) -> 0 | L10: =+INDEX(Loads!$CG:$EZ,MATCH($C10,Loads!$D:$D,0),MATCH(L$4,Loads!$CG$4:$EZ$4,0)) -> 0 | M10: =+INDEX(Loads!$CG:$EZ,MATCH($C10,Loads!$D:$D,0),MATCH(M$4,Loads!$CG$4:$EZ$4,0)) -> 0 | N10: =+INDEX(Loads!$CG:$EZ,MATCH($C10,Loads!$D:$D,0),MATCH(N$4,Loads!$CG$4:$EZ$4,0)) -> 0 | O10: =+INDEX(Loads!$CG:$EZ,MATCH($C10,Loads!$D:$D,0),MATCH(O$4,Loads!$CG$4:$EZ$4,0)) -> 0 | P10: =+INDEX(Loads!$CG:$EZ,MATCH($C10,Loads!$D:$D,0),MATCH(P$4,Loads!$CG$4:$EZ$4,0)) -> 0 | Q10: =+INDEX(Loads!$CG:$EZ,MATCH($C10,Loads!$D:$D,0),MATCH(Q$4,Loads!$CG$4:$EZ$4,0)) -> 0 | R10: =+INDEX(Loads!$CG:$EZ,MATCH($C10,Loads!$D:$D,0),MATCH(R$4,Loads!$CG$4:$EZ$4,0)) -> 0 | S10: =+INDEX(Loads!$CG:$EZ,MATCH($C10,Loads!$D:$D,0),MATCH(S$4,Loads!$CG$4:$EZ$4,0)) -> 0 | T10: =+INDEX(Loads!$CG:$EZ,MATCH($C10,Loads!$D:$D,0),MATCH(T$4,Loads!$CG$4:$EZ$4,0)) -> 0 | U10: =+INDEX(Loads!$CG:$EZ,MATCH($C10,Loads!$D:$D,0),MATCH(U$4,Loads!$CG$4:$EZ$4,0)) -> 0 | V10: =+INDEX(Loads!$CG:$EZ,MATCH($C10,Loads!$D:$D,0),MATCH(V$4,Loads!$CG$4:$EZ$4,0)) -> 0 | W10: =+INDEX(Loads!$CG:$EZ,MATCH($C10,Loads!$D:$D,0),MATCH(W$4,Loads!$CG$4:$EZ$4,0)) -> 0 | X10: =+INDEX(Loads!$CG:$EZ,MATCH($C10,Loads!$D:$D,0),MATCH(X$4,Loads!$CG$4:$EZ$4,0)) -> 0 | Y10: =+INDEX(Loads!$CG:$EZ,MATCH($C10,Loads!$D:$D,0),MATCH(Y$4,Loads!$CG$4:$EZ$4,0)) -> 0 | Z10: =+INDEX(Loads!$CG:$EZ,MATCH($C10,Loads!$D:$D,0),MATCH(Z$4,Loads!$CG$4:$EZ$4,0)) -> 0 | AA10: =+INDEX(Loads!$CG:$EZ,MATCH($C10,Loads!$D:$D,0),MATCH(AA$4,Loads!$CG$4:$EZ$4,0)) -> 0 | AB10: =+INDEX(Loads!$CG:$EZ,MATCH($C10,Loads!$D:$D,0),MATCH(AB$4,Loads!$CG$4:$EZ$4,0)) -> 0 | AC10: =+INDEX(Loads!$CG:$EZ,MATCH($C10,Loads!$D:$D,0),MATCH(AC$4,Loads!$CG$4:$EZ$4,0)) -> 0 | AD10: =+INDEX(Loads!$CG:$EZ,MATCH($C10,Loads!$D:$D,0),MATCH(AD$4,Loads!$CG$4:$EZ$4,0)) -> 0 | AE10: =+INDEX(Loads!$CG:$EZ,MATCH($C10,Loads!$D:$D,0),MATCH(AE$4,Loads!$CG$4:$EZ$4,0)) -> 0 | AF10: =+INDEX(Loads!$CG:$EZ,MATCH($C10,Loads!$D:$D,0),MATCH(AF$4,Loads!$CG$4:$EZ$4,0)) -> 0 | AG10: =+INDEX(Loads!$CG:$EZ,MATCH($C10,Loads!$D:$D,0),MATCH(AG$4,Loads!$CG$4:$EZ$4,0)) -> 0 | AH10: =+INDEX(Loads!$CG:$EZ,MATCH($C10,Loads!$D:$D,0),MATCH(AH$4,Loads!$CG$4:$EZ$4,0)) -> 0 | AI10: =+INDEX(Loads!$CG:$EZ,MATCH($C10,Loads!$D:$D,0),MATCH(AI$4,Loads!$CG$4:$EZ$4,0)) -> 0 | AJ10: =+INDEX(Loads!$CG:$EZ,MATCH($C10,Loads!$D:$D,0),MATCH(AJ$4,Loads!$CG$4:$EZ$4,0)) -> 0 | AK10: =+INDEX(Loads!$CG:$EZ,MATCH($C10,Loads!$D:$D,0),MATCH(AK$4,Loads!$CG$4:$EZ$4,0)) -> 0 | AL10: =+INDEX(Loads!$CG:$EZ,MATCH($C10,Loads!$D:$D,0),MATCH(AL$4,Loads!$CG$4:$EZ$4,0)) -> 0 | AM10: =+INDEX(Loads!$CG:$EZ,MATCH($C10,Loads!$D:$D,0),MATCH(AM$4,Loads!$CG$4:$EZ$4,0)) -> 0 | AN10: =+INDEX(Loads!$CG:$EZ,MATCH($C10,Loads!$D:$D,0),MATCH(AN$4,Loads!$CG$4:$EZ$4,0)) -> 0 | AO10: =+INDEX(Loads!$CG:$EZ,MATCH($C10,Loads!$D:$D,0),MATCH(AO$4,Loads!$CG$4:$EZ$4,0)) -> 0 | AP10: =+INDEX(Loads!$CG:$EZ,MATCH($C10,Loads!$D:$D,0),MATCH(AP$4,Loads!$CG$4:$EZ$4,0)) -> 0 | AQ10: =+INDEX(Loads!$CG:$EZ,MATCH($C10,Loads!$D:$D,0),MATCH(AQ$4,Loads!$CG$4:$EZ$4,0)) -> 0 | AR10: =+INDEX(Loads!$CG:$EZ,MATCH($C10,Loads!$D:$D,0),MATCH(AR$4,Loads!$CG$4:$EZ$4,0)) -> 0 | AS10: =+INDEX(Loads!$CG:$EZ,MATCH($C10,Loads!$D:$D,0),MATCH(AS$4,Loads!$CG$4:$EZ$4,0)) -> 0 | AT10: =+INDEX(Loads!$CG:$EZ,MATCH($C10,Loads!$D:$D,0),MATCH(AT$4,Loads!$CG$4:$EZ$4,0)) -> 0 | AU10: =+INDEX(Loads!$CG:$EZ,MATCH($C10,Loads!$D:$D,0),MATCH(AU$4,Loads!$CG$4:$EZ$4,0)) -> 0 | AV10: =+INDEX(Loads!$CG:$EZ,MATCH($C10,Loads!$D:$D,0),MATCH(AV$4,Loads!$CG$4:$EZ$4,0)) -> 0 | AW10: =+INDEX(Loads!$CG:$EZ,MATCH($C10,Loads!$D:$D,0),MATCH(AW$4,Loads!$CG$4:$EZ$4,0)) -> 0 | AX10: =+INDEX(Loads!$CG:$EZ,MATCH($C10,Loads!$D:$D,0),MATCH(AX$4,Loads!$CG$4:$EZ$4,0)) -> 0 | AY10: =+INDEX(Loads!$CG:$EZ,MATCH($C10,Loads!$D:$D,0),MATCH(AY$4,Loads!$CG$4:$EZ$4,0)) -> 0 | AZ10: =+INDEX(Loads!$CG:$EZ,MATCH($C10,Loads!$D:$D,0),MATCH(AZ$4,Loads!$CG$4:$EZ$4,0)) -> 0 | BA10: =+INDEX(Loads!$CG:$EZ,MATCH($C10,Loads!$D:$D,0),MATCH(BA$4,Loads!$CG$4:$EZ$4,0)) -> 0 | BB10: =+INDEX(Loads!$CG:$EZ,MATCH($C10,Loads!$D:$D,0),MATCH(BB$4,Loads!$CG$4:$EZ$4,0)) -> 0 | BC10: =+INDEX(Loads!$CG:$EZ,MATCH($C10,Loads!$D:$D,0),MATCH(BC$4,Loads!$CG$4:$EZ$4,0)) -> 0 | BD10: =+INDEX(Loads!$CG:$EZ,MATCH($C10,Loads!$D:$D,0),MATCH(BD$4,Loads!$CG$4:$EZ$4,0)) -> 0 | BE10: =+INDEX(Loads!$CG:$EZ,MATCH($C10,Loads!$D:$D,0),MATCH(BE$4,Loads!$CG$4:$EZ$4,0)) -> 0 | BF10: =+INDEX(Loads!$CG:$EZ,MATCH($C10,Loads!$D:$D,0),MATCH(BF$4,Loads!$CG$4:$EZ$4,0)) -> 0 | BG10: =+INDEX(Loads!$CG:$EZ,MATCH($C10,Loads!$D:$D,0),MATCH(BG$4,Loads!$CG$4:$EZ$4,0)) -> 0 | BH10: =+INDEX(Loads!$CG:$EZ,MATCH($C10,Loads!$D:$D,0),MATCH(BH$4,Loads!$CG$4:$EZ$4,0)) -> 0 | BI10: =+INDEX(Loads!$CG:$EZ,MATCH($C10,Loads!$D:$D,0),MATCH(BI$4,Loads!$CG$4:$EZ$4,0)) -> 0 | BJ10: =+INDEX(Loads!$CG:$EZ,MATCH($C10,Loads!$D:$D,0),MATCH(BJ$4,Loads!$CG$4:$EZ$4,0)) -> 0 | BK10: =+INDEX(Loads!$CG:$EZ,MATCH($C10,Loads!$D:$D,0),MATCH(BK$4,Loads!$CG$4:$EZ$4,0)) -> 0 | BL10: =+INDEX(Loads!$CG:$EZ,MATCH($C10,Loads!$D:$D,0),MATCH(BL$4,Loads!$CG$4:$EZ$4,0)) -> 0 | BM10: =+INDEX(Loads!$CG:$EZ,MATCH($C10,Loads!$D:$D,0),MATCH(BM$4,Loads!$CG$4:$EZ$4,0)) -> 0 | BN10: =+INDEX(Loads!$CG:$EZ,MATCH($C10,Loads!$D:$D,0),MATCH(BN$4,Loads!$CG$4:$EZ$4,0)) -> 0 | BO10: =+INDEX(Loads!$CG:$EZ,MATCH($C10,Loads!$D:$D,0),MATCH(BO$4,Loads!$CG$4:$EZ$4,0)) -> 0 | BP10: =+INDEX(Loads!$CG:$EZ,MATCH($C10,Loads!$D:$D,0),MATCH(BP$4,Loads!$CG$4:$EZ$4,0)) -> 0 | BQ10: =+INDEX(Loads!$CG:$EZ,MATCH($C10,Loads!$D:$D,0),MATCH(BQ$4,Loads!$CG$4:$EZ$4,0)) -> 0 | BR10: =+INDEX(Loads!$CG:$EZ,MATCH($C10,Loads!$D:$D,0),MATCH(BR$4,Loads!$CG$4:$EZ$4,0)) -> 0 | BS10: =+INDEX(Loads!$CG:$EZ,MATCH($C10,Loads!$D:$D,0),MATCH(BS$4,Loads!$CG$4:$EZ$4,0)) -> 0 | BT10: =+INDEX(Loads!$CG:$EZ,MATCH($C10,Loads!$D:$D,0),MATCH(BT$4,Loads!$CG$4:$EZ$4,0)) -> 0 | BU10: =+INDEX(Loads!$CG:$EZ,MATCH($C10,Loads!$D:$D,0),MATCH(BU$4,Loads!$CG$4:$EZ$4,0)) -> 0 | BV10: =+INDEX(Loads!$CG:$EZ,MATCH($C10,Loads!$D:$D,0),MATCH(BV$4,Loads!$CG$4:$EZ$4,0)) -> 0 | BW10: =+INDEX(Loads!$CG:$EZ,MATCH($C10,Loads!$D:$D,0),MATCH(BW$4,Loads!$CG$4:$EZ$4,0)) -> 0
B11: Public Load
B12: HLH | C12: PRE | D12: =+D6+D9 -> 2759929.718 | E12: =+E6+E9 -> 3250230.382 | F12: 3535226.918 | G12: 3414788.125 | H12: 3041297.883 | I12: 3136300.035 | J12: 2704895.2 | K12: 2954582.087 | L12: 2768082.699 | M12: 2841639.901 | N12: 3026918.892 | O12: 2677260.28 | P12: 2858974.825 | Q12: 3309154.892 | R12: 3598776.249 | S12: 3479994.718 | T12: 3097467.721 | U12: 3152644.664 | V12: 2812352.443 | W12: 2923659.737 | X12: 2696537.943 | Y12: 2937978.895 | Z12: 3091578.995 | AA12: 2736640.717 | AB12: 2911197.319 | AC12: 3435229.157 | AD12: 3733302.422 | AE12: 3667926.908 | AF12: 3301856.458 | AG12: 3265932.669 | AH12: 2842095.952 | AI12: 3086284.967 | AJ12: 2905502.471 | AK12: 3131091.114 | AL12: 3119795.515 | AM12: 2835178.279 | AN12: 2942458.872 | AO12: 3419155.18 | AP12: 3825843.299 | AQ12: 3634592.651 | AR12: 3251888.895 | AS12: 3332447.587 | AT12: 2861873.394 | AU12: 3061785.389 | AV12: 2774699.415 | AW12: 3118988.18 | AX12: 3141711.803 | AY12: 2851116.554 | AZ12: 2893919.463 | BA12: 3459934.997 | BB12: 3785920.243 | BC12: 3623402.149 | BD12: 3240954.5 | BE12: 3320349.238 | BF12: 2854283.349 | BG12: 3131967.037 | BH12: 2917280.058 | BI12: 3081589.808 | BJ12: 3173873.169 | BK12: 2843470.721 | BL12: 2915393.85 | BM12: 3482870.987 | BN12: 3844763.767 | BO12: 3625623.989 | BP12: 3264058.231 | BQ12: =+BQ6+BQ9 -> 3346360.977 | BR12: 2832398.212 | BS12: 3102375.949 | BT12: 2815985.272 | BU12: 3091729.754 | BV12: 3196633.462 | BW12: 2863270.197
B13: LLH | C13: PRE | D13: =+D7+D10 -> 1776505.625 | E13: 2222886.911 | F13: 2518729.685 | G13: 2382036.505 | H13: 1996409.784 | I13: 2011553.881 | J13: 1776869.584 | K13: 1917932.733 | L13: 1697496.9 | M13: 1924194.761 | N13: 1794530.439 | O13: 1836124.911 | P13: 1741758.348 | Q13: 2236063.442 | R13: 2535845.392 | S13: 2403883.311 | T13: 2010515.969 | U13: 2069289.839 | V13: 1738421.251 | W13: 1892259.522 | X13: 1658334.726 | Y13: 1877977.603 | Z13: 1797793.935 | AA13: 1839989.058 | AB13: 1794805.441 | AC13: 2328386.014 | AD13: 2632457.794 | AE13: 2496183.631 | AF13: 2129554.017 | AG13: 2162672.229 | AH13: 1816012.801 | AI13: 2108729.706 | AJ13: 1784318.062 | AK13: 1956517.154 | AL13: 1920716.809 | AM13: 1884656.433 | AN13: 1820103.625 | AO13: 2403028.072 | AP13: 2607882.995 | AQ13: 2576152.461 | AR13: 2120122.75 | AS13: 2137326.901 | AT13: 1832553.155 | AU13: 2025316.658 | AV13: 1744686.279 | AW13: 1985818.598 | AX13: 1936250.862 | AY13: 1903308.746 | AZ13: 1852611.566 | BA13: 2346625.376 | BB13: 2628107.148 | BC13: 2565208.97 | BD13: 2113251.447 | BE13: 2129900.001 | BF13: 1822868.025 | BG13: 2081576.304 | BH13: 1791418.996 | BI13: 2026353.106 | BJ13: 1888942.04 | BK13: 1895038.683 | BL13: 1867905.473 | BM13: 2365087.174 | BN13: 2617558.204 | BO13: 2611743.579 | BP13: =+BP7+BP10 -> 2131585.938 | BQ13: 2145271.574 | BR13: 1881406.946 | BS13: 2005605.215 | BT13: 1723455.912 | BU13: 2034555.232 | BV13: 1904324.415 | BW13: 1910463.285
B14: Tier 2 Load
B15: HLH | C15: PRE_T2 | D15: =+INDEX(Loads!$L:$CE,MATCH($C15,Loads!$D:$D,0),MATCH(D$4,Loads!$L$4:$CE$4,0)) -> 42117.92 | E15: =+INDEX(Loads!$L:$CE,MATCH($C15,Loads!$D:$D,0),MATCH(E$4,Loads!$L$4:$CE$4,0)) -> 40498 | F15: =+INDEX(Loads!$L:$CE,MATCH($C15,Loads!$D:$D,0),MATCH(F$4,Loads!$L$4:$CE$4,0)) -> 40498 | G15: =+INDEX(Loads!$L:$CE,MATCH($C15,Loads!$D:$D,0),MATCH(G$4,Loads!$L$4:$CE$4,0)) -> 42117.92 | H15: =+INDEX(Loads!$L:$CE,MATCH($C15,Loads!$D:$D,0),MATCH(H$4,Loads!$L$4:$CE$4,0)) -> 38878.08 | I15: =+INDEX(Loads!$L:$CE,MATCH($C15,Loads!$D:$D,0),MATCH(I$4,Loads!$L$4:$CE$4,0)) -> 43737.84 | J15: =+INDEX(Loads!$L:$CE,MATCH($C15,Loads!$D:$D,0),MATCH(J$4,Loads!$L$4:$CE$4,0)) -> 40498 | K15: =+INDEX(Loads!$L:$CE,MATCH($C15,Loads!$D:$D,0),MATCH(K$4,Loads!$L$4:$CE$4,0)) -> 42117.92 | L15: =+INDEX(Loads!$L:$CE,MATCH($C15,Loads!$D:$D,0),MATCH(L$4,Loads!$L$4:$CE$4,0)) -> 42117.92 | M15: =+INDEX(Loads!$L:$CE,MATCH($C15,Loads!$D:$D,0),MATCH(M$4,Loads!$L$4:$CE$4,0)) -> 40498 | N15: =+INDEX(Loads!$L:$CE,MATCH($C15,Loads!$D:$D,0),MATCH(N$4,Loads!$L$4:$CE$4,0)) -> 43737.84 | O15: =+INDEX(Loads!$L:$CE,MATCH($C15,Loads!$D:$D,0),MATCH(O$4,Loads!$L$4:$CE$4,0)) -> 38878.08 | P15: =+INDEX(Loads!$L:$CE,MATCH($C15,Loads!$D:$D,0),MATCH(P$4,Loads!$L$4:$CE$4,0)) -> 50578.56 | Q15: =+INDEX(Loads!$L:$CE,MATCH($C15,Loads!$D:$D,0),MATCH(Q$4,Loads!$L$4:$CE$4,0)) -> 46832 | R15: =+INDEX(Loads!$L:$CE,MATCH($C15,Loads!$D:$D,0),MATCH(R$4,Loads!$L$4:$CE$4,0)) -> 46832 | S15: =+INDEX(Loads!$L:$CE,MATCH($C15,Loads!$D:$D,0),MATCH(S$4,Loads!$L$4:$CE$4,0)) -> 48705.28 | T15: =+INDEX(Loads!$L:$CE,MATCH($C15,Loads!$D:$D,0),MATCH(T$4,Loads!$L$4:$CE$4,0)) -> 44958.72 | U15: =+INDEX(Loads!$L:$CE,MATCH($C15,Loads!$D:$D,0),MATCH(U$4,Loads!$L$4:$CE$4,0)) -> 48705.28 | V15: =+INDEX(Loads!$L:$CE,MATCH($C15,Loads!$D:$D,0),MATCH(V$4,Loads!$L$4:$CE$4,0)) -> 48705.28 | W15: =+INDEX(Loads!$L:$CE,MATCH($C15,Loads!$D:$D,0),MATCH(W$4,Loads!$L$4:$CE$4,0)) -> 48705.28 | X15: =+INDEX(Loads!$L:$CE,MATCH($C15,Loads!$D:$D,0),MATCH(X$4,Loads!$L$4:$CE$4,0)) -> 46832 | Y15: =+INDEX(Loads!$L:$CE,MATCH($C15,Loads!$D:$D,0),MATCH(Y$4,Loads!$L$4:$CE$4,0)) -> 48705.28 | Z15: =+INDEX(Loads!$L:$CE,MATCH($C15,Loads!$D:$D,0),MATCH(Z$4,Loads!$L$4:$CE$4,0)) -> 50578.56 | AA15: =+INDEX(Loads!$L:$CE,MATCH($C15,Loads!$D:$D,0),MATCH(AA$4,Loads!$L$4:$CE$4,0)) -> 44958.72 | AB15: =+INDEX(Loads!$L:$CE,MATCH($C15,Loads!$D:$D,0),MATCH(AB$4,Loads!$L$4:$CE$4,0)) -> 21503.232 | AC15: =+INDEX(Loads!$L:$CE,MATCH($C15,Loads!$D:$D,0),MATCH(AC$4,Loads!$L$4:$CE$4,0)) -> 19910.4 | AD15: =+INDEX(Loads!$L:$CE,MATCH($C15,Loads!$D:$D,0),MATCH(AD$4,Loads!$L$4:$CE$4,0)) -> 19910.4 | AE15: =+INDEX(Loads!$L:$CE,MATCH($C15,Loads!$D:$D,0),MATCH(AE$4,Loads!$L$4:$CE$4,0)) -> 20706.816 | AF15: =+INDEX(Loads!$L:$CE,MATCH($C15,Loads!$D:$D,0),MATCH(AF$4,Loads!$L$4:$CE$4,0)) -> 19910.4 | AG15: =+INDEX(Loads!$L:$CE,MATCH($C15,Loads!$D:$D,0),MATCH(AG$4,Loads!$L$4:$CE$4,0)) -> 20706.816 | AH15: =+INDEX(Loads!$L:$CE,MATCH($C15,Loads!$D:$D,0),MATCH(AH$4,Loads!$L$4:$CE$4,0)) -> 20706.816 | AI15: =+INDEX(Loads!$L:$CE,MATCH($C15,Loads!$D:$D,0),MATCH(AI$4,Loads!$L$4:$CE$4,0)) -> 19910.4 | AJ15: =+INDEX(Loads!$L:$CE,MATCH($C15,Loads!$D:$D,0),MATCH(AJ$4,Loads!$L$4:$CE$4,0)) -> 20706.816 | AK15: =+INDEX(Loads!$L:$CE,MATCH($C15,Loads!$D:$D,0),MATCH(AK$4,Loads!$L$4:$CE$4,0)) -> 20706.816 | AL15: =+INDEX(Loads!$L:$CE,MATCH($C15,Loads!$D:$D,0),MATCH(AL$4,Loads!$L$4:$CE$4,0)) -> 20706.816 | AM15: =+INDEX(Loads!$L:$CE,MATCH($C15,Loads!$D:$D,0),MATCH(AM$4,Loads!$L$4:$CE$4,0)) -> 19910.4 | AN15: =+INDEX(Loads!$L:$CE,MATCH($C15,Loads!$D:$D,0),MATCH(AN$4,Loads!$L$4:$CE$4,0)) -> 26168.4 | AO15: =+INDEX(Loads!$L:$CE,MATCH($C15,Loads!$D:$D,0),MATCH(AO$4,Loads!$L$4:$CE$4,0)) -> 23260.8 | AP15: =+INDEX(Loads!$L:$CE,MATCH($C15,Loads!$D:$D,0),MATCH(AP$4,Loads!$L$4:$CE$4,0)) -> 25199.2 | AQ15: =+INDEX(Loads!$L:$CE,MATCH($C15,Loads!$D:$D,0),MATCH(AQ$4,Loads!$L$4:$CE$4,0)) -> 24230 | AR15: =+INDEX(Loads!$L:$CE,MATCH($C15,Loads!$D:$D,0),MATCH(AR$4,Loads!$L$4:$CE$4,0)) -> 23260.8 | AS15: =+INDEX(Loads!$L:$CE,MATCH($C15,Loads!$D:$D,0),MATCH(AS$4,Loads!$L$4:$CE$4,0)) -> 26168.4 | AT15: =+INDEX(Loads!$L:$CE,MATCH($C15,Loads!$D:$D,0),MATCH(AT$4,Loads!$L$4:$CE$4,0)) -> 25199.2 | AU15: =+INDEX(Loads!$L:$CE,MATCH($C15,Loads!$D:$D,0),MATCH(AU$4,Loads!$L$4:$CE$4,0)) -> 24230 | AV15: =+INDEX(Loads!$L:$CE,MATCH($C15,Loads!$D:$D,0),MATCH(AV$4,Loads!$L$4:$CE$4,0)) -> 25199.2 | AW15: =+INDEX(Loads!$L:$CE,MATCH($C15,Loads!$D:$D,0),MATCH(AW$4,Loads!$L$4:$CE$4,0)) -> 25199.2 | AX15: =+INDEX(Loads!$L:$CE,MATCH($C15,Loads!$D:$D,0),MATCH(AX$4,Loads!$L$4:$CE$4,0)) -> 25199.2 | AY15: =+INDEX(Loads!$L:$CE,MATCH($C15,Loads!$D:$D,0),MATCH(AY$4,Loads!$L$4:$CE$4,0)) -> 24230 | AZ15: =+INDEX(Loads!$L:$CE,MATCH($C15,Loads!$D:$D,0),MATCH(AZ$4,Loads!$L$4:$CE$4,0)) -> 27300 | BA15: =+INDEX(Loads!$L:$CE,MATCH($C15,Loads!$D:$D,0),MATCH(BA$4,Loads!$L$4:$CE$4,0)) -> 26250 | BB15: =+INDEX(Loads!$L:$CE,MATCH($C15,Loads!$D:$D,0),MATCH(BB$4,Loads!$L$4:$CE$4,0)) -> 27300 | BC15: =+INDEX(Loads!$L:$CE,MATCH($C15,Loads!$D:$D,0),MATCH(BC$4,Loads!$L$4:$CE$4,0)) -> 26250 | BD15: =+INDEX(Loads!$L:$CE,MATCH($C15,Loads!$D:$D,0),MATCH(BD$4,Loads!$L$4:$CE$4,0)) -> 25200 | BE15: =+INDEX(Loads!$L:$CE,MATCH($C15,Loads!$D:$D,0),MATCH(BE$4,Loads!$L$4:$CE$4,0)) -> 28350 | BF15: =+INDEX(Loads!$L:$CE,MATCH($C15,Loads!$D:$D,0),MATCH(BF$4,Loads!$L$4:$CE$4,0)) -> 27300 | BG15: =+INDEX(Loads!$L:$CE,MATCH($C15,Loads!$D:$D,0),MATCH(BG$4,Loads!$L$4:$CE$4,0)) -> 26250 | BH15: =+INDEX(Loads!$L:$CE,MATCH($C15,Loads!$D:$D,0),MATCH(BH$4,Loads!$L$4:$CE$4,0)) -> 27300 | BI15: =+INDEX(Loads!$L:$CE,MATCH($C15,Loads!$D:$D,0),MATCH(BI$4,Loads!$L$4:$CE$4,0)) -> 26250 | BJ15: =+INDEX(Loads!$L:$CE,MATCH($C15,Loads!$D:$D,0),MATCH(BJ$4,Loads!$L$4:$CE$4,0)) -> 28350 | BK15: =+INDEX(Loads!$L:$CE,MATCH($C15,Loads!$D:$D,0),MATCH(BK$4,Loads!$L$4:$CE$4,0)) -> 26250 | BL15: =+INDEX(Loads!$L:$CE,MATCH($C15,Loads!$D:$D,0),MATCH(BL$4,Loads!$L$4:$CE$4,0)) -> 32502.08 | BM15: =+INDEX(Loads!$L:$CE,MATCH($C15,Loads!$D:$D,0),MATCH(BM$4,Loads!$L$4:$CE$4,0)) -> 31252 | BN15: =+INDEX(Loads!$L:$CE,MATCH($C15,Loads!$D:$D,0),MATCH(BN$4,Loads!$L$4:$CE$4,0)) -> 32502.08 | BO15: =+INDEX(Loads!$L:$CE,MATCH($C15,Loads!$D:$D,0),MATCH(BO$4,Loads!$L$4:$CE$4,0)) -> 31252 | BP15: =+INDEX(Loads!$L:$CE,MATCH($C15,Loads!$D:$D,0),MATCH(BP$4,Loads!$L$4:$CE$4,0)) -> 30001.92 | BQ15: =+INDEX(Loads!$L:$CE,MATCH($C15,Loads!$D:$D,0),MATCH(BQ$4,Loads!$L$4:$CE$4,0)) -> 33752.16 | BR15: =+INDEX(Loads!$L:$CE,MATCH($C15,Loads!$D:$D,0),MATCH(BR$4,Loads!$L$4:$CE$4,0)) -> 31252 | BS15: =+INDEX(Loads!$L:$CE,MATCH($C15,Loads!$D:$D,0),MATCH(BS$4,Loads!$L$4:$CE$4,0)) -> 32502.08 | BT15: =+INDEX(Loads!$L:$CE,MATCH($C15,Loads!$D:$D,0),MATCH(BT$4,Loads!$L$4:$CE$4,0)) -> 32502.08 | BU15: =+INDEX(Loads!$L:$CE,MATCH($C15,Loads!$D:$D,0),MATCH(BU$4,Loads!$L$4:$CE$4,0)) -> 31252 | BV15: =+INDEX(Loads!$L:$CE,MATCH($C15,Loads!$D:$D,0),MATCH(BV$4,Loads!$L$4:$CE$4,0)) -> 33752.16 | BW15: =+INDEX(Loads!$L:$CE,MATCH($C15,Loads!$D:$D,0),MATCH(BW$4,Loads!$L$4:$CE$4,0)) -> 31252
B16: LLH | C16: PRE_T2 | D16: =+INDEX(Loads!$CG:$EZ,MATCH($C16,Loads!$D:$D,0),MATCH(D$4,Loads!$CG$4:$EZ$4,0)) -> 33208.36 | E16: =+INDEX(Loads!$CG:$EZ,MATCH($C16,Loads!$D:$D,0),MATCH(E$4,Loads!$CG$4:$EZ$4,0)) -> 32499.645 | F16: =+INDEX(Loads!$CG:$EZ,MATCH($C16,Loads!$D:$D,0),MATCH(F$4,Loads!$CG$4:$EZ$4,0)) -> 34828.28 | G16: =+INDEX(Loads!$CG:$EZ,MATCH($C16,Loads!$D:$D,0),MATCH(G$4,Loads!$CG$4:$EZ$4,0)) -> 33208.36 | H16: =+INDEX(Loads!$CG:$EZ,MATCH($C16,Loads!$D:$D,0),MATCH(H$4,Loads!$CG$4:$EZ$4,0)) -> 29158.56 | I16: =+INDEX(Loads!$CG:$EZ,MATCH($C16,Loads!$D:$D,0),MATCH(I$4,Loads!$CG$4:$EZ$4,0)) -> 31487.195 | J16: =+INDEX(Loads!$CG:$EZ,MATCH($C16,Loads!$D:$D,0),MATCH(J$4,Loads!$CG$4:$EZ$4,0)) -> 32398.4 | K16: =+INDEX(Loads!$CG:$EZ,MATCH($C16,Loads!$D:$D,0),MATCH(K$4,Loads!$CG$4:$EZ$4,0)) -> 33208.36 | L16: =+INDEX(Loads!$CG:$EZ,MATCH($C16,Loads!$D:$D,0),MATCH(L$4,Loads!$CG$4:$EZ$4,0)) -> 30778.48 | M16: =+INDEX(Loads!$CG:$EZ,MATCH($C16,Loads!$D:$D,0),MATCH(M$4,Loads!$CG$4:$EZ$4,0)) -> 34828.28 | N16: =+INDEX(Loads!$CG:$EZ,MATCH($C16,Loads!$D:$D,0),MATCH(N$4,Loads!$CG$4:$EZ$4,0)) -> 31588.44 | O16: =+INDEX(Loads!$CG:$EZ,MATCH($C16,Loads!$D:$D,0),MATCH(O$4,Loads!$CG$4:$EZ$4,0)) -> 34018.32 | P16: =+INDEX(Loads!$CG:$EZ,MATCH($C16,Loads!$D:$D,0),MATCH(P$4,Loads!$CG$4:$EZ$4,0)) -> 36528.96 | Q16: =+INDEX(Loads!$CG:$EZ,MATCH($C16,Loads!$D:$D,0),MATCH(Q$4,Loads!$CG$4:$EZ$4,0)) -> 37582.68 | R16: =+INDEX(Loads!$CG:$EZ,MATCH($C16,Loads!$D:$D,0),MATCH(R$4,Loads!$CG$4:$EZ$4,0)) -> 40275.52 | S16: =+INDEX(Loads!$CG:$EZ,MATCH($C16,Loads!$D:$D,0),MATCH(S$4,Loads!$CG$4:$EZ$4,0)) -> 38402.24 | T16: =+INDEX(Loads!$CG:$EZ,MATCH($C16,Loads!$D:$D,0),MATCH(T$4,Loads!$CG$4:$EZ$4,0)) -> 33719.04 | U16: =+INDEX(Loads!$CG:$EZ,MATCH($C16,Loads!$D:$D,0),MATCH(U$4,Loads!$CG$4:$EZ$4,0)) -> 38285.16 | V16: =+INDEX(Loads!$CG:$EZ,MATCH($C16,Loads!$D:$D,0),MATCH(V$4,Loads!$CG$4:$EZ$4,0)) -> 35592.32 | W16: =+INDEX(Loads!$CG:$EZ,MATCH($C16,Loads!$D:$D,0),MATCH(W$4,Loads!$CG$4:$EZ$4,0)) -> 38402.24 | X16: =+INDEX(Loads!$CG:$EZ,MATCH($C16,Loads!$D:$D,0),MATCH(X$4,Loads!$CG$4:$EZ$4,0)) -> 37465.6 | Y16: =+INDEX(Loads!$CG:$EZ,MATCH($C16,Loads!$D:$D,0),MATCH(Y$4,Loads!$CG$4:$EZ$4,0)) -> 38402.24 | Z16: =+INDEX(Loads!$CG:$EZ,MATCH($C16,Loads!$D:$D,0),MATCH(Z$4,Loads!$CG$4:$EZ$4,0)) -> 36528.96 | AA16: =+INDEX(Loads!$CG:$EZ,MATCH($C16,Loads!$D:$D,0),MATCH(AA$4,Loads!$CG$4:$EZ$4,0)) -> 39338.88 | AB16: =+INDEX(Loads!$CG:$EZ,MATCH($C16,Loads!$D:$D,0),MATCH(AB$4,Loads!$CG$4:$EZ$4,0)) -> 15530.112 | AC16: =+INDEX(Loads!$CG:$EZ,MATCH($C16,Loads!$D:$D,0),MATCH(AC$4,Loads!$CG$4:$EZ$4,0)) -> 15978.096 | AD16: =+INDEX(Loads!$CG:$EZ,MATCH($C16,Loads!$D:$D,0),MATCH(AD$4,Loads!$CG$4:$EZ$4,0)) -> 17122.944 | AE16: =+INDEX(Loads!$CG:$EZ,MATCH($C16,Loads!$D:$D,0),MATCH(AE$4,Loads!$CG$4:$EZ$4,0)) -> 16326.528 | AF16: =+INDEX(Loads!$CG:$EZ,MATCH($C16,Loads!$D:$D,0),MATCH(AF$4,Loads!$CG$4:$EZ$4,0)) -> 14733.696 | AG16: =+INDEX(Loads!$CG:$EZ,MATCH($C16,Loads!$D:$D,0),MATCH(AG$4,Loads!$CG$4:$EZ$4,0)) -> 16276.752 | AH16: =+INDEX(Loads!$CG:$EZ,MATCH($C16,Loads!$D:$D,0),MATCH(AH$4,Loads!$CG$4:$EZ$4,0)) -> 15131.904 | AI16: =+INDEX(Loads!$CG:$EZ,MATCH($C16,Loads!$D:$D,0),MATCH(AI$4,Loads!$CG$4:$EZ$4,0)) -> 17122.944 | AJ16: =+INDEX(Loads!$CG:$EZ,MATCH($C16,Loads!$D:$D,0),MATCH(AJ$4,Loads!$CG$4:$EZ$4,0)) -> 15131.904 | AK16: =+INDEX(Loads!$CG:$EZ,MATCH($C16,Loads!$D:$D,0),MATCH(AK$4,Loads!$CG$4:$EZ$4,0)) -> 16326.528 | AL16: =+INDEX(Loads!$CG:$EZ,MATCH($C16,Loads!$D:$D,0),MATCH(AL$4,Loads!$CG$4:$EZ$4,0)) -> 16326.528 | AM16: =+INDEX(Loads!$CG:$EZ,MATCH($C16,Loads!$D:$D,0),MATCH(AM$4,Loads!$CG$4:$EZ$4,0)) -> 15928.32 | AN16: =+INDEX(Loads!$CG:$EZ,MATCH($C16,Loads!$D:$D,0),MATCH(AN$4,Loads!$CG$4:$EZ$4,0)) -> 18899.4 | AO16: =+INDEX(Loads!$CG:$EZ,MATCH($C16,Loads!$D:$D,0),MATCH(AO$4,Loads!$CG$4:$EZ$4,0)) -> 20413.775 | AP16: =+INDEX(Loads!$CG:$EZ,MATCH($C16,Loads!$D:$D,0),MATCH(AP$4,Loads!$CG$4:$EZ$4,0)) -> 19868.6 | AQ16: =+INDEX(Loads!$CG:$EZ,MATCH($C16,Loads!$D:$D,0),MATCH(AQ$4,Loads!$CG$4:$EZ$4,0)) -> 20837.8 | AR16: =+INDEX(Loads!$CG:$EZ,MATCH($C16,Loads!$D:$D,0),MATCH(AR$4,Loads!$CG$4:$EZ$4,0)) -> 17445.6 | AS16: =+INDEX(Loads!$CG:$EZ,MATCH($C16,Loads!$D:$D,0),MATCH(AS$4,Loads!$CG$4:$EZ$4,0)) -> 18838.825 | AT16: =+INDEX(Loads!$CG:$EZ,MATCH($C16,Loads!$D:$D,0),MATCH(AT$4,Loads!$CG$4:$EZ$4,0)) -> 18414.8 | AU16: =+INDEX(Loads!$CG:$EZ,MATCH($C16,Loads!$D:$D,0),MATCH(AU$4,Loads!$CG$4:$EZ$4,0)) -> 20837.8 | AV16: =+INDEX(Loads!$CG:$EZ,MATCH($C16,Loads!$D:$D,0),MATCH(AV$4,Loads!$CG$4:$EZ$4,0)) -> 18414.8 | AW16: =+INDEX(Loads!$CG:$EZ,MATCH($C16,Loads!$D:$D,0),MATCH(AW$4,Loads!$CG$4:$EZ$4,0)) -> 19868.6 | AX16: =+INDEX(Loads!$CG:$EZ,MATCH($C16,Loads!$D:$D,0),MATCH(AX$4,Loads!$CG$4:$EZ$4,0)) -> 19868.6 | AY16: =+INDEX(Loads!$CG:$EZ,MATCH($C16,Loads!$D:$D,0),MATCH(AY$4,Loads!$CG$4:$EZ$4,0)) -> 19384 | AZ16: =+INDEX(Loads!$CG:$EZ,MATCH($C16,Loads!$D:$D,0),MATCH(AZ$4,Loads!$CG$4:$EZ$4,0)) -> 21525 | BA16: =+INDEX(Loads!$CG:$EZ,MATCH($C16,Loads!$D:$D,0),MATCH(BA$4,Loads!$CG$4:$EZ$4,0)) -> 21065.625 | BB16: =+INDEX(Loads!$CG:$EZ,MATCH($C16,Loads!$D:$D,0),MATCH(BB$4,Loads!$CG$4:$EZ$4,0)) -> 21525 | BC16: =+INDEX(Loads!$CG:$EZ,MATCH($C16,Loads!$D:$D,0),MATCH(BC$4,Loads!$CG$4:$EZ$4,0)) -> 22575 | BD16: =+INDEX(Loads!$CG:$EZ,MATCH($C16,Loads!$D:$D,0),MATCH(BD$4,Loads!$CG$4:$EZ$4,0)) -> 18900 | BE16: =+INDEX(Loads!$CG:$EZ,MATCH($C16,Loads!$D:$D,0),MATCH(BE$4,Loads!$CG$4:$EZ$4,0)) -> 20409.375 | BF16: =+INDEX(Loads!$CG:$EZ,MATCH($C16,Loads!$D:$D,0),MATCH(BF$4,Loads!$CG$4:$EZ$4,0)) -> 19950 | BG16: =+INDEX(Loads!$CG:$EZ,MATCH($C16,Loads!$D:$D,0),MATCH(BG$4,Loads!$CG$4:$EZ$4,0)) -> 22575 | BH16: =+INDEX(Loads!$CG:$EZ,MATCH($C16,Loads!$D:$D,0),MATCH(BH$4,Loads!$CG$4:$EZ$4,0)) -> 19950 | BI16: =+INDEX(Loads!$CG:$EZ,MATCH($C16,Loads!$D:$D,0),MATCH(BI$4,Loads!$CG$4:$EZ$4,0)) -> 22575 | BJ16: =+INDEX(Loads!$CG:$EZ,MATCH($C16,Loads!$D:$D,0),MATCH(BJ$4,Loads!$CG$4:$EZ$4,0)) -> 20475 | BK16: =+INDEX(Loads!$CG:$EZ,MATCH($C16,Loads!$D:$D,0),MATCH(BK$4,Loads!$CG$4:$EZ$4,0)) -> 21000 | BL16: =+INDEX(Loads!$CG:$EZ,MATCH($C16,Loads!$D:$D,0),MATCH(BL$4,Loads!$CG$4:$EZ$4,0)) -> 25626.64 | BM16: =+INDEX(Loads!$CG:$EZ,MATCH($C16,Loads!$D:$D,0),MATCH(BM$4,Loads!$CG$4:$EZ$4,0)) -> 25079.73 | BN16: =+INDEX(Loads!$CG:$EZ,MATCH($C16,Loads!$D:$D,0),MATCH(BN$4,Loads!$CG$4:$EZ$4,0)) -> 25626.64 | BO16: =+INDEX(Loads!$CG:$EZ,MATCH($C16,Loads!$D:$D,0),MATCH(BO$4,Loads!$CG$4:$EZ$4,0)) -> 26876.72 | BP16: =+INDEX(Loads!$CG:$EZ,MATCH($C16,Loads!$D:$D,0),MATCH(BP$4,Loads!$CG$4:$EZ$4,0)) -> 22501.44 | BQ16: =+INDEX(Loads!$CG:$EZ,MATCH($C16,Loads!$D:$D,0),MATCH(BQ$4,Loads!$CG$4:$EZ$4,0)) -> 24298.43 | BR16: =+INDEX(Loads!$CG:$EZ,MATCH($C16,Loads!$D:$D,0),MATCH(BR$4,Loads!$CG$4:$EZ$4,0)) -> 25001.6 | BS16: =+INDEX(Loads!$CG:$EZ,MATCH($C16,Loads!$D:$D,0),MATCH(BS$4,Loads!$CG$4:$EZ$4,0)) -> 25626.64 | BT16: =+INDEX(Loads!$CG:$EZ,MATCH($C16,Loads!$D:$D,0),MATCH(BT$4,Loads!$CG$4:$EZ$4,0)) -> 23751.52 | BU16: =+INDEX(Loads!$CG:$EZ,MATCH($C16,Loads!$D:$D,0),MATCH(BU$4,Loads!$CG$4:$EZ$4,0)) -> 26876.72 | BV16: =+INDEX(Loads!$CG:$EZ,MATCH($C16,Loads!$D:$D,0),MATCH(BV$4,Loads!$CG$4:$EZ$4,0)) -> 24376.56 | BW16: =+INDEX(Loads!$CG:$EZ,MATCH($C16,Loads!$D:$D,0),MATCH(BW$4,Loads!$CG$4:$EZ$4,0)) -> 25001.6
B17: Demand
D18: =+INDEX(TRM_Billing!$Q$6:$Q$149,MATCH(D$4,TRM_Billing!$K$6:$K$149,0),1)/1000 -> 292.201649 | E18: =+INDEX(TRM_Billing!$Q$6:$Q$149,MATCH(E$4,TRM_Billing!$K$6:$K$149,0),1)/1000 -> 282.266645 | F18: =+INDEX(TRM_Billing!$Q$6:$Q$149,MATCH(F$4,TRM_Billing!$K$6:$K$149,0),1)/1000 -> 531.52998 | G18: =+INDEX(TRM_Billing!$Q$6:$Q$149,MATCH(G$4,TRM_Billing!$K$6:$K$149,0),1)/1000 -> 604.5271418 | H18: =+INDEX(TRM_Billing!$Q$6:$Q$149,MATCH(H$4,TRM_Billing!$K$6:$K$149,0),1)/1000 -> 333.5454687 | I18: =+INDEX(TRM_Billing!$Q$6:$Q$149,MATCH(I$4,TRM_Billing!$K$6:$K$149,0),1)/1000 -> 552.9652708 | J18: =+INDEX(TRM_Billing!$Q$6:$Q$149,MATCH(J$4,TRM_Billing!$K$6:$K$149,0),1)/1000 -> 366.8590125 | K18: =+INDEX(TRM_Billing!$Q$6:$Q$149,MATCH(K$4,TRM_Billing!$K$6:$K$149,0),1)/1000 -> 330.7827452 | L18: =+INDEX(TRM_Billing!$Q$6:$Q$149,MATCH(L$4,TRM_Billing!$K$6:$K$149,0),1)/1000 -> 352.3891442 | M18: =+INDEX(TRM_Billing!$Q$6:$Q$149,MATCH(M$4,TRM_Billing!$K$6:$K$149,0),1)/1000 -> 367.2512525 | N18: =+INDEX(TRM_Billing!$Q$6:$Q$149,MATCH(N$4,TRM_Billing!$K$6:$K$149,0),1)/1000 -> 515.719412 | O18: =+INDEX(TRM_Billing!$Q$6:$Q$149,MATCH(O$4,TRM_Billing!$K$6:$K$149,0),1)/1000 -> 333.7703281 | P18: =+INDEX(TRM_Billing!$Q$6:$Q$149,MATCH(P$4,TRM_Billing!$K$6:$K$149,0),1)/1000 -> 339.9937755 | Q18: =+INDEX(TRM_Billing!$Q$6:$Q$149,MATCH(Q$4,TRM_Billing!$K$6:$K$149,0),1)/1000 -> 287.5521575 | R18: =+INDEX(TRM_Billing!$Q$6:$Q$149,MATCH(R$4,TRM_Billing!$K$6:$K$149,0),1)/1000 -> 536.7308125 | S18: =+INDEX(TRM_Billing!$Q$6:$Q$149,MATCH(S$4,TRM_Billing!$K$6:$K$149,0),1)/1000 -> 612.2458582 | T18: =+INDEX(TRM_Billing!$Q$6:$Q$149,MATCH(T$4,TRM_Billing!$K$6:$K$149,0),1)/1000 -> 354.529401 | U18: =+INDEX(TRM_Billing!$Q$6:$Q$149,MATCH(U$4,TRM_Billing!$K$6:$K$149,0),1)/1000 -> 453.3377981 | V18: =+INDEX(TRM_Billing!$Q$6:$Q$149,MATCH(V$4,TRM_Billing!$K$6:$K$149,0),1)/1000 -> 416.0671971 | W18: =+INDEX(TRM_Billing!$Q$6:$Q$149,MATCH(W$4,TRM_Billing!$K$6:$K$149,0),1)/1000 -> 303.6498654 | X18: =+INDEX(TRM_Billing!$Q$6:$Q$149,MATCH(X$4,TRM_Billing!$K$6:$K$149,0),1)/1000 -> 297.6515175 | Y18: =+INDEX(TRM_Billing!$Q$6:$Q$149,MATCH(Y$4,TRM_Billing!$K$6:$K$149,0),1)/1000 -> 414.213 | Z18: =+INDEX(TRM_Billing!$Q$6:$Q$149,MATCH(Z$4,TRM_Billing!$K$6:$K$149,0),1)/1000 -> 474.5294236 | AA18: =+INDEX(TRM_Billing!$Q$6:$Q$149,MATCH(AA$4,TRM_Billing!$K$6:$K$149,0),1)/1000 -> 310.8000573 | AB18: =+INDEX(TRM_Billing!$Q$6:$Q$149,MATCH(AB$4,TRM_Billing!$K$6:$K$149,0),1)/1000 -> 345.8653611 | AC18: =+INDEX(TRM_Billing!$Q$6:$Q$149,MATCH(AC$4,TRM_Billing!$K$6:$K$149,0),1)/1000 -> 294.0209725 | AD18: =+INDEX(TRM_Billing!$Q$6:$Q$149,MATCH(AD$4,TRM_Billing!$K$6:$K$149,0),1)/1000 -> 543.930565 | AE18: =+INDEX(TRM_Billing!$Q$6:$Q$149,MATCH(AE$4,TRM_Billing!$K$6:$K$149,0),1)/1000 -> 632.5331971 | AF18: =+INDEX(TRM_Billing!$Q$6:$Q$149,MATCH(AF$4,TRM_Billing!$K$6:$K$149,0),1)/1000 -> 426.4859775 | AG18: =+INDEX(TRM_Billing!$Q$6:$Q$149,MATCH(AG$4,TRM_Billing!$K$6:$K$149,0),1)/1000 -> 457.7584303 | AH18: =+INDEX(TRM_Billing!$Q$6:$Q$149,MATCH(AH$4,TRM_Billing!$K$6:$K$149,0),1)/1000 -> 430.7654231 | AI18: =+INDEX(TRM_Billing!$Q$6:$Q$149,MATCH(AI$4,TRM_Billing!$K$6:$K$149,0),1)/1000 -> 266.0523675 | AJ18: =+INDEX(TRM_Billing!$Q$6:$Q$149,MATCH(AJ$4,TRM_Billing!$K$6:$K$149,0),1)/1000 -> 364.2179063 | AK18: =+INDEX(TRM_Billing!$Q$6:$Q$149,MATCH(AK$4,TRM_Billing!$K$6:$K$149,0),1)/1000 -> 422.6119687 | AL18: =+INDEX(TRM_Billing!$Q$6:$Q$149,MATCH(AL$4,TRM_Billing!$K$6:$K$149,0),1)/1000 -> 403.1405216 | AM18: =+INDEX(TRM_Billing!$Q$6:$Q$149,MATCH(AM$4,TRM_Billing!$K$6:$K$149,0),1)/1000 -> 375.6699 | AN18: =+INDEX(TRM_Billing!$Q$6:$Q$149,MATCH(AN$4,TRM_Billing!$K$6:$K$149,0),1)/1000 -> 357.9764722 | AO18: =+INDEX(TRM_Billing!$Q$6:$Q$149,MATCH(AO$4,TRM_Billing!$K$6:$K$149,0),1)/1000 -> 251.5542943 | AP18: =+INDEX(TRM_Billing!$Q$6:$Q$149,MATCH(AP$4,TRM_Billing!$K$6:$K$149,0),1)/1000 -> 626.0083245 | AQ18: =+INDEX(TRM_Billing!$Q$6:$Q$149,MATCH(AQ$4,TRM_Billing!$K$6:$K$149,0),1)/1000 -> 570.9028175 | AR18: =+INDEX(TRM_Billing!$Q$6:$Q$149,MATCH(AR$4,TRM_Billing!$K$6:$K$149,0),1)/1000 -> 367.7305964 | AS18: =+INDEX(TRM_Billing!$Q$6:$Q$149,MATCH(AS$4,TRM_Billing!$K$6:$K$149,0),1)/1000 -> 533.4253079 | AT18: =+INDEX(TRM_Billing!$Q$6:$Q$149,MATCH(AT$4,TRM_Billing!$K$6:$K$149,0),1)/1000 -> 451.2345962 | AU18: =+INDEX(TRM_Billing!$Q$6:$Q$149,MATCH(AU$4,TRM_Billing!$K$6:$K$149,0),1)/1000 -> 272.4786525 | AV18: =+INDEX(TRM_Billing!$Q$6:$Q$149,MATCH(AV$4,TRM_Billing!$K$6:$K$149,0),1)/1000 -> 371.0097668 | AW18: =+INDEX(TRM_Billing!$Q$6:$Q$149,MATCH(AW$4,TRM_Billing!$K$6:$K$149,0),1)/1000 -> 429.3918149 | AX18: =+INDEX(TRM_Billing!$Q$6:$Q$149,MATCH(AX$4,TRM_Billing!$K$6:$K$149,0),1)/1000 -> 410.0255577 | AY18: =+INDEX(TRM_Billing!$Q$6:$Q$149,MATCH(AY$4,TRM_Billing!$K$6:$K$149,0),1)/1000 -> 382.0624925 | AZ18: =+INDEX(TRM_Billing!$Q$6:$Q$149,MATCH(AZ$4,TRM_Billing!$K$6:$K$149,0),1)/1000 -> 318.1702788 | BA18: =+INDEX(TRM_Billing!$Q$6:$Q$149,MATCH(BA$4,TRM_Billing!$K$6:$K$149,0),1)/1000 -> 318.5219625 | BB18: =+INDEX(TRM_Billing!$Q$6:$Q$149,MATCH(BB$4,TRM_Billing!$K$6:$K$149,0),1)/1000 -> 633.7004471 | BC18: =+INDEX(TRM_Billing!$Q$6:$Q$149,MATCH(BC$4,TRM_Billing!$K$6:$K$149,0),1)/1000 -> 578.8244375 | BD18: =+INDEX(TRM_Billing!$Q$6:$Q$149,MATCH(BD$4,TRM_Billing!$K$6:$K$149,0),1)/1000 -> 372.629388 | BE18: =+INDEX(TRM_Billing!$Q$6:$Q$149,MATCH(BE$4,TRM_Billing!$K$6:$K$149,0),1)/1000 -> 529.3170833 | BF18: =+INDEX(TRM_Billing!$Q$6:$Q$149,MATCH(BF$4,TRM_Billing!$K$6:$K$149,0),1)/1000 -> 443.8361635 | BG18: =+INDEX(TRM_Billing!$Q$6:$Q$149,MATCH(BG$4,TRM_Billing!$K$6:$K$149,0),1)/1000 -> 278.169365 | BH18: =+INDEX(TRM_Billing!$Q$6:$Q$149,MATCH(BH$4,TRM_Billing!$K$6:$K$149,0),1)/1000 -> 377.3610264 | BI18: =+INDEX(TRM_Billing!$Q$6:$Q$149,MATCH(BI$4,TRM_Billing!$K$6:$K$149,0),1)/1000 -> 376.53597 | BJ18: =+INDEX(TRM_Billing!$Q$6:$Q$149,MATCH(BJ$4,TRM_Billing!$K$6:$K$149,0),1)/1000 -> 473.3690116 | BK18: =+INDEX(TRM_Billing!$Q$6:$Q$149,MATCH(BK$4,TRM_Billing!$K$6:$K$149,0),1)/1000 -> 388.145445 | BL18: =+INDEX(TRM_Billing!$Q$6:$Q$149,MATCH(BL$4,TRM_Billing!$K$6:$K$149,0),1)/1000 -> 325.1375168 | BM18: =+INDEX(TRM_Billing!$Q$6:$Q$149,MATCH(BM$4,TRM_Billing!$K$6:$K$149,0),1)/1000 -> 326.272395 | BN18: =+INDEX(TRM_Billing!$Q$6:$Q$149,MATCH(BN$4,TRM_Billing!$K$6:$K$149,0),1)/1000 -> 641.7086635 | BO18: =+INDEX(TRM_Billing!$Q$6:$Q$149,MATCH(BO$4,TRM_Billing!$K$6:$K$149,0),1)/1000 -> 585.90173 | BP18: =+INDEX(TRM_Billing!$Q$6:$Q$149,MATCH(BP$4,TRM_Billing!$K$6:$K$149,0),1)/1000 -> 398.627862 | BQ18: =+INDEX(TRM_Billing!$Q$6:$Q$149,MATCH(BQ$4,TRM_Billing!$K$6:$K$149,0),1)/1000 -> 537.2215532 | BR18: =+INDEX(TRM_Billing!$Q$6:$Q$149,MATCH(BR$4,TRM_Billing!$K$6:$K$149,0),1)/1000 -> 400.7973725 | BS18: =+INDEX(TRM_Billing!$Q$6:$Q$149,MATCH(BS$4,TRM_Billing!$K$6:$K$149,0),1)/1000 -> 331.9737019 | BT18: =+INDEX(TRM_Billing!$Q$6:$Q$149,MATCH(BT$4,TRM_Billing!$K$6:$K$149,0),1)/1000 -> 384.5154303 | BU18: =+INDEX(TRM_Billing!$Q$6:$Q$149,MATCH(BU$4,TRM_Billing!$K$6:$K$149,0),1)/1000 -> 383.70968 | BV18: =+INDEX(TRM_Billing!$Q$6:$Q$149,MATCH(BV$4,TRM_Billing!$K$6:$K$149,0),1)/1000 -> 480.9229884 | BW18: =+INDEX(TRM_Billing!$Q$6:$Q$149,MATCH(BW$4,TRM_Billing!$K$6:$K$149,0),1)/1000 -> 395.044955
B19: Load Shaping
C20: HLH | D20: =+INDEX(TRM_Billing!$R$6:$R$149,IF($C20="HLH",MATCH(D$4,TRM_Billing!$K$6:$K$149,0),MATCH(D$4,TRM_Billing!$K$6:$K$149,0)+1),1) -> -219678.1124 | E20: =+INDEX(TRM_Billing!$R$6:$R$149,IF($C20="HLH",MATCH(E$4,TRM_Billing!$K$6:$K$149,0),MATCH(E$4,TRM_Billing!$K$6:$K$149,0)+1),1) -> -319418.9786 | F20: =+INDEX(TRM_Billing!$R$6:$R$149,IF($C20="HLH",MATCH(F$4,TRM_Billing!$K$6:$K$149,0),MATCH(F$4,TRM_Billing!$K$6:$K$149,0)+1),1) -> 53349.02292 | G20: =+INDEX(TRM_Billing!$R$6:$R$149,IF($C20="HLH",MATCH(G$4,TRM_Billing!$K$6:$K$149,0),MATCH(G$4,TRM_Billing!$K$6:$K$149,0)+1),1) -> 517405.5091 | H20: =+INDEX(TRM_Billing!$R$6:$R$149,IF($C20="HLH",MATCH(H$4,TRM_Billing!$K$6:$K$149,0),MATCH(H$4,TRM_Billing!$K$6:$K$149,0)+1),1) -> 500980.0073 | I20: =+INDEX(TRM_Billing!$R$6:$R$149,IF($C20="HLH",MATCH(I$4,TRM_Billing!$K$6:$K$149,0),MATCH(I$4,TRM_Billing!$K$6:$K$149,0)+1),1) -> 159410.8717 | J20: =+INDEX(TRM_Billing!$R$6:$R$149,IF($C20="HLH",MATCH(J$4,TRM_Billing!$K$6:$K$149,0),MATCH(J$4,TRM_Billing!$K$6:$K$149,0)+1),1) -> -174401.5492 | K20: =+INDEX(TRM_Billing!$R$6:$R$149,IF($C20="HLH",MATCH(K$4,TRM_Billing!$K$6:$K$149,0),MATCH(K$4,TRM_Billing!$K$6:$K$149,0)+1),1) -> -1268779.268 | L20: =+INDEX(TRM_Billing!$R$6:$R$149,IF($C20="HLH",MATCH(L$4,TRM_Billing!$K$6:$K$149,0),MATCH(L$4,TRM_Billing!$K$6:$K$149,0)+1),1) -> -673654.8773 | M20: =+INDEX(TRM_Billing!$R$6:$R$149,IF($C20="HLH",MATCH(M$4,TRM_Billing!$K$6:$K$149,0),MATCH(M$4,TRM_Billing!$K$6:$K$149,0)+1),1) -> -134892.9212 | N20: =+INDEX(TRM_Billing!$R$6:$R$149,IF($C20="HLH",MATCH(N$4,TRM_Billing!$K$6:$K$149,0),MATCH(N$4,TRM_Billing!$K$6:$K$149,0)+1),1) -> -346552.4538 | O20: =+INDEX(TRM_Billing!$R$6:$R$149,IF($C20="HLH",MATCH(O$4,TRM_Billing!$K$6:$K$149,0),MATCH(O$4,TRM_Billing!$K$6:$K$149,0)+1),1) -> -235269.23 | P20: =+INDEX(TRM_Billing!$R$6:$R$149,IF($C20="HLH",MATCH(P$4,TRM_Billing!$K$6:$K$149,0),MATCH(P$4,TRM_Billing!$K$6:$K$149,0)+1),1) -> -154379.5204 | Q20: =+INDEX(TRM_Billing!$R$6:$R$149,IF($C20="HLH",MATCH(Q$4,TRM_Billing!$K$6:$K$149,0),MATCH(Q$4,TRM_Billing!$K$6:$K$149,0)+1),1) -> -296242.0172 | R20: =+INDEX(TRM_Billing!$R$6:$R$149,IF($C20="HLH",MATCH(R$4,TRM_Billing!$K$6:$K$149,0),MATCH(R$4,TRM_Billing!$K$6:$K$149,0)+1),1) -> 83612.64261 | S20: =+INDEX(TRM_Billing!$R$6:$R$149,IF($C20="HLH",MATCH(S$4,TRM_Billing!$K$6:$K$149,0),MATCH(S$4,TRM_Billing!$K$6:$K$149,0)+1),1) -> 553738.1801 | T20: =+INDEX(TRM_Billing!$R$6:$R$149,IF($C20="HLH",MATCH(T$4,TRM_Billing!$K$6:$K$149,0),MATCH(T$4,TRM_Billing!$K$6:$K$149,0)+1),1) -> 537042.5702 | U20: =+INDEX(TRM_Billing!$R$6:$R$149,IF($C20="HLH",MATCH(U$4,TRM_Billing!$K$6:$K$149,0),MATCH(U$4,TRM_Billing!$K$6:$K$149,0)+1),1) -> 148613.2543 | V20: =+INDEX(TRM_Billing!$R$6:$R$149,IF($C20="HLH",MATCH(V$4,TRM_Billing!$K$6:$K$149,0),MATCH(V$4,TRM_Billing!$K$6:$K$149,0)+1),1) -> -94667.36227 | W20: =+INDEX(TRM_Billing!$R$6:$R$149,IF($C20="HLH",MATCH(W$4,TRM_Billing!$K$6:$K$149,0),MATCH(W$4,TRM_Billing!$K$6:$K$149,0)+1),1) -> -1244927.878 | X20: =+INDEX(TRM_Billing!$R$6:$R$149,IF($C20="HLH",MATCH(X$4,TRM_Billing!$K$6:$K$149,0),MATCH(X$4,TRM_Billing!$K$6:$K$149,0)+1),1) -> -687824.4438 | Y20: =+INDEX(TRM_Billing!$R$6:$R$149,IF($C20="HLH",MATCH(Y$4,TRM_Billing!$K$6:$K$149,0),MATCH(Y$4,TRM_Billing!$K$6:$K$149,0)+1),1) -> -55742.14513 | Z20: =+INDEX(TRM_Billing!$R$6:$R$149,IF($C20="HLH",MATCH(Z$4,TRM_Billing!$K$6:$K$149,0),MATCH(Z$4,TRM_Billing!$K$6:$K$149,0)+1),1) -> -313298.0959 | AA20: =+INDEX(TRM_Billing!$R$6:$R$149,IF($C20="HLH",MATCH(AA$4,TRM_Billing!$K$6:$K$149,0),MATCH(AA$4,TRM_Billing!$K$6:$K$149,0)+1),1) -> -202968.6637 | AB20: =+INDEX(TRM_Billing!$R$6:$R$149,IF($C20="HLH",MATCH(AB$4,TRM_Billing!$K$6:$K$149,0),MATCH(AB$4,TRM_Billing!$K$6:$K$149,0)+1),1) -> -46672.1427 | AC20: =+INDEX(TRM_Billing!$R$6:$R$149,IF($C20="HLH",MATCH(AC$4,TRM_Billing!$K$6:$K$149,0),MATCH(AC$4,TRM_Billing!$K$6:$K$149,0)+1),1) -> -332800.851 | AD20: =+INDEX(TRM_Billing!$R$6:$R$149,IF($C20="HLH",MATCH(AD$4,TRM_Billing!$K$6:$K$149,0),MATCH(AD$4,TRM_Billing!$K$6:$K$149,0)+1),1) -> 28176.97564 | AE20: =+INDEX(TRM_Billing!$R$6:$R$149,IF($C20="HLH",MATCH(AE$4,TRM_Billing!$K$6:$K$149,0),MATCH(AE$4,TRM_Billing!$K$6:$K$149,0)+1),1) -> 491205.6347 | AF20: =+INDEX(TRM_Billing!$R$6:$R$149,IF($C20="HLH",MATCH(AF$4,TRM_Billing!$K$6:$K$149,0),MATCH(AF$4,TRM_Billing!$K$6:$K$149,0)+1),1) -> 265651.2136 | AG20: =+INDEX(TRM_Billing!$R$6:$R$149,IF($C20="HLH",MATCH(AG$4,TRM_Billing!$K$6:$K$149,0),MATCH(AG$4,TRM_Billing!$K$6:$K$149,0)+1),1) -> 57095.38023 | AH20: =+INDEX(TRM_Billing!$R$6:$R$149,IF($C20="HLH",MATCH(AH$4,TRM_Billing!$K$6:$K$149,0),MATCH(AH$4,TRM_Billing!$K$6:$K$149,0)+1),1) -> 73536.19136 | AI20: =+INDEX(TRM_Billing!$R$6:$R$149,IF($C20="HLH",MATCH(AI$4,TRM_Billing!$K$6:$K$149,0),MATCH(AI$4,TRM_Billing!$K$6:$K$149,0)+1),1) -> -1308926.567 | AJ20: =+INDEX(TRM_Billing!$R$6:$R$149,IF($C20="HLH",MATCH(AJ$4,TRM_Billing!$K$6:$K$149,0),MATCH(AJ$4,TRM_Billing!$K$6:$K$149,0)+1),1) -> -553466.788 | AK20: =+INDEX(TRM_Billing!$R$6:$R$149,IF($C20="HLH",MATCH(AK$4,TRM_Billing!$K$6:$K$149,0),MATCH(AK$4,TRM_Billing!$K$6:$K$149,0)+1),1) -> -296015.1289 | AL20: =+INDEX(TRM_Billing!$R$6:$R$149,IF($C20="HLH",MATCH(AL$4,TRM_Billing!$K$6:$K$149,0),MATCH(AL$4,TRM_Billing!$K$6:$K$149,0)+1),1) -> -314888.9136 | AM20: =+INDEX(TRM_Billing!$R$6:$R$149,IF($C20="HLH",MATCH(AM$4,TRM_Billing!$K$6:$K$149,0),MATCH(AM$4,TRM_Billing!$K$6:$K$149,0)+1),1) -> -49900.27831 | AN20: =+INDEX(TRM_Billing!$R$6:$R$149,IF($C20="HLH",MATCH(AN$4,TRM_Billing!$K$6:$K$149,0),MATCH(AN$4,TRM_Billing!$K$6:$K$149,0)+1),1) -> 5232.53034 | AO20: =+INDEX(TRM_Billing!$R$6:$R$149,IF($C20="HLH",MATCH(AO$4,TRM_Billing!$K$6:$K$149,0),MATCH(AO$4,TRM_Billing!$K$6:$K$149,0)+1),1) -> -337629.6279 | AP20: =+INDEX(TRM_Billing!$R$6:$R$149,IF($C20="HLH",MATCH(AP$4,TRM_Billing!$K$6:$K$149,0),MATCH(AP$4,TRM_Billing!$K$6:$K$149,0)+1),1) -> 138651.8889 | AQ20: =+INDEX(TRM_Billing!$R$6:$R$149,IF($C20="HLH",MATCH(AQ$4,TRM_Billing!$K$6:$K$149,0),MATCH(AQ$4,TRM_Billing!$K$6:$K$149,0)+1),1) -> 467981.71 | AR20: =+INDEX(TRM_Billing!$R$6:$R$149,IF($C20="HLH",MATCH(AR$4,TRM_Billing!$K$6:$K$149,0),MATCH(AR$4,TRM_Billing!$K$6:$K$149,0)+1),1) -> 336935.7736 | AS20: =+INDEX(TRM_Billing!$R$6:$R$149,IF($C20="HLH",MATCH(AS$4,TRM_Billing!$K$6:$K$149,0),MATCH(AS$4,TRM_Billing!$K$6:$K$149,0)+1),1) -> 130564.288 | AT20: =+INDEX(TRM_Billing!$R$6:$R$149,IF($C20="HLH",MATCH(AT$4,TRM_Billing!$K$6:$K$149,0),MATCH(AT$4,TRM_Billing!$K$6:$K$149,0)+1),1) -> 96331.87344 | AU20: =+INDEX(TRM_Billing!$R$6:$R$149,IF($C20="HLH",MATCH(AU$4,TRM_Billing!$K$6:$K$149,0),MATCH(AU$4,TRM_Billing!$K$6:$K$149,0)+1),1) -> -1285584.648 | AV20: =+INDEX(TRM_Billing!$R$6:$R$149,IF($C20="HLH",MATCH(AV$4,TRM_Billing!$K$6:$K$149,0),MATCH(AV$4,TRM_Billing!$K$6:$K$149,0)+1),1) -> -525901.9714 | AW20: =+INDEX(TRM_Billing!$R$6:$R$149,IF($C20="HLH",MATCH(AW$4,TRM_Billing!$K$6:$K$149,0),MATCH(AW$4,TRM_Billing!$K$6:$K$149,0)+1),1) -> -266497.9122 | AX20: =+INDEX(TRM_Billing!$R$6:$R$149,IF($C20="HLH",MATCH(AX$4,TRM_Billing!$K$6:$K$149,0),MATCH(AX$4,TRM_Billing!$K$6:$K$149,0)+1),1) -> -285329.5608 | AY20: =+INDEX(TRM_Billing!$R$6:$R$149,IF($C20="HLH",MATCH(AY$4,TRM_Billing!$K$6:$K$149,0),MATCH(AY$4,TRM_Billing!$K$6:$K$149,0)+1),1) -> -20545.41842 | AZ20: =+INDEX(TRM_Billing!$R$6:$R$149,IF($C20="HLH",MATCH(AZ$4,TRM_Billing!$K$6:$K$149,0),MATCH(AZ$4,TRM_Billing!$K$6:$K$149,0)+1),1) -> -24589.94742 | BA20: =+INDEX(TRM_Billing!$R$6:$R$149,IF($C20="HLH",MATCH(BA$4,TRM_Billing!$K$6:$K$149,0),MATCH(BA$4,TRM_Billing!$K$6:$K$149,0)+1),1) -> -277078.4674 | BB20: =+INDEX(TRM_Billing!$R$6:$R$149,IF($C20="HLH",MATCH(BB$4,TRM_Billing!$K$6:$K$149,0),MATCH(BB$4,TRM_Billing!$K$6:$K$149,0)+1),1) -> 188042.5891 | BC20: =+INDEX(TRM_Billing!$R$6:$R$149,IF($C20="HLH",MATCH(BC$4,TRM_Billing!$K$6:$K$149,0),MATCH(BC$4,TRM_Billing!$K$6:$K$149,0)+1),1) -> 513410.8868 | BD20: =+INDEX(TRM_Billing!$R$6:$R$149,IF($C20="HLH",MATCH(BD$4,TRM_Billing!$K$6:$K$149,0),MATCH(BD$4,TRM_Billing!$K$6:$K$149,0)+1),1) -> 350005.4743 | BE20: =+INDEX(TRM_Billing!$R$6:$R$149,IF($C20="HLH",MATCH(BE$4,TRM_Billing!$K$6:$K$149,0),MATCH(BE$4,TRM_Billing!$K$6:$K$149,0)+1),1) -> 148929.7824 | BF20: =+INDEX(TRM_Billing!$R$6:$R$149,IF($C20="HLH",MATCH(BF$4,TRM_Billing!$K$6:$K$149,0),MATCH(BF$4,TRM_Billing!$K$6:$K$149,0)+1),1) -> 107102.9418 | BG20: =+INDEX(TRM_Billing!$R$6:$R$149,IF($C20="HLH",MATCH(BG$4,TRM_Billing!$K$6:$K$149,0),MATCH(BG$4,TRM_Billing!$K$6:$K$149,0)+1),1) -> -1310879.128 | BH20: =+INDEX(TRM_Billing!$R$6:$R$149,IF($C20="HLH",MATCH(BH$4,TRM_Billing!$K$6:$K$149,0),MATCH(BH$4,TRM_Billing!$K$6:$K$149,0)+1),1) -> -559971.0259 | BI20: =+INDEX(TRM_Billing!$R$6:$R$149,IF($C20="HLH",MATCH(BI$4,TRM_Billing!$K$6:$K$149,0),MATCH(BI$4,TRM_Billing!$K$6:$K$149,0)+1),1) -> -278255.1129 | BJ20: =+INDEX(TRM_Billing!$R$6:$R$149,IF($C20="HLH",MATCH(BJ$4,TRM_Billing!$K$6:$K$149,0),MATCH(BJ$4,TRM_Billing!$K$6:$K$149,0)+1),1) -> -229956.0921 | BK20: =+INDEX(TRM_Billing!$R$6:$R$149,IF($C20="HLH",MATCH(BK$4,TRM_Billing!$K$6:$K$149,0),MATCH(BK$4,TRM_Billing!$K$6:$K$149,0)+1),1) -> -9815.947667 | BL20: =+INDEX(TRM_Billing!$R$6:$R$149,IF($C20="HLH",MATCH(BL$4,TRM_Billing!$K$6:$K$149,0),MATCH(BL$4,TRM_Billing!$K$6:$K$149,0)+1),1) -> 11674.82513 | BM20: =+INDEX(TRM_Billing!$R$6:$R$149,IF($C20="HLH",MATCH(BM$4,TRM_Billing!$K$6:$K$149,0),MATCH(BM$4,TRM_Billing!$K$6:$K$149,0)+1),1) -> -240707.5964 | BN20: =+INDEX(TRM_Billing!$R$6:$R$149,IF($C20="HLH",MATCH(BN$4,TRM_Billing!$K$6:$K$149,0),MATCH(BN$4,TRM_Billing!$K$6:$K$149,0)+1),1) -> 228743.8744 | BO20: =+INDEX(TRM_Billing!$R$6:$R$149,IF($C20="HLH",MATCH(BO$4,TRM_Billing!$K$6:$K$149,0),MATCH(BO$4,TRM_Billing!$K$6:$K$149,0)+1),1) -> 555194.372 | BP20: =+INDEX(TRM_Billing!$R$6:$R$149,IF($C20="HLH",MATCH(BP$4,TRM_Billing!$K$6:$K$149,0),MATCH(BP$4,TRM_Billing!$K$6:$K$149,0)+1),1) -> 385973.3409 | BQ20: =+INDEX(TRM_Billing!$R$6:$R$149,IF($C20="HLH",MATCH(BQ$4,TRM_Billing!$K$6:$K$149,0),MATCH(BQ$4,TRM_Billing!$K$6:$K$149,0)+1),1) -> 188282.409 | BR20: =+INDEX(TRM_Billing!$R$6:$R$149,IF($C20="HLH",MATCH(BR$4,TRM_Billing!$K$6:$K$149,0),MATCH(BR$4,TRM_Billing!$K$6:$K$149,0)+1),1) -> 98777.13855 | BS20: =+INDEX(TRM_Billing!$R$6:$R$149,IF($C20="HLH",MATCH(BS$4,TRM_Billing!$K$6:$K$149,0),MATCH(BS$4,TRM_Billing!$K$6:$K$149,0)+1),1) -> -1234136.97 | BT20: =+INDEX(TRM_Billing!$R$6:$R$149,IF($C20="HLH",MATCH(BT$4,TRM_Billing!$K$6:$K$149,0),MATCH(BT$4,TRM_Billing!$K$6:$K$149,0)+1),1) -> -523831.1924 | BU20: =+INDEX(TRM_Billing!$R$6:$R$149,IF($C20="HLH",MATCH(BU$4,TRM_Billing!$K$6:$K$149,0),MATCH(BU$4,TRM_Billing!$K$6:$K$149,0)+1),1) -> -244007.4299 | BV20: =+INDEX(TRM_Billing!$R$6:$R$149,IF($C20="HLH",MATCH(BV$4,TRM_Billing!$K$6:$K$149,0),MATCH(BV$4,TRM_Billing!$K$6:$K$149,0)+1),1) -> -193358.0347 | BW20: =+INDEX(TRM_Billing!$R$6:$R$149,IF($C20="HLH",MATCH(BW$4,TRM_Billing!$K$6:$K$149,0),MATCH(BW$4,TRM_Billing!$K$6:$K$149,0)+1),1) -> 24468.06096
C21: LLH | D21: =+INDEX(TRM_Billing!$R$6:$R$149,IF($C21="HLH",MATCH(D$4,TRM_Billing!$K$6:$K$149,0),MATCH(D$4,TRM_Billing!$K$6:$K$149,0)+1),1) -> 162196.2575 | E21: =+INDEX(TRM_Billing!$R$6:$R$149,IF($C21="HLH",MATCH(E$4,TRM_Billing!$K$6:$K$149,0),MATCH(E$4,TRM_Billing!$K$6:$K$149,0)+1),1) -> 116794.0603 | F21: =+INDEX(TRM_Billing!$R$6:$R$149,IF($C21="HLH",MATCH(F$4,TRM_Billing!$K$6:$K$149,0),MATCH(F$4,TRM_Billing!$K$6:$K$149,0)+1),1) -> 405696.4442 | G21: =+INDEX(TRM_Billing!$R$6:$R$149,IF($C21="HLH",MATCH(G$4,TRM_Billing!$K$6:$K$149,0),MATCH(G$4,TRM_Billing!$K$6:$K$149,0)+1),1) -> 568822.2783 | H21: =+INDEX(TRM_Billing!$R$6:$R$149,IF($C21="HLH",MATCH(H$4,TRM_Billing!$K$6:$K$149,0),MATCH(H$4,TRM_Billing!$K$6:$K$149,0)+1),1) -> 517528.082 | I21: =+INDEX(TRM_Billing!$R$6:$R$149,IF($C21="HLH",MATCH(I$4,TRM_Billing!$K$6:$K$149,0),MATCH(I$4,TRM_Billing!$K$6:$K$149,0)+1),1) -> 276453.6887 | J21: =+INDEX(TRM_Billing!$R$6:$R$149,IF($C21="HLH",MATCH(J$4,TRM_Billing!$K$6:$K$149,0),MATCH(J$4,TRM_Billing!$K$6:$K$149,0)+1),1) -> 180048.0154 | K21: =+INDEX(TRM_Billing!$R$6:$R$149,IF($C21="HLH",MATCH(K$4,TRM_Billing!$K$6:$K$149,0),MATCH(K$4,TRM_Billing!$K$6:$K$149,0)+1),1) -> -473840.6594 | L21: =+INDEX(TRM_Billing!$R$6:$R$149,IF($C21="HLH",MATCH(L$4,TRM_Billing!$K$6:$K$149,0),MATCH(L$4,TRM_Billing!$K$6:$K$149,0)+1),1) -> -141924.0051 | M21: =+INDEX(TRM_Billing!$R$6:$R$149,IF($C21="HLH",MATCH(M$4,TRM_Billing!$K$6:$K$149,0),MATCH(M$4,TRM_Billing!$K$6:$K$149,0)+1),1) -> 332348.2877 | N21: =+INDEX(TRM_Billing!$R$6:$R$149,IF($C21="HLH",MATCH(N$4,TRM_Billing!$K$6:$K$149,0),MATCH(N$4,TRM_Billing!$K$6:$K$149,0)+1),1) -> 121744.1848 | O21: =+INDEX(TRM_Billing!$R$6:$R$149,IF($C21="HLH",MATCH(O$4,TRM_Billing!$K$6:$K$149,0),MATCH(O$4,TRM_Billing!$K$6:$K$149,0)+1),1) -> 179952.8086 | P21: =+INDEX(TRM_Billing!$R$6:$R$149,IF($C21="HLH",MATCH(P$4,TRM_Billing!$K$6:$K$149,0),MATCH(P$4,TRM_Billing!$K$6:$K$149,0)+1),1) -> 119349.523 | Q21: =+INDEX(TRM_Billing!$R$6:$R$149,IF($C21="HLH",MATCH(Q$4,TRM_Billing!$K$6:$K$149,0),MATCH(Q$4,TRM_Billing!$K$6:$K$149,0)+1),1) -> 118914.6524 | R21: =+INDEX(TRM_Billing!$R$6:$R$149,IF($C21="HLH",MATCH(R$4,TRM_Billing!$K$6:$K$149,0),MATCH(R$4,TRM_Billing!$K$6:$K$149,0)+1),1) -> 410693.509 | S21: =+INDEX(TRM_Billing!$R$6:$R$149,IF($C21="HLH",MATCH(S$4,TRM_Billing!$K$6:$K$149,0),MATCH(S$4,TRM_Billing!$K$6:$K$149,0)+1),1) -> 574968.8198 | T21: =+INDEX(TRM_Billing!$R$6:$R$149,IF($C21="HLH",MATCH(T$4,TRM_Billing!$K$6:$K$149,0),MATCH(T$4,TRM_Billing!$K$6:$K$149,0)+1),1) -> 521706.6175 | U21: =+INDEX(TRM_Billing!$R$6:$R$149,IF($C21="HLH",MATCH(U$4,TRM_Billing!$K$6:$K$149,0),MATCH(U$4,TRM_Billing!$K$6:$K$149,0)+1),1) -> 324474.4507 | V21: =+INDEX(TRM_Billing!$R$6:$R$149,IF($C21="HLH",MATCH(V$4,TRM_Billing!$K$6:$K$149,0),MATCH(V$4,TRM_Billing!$K$6:$K$149,0)+1),1) -> 132767.6352 | W21: =+INDEX(TRM_Billing!$R$6:$R$149,IF($C21="HLH",MATCH(W$4,TRM_Billing!$K$6:$K$149,0),MATCH(W$4,TRM_Billing!$K$6:$K$149,0)+1),1) -> -482863.2922 | X21: =+INDEX(TRM_Billing!$R$6:$R$149,IF($C21="HLH",MATCH(X$4,TRM_Billing!$K$6:$K$149,0),MATCH(X$4,TRM_Billing!$K$6:$K$149,0)+1),1) -> -109819.6264 | Y21: =+INDEX(TRM_Billing!$R$6:$R$149,IF($C21="HLH",MATCH(Y$4,TRM_Billing!$K$6:$K$149,0),MATCH(Y$4,TRM_Billing!$K$6:$K$149,0)+1),1) -> 280657.1283 | Z21: =+INDEX(TRM_Billing!$R$6:$R$149,IF($C21="HLH",MATCH(Z$4,TRM_Billing!$K$6:$K$149,0),MATCH(Z$4,TRM_Billing!$K$6:$K$149,0)+1),1) -> 111817.4892 | AA21: =+INDEX(TRM_Billing!$R$6:$R$149,IF($C21="HLH",MATCH(AA$4,TRM_Billing!$K$6:$K$149,0),MATCH(AA$4,TRM_Billing!$K$6:$K$149,0)+1),1) -> 172610.7559 | AB21: =+INDEX(TRM_Billing!$R$6:$R$149,IF($C21="HLH",MATCH(AB$4,TRM_Billing!$K$6:$K$149,0),MATCH(AB$4,TRM_Billing!$K$6:$K$149,0)+1),1) -> 124826.6702 | AC21: =+INDEX(TRM_Billing!$R$6:$R$149,IF($C21="HLH",MATCH(AC$4,TRM_Billing!$K$6:$K$149,0),MATCH(AC$4,TRM_Billing!$K$6:$K$149,0)+1),1) -> 65412.33739 | AD21: =+INDEX(TRM_Billing!$R$6:$R$149,IF($C21="HLH",MATCH(AD$4,TRM_Billing!$K$6:$K$149,0),MATCH(AD$4,TRM_Billing!$K$6:$K$149,0)+1),1) -> 349835.7117 | AE21: =+INDEX(TRM_Billing!$R$6:$R$149,IF($C21="HLH",MATCH(AE$4,TRM_Billing!$K$6:$K$149,0),MATCH(AE$4,TRM_Billing!$K$6:$K$149,0)+1),1) -> 618418.2102 | AF21: =+INDEX(TRM_Billing!$R$6:$R$149,IF($C21="HLH",MATCH(AF$4,TRM_Billing!$K$6:$K$149,0),MATCH(AF$4,TRM_Billing!$K$6:$K$149,0)+1),1) -> 391191.1488 | AG21: =+INDEX(TRM_Billing!$R$6:$R$149,IF($C21="HLH",MATCH(AG$4,TRM_Billing!$K$6:$K$149,0),MATCH(AG$4,TRM_Billing!$K$6:$K$149,0)+1),1) -> 248290.2335 | AH21: =+INDEX(TRM_Billing!$R$6:$R$149,IF($C21="HLH",MATCH(AH$4,TRM_Billing!$K$6:$K$149,0),MATCH(AH$4,TRM_Billing!$K$6:$K$149,0)+1),1) -> 158577.2991 | AI21: =+INDEX(TRM_Billing!$R$6:$R$149,IF($C21="HLH",MATCH(AI$4,TRM_Billing!$K$6:$K$149,0),MATCH(AI$4,TRM_Billing!$K$6:$K$149,0)+1),1) -> -423681.1074 | AJ21: =+INDEX(TRM_Billing!$R$6:$R$149,IF($C21="HLH",MATCH(AJ$4,TRM_Billing!$K$6:$K$149,0),MATCH(AJ$4,TRM_Billing!$K$6:$K$149,0)+1),1) -> -217191.433 | AK21: =+INDEX(TRM_Billing!$R$6:$R$149,IF($C21="HLH",MATCH(AK$4,TRM_Billing!$K$6:$K$149,0),MATCH(AK$4,TRM_Billing!$K$6:$K$149,0)+1),1) -> 257814.1718 | AL21: =+INDEX(TRM_Billing!$R$6:$R$149,IF($C21="HLH",MATCH(AL$4,TRM_Billing!$K$6:$K$149,0),MATCH(AL$4,TRM_Billing!$K$6:$K$149,0)+1),1) -> 159263.913 | AM21: =+INDEX(TRM_Billing!$R$6:$R$149,IF($C21="HLH",MATCH(AM$4,TRM_Billing!$K$6:$K$149,0),MATCH(AM$4,TRM_Billing!$K$6:$K$149,0)+1),1) -> 131538.1137 | AN21: =+INDEX(TRM_Billing!$R$6:$R$149,IF($C21="HLH",MATCH(AN$4,TRM_Billing!$K$6:$K$149,0),MATCH(AN$4,TRM_Billing!$K$6:$K$149,0)+1),1) -> 125082.3593 | AO21: =+INDEX(TRM_Billing!$R$6:$R$149,IF($C21="HLH",MATCH(AO$4,TRM_Billing!$K$6:$K$149,0),MATCH(AO$4,TRM_Billing!$K$6:$K$149,0)+1),1) -> 118949.3269 | AP21: =+INDEX(TRM_Billing!$R$6:$R$149,IF($C21="HLH",MATCH(AP$4,TRM_Billing!$K$6:$K$149,0),MATCH(AP$4,TRM_Billing!$K$6:$K$149,0)+1),1) -> 295887.616 | AQ21: =+INDEX(TRM_Billing!$R$6:$R$149,IF($C21="HLH",MATCH(AQ$4,TRM_Billing!$K$6:$K$149,0),MATCH(AQ$4,TRM_Billing!$K$6:$K$149,0)+1),1) -> 665627.5982 | AR21: =+INDEX(TRM_Billing!$R$6:$R$149,IF($C21="HLH",MATCH(AR$4,TRM_Billing!$K$6:$K$149,0),MATCH(AR$4,TRM_Billing!$K$6:$K$149,0)+1),1) -> 408659.9913 | AS21: =+INDEX(TRM_Billing!$R$6:$R$149,IF($C21="HLH",MATCH(AS$4,TRM_Billing!$K$6:$K$149,0),MATCH(AS$4,TRM_Billing!$K$6:$K$149,0)+1),1) -> 181903.2033 | AT21: =+INDEX(TRM_Billing!$R$6:$R$149,IF($C21="HLH",MATCH(AT$4,TRM_Billing!$K$6:$K$149,0),MATCH(AT$4,TRM_Billing!$K$6:$K$149,0)+1),1) -> 138540.5903 | AU21: =+INDEX(TRM_Billing!$R$6:$R$149,IF($C21="HLH",MATCH(AU$4,TRM_Billing!$K$6:$K$149,0),MATCH(AU$4,TRM_Billing!$K$6:$K$149,0)+1),1) -> -439708.8576 | AV21: =+INDEX(TRM_Billing!$R$6:$R$149,IF($C21="HLH",MATCH(AV$4,TRM_Billing!$K$6:$K$149,0),MATCH(AV$4,TRM_Billing!$K$6:$K$149,0)+1),1) -> -233330.9487 | AW21: =+INDEX(TRM_Billing!$R$6:$R$149,IF($C21="HLH",MATCH(AW$4,TRM_Billing!$K$6:$K$149,0),MATCH(AW$4,TRM_Billing!$K$6:$K$149,0)+1),1) -> 245710.4488 | AX21: =+INDEX(TRM_Billing!$R$6:$R$149,IF($C21="HLH",MATCH(AX$4,TRM_Billing!$K$6:$K$149,0),MATCH(AX$4,TRM_Billing!$K$6:$K$149,0)+1),1) -> 144111.3922 | AY21: =+INDEX(TRM_Billing!$R$6:$R$149,IF($C21="HLH",MATCH(AY$4,TRM_Billing!$K$6:$K$149,0),MATCH(AY$4,TRM_Billing!$K$6:$K$149,0)+1),1) -> 118162.3922 | AZ21: =+INDEX(TRM_Billing!$R$6:$R$149,IF($C21="HLH",MATCH(AZ$4,TRM_Billing!$K$6:$K$149,0),MATCH(AZ$4,TRM_Billing!$K$6:$K$149,0)+1),1) -> 135060.0042 | BA21: =+INDEX(TRM_Billing!$R$6:$R$149,IF($C21="HLH",MATCH(BA$4,TRM_Billing!$K$6:$K$149,0),MATCH(BA$4,TRM_Billing!$K$6:$K$149,0)+1),1) -> 33136.5454 | BB21: =+INDEX(TRM_Billing!$R$6:$R$149,IF($C21="HLH",MATCH(BB$4,TRM_Billing!$K$6:$K$149,0),MATCH(BB$4,TRM_Billing!$K$6:$K$149,0)+1),1) -> 218253.2421 | BC21: =+INDEX(TRM_Billing!$R$6:$R$149,IF($C21="HLH",MATCH(BC$4,TRM_Billing!$K$6:$K$149,0),MATCH(BC$4,TRM_Billing!$K$6:$K$149,0)+1),1) -> 588961.7152 | BD21: =+INDEX(TRM_Billing!$R$6:$R$149,IF($C21="HLH",MATCH(BD$4,TRM_Billing!$K$6:$K$149,0),MATCH(BD$4,TRM_Billing!$K$6:$K$149,0)+1),1) -> 366840.6882 | BE21: =+INDEX(TRM_Billing!$R$6:$R$149,IF($C21="HLH",MATCH(BE$4,TRM_Billing!$K$6:$K$149,0),MATCH(BE$4,TRM_Billing!$K$6:$K$149,0)+1),1) -> 143567.0295 | BF21: =+INDEX(TRM_Billing!$R$6:$R$149,IF($C21="HLH",MATCH(BF$4,TRM_Billing!$K$6:$K$149,0),MATCH(BF$4,TRM_Billing!$K$6:$K$149,0)+1),1) -> 115063.3514 | BG21: =+INDEX(TRM_Billing!$R$6:$R$149,IF($C21="HLH",MATCH(BG$4,TRM_Billing!$K$6:$K$149,0),MATCH(BG$4,TRM_Billing!$K$6:$K$149,0)+1),1) -> -444700.0027 | BH21: =+INDEX(TRM_Billing!$R$6:$R$149,IF($C21="HLH",MATCH(BH$4,TRM_Billing!$K$6:$K$149,0),MATCH(BH$4,TRM_Billing!$K$6:$K$149,0)+1),1) -> -226385.7634 | BI21: =+INDEX(TRM_Billing!$R$6:$R$149,IF($C21="HLH",MATCH(BI$4,TRM_Billing!$K$6:$K$149,0),MATCH(BI$4,TRM_Billing!$K$6:$K$149,0)+1),1) -> 234730.9182 | BJ21: =+INDEX(TRM_Billing!$R$6:$R$149,IF($C21="HLH",MATCH(BJ$4,TRM_Billing!$K$6:$K$149,0),MATCH(BJ$4,TRM_Billing!$K$6:$K$149,0)+1),1) -> 58822.85143 | BK21: =+INDEX(TRM_Billing!$R$6:$R$149,IF($C21="HLH",MATCH(BK$4,TRM_Billing!$K$6:$K$149,0),MATCH(BK$4,TRM_Billing!$K$6:$K$149,0)+1),1) -> 79985.68391 | BL21: =+INDEX(TRM_Billing!$R$6:$R$149,IF($C21="HLH",MATCH(BL$4,TRM_Billing!$K$6:$K$149,0),MATCH(BL$4,TRM_Billing!$K$6:$K$149,0)+1),1) -> 122049.6073 | BM21: =+INDEX(TRM_Billing!$R$6:$R$149,IF($C21="HLH",MATCH(BM$4,TRM_Billing!$K$6:$K$149,0),MATCH(BM$4,TRM_Billing!$K$6:$K$149,0)+1),1) -> 24323.44862 | BN21: =+INDEX(TRM_Billing!$R$6:$R$149,IF($C21="HLH",MATCH(BN$4,TRM_Billing!$K$6:$K$149,0),MATCH(BN$4,TRM_Billing!$K$6:$K$149,0)+1),1) -> 210534.4458 | BO21: =+INDEX(TRM_Billing!$R$6:$R$149,IF($C21="HLH",MATCH(BO$4,TRM_Billing!$K$6:$K$149,0),MATCH(BO$4,TRM_Billing!$K$6:$K$149,0)+1),1) -> 584043.9183 | BP21: =+INDEX(TRM_Billing!$R$6:$R$149,IF($C21="HLH",MATCH(BP$4,TRM_Billing!$K$6:$K$149,0),MATCH(BP$4,TRM_Billing!$K$6:$K$149,0)+1),1) -> 358510.5331 | BQ21: =+INDEX(TRM_Billing!$R$6:$R$149,IF($C21="HLH",MATCH(BQ$4,TRM_Billing!$K$6:$K$149,0),MATCH(BQ$4,TRM_Billing!$K$6:$K$149,0)+1),1) -> 132902.0656 | BR21: =+INDEX(TRM_Billing!$R$6:$R$149,IF($C21="HLH",MATCH(BR$4,TRM_Billing!$K$6:$K$149,0),MATCH(BR$4,TRM_Billing!$K$6:$K$149,0)+1),1) -> 147724.7867 | BS21: =+INDEX(TRM_Billing!$R$6:$R$149,IF($C21="HLH",MATCH(BS$4,TRM_Billing!$K$6:$K$149,0),MATCH(BS$4,TRM_Billing!$K$6:$K$149,0)+1),1) -> -496115.6374 | BT21: =+INDEX(TRM_Billing!$R$6:$R$149,IF($C21="HLH",MATCH(BT$4,TRM_Billing!$K$6:$K$149,0),MATCH(BT$4,TRM_Billing!$K$6:$K$149,0)+1),1) -> -237646.8193 | BU21: =+INDEX(TRM_Billing!$R$6:$R$149,IF($C21="HLH",MATCH(BU$4,TRM_Billing!$K$6:$K$149,0),MATCH(BU$4,TRM_Billing!$K$6:$K$149,0)+1),1) -> 223929.4464 | BV21: =+INDEX(TRM_Billing!$R$6:$R$149,IF($C21="HLH",MATCH(BV$4,TRM_Billing!$K$6:$K$149,0),MATCH(BV$4,TRM_Billing!$K$6:$K$149,0)+1),1) -> 46151.48629 | BW21: =+INDEX(TRM_Billing!$R$6:$R$149,IF($C21="HLH",MATCH(BW$4,TRM_Billing!$K$6:$K$149,0),MATCH(BW$4,TRM_Billing!$K$6:$K$149,0)+1),1) -> 68954.69961
D24: =RateSummary!$C$10 -> 2018 | E24: =RateSummary!$D$10 -> 2019 | F24: =RateSummary!$E$10 -> 2020 | G24: =RateSummary!$F$10 -> 2021 | H24: =RateSummary!$G$10 -> 2022 | I24: =RateSummary!$H$10 -> 2023
C25: Public Load (MWh) | D25: =SUM(D12:O13) -> 59966423.84 | E25: =SUM(P12:AA13) -> 60497894.2 | F25: =SUM(AB12:AM13) -> 63250403.32 | G25: =SUM(AN12:AY13) -> 63309112.32 | H25: =SUM(AZ12:BK13) -> 63468846.4 | I25: =SUM(BL12:BW13) -> 63580427.59
C26: Public Load (aMW) | D26: =D25/VLOOKUP(D24,Init!$N$5:$P$38,3) -> 6845.482173 | E26: =E25/VLOOKUP(E24,Init!$N$5:$P$38,3) -> 6906.152305 | F26: =F25/VLOOKUP(F24,Init!$N$5:$P$38,3) -> 7200.637901 | G26: =G25/VLOOKUP(G24,Init!$N$5:$P$38,3) -> 7227.067616 | H26: =H25/VLOOKUP(H24,Init!$N$5:$P$38,3) -> 7245.3021 | I26: =I25/VLOOKUP(I24,Init!$N$5:$P$38,3) -> 7258.03968
C27: Demand (MW) | D27: =SUM(D18:O18) -> 4863.80805 | E27: =SUM(P18:AA18) -> 4801.300864 | F27: =SUM(AB18:AM18) -> 4963.052591 | G27: =SUM(AN18:AY18) -> 5023.800693 | H27: =SUM(AZ18:BK18) -> 5088.580579 | I27: =SUM(BL18:BW18) -> 5191.833849
D29: =RateSummary!$C$10 -> 2018 | E29: =RateSummary!$D$10 -> 2019 | F29: =RateSummary!$E$10 -> 2020 | G29: =RateSummary!$F$10 -> 2021 | H29: =RateSummary!$G$10 -> 2022 | I29: =RateSummary!$H$10 -> 2023
C30: Base | D30: =D26 -> 6845.482173 | E30: 6906.152305 | F30: 7200.637901 | G30: 7227.067616 | H30: 7245.3021 | I30: 7258.03968
D34: DEMAND: | E34: ENERGY: | F34: (GWh) | AE34: Total
E35: Oct | G35: Nov | I35: Dec | K35: Jan | M35: Feb | O35: Mar | Q35: Apr | S35: May | U35: Jun | W35: Jul | Y35: Aug | AA35: Sep | AC35: Total | AE35: Energy
D36: Annual | E36: LLH | F36: HLH | G36: LLH | H36: HLH | I36: LLH | J36: HLH | K36: LLH | L36: HLH | M36: LLH | N36: HLH | O36: LLH | P36: HLH | Q36: LLH | R36: HLH | S36: LLH | T36: HLH | U36: LLH | V36: HLH | W36: LLH | X36: HLH | Y36: LLH | Z36: HLH | AA36: LLH | AB36: HLH | AC36: LLH | AD36: HLH
B38: =RateSummary!$C$10 -> 2018 | D38: =Q49 -> 4863.80805 | E38: =D48 -> 1776.505625 | F38: =D47 -> 2759.929718 | G38: =E48 -> 2222.886911 | H38: =E47 -> 3250.230382 | I38: =F48 -> 2518.729685 | J38: =F47 -> 3535.226918 | K38: =G48 -> 2382.036505 | L38: =G47 -> 3414.788125 | M38: =H48 -> 1996.409784 | N38: =H47 -> 3041.297883 | O38: =I48 -> 2011.553881 | P38: =I47 -> 3136.300035 | Q38: =J48 -> 1776.869584 | R38: =J47 -> 2704.8952 | S38: =K48 -> 1917.932733 | T38: =K47 -> 2954.582087 | U38: =L48 -> 1697.4969 | V38: =L47 -> 2768.082699 | W38: =M48 -> 1924.194761 | X38: =M47 -> 2841.639901 | Y38: =N48 -> 1794.530439 | Z38: =N47 -> 3026.918892 | AA38: =O48 -> 1836.124911 | AB38: =O47 -> 2677.26028 | AC38: =E38+G38+I38+K38+M38+O38+Q38+S38+U38+W38+Y38+AA38 -> 23855.27172 | AD38: =F38+H38+J38+L38+N38+P38+R38+T38+V38+X38+Z38+AB38 -> 36111.15212 | AE38: =AC38+AD38 -> 59966.42384
B39: =RateSummary!$D$10 -> 2019 | D39: =Q53 -> 4801.300864 | E39: =D52 -> 1741.758348 | F39: =D51 -> 2858.974825 | G39: =E52 -> 2236.063442 | H39: =E51 -> 3309.154892 | I39: =F52 -> 2535.845392 | J39: =F51 -> 3598.776249 | K39: =G52 -> 2403.883311 | L39: =G51 -> 3479.994718 | M39: =H52 -> 2010.515969 | N39: =H51 -> 3097.467721 | O39: =I52 -> 2069.289839 | P39: =I51 -> 3152.644664 | Q39: =J52 -> 1738.421251 | R39: =J51 -> 2812.352443 | S39: =K52 -> 1892.259522 | T39: =K51 -> 2923.659737 | U39: =L52 -> 1658.334726 | V39: =L51 -> 2696.537943 | W39: =M52 -> 1877.977603 | X39: =M51 -> 2937.978895 | Y39: =N52 -> 1797.793935 | Z39: =N51 -> 3091.578995 | AA39: =O52 -> 1839.989058 | AB39: =O51 -> 2736.640717 | AC39: 23802.1324 | AD39: 36695.7618 | AE39: 60497.8942
B40: =RateSummary!$E$10 -> 2020 | D40: =Q57 -> 4963.052591 | E40: =D56 -> 1794.805441 | F40: =D55 -> 2911.197319 | G40: =E56 -> 2328.386014 | H40: =E55 -> 3435.229157 | I40: =F56 -> 2632.457794 | J40: =F55 -> 3733.302422 | K40: =G56 -> 2496.183631 | L40: =G55 -> 3667.926908 | M40: =H56 -> 2129.554017 | N40: =H55 -> 3301.856458 | O40: =I56 -> 2162.672229 | P40: =I55 -> 3265.932669 | Q40: =J56 -> 1816.012801 | R40: =J55 -> 2842.095952 | S40: =K56 -> 2108.729706 | T40: =K55 -> 3086.284967 | U40: =L56 -> 1784.318062 | V40: =L55 -> 2905.502471 | W40: =M56 -> 1956.517154 | X40: =M55 -> 3131.091114 | Y40: =N56 -> 1920.716809 | Z40: =N55 -> 3119.795515 | AA40: =O56 -> 1884.656433 | AB40: =O55 -> 2835.178279 | AC40: 25015.01009 | AD40: 38235.39323 | AE40: 63250.40332
B41: =RateSummary!$F$10 -> 2021 | D41: =Q61 -> 5023.800693 | E41: =D60 -> 1820.103625 | F41: =D59 -> 2942.458872 | G41: =E60 -> 2403.028072 | H41: =E59 -> 3419.15518 | I41: =F60 -> 2607.882995 | J41: =F59 -> 3825.843299 | K41: =G60 -> 2576.152461 | L41: =G59 -> 3634.592651 | M41: =H60 -> 2120.12275 | N41: =H59 -> 3251.888895 | O41: =I60 -> 2137.326901 | P41: =I59 -> 3332.447587 | Q41: =J60 -> 1832.553155 | R41: =J59 -> 2861.873394 | S41: =K60 -> 2025.316658 | T41: =K59 -> 3061.785389 | U41: =L60 -> 1744.686279 | V41: =L59 -> 2774.699415 | W41: =M60 -> 1985.818598 | X41: =M59 -> 3118.98818 | Y41: =N60 -> 1936.250862 | Z41: =N59 -> 3141.711803 | AA41: =O60 -> 1903.308746 | AB41: =O59 -> 2851.116554 | AC41: 25092.5511 | AD41: 38216.56122 | AE41: 63309.11232
B42: =RateSummary!$G$10 -> 2022 | D42: =Q65 -> 5088.580579 | E42: =D64 -> 1852.611566 | F42: =D63 -> 2893.919463 | G42: =E64 -> 2346.625376 | H42: =E63 -> 3459.934997 | I42: =F64 -> 2628.107148 | J42: =F63 -> 3785.920243 | K42: =G64 -> 2565.20897 | L42: =G63 -> 3623.402149 | M42: =H64 -> 2113.251447 | N42: =H63 -> 3240.9545 | O42: =I64 -> 2129.900001 | P42: =I63 -> 3320.349238 | Q42: =J64 -> 1822.868025 | R42: =J63 -> 2854.283349 | S42: =K64 -> 2081.576304 | T42: =K63 -> 3131.967037 | U42: =L64 -> 1791.418996 | V42: =L63 -> 2917.280058 | W42: =M64 -> 2026.353106 | X42: =M63 -> 3081.589808 | Y42: =N64 -> 1888.94204 | Z42: =N63 -> 3173.873169 | AA42: =O64 -> 1895.038683 | AB42: =O63 -> 2843.470721 | AC42: 25141.90166 | AD42: 38326.94473 | AE42: 63468.8464
B43: =RateSummary!$H$10 -> 2023 | D43: =Q69 -> 5191.833849 | E43: =D68 -> 1867.905473 | F43: =D67 -> 2915.39385 | G43: =E68 -> 2365.087174 | H43: =E67 -> 3482.870987 | I43: =F68 -> 2617.558204 | J43: =F67 -> 3844.763767 | K43: =G68 -> 2611.743579 | L43: =G67 -> 3625.623989 | M43: =H68 -> 2131.585938 | N43: =H67 -> 3264.058231 | O43: =I68 -> 2145.271574 | P43: =I67 -> 3346.360977 | Q43: =J68 -> 1881.406946 | R43: =J67 -> 2832.398212 | S43: =K68 -> 2005.605215 | T43: =K67 -> 3102.375949 | U43: =L68 -> 1723.455912 | V43: =L67 -> 2815.985272 | W43: =M68 -> 2034.555232 | X43: =M67 -> 3091.729754 | Y43: =N68 -> 1904.324415 | Z43: =N67 -> 3196.633462 | AA43: =O68 -> 1910.463285 | AB43: =O67 -> 2863.270197 | AC43: 25198.96295 | AD43: 38381.46465 | AE43: 63580.42759
D46: =E35 -> Oct | E46: =G35 -> Nov | F46: =I35 -> Dec | G46: =K35 -> Jan | H46: =M35 -> Feb | I46: =O35 -> Mar | J46: =Q35 -> Apr | K46: =S35 -> May | L46: =U35 -> Jun | M46: =W35 -> Jul | N46: =Y35 -> Aug | O46: =AA35 -> Sep | U46: =D26 -> 6845.482173
B47: =B38 -> 2018 | C47: HLH | D47: =(D12)/1000*$V$48 -> 2759.929718 | E47: 3250.230382 | F47: 3535.226918 | G47: 3414.788125 | H47: 3041.297883 | I47: 3136.300035 | J47: 2704.8952 | K47: 2954.582087 | L47: 2768.082699 | M47: 2841.639901 | N47: 3026.918892 | O47: 2677.26028 | R47: HLH | S47: =B47 -> 2018 | T47: =SUM(D47:O48) -> 59966.42384 | U47: =T47/(VLOOKUP(S47,Init!$N$5:$P$38,3)/1000) -> 6845.482173
C48: LLH | D48: =(D13)/1000*$V$48 -> 1776.505625 | E48: 2222.886911 | F48: 2518.729685 | G48: 2382.036505 | H48: 1996.409784 | I48: 2011.553881 | J48: 1776.869584 | K48: 1917.932733 | L48: 1697.4969 | M48: 1924.194761 | N48: 1794.530439 | O48: 1836.124911 | R48: LLH | U48: =D30 -> 6845.482173 | V48: =U48/U46 -> 1
C49: Demand | D49: =D18*$V$48 -> 292.201649 | E49: 282.266645 | F49: 531.52998 | G49: 604.5271418 | H49: 333.5454687 | I49: 552.9652708 | J49: 366.8590125 | K49: 330.7827452 | L49: 352.3891442 | M49: 367.2512525 | N49: 515.719412 | O49: 333.7703281 | P49: Annual = | Q49: =SUM(D49:P49) -> 4863.80805 | R49: Demand
D50: =D46 -> Oct | E50: Nov | F50: Dec | G50: Jan | H50: Feb | I50: Mar | J50: Apr | K50: May | L50: Jun | M50: Jul | N50: Aug | O50: Sep | U50: =E26 -> 6906.152305
B51: =B47+1 -> 2019 | C51: HLH | D51: =(P12)/1000*$V$52 -> 2858.974825 | E51: 3309.154892 | F51: 3598.776249 | G51: 3479.994718 | H51: 3097.467721 | I51: 3152.644664 | J51: 2812.352443 | K51: 2923.659737 | L51: 2696.537943 | M51: 2937.978895 | N51: 3091.578995 | O51: 2736.640717 | R51: HLH | S51: =B51 -> 2019 | T51: =SUM(D51:O52) -> 60497.8942 | U51: =T51/(VLOOKUP(S51,Init!$N$5:$P$38,3)/1000) -> 6906.152305
C52: LLH | D52: 1741.758348 | E52: 2236.063442 | F52: 2535.845392 | G52: 2403.883311 | H52: 2010.515969 | I52: 2069.289839 | J52: 1738.421251 | K52: 1892.259522 | L52: 1658.334726 | M52: 1877.977603 | N52: 1797.793935 | O52: 1839.989058 | R52: LLH | U52: =E30 -> 6906.152305 | V52: =U52/U50 -> 1
C53: Demand | D53: =P18*$V$52 -> 339.9937755 | E53: 287.5521575 | F53: 536.7308125 | G53: 612.2458582 | H53: 354.529401 | I53: 453.3377981 | J53: 416.0671971 | K53: 303.6498654 | L53: 297.6515175 | M53: 414.213 | N53: 474.5294236 | O53: 310.8000573 | P53: Annual = | Q53: =SUM(D53:P53) -> 4801.300864 | R53: Demand
D54: =D50 -> Oct | E54: Nov | F54: Dec | G54: Jan | H54: Feb | I54: Mar | J54: Apr | K54: May | L54: Jun | M54: Jul | N54: Aug | O54: Sep | U54: =F26 -> 7200.637901
B55: =B51+1 -> 2020 | C55: HLH | D55: =(AB12)/1000*$V$56 -> 2911.197319 | E55: 3435.229157 | F55: 3733.302422 | G55: 3667.926908 | H55: 3301.856458 | I55: 3265.932669 | J55: 2842.095952 | K55: 3086.284967 | L55: 2905.502471 | M55: 3131.091114 | N55: 3119.795515 | O55: 2835.178279 | R55: HLH | S55: =B55 -> 2020 | T55: =SUM(D55:O56) -> 63250.40332 | U55: =T55/(VLOOKUP(S55,Init!$N$5:$P$38,3)/1000) -> 7200.637901
C56: LLH | D56: 1794.805441 | E56: 2328.386014 | F56: 2632.457794 | G56: 2496.183631 | H56: 2129.554017 | I56: 2162.672229 | J56: 1816.012801 | K56: 2108.729706 | L56: 1784.318062 | M56: 1956.517154 | N56: 1920.716809 | O56: 1884.656433 | R56: LLH | U56: =F30 -> 7200.637901 | V56: =U56/U54 -> 1
C57: Demand | D57: =AB18*$V$56 -> 345.8653611 | E57: 294.0209725 | F57: 543.930565 | G57: 632.5331971 | H57: 426.4859775 | I57: 457.7584303 | J57: 430.7654231 | K57: 266.0523675 | L57: 364.2179063 | M57: 422.6119687 | N57: 403.1405216 | O57: 375.6699 | P57: Annual = | Q57: =SUM(D57:P57) -> 4963.052591 | R57: Demand
D58: =D54 -> Oct | E58: Nov | F58: Dec | G58: Jan | H58: Feb | I58: Mar | J58: Apr | K58: May | L58: Jun | M58: Jul | N58: Aug | O58: Sep | U58: =G26 -> 7227.067616
B59: =B55+1 -> 2021 | C59: HLH | D59: =(AN12)/1000*$V$60 -> 2942.458872 | E59: 3419.15518 | F59: 3825.843299 | G59: 3634.592651 | H59: 3251.888895 | I59: 3332.447587 | J59: 2861.873394 | K59: 3061.785389 | L59: 2774.699415 | M59: 3118.98818 | N59: 3141.711803 | O59: 2851.116554 | R59: HLH | S59: =B59 -> 2021 | T59: =SUM(D59:O60) -> 63309.11232 | U59: =T59/(VLOOKUP(S59,Init!$N$5:$P$38,3)/1000) -> 7227.067616
C60: LLH | D60: 1820.103625 | E60: 2403.028072 | F60: 2607.882995 | G60: 2576.152461 | H60: 2120.12275 | I60: 2137.326901 | J60: 1832.553155 | K60: 2025.316658 | L60: 1744.686279 | M60: 1985.818598 | N60: 1936.250862 | O60: 1903.308746 | R60: LLH | U60: =G30 -> 7227.067616 | V60: =U60/U58 -> 1
C61: Demand | D61: =AN18*$V$60 -> 357.9764722 | E61: 251.5542943 | F61: 626.0083245 | G61: 570.9028175 | H61: 367.7305964 | I61: 533.4253079 | J61: 451.2345962 | K61: 272.4786525 | L61: 371.0097668 | M61: 429.3918149 | N61: 410.0255577 | O61: 382.0624925 | P61: Annual = | Q61: =SUM(D61:P61) -> 5023.800693 | R61: Demand
D62: =D58 -> Oct | E62: Nov | F62: Dec | G62: Jan | H62: Feb | I62: Mar | J62: Apr | K62: May | L62: Jun | M62: Jul | N62: Aug | O62: Sep | U62: =H26 -> 7245.3021
B63: =B59+1 -> 2022 | C63: HLH | D63: =(AZ12)/1000*$V$64 -> 2893.919463 | E63: 3459.934997 | F63: 3785.920243 | G63: 3623.402149 | H63: 3240.9545 | I63: 3320.349238 | J63: 2854.283349 | K63: 3131.967037 | L63: 2917.280058 | M63: 3081.589808 | N63: 3173.873169 | O63: 2843.470721 | R63: HLH | S63: =B63 -> 2022 | T63: =SUM(D63:O64) -> 63468.8464 | U63: =T63/(VLOOKUP(S63,Init!$N$5:$P$38,3)/1000) -> 7245.3021
C64: LLH | D64: 1852.611566 | E64: 2346.625376 | F64: 2628.107148 | G64: 2565.20897 | H64: 2113.251447 | I64: 2129.900001 | J64: 1822.868025 | K64: 2081.576304 | L64: 1791.418996 | M64: 2026.353106 | N64: 1888.94204 | O64: 1895.038683 | R64: LLH | U64: =H30 -> 7245.3021 | V64: =U64/U62 -> 1
C65: Demand | D65: =AZ18*$V$64 -> 318.1702788 | E65: 318.5219625 | F65: 633.7004471 | G65: 578.8244375 | H65: 372.629388 | I65: 529.3170833 | J65: 443.8361635 | K65: 278.169365 | L65: 377.3610264 | M65: 376.53597 | N65: 473.3690116 | O65: 388.145445 | P65: Annual = | Q65: =SUM(D65:P65) -> 5088.580579 | R65: Demand
D66: =D62 -> Oct | E66: Nov | F66: Dec | G66: Jan | H66: Feb | I66: Mar | J66: Apr | K66: May | L66: Jun | M66: Jul | N66: Aug | O66: Sep | U66: =I26 -> 7258.03968
B67: =B63+1 -> 2023 | C67: HLH | D67: =(BL12)/1000*$V$68 -> 2915.39385 | E67: 3482.870987 | F67: 3844.763767 | G67: 3625.623989 | H67: 3264.058231 | I67: 3346.360977 | J67: 2832.398212 | K67: 3102.375949 | L67: 2815.985272 | M67: 3091.729754 | N67: 3196.633462 | O67: 2863.270197 | R67: HLH | S67: =B67 -> 2023 | T67: =SUM(D67:O68) -> 63580.42759 | U67: =T67/(VLOOKUP(S67,Init!$N$5:$P$38,3)/1000) -> 7258.03968
C68: LLH | D68: 1867.905473 | E68: 2365.087174 | F68: 2617.558204 | G68: 2611.743579 | H68: 2131.585938 | I68: 2145.271574 | J68: 1881.406946 | K68: 2005.605215 | L68: 1723.455912 | M68: 2034.555232 | N68: 1904.324415 | O68: 1910.463285 | R68: LLH | U68: =I30 -> 7258.03968 | V68: =U68/U66 -> 1
C69: Demand | D69: =BL18*$V$68 -> 325.1375168 | E69: 326.272395 | F69: 641.7086635 | G69: 585.90173 | H69: 398.627862 | I69: 537.2215532 | J69: 400.7973725 | K69: 331.9737019 | L69: 384.5154303 | M69: 383.70968 | N69: 480.9229884 | O69: 395.044955 | P69: Annual = | Q69: =SUM(D69:P69) -> 5191.833849 | R69: Demand
B72: Final PF Load Billing Determinants
D73: =RateSummary!$C$10 -> 2018 | E73: =RateSummary!$D$10 -> 2019 | F73: =RateSummary!$E$10 -> 2020 | G73: =RateSummary!$F$10 -> 2021 | H73: =RateSummary!$G$10 -> 2022 | I73: =RateSummary!$H$10 -> 2023
C75: Load forecast | D75: =U47 -> 6845.482173 | E75: =U51 -> 6906.152305 | F75: =U55 -> 7200.637901 | G75: =U59 -> 7227.067616 | H75: =U63 -> 7245.3021 | I75: =U67 -> 7258.03968
C77: Loads (GWh) | D77: =T47 -> 59966.42384 | E77: =T51 -> 60497.8942 | F77: =T55 -> 63250.40332 | G77: =T59 -> 63309.11232 | H77: =T63 -> 63468.8464 | I77: =T67 -> 63580.42759

Sheet PF Exchange
B1: Billing Determinants Needed for Rates Analysis Model | P1: Not printed in documentation.
A2: TOC | B2: =Cover!$C$14 -> RAMmodel_REP2018.xls
A3: é
D4: =+DATE(Init!$C$9-1,10,1) -> 2017-10-01 | E4: =+EOMONTH(D4,0)+1 -> 2017-11-01 | F4: 2017-12-01 | G4: 2018-01-01 | H4: 2018-02-01 | I4: 2018-03-01 | J4: 2018-04-01 | K4: 2018-05-01 | L4: 2018-06-01 | M4: 2018-07-01 | N4: 2018-08-01 | O4: 2018-09-01 | P4: 2018-10-01 | Q4: 2018-11-01 | R4: 2018-12-01 | S4: 2019-01-01 | T4: 2019-02-01 | U4: 2019-03-01 | V4: 2019-04-01 | W4: 2019-05-01 | X4: 2019-06-01 | Y4: 2019-07-01 | Z4: 2019-08-01 | AA4: 2019-09-01 | AB4: 2019-10-01 | AC4: 2019-11-01 | AD4: 2019-12-01 | AE4: 2020-01-01 | AF4: 2020-02-01 | AG4: 2020-03-01 | AH4: 2020-04-01 | AI4: 2020-05-01 | AJ4: 2020-06-01 | AK4: =+EOMONTH(AJ4,0)+1 -> 2020-07-01 | AL4: 2020-08-01 | AM4: 2020-09-01 | AN4: 2020-10-01 | AO4: 2020-11-01 | AP4: 2020-12-01 | AQ4: 2021-01-01 | AR4: 2021-02-01 | AS4: 2021-03-01 | AT4: 2021-04-01 | AU4: 2021-05-01 | AV4: 2021-06-01 | AW4: 2021-07-01 | AX4: 2021-08-01 | AY4: 2021-09-01 | AZ4: 2021-10-01 | BA4: 2021-11-01 | BB4: 2021-12-01 | BC4: 2022-01-01 | BD4: 2022-02-01 | BE4: 2022-03-01 | BF4: 2022-04-01 | BG4: 2022-05-01 | BH4: 2022-06-01 | BI4: 2022-07-01 | BJ4: 2022-08-01 | BK4: 2022-09-01 | BL4: 2022-10-01 | BM4: 2022-11-01 | BN4: 2022-12-01 | BO4: 2023-01-01 | BP4: 2023-02-01 | BQ4: =+EOMONTH(BP4,0)+1 -> 2023-03-01 | BR4: 2023-04-01 | BS4: 2023-05-01 | BT4: 2023-06-01 | BU4: 2023-07-01 | BV4: 2023-08-01 | BW4: 2023-09-01
B5: Public Load
C6: HLH | D6: ='PF Public'!D12 -> 2759929.718 | E6: ='PF Public'!E12 -> 3250230.382 | F6: ='PF Public'!F12 -> 3535226.918 | G6: ='PF Public'!G12 -> 3414788.125 | H6: ='PF Public'!H12 -> 3041297.883 | I6: ='PF Public'!I12 -> 3136300.035 | J6: ='PF Public'!J12 -> 2704895.2 | K6: ='PF Public'!K12 -> 2954582.087 | L6: ='PF Public'!L12 -> 2768082.699 | M6: ='PF Public'!M12 -> 2841639.901 | N6: ='PF Public'!N12 -> 3026918.892 | O6: ='PF Public'!O12 -> 2677260.28 | P6: ='PF Public'!P12 -> 2858974.825 | Q6: ='PF Public'!Q12 -> 3309154.892 | R6: ='PF Public'!R12 -> 3598776.249 | S6: ='PF Public'!S12 -> 3479994.718 | T6: ='PF Public'!T12 -> 3097467.721 | U6: ='PF Public'!U12 -> 3152644.664 | V6: ='PF Public'!V12 -> 2812352.443 | W6: ='PF Public'!W12 -> 2923659.737 | X6: ='PF Public'!X12 -> 2696537.943 | Y6: ='PF Public'!Y12 -> 2937978.895 | Z6: ='PF Public'!Z12 -> 3091578.995 | AA6: ='PF Public'!AA12 -> 2736640.717 | AB6: ='PF Public'!AB12 -> 2911197.319 | AC6: ='PF Public'!AC12 -> 3435229.157 | AD6: ='PF Public'!AD12 -> 3733302.422 | AE6: ='PF Public'!AE12 -> 3667926.908 | AF6: ='PF Public'!AF12 -> 3301856.458 | AG6: ='PF Public'!AG12 -> 3265932.669 | AH6: ='PF Public'!AH12 -> 2842095.952 | AI6: ='PF Public'!AI12 -> 3086284.967 | AJ6: ='PF Public'!AJ12 -> 2905502.471 | AK6: ='PF Public'!AK12 -> 3131091.114 | AL6: ='PF Public'!AL12 -> 3119795.515 | AM6: ='PF Public'!AM12 -> 2835178.279 | AN6: ='PF Public'!AN12 -> 2942458.872 | AO6: ='PF Public'!AO12 -> 3419155.18 | AP6: ='PF Public'!AP12 -> 3825843.299 | AQ6: ='PF Public'!AQ12 -> 3634592.651 | AR6: ='PF Public'!AR12 -> 3251888.895 | AS6: ='PF Public'!AS12 -> 3332447.587 | AT6: ='PF Public'!AT12 -> 2861873.394 | AU6: ='PF Public'!AU12 -> 3061785.389 | AV6: ='PF Public'!AV12 -> 2774699.415 | AW6: ='PF Public'!AW12 -> 3118988.18 | AX6: ='PF Public'!AX12 -> 3141711.803 | AY6: ='PF Public'!AY12 -> 2851116.554 | AZ6: ='PF Public'!AZ12 -> 2893919.463 | BA6: ='PF Public'!BA12 -> 3459934.997 | BB6: ='PF Public'!BB12 -> 3785920.243 | BC6: ='PF Public'!BC12 -> 3623402.149 | BD6: ='PF Public'!BD12 -> 3240954.5 | BE6: ='PF Public'!BE12 -> 3320349.238 | BF6: ='PF Public'!BF12 -> 2854283.349 | BG6: ='PF Public'!BG12 -> 3131967.037 | BH6: ='PF Public'!BH12 -> 2917280.058 | BI6: ='PF Public'!BI12 -> 3081589.808 | BJ6: ='PF Public'!BJ12 -> 3173873.169 | BK6: ='PF Public'!BK12 -> 2843470.721 | BL6: ='PF Public'!BL12 -> 2915393.85 | BM6: ='PF Public'!BM12 -> 3482870.987 | BN6: ='PF Public'!BN12 -> 3844763.767 | BO6: ='PF Public'!BO12 -> 3625623.989 | BP6: ='PF Public'!BP12 -> 3264058.231 | BQ6: ='PF Public'!BQ12 -> 3346360.977 | BR6: ='PF Public'!BR12 -> 2832398.212 | BS6: ='PF Public'!BS12 -> 3102375.949 | BT6: ='PF Public'!BT12 -> 2815985.272 | BU6: ='PF Public'!BU12 -> 3091729.754 | BV6: ='PF Public'!BV12 -> 3196633.462 | BW6: ='PF Public'!BW12 -> 2863270.197
C7: LLH | D7: ='PF Public'!D13 -> 1776505.625 | E7: ='PF Public'!E13 -> 2222886.911 | F7: ='PF Public'!F13 -> 2518729.685 | G7: ='PF Public'!G13 -> 2382036.505 | H7: ='PF Public'!H13 -> 1996409.784 | I7: ='PF Public'!I13 -> 2011553.881 | J7: ='PF Public'!J13 -> 1776869.584 | K7: ='PF Public'!K13 -> 1917932.733 | L7: ='PF Public'!L13 -> 1697496.9 | M7: ='PF Public'!M13 -> 1924194.761 | N7: ='PF Public'!N13 -> 1794530.439 | O7: ='PF Public'!O13 -> 1836124.911 | P7: ='PF Public'!P13 -> 1741758.348 | Q7: ='PF Public'!Q13 -> 2236063.442 | R7: ='PF Public'!R13 -> 2535845.392 | S7: ='PF Public'!S13 -> 2403883.311 | T7: ='PF Public'!T13 -> 2010515.969 | U7: ='PF Public'!U13 -> 2069289.839 | V7: ='PF Public'!V13 -> 1738421.251 | W7: ='PF Public'!W13 -> 1892259.522 | X7: ='PF Public'!X13 -> 1658334.726 | Y7: ='PF Public'!Y13 -> 1877977.603 | Z7: ='PF Public'!Z13 -> 1797793.935 | AA7: ='PF Public'!AA13 -> 1839989.058 | AB7: ='PF Public'!AB13 -> 1794805.441 | AC7: ='PF Public'!AC13 -> 2328386.014 | AD7: ='PF Public'!AD13 -> 2632457.794 | AE7: ='PF Public'!AE13 -> 2496183.631 | AF7: ='PF Public'!AF13 -> 2129554.017 | AG7: ='PF Public'!AG13 -> 2162672.229 | AH7: ='PF Public'!AH13 -> 1816012.801 | AI7: ='PF Public'!AI13 -> 2108729.706 | AJ7: ='PF Public'!AJ13 -> 1784318.062 | AK7: ='PF Public'!AK13 -> 1956517.154 | AL7: ='PF Public'!AL13 -> 1920716.809 | AM7: ='PF Public'!AM13 -> 1884656.433 | AN7: ='PF Public'!AN13 -> 1820103.625 | AO7: ='PF Public'!AO13 -> 2403028.072 | AP7: ='PF Public'!AP13 -> 2607882.995 | AQ7: ='PF Public'!AQ13 -> 2576152.461 | AR7: ='PF Public'!AR13 -> 2120122.75 | AS7: ='PF Public'!AS13 -> 2137326.901 | AT7: ='PF Public'!AT13 -> 1832553.155 | AU7: ='PF Public'!AU13 -> 2025316.658 | AV7: ='PF Public'!AV13 -> 1744686.279 | AW7: ='PF Public'!AW13 -> 1985818.598 | AX7: ='PF Public'!AX13 -> 1936250.862 | AY7: ='PF Public'!AY13 -> 1903308.746 | AZ7: ='PF Public'!AZ13 -> 1852611.566 | BA7: ='PF Public'!BA13 -> 2346625.376 | BB7: ='PF Public'!BB13 -> 2628107.148 | BC7: ='PF Public'!BC13 -> 2565208.97 | BD7: ='PF Public'!BD13 -> 2113251.447 | BE7: ='PF Public'!BE13 -> 2129900.001 | BF7: ='PF Public'!BF13 -> 1822868.025 | BG7: ='PF Public'!BG13 -> 2081576.304 | BH7: ='PF Public'!BH13 -> 1791418.996 | BI7: ='PF Public'!BI13 -> 2026353.106 | BJ7: ='PF Public'!BJ13 -> 1888942.04 | BK7: ='PF Public'!BK13 -> 1895038.683 | BL7: ='PF Public'!BL13 -> 1867905.473 | BM7: ='PF Public'!BM13 -> 2365087.174 | BN7: ='PF Public'!BN13 -> 2617558.204 | BO7: ='PF Public'!BO13 -> 2611743.579 | BP7: ='PF Public'!BP13 -> 2131585.938 | BQ7: ='PF Public'!BQ13 -> 2145271.574 | BR7: ='PF Public'!BR13 -> 1881406.946 | BS7: ='PF Public'!BS13 -> 2005605.215 | BT7: ='PF Public'!BT13 -> 1723455.912 | BU7: ='PF Public'!BU13 -> 2034555.232 | BV7: ='PF Public'!BV13 -> 1904324.415 | BW7: ='PF Public'!BW13 -> 1910463.285
B9: Demand | D9: ='PF Public'!D18 -> 292.201649 | E9: ='PF Public'!E18 -> 282.266645 | F9: ='PF Public'!F18 -> 531.52998 | G9: ='PF Public'!G18 -> 604.5271418 | H9: ='PF Public'!H18 -> 333.5454687 | I9: ='PF Public'!I18 -> 552.9652708 | J9: ='PF Public'!J18 -> 366.8590125 | K9: ='PF Public'!K18 -> 330.7827452 | L9: ='PF Public'!L18 -> 352.3891442 | M9: ='PF Public'!M18 -> 367.2512525 | N9: ='PF Public'!N18 -> 515.719412 | O9: ='PF Public'!O18 -> 333.7703281 | P9: ='PF Public'!P18 -> 339.9937755 | Q9: ='PF Public'!Q18 -> 287.5521575 | R9: ='PF Public'!R18 -> 536.7308125 | S9: ='PF Public'!S18 -> 612.2458582 | T9: ='PF Public'!T18 -> 354.529401 | U9: ='PF Public'!U18 -> 453.3377981 | V9: ='PF Public'!V18 -> 416.0671971 | W9: ='PF Public'!W18 -> 303.6498654 | X9: ='PF Public'!X18 -> 297.6515175 | Y9: ='PF Public'!Y18 -> 414.213 | Z9: ='PF Public'!Z18 -> 474.5294236 | AA9: ='PF Public'!AA18 -> 310.8000573 | AB9: ='PF Public'!AB18 -> 345.8653611 | AC9: ='PF Public'!AC18 -> 294.0209725 | AD9: ='PF Public'!AD18 -> 543.930565 | AE9: ='PF Public'!AE18 -> 632.5331971 | AF9: ='PF Public'!AF18 -> 426.4859775 | AG9: ='PF Public'!AG18 -> 457.7584303 | AH9: ='PF Public'!AH18 -> 430.7654231 | AI9: ='PF Public'!AI18 -> 266.0523675 | AJ9: ='PF Public'!AJ18 -> 364.2179063 | AK9: ='PF Public'!AK18 -> 422.6119687 | AL9: ='PF Public'!AL18 -> 403.1405216 | AM9: ='PF Public'!AM18 -> 375.6699 | AN9: ='PF Public'!AN18 -> 357.9764722 | AO9: ='PF Public'!AO18 -> 251.5542943 | AP9: ='PF Public'!AP18 -> 626.0083245 | AQ9: ='PF Public'!AQ18 -> 570.9028175 | AR9: ='PF Public'!AR18 -> 367.7305964 | AS9: ='PF Public'!AS18 -> 533.4253079 | AT9: ='PF Public'!AT18 -> 451.2345962 | AU9: ='PF Public'!AU18 -> 272.4786525 | AV9: ='PF Public'!AV18 -> 371.0097668 | AW9: ='PF Public'!AW18 -> 429.3918149 | AX9: ='PF Public'!AX18 -> 410.0255577 | AY9: ='PF Public'!AY18 -> 382.0624925 | AZ9: ='PF Public'!AZ18 -> 318.1702788 | BA9: ='PF Public'!BA18 -> 318.5219625 | BB9: ='PF Public'!BB18 -> 633.7004471 | BC9: ='PF Public'!BC18 -> 578.8244375 | BD9: ='PF Public'!BD18 -> 372.629388 | BE9: ='PF Public'!BE18 -> 529.3170833 | BF9: ='PF Public'!BF18 -> 443.8361635 | BG9: ='PF Public'!BG18 -> 278.169365 | BH9: ='PF Public'!BH18 -> 377.3610264 | BI9: ='PF Public'!BI18 -> 376.53597 | BJ9: ='PF Public'!BJ18 -> 473.3690116 | BK9: ='PF Public'!BK18 -> 388.145445 | BL9: ='PF Public'!BL18 -> 325.1375168 | BM9: ='PF Public'!BM18 -> 326.272395 | BN9: ='PF Public'!BN18 -> 641.7086635 | BO9: ='PF Public'!BO18 -> 585.90173 | BP9: ='PF Public'!BP18 -> 398.627862 | BQ9: ='PF Public'!BQ18 -> 537.2215532 | BR9: ='PF Public'!BR18 -> 400.7973725 | BS9: ='PF Public'!BS18 -> 331.9737019 | BT9: ='PF Public'!BT18 -> 384.5154303 | BU9: ='PF Public'!BU18 -> 383.70968 | BV9: ='PF Public'!BV18 -> 480.9229884 | BW9: ='PF Public'!BW18 -> 395.044955
D11: =RateSummary!$C$10 -> 2018 | E11: =RateSummary!$D$10 -> 2019 | F11: =RateSummary!$E$10 -> 2020 | G11: =RateSummary!$F$10 -> 2021 | H11: =RateSummary!$G$10 -> 2022 | I11: =RateSummary!$H$10 -> 2023
C12: Public Load (MWh) | D12: =SUM(D6:O7) -> 59966423.84 | E12: =SUM(P6:AA7) -> 60497894.2 | F12: =SUM(AB6:AM7) -> 63250403.32 | G12: =SUM(AN6:AY7) -> 63309112.32 | H12: =SUM(AZ6:BK7) -> 63468846.4 | I12: =SUM(BL6:BW7) -> 63580427.59
C13: Public Load (aMW) | D13: =D12/VLOOKUP(D11,Init!$N$5:$P$38,3) -> 6845.482173 | E13: =E12/VLOOKUP(E11,Init!$N$5:$P$38,3) -> 6906.152305 | F13: =F12/VLOOKUP(F11,Init!$N$5:$P$38,3) -> 7200.637901 | G13: =G12/VLOOKUP(G11,Init!$N$5:$P$38,3) -> 7227.067616 | H13: =H12/VLOOKUP(H11,Init!$N$5:$P$38,3) -> 7245.3021 | I13: =I12/VLOOKUP(I11,Init!$N$5:$P$38,3) -> 7258.03968
C14: Demand (MW) | D14: =SUM(D9:O9) -> 4863.80805 | E14: =SUM(P9:AA9) -> 4801.300864 | F14: =SUM(AB9:AM9) -> 4963.052591 | G14: =SUM(AN9:AY9) -> 5023.800693 | H14: =SUM(AZ9:BK9) -> 5088.580579 | I14: =SUM(BL9:BW9) -> 5191.833849
D16: DEMAND: | E16: ENERGY: | F16: (GWh) | AE16: Total
E17: Oct | G17: Nov | I17: Dec | K17: Jan | M17: Feb | O17: Mar | Q17: Apr | S17: May | U17: Jun | W17: Jul | Y17: Aug | AA17: Sep | AC17: Total | AE17: Energy
D18: Annual | E18: LLH | F18: HLH | G18: LLH | H18: HLH | I18: LLH | J18: HLH | K18: LLH | L18: HLH | M18: LLH | N18: HLH | O18: LLH | P18: HLH | Q18: LLH | R18: HLH | S18: LLH | T18: HLH | U18: LLH | V18: HLH | W18: LLH | X18: HLH | Y18: LLH | Z18: HLH | AA18: LLH | AB18: HLH | AC18: LLH | AD18: HLH | AG18: check
B20: =RateSummary!$C$10 -> 2018 | D20: =Q31 -> 3663.699332 | E20: =D30 -> 1338.165982 | F20: =D29 -> 2078.937441 | G20: =E30 -> 1674.405981 | H20: =E29 -> 2448.260038 | I20: =F30 -> 1897.251735 | J20: =F29 -> 2662.935783 | K20: =G30 -> 1794.286588 | L20: =G29 -> 2572.214372 | M20: =H30 -> 1503.810413 | N20: =H29 -> 2290.88009 | O20: =I30 -> 1515.217816 | P20: =I29 -> 2362.441163 | Q20: =J30 -> 1338.440136 | R20: =J29 -> 2037.482285 | S20: =K30 -> 1444.696995 | T20: =K29 -> 2225.560776 | U20: =L30 -> 1278.652076 | V20: =L29 -> 2085.078735 | W20: =M30 -> 1449.413914 | X20: =M29 -> 2140.48624 | Y20: =N30 -> 1351.743306 | Z20: =N29 -> 2280.049009 | AA20: =O30 -> 1383.074649 | AB20: =O29 -> 2016.666077 | AC20: =E20+G20+I20+K20+M20+O20+Q20+S20+U20+W20+Y20+AA20 -> 17969.15959 | AD20: =F20+H20+J20+L20+N20+P20+R20+T20+V20+X20+Z20+AB20 -> 27200.99201 | AE20: =AC20+AD20 -> 45170.1516 | AG20: =T29 -> 45170.1516 | AH20: =AG20/(VLOOKUP($B20,Init!$N:$P,3,FALSE)/1000) -> 5156.41
B21: =RateSummary!$D$10 -> 2019 | D21: =Q35 -> 3586.127657 | E21: =D34 -> 1300.932385 | F21: =D33 -> 2135.389759 | G21: =E34 -> 1670.132571 | H21: =E33 -> 2471.63263 | I21: =F34 -> 1894.041959 | J21: =F33 -> 2687.952996 | K21: =G34 -> 1795.47849 | L21: =G33 -> 2599.234178 | M21: =H34 -> 1501.669469 | N21: =H33 -> 2313.521893 | O21: =I34 -> 1545.568115 | P21: =I33 -> 2354.733966 | Q21: =J34 -> 1298.439882 | R21: =J33 -> 2100.567152 | S21: =K34 -> 1413.342842 | T21: =K33 -> 2183.703405 | U21: =L34 -> 1238.622656 | V21: =L33 -> 2014.064432 | W21: =M34 -> 1402.675569 | X21: =M33 -> 2194.398491 | Y21: =N34 -> 1342.785786 | Z21: =N33 -> 2309.123559 | AA21: =O34 -> 1374.30164 | AB21: =O33 -> 2044.017495 | AC21: 17777.99137 | AD21: 27408.33995 | AE21: 45186.33132 | AG21: =T33 -> 45186.33132 | AH21: =AG21/(VLOOKUP($B21,Init!$N:$P,3,FALSE)/1000) -> 5158.257
B22: =RateSummary!$E$10 -> 2020 | D22: =Q39 -> 3574.102771 | E22: =D38 -> 1292.514835 | F22: =D37 -> 2096.475549 | G22: =E38 -> 1676.768632 | H22: =E37 -> 2473.852901 | I22: =F38 -> 1895.743501 | J22: =F37 -> 2688.507987 | K22: =G38 -> 1797.606749 | L22: =G37 -> 2641.428332 | M22: =H38 -> 1533.581354 | N22: =H37 -> 2377.805615 | O22: =I38 -> 1557.431171 | P22: =I37 -> 2351.935384 | Q22: =J38 -> 1307.787146 | R22: =J37 -> 2046.71275 | S22: =K38 -> 1518.584892 | T22: =K37 -> 2222.563524 | U22: =L38 -> 1284.962433 | V22: =L37 -> 2092.37445 | W22: =M38 -> 1408.970236 | X22: =M37 -> 2254.830313 | Y22: =N38 -> 1383.188903 | Z22: =N37 -> 2246.695878 | AA22: =O38 -> 1357.22031 | AB22: =O37 -> 2041.731043 | AC22: 18014.36016 | AD22: 27534.91372 | AE22: 45549.27389 | AG22: =T37 -> 45549.27389 | AH22: =AG22/(VLOOKUP($B22,Init!$N:$P,3,FALSE)/1000) -> 5185.482
B23: =RateSummary!$F$10 -> 2021 | D23: =Q43 -> 3604.61939 | E23: =D42 -> 1305.93971 | F23: =D41 -> 2111.23907 | G23: =E42 -> 1724.192919 | H23: =E41 -> 2453.272694 | I23: =F42 -> 1871.178055 | J23: =F41 -> 2745.074851 | K23: =G42 -> 1848.411129 | L23: =G41 -> 2607.850898 | M23: =H42 -> 1521.205963 | N23: =H41 -> 2333.257723 | O23: =I42 -> 1533.550087 | P23: =I41 -> 2391.059265 | Q23: =J42 -> 1314.872352 | R23: =J41 -> 2053.41831 | S23: =K42 -> 1453.181792 | T23: =K41 -> 2196.856853 | U23: =L42 -> 1251.827128 | V23: =L41 -> 1990.870244 | W23: =M42 -> 1424.841601 | X23: =M41 -> 2237.900339 | Y23: =N42 -> 1389.276332 | Z23: =N41 -> 2254.20473 | AA23: =O42 -> 1365.640086 | AB23: =O41 -> 2045.700186 | AC23: 18004.11716 | AD23: 27420.70516 | AE23: 45424.82232 | AG23: =T41 -> 45424.82232 | AH23: =AG23/(VLOOKUP($B23,Init!$N:$P,3,FALSE)/1000) -> 5185.482
B24: =RateSummary!$G$10 -> 2022 | D24: =Q47 -> 3661.193791 | E24: =D46 -> 1332.939483 | F24: =D45 -> 2082.152343 | G24: =E46 -> 1688.378542 | H24: =E45 -> 2489.396077 | I24: =F46 -> 1890.902468 | J24: =F45 -> 2723.939903 | K24: =G46 -> 1845.647722 | L24: =G45 -> 2607.00941 | M24: =H46 -> 1520.467832 | N24: =H45 -> 2331.841328 | O24: =I46 -> 1532.446336 | P24: =I45 -> 2388.965219 | Q24: =J46 -> 1311.539238 | R24: =J45 -> 2053.634469 | S24: =K46 -> 1497.677815 | T24: =K45 -> 2253.425703 | U24: =L46 -> 1288.911909 | V24: =L45 -> 2098.960107 | W24: =M46 -> 1457.945157 | X24: =M45 -> 2217.179682 | Y24: =N46 -> 1359.078974 | Z24: =N45 -> 2283.576836 | AA24: =O46 -> 1363.46546 | AB24: =O45 -> 2045.854868 | AC24: 18089.40093 | AD24: 27575.93595 | AE24: 45665.33688 | AG24: =T45 -> 45665.33688 | AH24: =AG24/(VLOOKUP($B24,Init!$N:$P,3,FALSE)/1000) -> 5212.938
B25: =RateSummary!$H$10 -> 2023 | D25: =Q51 -> 3728.928079 | E25: =D50 -> 1341.58476 | F25: =D49 -> 2093.921783 | G25: =E50 -> 1698.67531 | H25: =E49 -> 2501.500587 | I25: =F50 -> 1880.007445 | J25: =F49 -> 2761.422646 | K25: =G50 -> 1875.831209 | L25: =G49 -> 2604.03 | M25: =H50 -> 1530.967841 | N25: =H49 -> 2344.342817 | O25: =I50 -> 1540.797268 | P25: =I49 -> 2403.455074 | Q25: =J50 -> 1351.281916 | R25: =J49 -> 2034.31187 | S25: =K50 -> 1440.484773 | T25: =K49 -> 2228.217837 | U25: =L50 -> 1237.836828 | V25: =L49 -> 2022.523612 | W25: =M50 -> 1461.277528 | X25: =M49 -> 2220.571426 | Y25: =N50 -> 1367.741917 | Z25: =N49 -> 2295.91636 | AA25: =O50 -> 1372.151034 | AB25: =O49 -> 2056.485039 | AC25: 18098.63783 | AD25: 27566.69905 | AE25: 45665.33688 | AG25: =T49 -> 45665.33688 | AH25: =AG25/(VLOOKUP($B25,Init!$N:$P,3,FALSE)/1000) -> 5212.938
D28: =E17 -> Oct | E28: =G17 -> Nov | F28: =I17 -> Dec | G28: =K17 -> Jan | H28: =M17 -> Feb | I28: =O17 -> Mar | J28: =Q17 -> Apr | K28: =S17 -> May | L28: =U17 -> Jun | M28: =W17 -> Jul | N28: =Y17 -> Aug | O28: =AA17 -> Sep
B29: =B20 -> 2018 | C29: HLH | D29: =D6/1000*$V$30 -> 2078.937441 | E29: 2448.260038 | F29: 2662.935783 | G29: 2572.214372 | H29: 2290.88009 | I29: 2362.441163 | J29: 2037.482285 | K29: 2225.560776 | L29: 2085.078735 | M29: 2140.48624 | N29: 2280.049009 | O29: 2016.666077 | R29: HLH | S29: =B29 -> 2018 | T29: =SUM(D29:O30) -> 45170.1516 | U29: =T29/(VLOOKUP(S29,Init!$N$5:$P$38,3)/1000) -> 5156.41 | V29: =D13 -> 6845.482173
C30: LLH | D30: =D7/1000*$V$30 -> 1338.165982 | E30: 1674.405981 | F30: 1897.251735 | G30: 1794.286588 | H30: 1503.810413 | I30: 1515.217816 | J30: 1338.440136 | K30: 1444.696995 | L30: 1278.652076 | M30: 1449.413914 | N30: 1351.743306 | O30: 1383.074649 | R30: LLH | U30: =D59 -> 5156.41 | V30: =U30/V29 -> 0.7532573848
C31: Demand | D31: =D9*$V$30 -> 220.10305 | E31: 212.6194348 | F31: 400.3788827 | G31: 455.3645339 | H31: 251.2455875 | I31: 416.5251738 | J31: 276.3392604 | K31: 249.1645456 | L31: 265.4397252 | M31: 276.634718 | N31: 388.4694556 | O31: 251.4149645 | P31: Annual = | Q31: =SUM(D31:P31) -> 3663.699332 | R31: Demand
D32: =D28 -> Oct | E32: Nov | F32: Dec | G32: Jan | H32: Feb | I32: Mar | J32: Apr | K32: May | L32: Jun | M32: Jul | N32: Aug | O32: Sep
B33: =B29+1 -> 2019 | C33: HLH | D33: =P6/1000*$V$34 -> 2135.389759 | E33: 2471.63263 | F33: 2687.952996 | G33: 2599.234178 | H33: 2313.521893 | I33: 2354.733966 | J33: 2100.567152 | K33: 2183.703405 | L33: 2014.064432 | M33: 2194.398491 | N33: 2309.123559 | O33: 2044.017495 | R33: HLH | S33: =B33 -> 2019 | T33: =SUM(D33:O34) -> 45186.33132 | U33: =T33/(VLOOKUP(S33,Init!$N$5:$P$38,3)/1000) -> 5158.257 | V33: =E13 -> 6906.152305
C34: LLH | D34: 1300.932385 | E34: 1670.132571 | F34: 1894.041959 | G34: 1795.47849 | H34: 1501.669469 | I34: 1545.568115 | J34: 1298.439882 | K34: 1413.342842 | L34: 1238.622656 | M34: 1402.675569 | N34: 1342.785786 | O34: 1374.30164 | R34: LLH | U34: =E59 -> 5158.257 | V34: =U34/V33 -> 0.7469075068
C35: Demand | D35: =P9*$V$34 -> 253.9439032 | E35: 214.774865 | F35: 400.888273 | G35: 457.2910275 | H35: 264.800671 | I35: 338.6014045 | J35: 310.7637129 | K35: 226.7983639 | L35: 222.3181528 | M35: 309.3787991 | N35: 354.4295887 | O35: 232.1388959 | P35: Annual = | Q35: =SUM(D35:P35) -> 3586.127657 | R35: Demand
D36: =D32 -> Oct | E36: Nov | F36: Dec | G36: Jan | H36: Feb | I36: Mar | J36: Apr | K36: May | L36: Jun | M36: Jul | N36: Aug | O36: Sep
B37: =B33+1 -> 2020 | C37: HLH | D37: =AB6/1000*$V$38 -> 2096.475549 | E37: 2473.852901 | F37: 2688.507987 | G37: 2641.428332 | H37: 2377.805615 | I37: 2351.935384 | J37: 2046.71275 | K37: 2222.563524 | L37: 2092.37445 | M37: 2254.830313 | N37: 2246.695878 | O37: 2041.731043 | R37: HLH | S37: =B37 -> 2020 | T37: =SUM(D37:O38) -> 45549.27389 | U37: =T37/(VLOOKUP(S37,Init!$N$5:$P$38,3)/1000) -> 5185.482 | V37: =F13 -> 7200.637901
C38: LLH | D38: 1292.514835 | E38: 1676.768632 | F38: 1895.743501 | G38: 1797.606749 | H38: 1533.581354 | I38: 1557.431171 | J38: 1307.787146 | K38: 1518.584892 | L38: 1284.962433 | M38: 1408.970236 | N38: 1383.188903 | O38: 1357.22031 | R38: LLH | U38: =F59 -> 5185.482 | V38: =U38/V37 -> 0.7201420306
C39: Demand | D39: =AB9*$V$38 -> 249.0721835 | E39: 211.7368602 | F39: 391.7072616 | G39: 455.513741 | H39: 307.1304779 | I39: 329.6510855 | J39: 310.2122865 | K39: 191.5954922 | L39: 262.2886226 | M39: 304.3406413 | N39: 290.3184339 | O39: 270.5356846 | P39: Annual = | Q39: =SUM(D39:P39) -> 3574.102771 | R39: Demand
D40: =D36 -> Oct | E40: Nov | F40: Dec | G40: Jan | H40: Feb | I40: Mar | J40: Apr | K40: May | L40: Jun | M40: Jul | N40: Aug | O40: Sep
B41: =B37+1 -> 2021 | C41: HLH | D41: =AN6/1000*$V$42 -> 2111.23907 | E41: 2453.272694 | F41: 2745.074851 | G41: 2607.850898 | H41: 2333.257723 | I41: 2391.059265 | J41: 2053.41831 | K41: 2196.856853 | L41: 1990.870244 | M41: 2237.900339 | N41: 2254.20473 | O41: 2045.700186 | R41: HLH | S41: =B41 -> 2021 | T41: =SUM(D41:O42) -> 45424.82232 | U41: =T41/(VLOOKUP(S41,Init!$N$5:$P$38,3)/1000) -> 5185.482 | V41: =G13 -> 7227.067616
C42: LLH | D42: 1305.93971 | E42: 1724.192919 | F42: 1871.178055 | G42: 1848.411129 | H42: 1521.205963 | I42: 1533.550087 | J42: 1314.872352 | K42: 1453.181792 | L42: 1251.827128 | M42: 1424.841601 | N42: 1389.276332 | O42: 1365.640086 | R42: LLH | U42: =G59 -> 5185.482 | V42: =U42/V41 -> 0.7175084384
C43: Demand | D43: =AN9*$V$42 -> 256.8511396 | E43: 180.4923289 | F43: 449.1662554 | G43: 409.6275891 | H43: 263.849806 | I43: 382.7371597 | J43: 323.7646305 | K43: 195.5057325 | L43: 266.2026384 | M43: 308.0922506 | N43: 294.1967976 | O43: 274.1330624 | P43: Annual = | Q43: =SUM(D43:P43) -> 3604.61939 | R43: Demand
D44: =D40 -> Oct | E44: Nov | F44: Dec | G44: Jan | H44: Feb | I44: Mar | J44: Apr | K44: May | L44: Jun | M44: Jul | N44: Aug | O44: Sep
B45: =B41+1 -> 2022 | C45: HLH | D45: =AZ6/1000*$V$46 -> 2082.152343 | E45: 2489.396077 | F45: 2723.939903 | G45: 2607.00941 | H45: 2331.841328 | I45: 2388.965219 | J45: 2053.634469 | K45: 2253.425703 | L45: 2098.960107 | M45: 2217.179682 | N45: 2283.576836 | O45: 2045.854868 | R45: HLH | S45: =B45 -> 2022 | T45: =SUM(D45:O46) -> 45665.33688 | U45: =T45/(VLOOKUP(S45,Init!$N$5:$P$38,3)/1000) -> 5212.938 | V45: =H13 -> 7245.3021
C46: LLH | D46: 1332.939483 | E46: 1688.378542 | F46: 1890.902468 | G46: 1845.647722 | H46: 1520.467832 | I46: 1532.446336 | J46: 1311.539238 | K46: 1497.677815 | L46: 1288.911909 | M46: 1457.945157 | N46: 1359.078974 | O46: 1363.46546 | R46: LLH | U46: =H59 -> 5212.938 | V46: =U46/V45 -> 0.719492152
C47: Demand | D47: =AZ9*$V$46 -> 228.9210186 | E47: 229.1740523 | F47: 455.9424984 | G47: 416.4596402 | H47: 268.1039203 | I47: 380.8394874 | J47: 319.3366364 | K47: 200.140675 | L47: 271.508297 | M47: 270.9146754 | N47: 340.5852888 | O47: 279.2676015 | P47: Annual = | Q47: =SUM(D47:P47) -> 3661.193791 | R47: Demand
D48: =D44 -> Oct | E48: Nov | F48: Dec | G48: Jan | H48: Feb | I48: Mar | J48: Apr | K48: May | L48: Jun | M48: Jul | N48: Aug | O48: Sep
B49: =B45+1 -> 2023 | C49: HLH | D49: =BL6/1000*$V$50 -> 2093.921783 | E49: 2501.500587 | F49: 2761.422646 | G49: 2604.03 | H49: 2344.342817 | I49: 2403.455074 | J49: 2034.31187 | K49: 2228.217837 | L49: 2022.523612 | M49: 2220.571426 | N49: 2295.91636 | O49: 2056.485039 | R49: HLH | S49: =B49 -> 2023 | T49: =SUM(D49:O50) -> 45665.33688 | U49: =T49/(VLOOKUP(S49,Init!$N$5:$P$38,3)/1000) -> 5212.938 | V49: =I13 -> 7258.03968
C50: LLH | D50: 1341.58476 | E50: 1698.67531 | F50: 1880.007445 | G50: 1875.831209 | H50: 1530.967841 | I50: 1540.797268 | J50: 1351.281916 | K50: 1440.484773 | L50: 1237.836828 | M50: 1461.277528 | N50: 1367.741917 | O50: 1372.151034 | R50: LLH | U50: =I59 -> 5212.938 | V50: =U50/V49 -> 0.718229471
C51: Demand | D51: =BL9*$V$50 -> 233.5233467 | E51: 234.3384497 | F51: 460.8940739 | G51: 420.8118896 | H51: 286.3062785 | I51: 385.848352 | J51: 287.8644848 | K51: 238.4332963 | L51: 276.1703141 | M51: 275.5916005 | N51: 345.4130636 | O51: 283.7329291 | P51: Annual = | Q51: =SUM(D51:P51) -> 3728.928079 | R51: Demand
B54: Final Exchange Load Billing Determinants
D55: =RateSummary!$C$10 -> 2018 | E55: =RateSummary!$D$10 -> 2019 | F55: =RateSummary!$E$10 -> 2020 | G55: =RateSummary!$F$10 -> 2021 | H55: =RateSummary!$G$10 -> 2022 | I55: =RateSummary!$H$10 -> 2023
C57: Exchange Load | D57: =U30 -> 5156.41 | E57: =U34 -> 5158.257 | F57: =U38 -> 5185.482 | G57: =U42 -> 5185.482 | H57: =U46 -> 5212.938 | I57: =U50 -> 5212.938
C59: Initial Load | D59: =IF('Exchange Load'!D29>0.001,'Exchange Load'!D29,0.001) -> 5156.41 | E59: =IF('Exchange Load'!E29>0.001,'Exchange Load'!E29,0.001) -> 5158.257 | F59: =IF('Exchange Load'!F29>0.001,'Exchange Load'!F29,0.001) -> 5185.482 | G59: =IF('Exchange Load'!G29>0.001,'Exchange Load'!G29,0.001) -> 5185.482 | H59: =IF('Exchange Load'!H29>0.001,'Exchange Load'!H29,0.001) -> 5212.938 | I59: =IF('Exchange Load'!I29>0.001,'Exchange Load'!I29,0.001) -> 5212.938
C61: Loads (GWh) | D61: =T29 -> 45170.1516 | E61: =T33 -> 45186.33132 | F61: =T37 -> 45549.27389 | G61: =T41 -> 45424.82232 | H61: =T45 -> 45665.33688 | I61: =T49 -> 45665.33688

Sheet RAM IP
B1: Billing Determinants Needed for Rates Analysis Model | R1: Not printed in documentation.
A2: TOC | B2: =Cover!$C$14 -> RAMmodel_REP2018.xls
A3: é
D4: =+DATE(Init!$C$9-1,10,1) -> 2017-10-01 | E4: =+EOMONTH(D4,0)+1 -> 2017-11-01 | F4: 2017-12-01 | G4: 2018-01-01 | H4: 2018-02-01 | I4: 2018-03-01 | J4: 2018-04-01 | K4: 2018-05-01 | L4: 2018-06-01 | M4: 2018-07-01 | N4: 2018-08-01 | O4: 2018-09-01 | P4: 2018-10-01 | Q4: 2018-11-01 | R4: 2018-12-01 | S4: 2019-01-01 | T4: 2019-02-01 | U4: 2019-03-01 | V4: 2019-04-01 | W4: 2019-05-01 | X4: 2019-06-01 | Y4: 2019-07-01 | Z4: 2019-08-01 | AA4: 2019-09-01 | AB4: 2019-10-01 | AC4: 2019-11-01 | AD4: 2019-12-01 | AE4: 2020-01-01 | AF4: 2020-02-01 | AG4: 2020-03-01 | AH4: 2020-04-01 | AI4: 2020-05-01 | AJ4: 2020-06-01 | AK4: =+EOMONTH(AJ4,0)+1 -> 2020-07-01 | AL4: 2020-08-01 | AM4: 2020-09-01 | AN4: 2020-10-01 | AO4: 2020-11-01 | AP4: 2020-12-01 | AQ4: 2021-01-01 | AR4: 2021-02-01 | AS4: 2021-03-01 | AT4: 2021-04-01 | AU4: 2021-05-01 | AV4: 2021-06-01 | AW4: 2021-07-01 | AX4: 2021-08-01 | AY4: 2021-09-01 | AZ4: 2021-10-01 | BA4: 2021-11-01 | BB4: 2021-12-01 | BC4: 2022-01-01 | BD4: 2022-02-01 | BE4: 2022-03-01 | BF4: 2022-04-01 | BG4: 2022-05-01 | BH4: 2022-06-01 | BI4: 2022-07-01 | BJ4: 2022-08-01 | BK4: 2022-09-01 | BL4: 2022-10-01 | BM4: 2022-11-01 | BN4: 2022-12-01 | BO4: 2023-01-01 | BP4: 2023-02-01 | BQ4: =+EOMONTH(BP4,0)+1 -> 2023-03-01 | BR4: 2023-04-01 | BS4: 2023-05-01 | BT4: 2023-06-01 | BU4: 2023-07-01 | BV4: 2023-08-01 | BW4: 2023-09-01
B6: Direct Service Industry Load
